Workbook

Sheet About

Sheet MAIN
A1: EVALUATION OF PRECAST, PRESTRESSED ADJACENT BOX BEAM BRIDGES
A2: Bridge ID | B2: Sample Bridge | D2: Load rated by | E2: YM | F2: Date | G2: 20/05/2025 | K2: Input cell | M2: Essential input
A3: Construction year | B3: 2019 | D3: Checked by | E3: YM | F3: Date | G3: 20/05/2025 | K3: Input cell* | M3: Default built-in input
K4: Input cell | M4: Optional input
A5: 1. Bridge Information | K5: Output cell | M5: Output
A6: Total span* | B6: 66.5 | C6: ft
A7: Total width | B7: 32 | C7: ft
A9: Single lane width | B9: 11 | C9: ft
A10: End offset | B10: 6 | C10: in.
A11: Width of bearing | B11: 6 | C11: in.
A12: Barrier type | B12: Steel tube railing
A13: Width of barrier | B13: 0 | C13: ft each side
A15: Design span | B15: =B6-2*B10/12 -> 65.5 | C15: ft
A16: Road way width | B16: =B7-B13*2 -> 32 | C16: ft
A18: Composite /Non composite* | B18: Non composite
A19: Thickness of deck slab* | B19: 0 | C19: in.
A21: Skew/Non skew* | B21: Skew
A22: Skew angle* | B22: 12 | C22: Degrees
A24: Surfacing material | B24: Asphalt surface
A25: Thickness | B25: 8.67 | C25: in.
R26: 1
A27: Total number of diaphragm* | B27: 6 | C27: nos
A29: Diaphragm number | B29: Position from left support | D29: Thickness
A30: 1 | B30: 1.5 | C30: ft | D30: 18 | E30: in.
A31: 2 | B31: 14 | C31: ft | D31: 18 | E31: in.
A32: 3 | B32: 26.5 | C32: ft | D32: 18 | E32: in.
A33: 4 | B33: 39 | C33: ft | D33: 18 | E33: in.
A34: 5 | B34: 51.5 | C34: ft | D34: 18 | E34: in.
A35: 6 | B35: 64 | C35: ft | D35: 18 | E35: in.
A36: 7 | C36: ft | E36: in.
A37: 8 | C37: ft | E37: in.
A38: 9 | C38: ft | E38: in.
A39: 10 | C39: ft | E39: in.
A40: 11 | C40: ft | E40: in.
A41: 12 | C41: ft | E41: in.
A43: Bridge appraisal rating | B43: 9
A44: Condition factor | B44: ='Calculation Summary'!C136 -> 1
A46: Additional beam weight | B46: 0
A47: Additional barrier weight | B47: 0
A49: 2. Material Properties
A51: a. Concrete
A52: Required concrete compressive strength at transfer* | E52: f'ci | F52: 5 | G52: ksi
A53: Specified concrete compressive strength for use in design* | E53: f'c | F53: 7 | G53: ksi
A54: Deck concrete compressive strength * | E54: f'c_deck | F54: 4.5 | G54: ksi
A55: Concrete unit weight* | E55: wc | F55: 0.15 | G55: kcf
A57: Correction factor for source of concrete* | E57: K1 | F57: 1
A58: Modulus of elasticity of concrete for precast beam at transfer | E58: Eci | F58: =33000*$F$57*F55^1.5*SQRT(fc_transfer) -> 4286.825749 | G58: ksi
A59: Modulus of elasticity of concrete for precast beam at service load | E59: Ec_beam | F59: =33000*$F$57*F55^1.5*SQRT(fc_design) -> 5072.240629 | G59: ksi
A60: Modulus of elasticity of concrete for deck slab | E60: Ec_slab | F60: =33000*$F$57*F55^1.5*SQRT(fc_slab) -> 4066.839989 | G60: ksi
A62: b. Reinforcing Bars
A63: Yield Strength* | B63: fy | C63: 60 | D63: ksi
A64: Modulus of elasticity* | B64: Es | C64: 29000 | D64: ksi
A66: c. Prestressing Strands
A67: Type* | B67: Seven-wire strand | D67: Low-relaxation strand
A69: Diameter | B69: Dp | C69: 0.5 | D69: in.
A70: Area* | B70: Ap | C70: 0.167 | D70: in2
A71: Tensile strength* | B71: fpu | C71: 270 | D71: ksi
A72: Modulus of elasticity* | B72: Ep | C72: 28500 | D72: ksi
A73: Yield strength | B73: fpy | C73: =VLOOKUP($D$67,Tables!$A$39:$C$43,3,FALSE)*fpu -> 243 | D73: ksi
B74: K | C74: =2*(1.04-fpy/fpu) -> 0.28
A75: d. Surfacing Material
A76: Type | B76: =B24 -> Asphalt surface
A77: Unit weight | B77: 0.145 | C77: kcf
A79: e. Barrier
A80: Type | B80: =$B$12 -> Steel tube railing
A81: Unit weight | B81: 0.08 | C81: kips/ft/side
A83: 3. Box Beam Section Properties
A84: Box beam section used | B84: B21-48
A85: Width of each box beam | B85: b | C85: 48 | D85: in.
A86: Height of each box beam | B86: h | C86: 21 | D86: in.
A87: No of box beams | C87: =IFERROR(B7/(C85/12),"") -> 8 | D87: nos
A89: Section Geometry
A90: No of webs in beam | C90: 2 | D90: nos
A91: Depth of top flange | B91: hf | C91: 5.5 | D91: in.
A92: Depth of bottom flange | B92: hc | C92: 5.5 | D92: in.
A93: Width of end web | B93: bw | C93: 5.5 | D93: in. | I93: Figure ODOT Standard Typical Box Beam Sections
A94: Width of middle web | B94: bw_m | D94: in.
A95: Width of chamfer | B95: wh | C95: 3 | D95: in.
A97: Section properties | C97: Precast beam
A98: Area | B98: A | C98: 647.8 | D98: in2
A99: Moment of inertia | B99: I | C99: 33884 | D99: in4
A100: Distance from centroid to extreme bottom fiber | B100: Yb | C100: 10.42 | D100: in.
A101: Distance from centroid to extreme top fiber | B101: Yt | C101: =IFERROR(h-Yb, 0) -> 10.58 | D101: in.
A102: Section modulus for extreme bottom fiber | B102: Sb | C102: 3253 | D102: in3
A103: Section modulus for extreme top fiber | B103: St | C103: 3202 | D103: in3
A105: Layers of Prestressing Strands Provided | C105: 2
A106: Layer * | B106: Number | C106: Position from extreme tensile face | E106: Remark | G106: *Note: Input layers from bottom to top of the beam
A107: Layer 1 | B107: 18 | C107: 2 | D107: in. | E107: Bottom flange
A108: Layer 2 | B108: 12 | C108: 4 | D108: in. | E108: Bottom flange
A109: Layer 3 | B109: 0 | C109: 0 | D109: in. | E109: Top flange
A110: Layer 4 | B110: 0 | C110: 0 | D110: in. | E110: Top flange
A111: Debonded strands | B111: 2 | C111: 2 | D111: in. | E111: Bottom flange
A113: Longitudinal Reinforcement Bars
A114: Layer | B114: Bar no. | C114: Area | D114: Number | E114: Position from extreme tensile face | G114: Remark
A115: Layer 1 | B115: #5 | C115: =_xlfn.IFNA(VLOOKUP($B115,Tables!$A$23:$D$35,3,TRUE),0) -> 0.31 | D115: 2 | E115: 2 | F115: in. | G115: Bottom flange
A117: Shear Reinforcement
A118: Zone | B118: Distance to end of region from the support (ft) | C118: Bar no. | D118: Spacing (in.) | E118: Area (in2)
A119: Region 1 | B119: 1.5 | C119: #4 | D119: 3 | E119: =_xlfn.IFNA($C$90*VLOOKUP($C119,Tables!$A$23:$D$35,3,TRUE)," ") -> 0.4
A120: Region 2 | B120: 2 | C120: #4 | D120: 6 | E120: =_xlfn.IFNA($C$90*VLOOKUP($C120,Tables!$A$23:$D$35,3,TRUE)," ") -> 0.4
I122: Figure Typical Beam Elevation Showing Shear Check Locations
A123: 4. Load Rating
A125: Load Rating Settings
A126: Adopted beam for load rating* | B126: Exterior beam
A127: Riding surface condition* | B127: Smooth surface
A129: Vehicle types | B129: Dynamic allowance (IM) | C129: Use strength limit state | D129: Use service limit state
A130: A. Design Vehicle | B130: 0.33 | C130: YES | D130: YES
A131: B. Ohio Legal Vehicles | B131: 0.33 | C131: YES | D131: NO
A132: C. Specialized Hauling Vehicles | B132: 0.33 | C132: YES | D132: NO
A133: D. Emergency Vehicles | B133: 0.33 | C133: YES | D133: NO
A134: E. AASHTO Legal Vehicles | B134: 0.33 | C134: YES | D134: NO
A135: F. Permit Vehicles | B135: 0 | C135: YES | D135: NO
A136: G. Custom Vehicle | B136: 0 | C136: YES | D136: NO
A137: Input for Service Limit State
A138: Average annual humidity | B138: 0.7
A139: Prestressing strands condition | B139: Low to moderate corrosion
A140: Concrete age at transfer | B140: 1
A141: Concrete age at deck placement | B141: 28
A142: Final concrete age | B142: 18250
A144: Live Load Factors for Legal Vehicles
A145: ADTT | B145: 8000
A146: Live load factor for legal vehicles | B146: ='Load Rating Interior Beam'!$B$19 -> 1.45
A148: Live Load Factors for Emergency Vehicles
A149: EV2* | B149: 1.3
A150: EV3* | B150: 1.1
A152: Permit Load Condition
A153: Permit type | B153: Routine or Annual
A154: Frequency | B154: Unlimited crossings
A155: Loading condition | B155: Mixed with traffic
A156: DF using | B156: Two or more lanes
A158: Live Load Factor for Permit Vehicles
A159: Vehicle type | B159: Live load factor
A160: PL60T | B160: ='Load Rating Interior Beam'!G74 -> 1.4
A161: PL65T | B161: ='Load Rating Interior Beam'!G75 -> 1.35
A163: Add custom vehicle* | B163: YES
A164: No of axles | B164: 19
A166: Axle No | B166: Load (kips) | C166: Distance from first axle (ft)
A167: a | B167: 20 | C167: 0
A168: b | B168: 20 | C168: 13.5
A169: c | B169: 20 | C169: 18.5
A170: d | B170: 20 | C170: 23.5
A171: e | B171: 19 | C171: 38.5
A172: f | B172: 19 | C172: 43.5
A173: g | B173: 19 | C173: 48.5
A174: h | B174: 19 | C174: 63.17
A175: i | B175: 19 | C175: 68.17
A176: j | B176: 19 | C176: 73.17
A177: k | B177: 19 | C177: 77.67
A178: l | B178: 19 | C178: 82.67
A179: m | B179: 19 | C179: 87.67
A180: n | B180: 19 | C180: 92.17
A181: o | B181: 19 | C181: 97.17
A182: p | B182: 19 | C182: 102.17
A183: q | B183: 19 | C183: 116.25
A184: r | B184: 19 | C184: 121.25
A185: s | B185: 19 | C185: 126.25
A186: t
A187: u
A188: v
A189: w
A190: x
A191: y
A192: z
A193: aa
A194: ab
A195: ac
A196: ad
A197: ae
A198: af
A199: ag
A200: ah
A201: ai
A203: Custom Vehicle Load Condition
A204: Permit type | B204: Special or Limited crossing
A205: Frequency | B205: Single trip
A206: Loading condition | B206: Escorted with no other vehicle on the bridge
A207: DF using | B207: One lane
A209: Live Load Factor for Custom Vehicle
A210: Vehicle type | B210: Live load factor
A211: Custom vehicle | B211: ='Load Rating Interior Beam'!G76 -> 1.1
A213: LOAD RATING RESULTS
A215: Load Rating Results
A216: Ohio Legal Vehicles | E216: Design Vehicles
A217: Loading Type | B217: GVW | C217: Rating Factor | E217: Loading Type | F217: Rating Factor
B218: Tons | F218: Inventory | G218: Operating
A219: 2F1 | B219: 15 | C219: 3.233869346 | E219: HL93 | F219: 1.003840977 | G219: 1.325175393
A220: 3F1 | B220: 23 | C220: 2.165307017
A221: 5C1 | B221: 40 | C221: 2.205580973 | I221: Checklists:
I222: 1. Length of bridge | M222: Within limit
A223: Specialized Hauling Vehicles | I223: 2. No of beams | M223: Within limit
A224: SU4 | B224: 27 | C224: 1.902166243 | I224: 3. Skew angle | M224: Within limit
A225: SU5 | B225: 31 | C225: 1.728086126 | I225: 4. Minimum reinforcement requirement | M225: Pass
A226: SU6 | B226: 34.5 | C226: 1.550115565 | I226: 5. Prestressed beam flexure capacity | M226: Pass
A227: SU7 | B227: 38.75 | C227: 1.422395704 | I227: 6. Shear capacity | M227: Sectional method governs.
A229: Emergency Vehicles
A230: EV2 | B230: 28.75 | C230: 2.085320152
A231: EV3 | B231: 43 | C231: 1.612796709
A233: AASHTO Legal Vehicles
A234: Type3 | B234: 25 | C234: 2.145830157
A235: Type3S2 | B235: 36 | C235: 2.0177903
A236: Type3_3 | B236: 40 | C236: 2.170443809
... 5 more rows

Sheet Calculation Summary
A1: Calculation Summary
A3: Dead Loads
A4: a. Beam self weight | B4: =(MAIN!F55*(MAIN!C98+(h_slab*b))/(144))*(1+MAIN!$B$46) -> 0.6747916667 | C4: kips/ft/beam
A5: b. Barrier weight | B5: =(2*MAIN!B81/MAIN!C87)*(1+MAIN!B47) -> 0.02 | C5: kips/ft/beam
A6: c. Diaphragm weight | B6: =(((b-bw_single*2-bw_m)*(h-hf-hc)-(2*wh*wh))*MAIN!F55*MAIN!D30)/(12^3) -> 0.55 | C6: kips/diaphragm
A7: d. Wearing surface | B7: =MAIN!B77*(MAIN!B25/12)*(MAIN!B16/MAIN!C87) -> 0.41905 | C7: kips/ft/beam
A9: Unfactored Moment for Interior and Exterior Beam due to Dead Loads
A11: Location | B11: Vehicle types | C11: Position from left support | D11: Beam weight | E11: Barrier weight | F11: Diaphragm weight | G11: Dc | H11: Wearing surface | I11: Dw
C12: (ft) | D12: (kips-ft) | E12: (kips-ft) | F12: (kips-ft) | G12: (kips-ft) | H12: (kips-ft) | I12: (kips-ft)
D13: (a) | E13: (b) | F13: (c) | G13: (a+b+c) | H13: (d) | I13: (d)
A14: At center | B14: All type | C14: =Bridge_span/2 -> 32.75 | D14: =$B$4*($C14/2)*(Bridge_span-$C14) -> 361.8781185 | E14: =$B$5*($C14/2)*(Bridge_span-$C14) -> 10.725625 | F14: =Unfactored_Momemt_diaphragm(A14,B14) -> 23.1 | G14: =SUM(D14:F14) -> 395.7037435 | H14: =$B$7*($C14/2)*(Bridge_span-$C14) -> 224.7286578 | I14: =SUM(H14) -> 224.7286578
A15: At shear critical point | B15: All type | C15: =dv_critical -> 1.610714286 | D15: =$B$4*($C15/2)*(Bridge_span-$C15) -> 34.72052299 | E15: =$B$5*($C15/2)*(Bridge_span-$C15) -> 1.029073852 | F15: =Unfactored_Momemt_diaphragm(A15,B15) -> 2.596785714 | G15: =SUM(D15:F15) -> 38.34638255 | H15: =$B$7*($C15/2)*(Bridge_span-$C15) -> 21.56166988 | I15: =SUM(H15) -> 21.56166988
A16: At Region 2 | B16: All type | C16: =MAIN!B119 -> 1.5 | D16: =$B$4*($C16/2)*(Bridge_span-$C16) -> 32.39 | E16: =$B$5*($C16/2)*(Bridge_span-$C16) -> 0.96 | F16: =Unfactored_Momemt_diaphragm(A16,B16) -> 2.475 | G16: =SUM(D16:F16) -> 35.825 | H16: =$B$7*($C16/2)*(Bridge_span-$C16) -> 20.1144 | I16: =SUM(H16) -> 20.1144
A17: At moment critical point | B17: A. Design Vehicle
B18: HL93 | C18: =Position_From_left_Support($B18) -> 30.41666667 | D18: =$B$4*($C18/2)*(Bridge_span-$C18) -> 360.0411856 | E18: =$B$5*($C18/2)*(Bridge_span-$C18) -> 10.67118056 | F18: =Unfactored_Momemt_diaphragm($A$17,$B18) -> 23.1 | G18: =SUM(D18:F18) -> 393.8123662 | H18: =$B$7*($C18/2)*(Bridge_span-$C18) -> 223.5879106 | I18: =SUM(H18) -> 223.5879106
B19: Inventory | C19: =Position_From_left_Support($B18) -> 30.41666667 | D19: 360.0411856 | E19: 10.67118056 | F19: =Unfactored_Momemt_diaphragm($A$17,$B18) -> 23.1 | G19: 393.8123662 | H19: 223.5879106 | I19: 223.5879106
B20: Operating | C20: =Position_From_left_Support($B18) -> 30.41666667 | D20: 360.0411856 | E20: 10.67118056 | F20: =Unfactored_Momemt_diaphragm($A$17,$B18) -> 23.1 | G20: 393.8123662 | H20: 223.5879106 | I20: 223.5879106
B21: HL93_Tandem | C21: =Position_From_left_Support($B21) -> 33.75 | D21: 361.5407227 | E21: 10.715625 | F21: =Unfactored_Momemt_diaphragm($A$17,$B21) -> 23.1 | G21: 395.3563477 | H21: 224.5191328 | I21: 224.5191328
B22: Inventory_Tandem | C22: =Position_From_left_Support($B21) -> 33.75 | D22: 361.5407227 | E22: 10.715625 | F22: =Unfactored_Momemt_diaphragm($A$17,$B21) -> 23.1 | G22: 395.3563477 | H22: 224.5191328 | I22: 224.5191328
B23: Operating_Tandem | C23: =Position_From_left_Support($B21) -> 33.75 | D23: 361.5407227 | E23: 10.715625 | F23: =Unfactored_Momemt_diaphragm($A$17,$B21) -> 23.1 | G23: 395.3563477 | H23: 224.5191328 | I23: 224.5191328
B24: B. Ohio Legal Vehicles
B25: 2F1 | C25: =Position_From_left_Support($B25) -> 34.41666667 | D25: =$B$4*($C25/2)*(Bridge_span-$C25) -> 360.9409078 | E25: =$B$5*($C25/2)*(Bridge_span-$C25) -> 10.69784722 | F25: =Unfactored_Momemt_diaphragm($A$17,$B25) -> 23.1 | G25: =SUM(D25:F25) -> 394.7387551 | H25: =$B$7*($C25/2)*(Bridge_span-$C25) -> 224.1466439 | I25: =SUM(H25) -> 224.1466439
B26: 3F1 | C26: =Position_From_left_Support($B26) -> 33.31521739 | D26: =$B$4*($C26/2)*(Bridge_span-$C26) -> 361.7703304 | E26: =$B$5*($C26/2)*(Bridge_span-$C26) -> 10.72243029 | F26: =Unfactored_Momemt_diaphragm($A$17,$B26) -> 23.1 | G26: =SUM(D26:F26) -> 395.5927607 | H26: =$B$7*($C26/2)*(Bridge_span-$C26) -> 224.6617207 | I26: =SUM(H26) -> 224.6617207
B27: 5C1 | C27: =Position_From_left_Support($B27) -> 27.3625 | D27: =$B$4*($C27/2)*(Bridge_span-$C27) -> 352.0851517 | E27: =$B$5*($C27/2)*(Bridge_span-$C27) -> 10.43537344 | F27: =Unfactored_Momemt_diaphragm($A$17,$B27) -> 23.1 | G27: =SUM(D27:F27) -> 385.6205251 | H27: =$B$7*($C27/2)*(Bridge_span-$C27) -> 218.6471619 | I27: =SUM(H27) -> 218.6471619
B28: C. Specialized Hauling Vehicles
B29: SU4 | C29: =Position_From_left_Support($B29) -> 33.97222222 | D29: =$B$4*($C29/2)*(Bridge_span-$C29) -> 361.3741074 | E29: =$B$5*($C29/2)*(Bridge_span-$C29) -> 10.71068673 | F29: =Unfactored_Momemt_diaphragm($A$17,$B29) -> 23.1 | G29: =SUM(D29:F29) -> 395.1847942 | H29: =$B$7*($C29/2)*(Bridge_span-$C29) -> 224.4156637 | I29: =SUM(H29) -> 224.4156637
B30: SU5 | C30: =Position_From_left_Support($B30) -> 34.71774194 | D30: =$B$4*($C30/2)*(Bridge_span-$C30) -> 360.571719 | E30: =$B$5*($C30/2)*(Bridge_span-$C30) -> 10.68690492 | F30: =Unfactored_Momemt_diaphragm($A$17,$B30) -> 23.1 | G30: =SUM(D30:F30) -> 394.3586239 | H30: =$B$7*($C30/2)*(Bridge_span-$C30) -> 223.9173753 | I30: =SUM(H30) -> 223.9173753
B31: SU6 | C31: =Position_From_left_Support($B31) -> 33.98021583 | D31: =$B$4*($C31/2)*(Bridge_span-$C31) -> 361.3674932 | E31: =$B$5*($C31/2)*(Bridge_span-$C31) -> 10.71049069 | F31: =Unfactored_Momemt_diaphragm($A$17,$B31) -> 23.1 | G31: =SUM(D31:F31) -> 395.1779839 | H31: =$B$7*($C31/2)*(Bridge_span-$C31) -> 224.4115562 | I31: =SUM(H31) -> 224.4115562
B32: SU7 | C32: =Position_From_left_Support($B32) -> 33.23387097 | D32: =$B$4*($C32/2)*(Bridge_span-$C32) -> 361.7991236 | E32: =$B$5*($C32/2)*(Bridge_span-$C32) -> 10.72328369 | F32: =Unfactored_Momemt_diaphragm($A$17,$B32) -> 23.1 | G32: =SUM(D32:F32) -> 395.6224073 | H32: =$B$7*($C32/2)*(Bridge_span-$C32) -> 224.6796015 | I32: =SUM(H32) -> 224.6796015
B33: D. Emergency Vehicles
B34: EV2 | C34: =Position_From_left_Support($B34) -> 35.88043478 | D34: =$B$4*($C34/2)*(Bridge_span-$C34) -> 358.5717669 | E34: =$B$5*($C34/2)*(Bridge_span-$C34) -> 10.62762878 | F34: =Unfactored_Momemt_diaphragm($A$17,$B34) -> 23.1 | G34: =SUM(D34:F34) -> 392.2993957 | H34: =$B$7*($C34/2)*(Bridge_span-$C34) -> 222.675392 | I34: =SUM(H34) -> 222.675392
B35: EV3 | C35: =Position_From_left_Support($B35) -> 34.12209302 | D35: =$B$4*($C35/2)*(Bridge_span-$C35) -> 361.2429238 | E35: =$B$5*($C35/2)*(Bridge_span-$C35) -> 10.70679861 | F35: =Unfactored_Momemt_diaphragm($A$17,$B35) -> 23.1 | G35: =SUM(D35:F35) -> 395.0497225 | H35: =$B$7*($C35/2)*(Bridge_span-$C35) -> 224.3341978 | I35: =SUM(H35) -> 224.3341978
B36: E. AASHTO Legal Vehicles
B37: Type3 | C37: =Position_From_left_Support($B37) -> 34.47 | D37: =$B$4*($C37/2)*(Bridge_span-$C37) -> 360.8799667 | E37: =$B$5*($C37/2)*(Bridge_span-$C37) -> 10.696041 | F37: =Unfactored_Momemt_diaphragm($A$17,$B37) -> 23.1 | G37: =SUM(D37:F37) -> 394.6760077 | H37: =$B$7*($C37/2)*(Bridge_span-$C37) -> 224.1087991 | I37: =SUM(H37) -> 224.1087991
B38: Type3S2 | C38: =Position_From_left_Support($B38) -> 29.05555556 | D38: =$B$4*($C38/2)*(Bridge_span-$C38) -> 357.2730298 | E38: =$B$5*($C38/2)*(Bridge_span-$C38) -> 10.5891358 | F38: =Unfactored_Momemt_diaphragm($A$17,$B38) -> 23.1 | G38: =SUM(D38:F38) -> 390.9621656 | H38: =$B$7*($C38/2)*(Bridge_span-$C38) -> 221.8688679 | I38: =SUM(H38) -> 221.8688679
B39: Type3_3 | C39: =Position_From_left_Support($B39) -> 32.04411765 | D39: =$B$4*($C39/2)*(Bridge_span-$C39) -> 361.7100043 | E39: =$B$5*($C39/2)*(Bridge_span-$C39) -> 10.7206423 | F39: =Unfactored_Momemt_diaphragm($A$17,$B39) -> 23.1 | G39: =SUM(D39:F39) -> 395.5306466 | H39: =$B$7*($C39/2)*(Bridge_span-$C39) -> 224.6242578 | I39: =SUM(H39) -> 224.6242578
B40: F. Permit Vehicles
B41: PL60T | C41: =Position_From_left_Support($B41) -> 32.76939655 | D41: =$B$4*($C41/2)*(Bridge_span-$C41) -> 361.8779916 | E41: =$B$5*($C41/2)*(Bridge_span-$C41) -> 10.72562124 | F41: =Unfactored_Momemt_diaphragm($A$17,$B41) -> 23.1 | G41: =SUM(D41:F41) -> 395.7036128 | H41: =$B$7*($C41/2)*(Bridge_span-$C41) -> 224.728579 | I41: =SUM(H41) -> 224.728579
B42: PL65T | C42: =Position_From_left_Support($B42) -> 28.36538462 | D42: =$B$4*($C42/2)*(Bridge_span-$C42) -> 355.3917335 | E42: =$B$5*($C42/2)*(Bridge_span-$C42) -> 10.53337648 | F42: =Unfactored_Momemt_diaphragm($A$17,$B42) -> 23.1 | G42: =SUM(D42:F42) -> 389.02511 | H42: =$B$7*($C42/2)*(Bridge_span-$C42) -> 220.7005707 | I42: =SUM(H42) -> 220.7005707
B43: G. Custom Vehicle
B44: Custom_Vehicle_1 | C44: =IF(add_custom_vehicle = "YES",Position_From_left_Support($B44),"N/A") -> 34.4585 | D44: =IF(add_custom_vehicle = "YES",$B$4*($C44/2)*(Bridge_span-$C44),"N/A") -> 360.8932694 | E44: =IF(add_custom_vehicle = "YES",$B$5*($C44/2)*(Bridge_span-$C44),"N/A") -> 10.69643528 | F44: =IF(add_custom_vehicle = "YES",Unfactored_Momemt_diaphragm($A$17,$B44),"N/A") -> 23.1 | G44: =IF(add_custom_vehicle = "YES",SUM(D44:F44),"N/A") -> 394.6897047 | H44: =IF(add_custom_vehicle = "YES",$B$7*($C44/2)*(Bridge_span-$C44),"N/A") -> 224.1170602 | I44: =IF(add_custom_vehicle = "YES",SUM(H44),"N/A") -> 224.1170602
A46: Unfactored Shear Force for Interior and Exterior Beam due to Dead Loads
A48: Location | B48: Vehicle types | C48: Position from left support | D48: Beam weight | E48: Barrier weight | F48: Diaphragm weight | G48: Dc | H48: Wearing surface | I48: Dw
C49: (ft) | D49: (kips-ft) | E49: (kips-ft) | F49: (kips-ft) | G49: (kips-ft) | H49: (kips-ft) | I49: (kips-ft)
D50: (a) | E50: (b) | F50: (c) | G50: (a+b+c) | H50: (d) | I50: (d)
A51: At shear critical point | B51: All type | C51: =dv_critical -> 1.610714286 | D51: =$B$4*(Bridge_span/2-dv_critical) -> 21.01253051 | E51: =$B$5*(Bridge_span/2-dv_critical) -> 0.6227857143 | F51: =Unfactored_Shear_diaphragm(dv_critical) -> 1.1 | G51: =SUM(D51:F51) -> 22.73531622 | H51: =$B$7*(Bridge_span/2-dv_critical) -> 13.04891768 | I51: =SUM(H51) -> 13.04891768
A52: At Region 2 | B52: All type | C52: =C16 -> 1.5 | D52: =$B$4*(Bridge_span/2-$C$52) -> 21.08723958 | E52: =$B$5*(Bridge_span/2-$C$52) -> 0.625 | F52: =Unfactored_Shear_diaphragm(C52) -> 1.65 | G52: =SUM(D52:F52) -> 23.36223958 | H52: =$B$7*(Bridge_span/2-$C$52) -> 13.0953125 | I52: =SUM(H52) -> 13.0953125
A54: Unfactored moment for interior and exterior beam due to Live Load with impact
A56: Live Load Distribution Factors
A57: Distribution factors | B57: Interior beam | C57: Exterior beam
A58: DFM | B58: ='Distribution Factors'!B6 -> 0.2938735208 | C58: ='Distribution Factors'!C6 -> 0.3083223023
A59: DFV | B59: ='Distribution Factors'!B7 -> 0.5379440504 | C59: ='Distribution Factors'!C7 -> 0.6649366411
A61: Vehicle types | B61: Interior beam | F61: Exterior beam
B62: At center | C62: At moment critical point | D62: At shear critical point | E62: At Region 2 | F62: At center | G62: At moment critical point | H62: At shear critical point | I62: At Region 2
B63: LL+IM | C63: LL+IM | D63: LL+IM | E63: LL+IM | F63: LL+IM | G63: LL+IM | H63: LL+IM | I63: LL+IM
B64: (kips-ft) | C64: (kips-ft) | D64: (kips-ft) | E64: (kips-ft) | F64: (kips-ft) | G64: (kips-ft) | H64: (kips-ft) | I64: (kips-ft)
A65: A. Design Vehicle
A66: HL93 | B66: =B67 -> 452.2390225 | C66: 454.066173 | D66: 47.43144649 | E66: 35.23036527 | F66: 474.4741078 | G66: 476.3910932 | H66: 49.76349261 | I66: 36.9625249
A67: Inventory | B67: =INDIRECT("'" &A66 & "'!C18") -> 452.2390225 | C67: =INDIRECT("'" & A66 & "'!B18") -> 454.066173 | D67: =INDIRECT("'" & A66 & "'!B36") -> 47.43144649 | E67: =INDIRECT("'" &A66 & "'!AD18") -> 35.23036527 | F67: =INDIRECT("'" &A66 & "'!C22") -> 474.4741078 | G67: =INDIRECT("'" & A66 & "'!B22") -> 476.3910932 | H67: =INDIRECT("'" & A66 & "'!B40") -> 49.76349261 | I67: =INDIRECT("'" &A66 & "'!AD19") -> 36.9625249
A68: Operating | B68: =INDIRECT("'" &A66 & "'!C18") -> 452.2390225 | C68: =INDIRECT("'" & A66 & "'!B18") -> 454.066173 | D68: =INDIRECT("'" & A66 & "'!B36") -> 47.43144649 | E68: =INDIRECT("'" &A66 & "'!AD18") -> 35.23036527 | F68: =INDIRECT("'" &A66 & "'!C22") -> 474.4741078 | G68: =INDIRECT("'" & A66 & "'!B22") -> 476.3910932 | H68: =INDIRECT("'" & A66 & "'!B40") -> 49.76349261 | I68: =INDIRECT("'" &A66 & "'!AD19") -> 36.9625249
A69: HL93_Tandem | B69: =B70 -> 401.3305778 | C69: 401.5348984 | D69: 39.41967772 | E69: 27.74749297 | F69: 421.0626645 | G69: 421.2770309 | H69: 41.35781188 | I69: 29.11174471
A70: Inventory_Tandem | B70: =INDIRECT("'" &A69 & "'!C18") -> 401.3305778 | C70: =INDIRECT("'" & A69 & "'!B18") -> 401.5348984 | D70: =INDIRECT("'" & A69 & "'!B36") -> 39.41967772 | E70: =INDIRECT("'" &A69 & "'!AD18") -> 27.74749297 | F70: =INDIRECT("'" &A69 & "'!C22") -> 421.0626645 | G70: =INDIRECT("'" & A69 & "'!B22") -> 421.2770309 | H70: =INDIRECT("'" & A69 & "'!B40") -> 41.35781188 | I70: =INDIRECT("'" &A69 & "'!AD19") -> 29.11174471
A71: Operating_Tandem | B71: =INDIRECT("'" &A69 & "'!C18") -> 401.3305778 | C71: =INDIRECT("'" & A69 & "'!B18") -> 401.5348984 | D71: =INDIRECT("'" & A69 & "'!B36") -> 39.41967772 | E71: =INDIRECT("'" &A69 & "'!AD18") -> 27.74749297 | F71: =INDIRECT("'" &A69 & "'!C22") -> 421.0626645 | G71: =INDIRECT("'" & A69 & "'!B22") -> 421.2770309 | H71: =INDIRECT("'" & A69 & "'!B40") -> 41.35781188 | I71: =INDIRECT("'" &A69 & "'!AD19") -> 29.11174471
A72: B. Ohio Legal Vehicles
A73: 2F1 | B73: =INDIRECT("'" &A73 & "'!C18") -> 172.4633491 | C73: =INDIRECT("'" & A73 & "'!B18") -> 172.960616 | D73: =INDIRECT("'" & A73 & "'!B36") -> 17.4609312 | E73: =INDIRECT("'" &A73 & "'!AD18") -> 16.29046362 | F73: =INDIRECT("'" &A73 & "'!C22") -> 180.9427971 | G73: =INDIRECT("'" & A73 & "'!B22") -> 181.464513 | H73: =INDIRECT("'" & A73 & "'!B40") -> 18.31942699 | I73: =INDIRECT("'" &A73 & "'!AD19") -> 17.09141141
A74: 3F1 | B74: =INDIRECT("'" &A74 & "'!C18") -> 257.6690378 | C74: =INDIRECT("'" & A74 & "'!B18") -> 257.7567297 | D74: =INDIRECT("'" & A74 & "'!B36") -> 25.97888059 | E74: =INDIRECT("'" &A74 & "'!AD18") -> 24.23877773 | F74: =INDIRECT("'" &A74 & "'!C22") -> 270.3377654 | G74: =INDIRECT("'" & A74 & "'!B22") -> 270.4297689 | H74: =INDIRECT("'" & A74 & "'!B40") -> 27.25617555 | I74: =INDIRECT("'" &A74 & "'!AD19") -> 25.43051764
A75: 5C1 | B75: =INDIRECT("'" &A75 & "'!C18") -> 252.9788164 | C75: =INDIRECT("'" & A75 & "'!B18") -> 255.793173 | D75: =INDIRECT("'" & A75 & "'!B36") -> 30.49853177 | E75: =INDIRECT("'" &A75 & "'!AD18") -> 28.48145891 | F75: =INDIRECT("'" &A75 & "'!C22") -> 265.4169415 | G75: =INDIRECT("'" & A75 & "'!B22") -> 268.3696706 | H75: =INDIRECT("'" & A75 & "'!B40") -> 31.99804292 | I75: =INDIRECT("'" &A75 & "'!AD19") -> 29.88179731
A76: C. Special Hauling Vehicles
A77: SU4 | B77: =INDIRECT("'" &A77 & "'!C18") -> 293.23655 | C77: =INDIRECT("'" & A77 & "'!B18") -> 293.7179043 | D77: =INDIRECT("'" & A77 & "'!B36") -> 29.81495109 | E77: =INDIRECT("'" &A77 & "'!AD18") -> 27.81909941 | F77: =INDIRECT("'" &A77 & "'!C22") -> 307.6540137 | G77: =INDIRECT("'" & A77 & "'!B22") -> 308.1590346 | H77: =INDIRECT("'" & A77 & "'!B40") -> 31.28085285 | I77: =INDIRECT("'" &A77 & "'!AD19") -> 29.18687179
A78: SU5 | B78: =INDIRECT("'" &A78 & "'!C18") -> 322.5504337 | C78: =INDIRECT("'" & A78 & "'!B18") -> 323.9829473 | D78: =INDIRECT("'" & A78 & "'!B36") -> 33.34345492 | E78: =INDIRECT("'" &A78 & "'!AD18") -> 31.11299535 | F78: =INDIRECT("'" &A78 & "'!C22") -> 338.4091633 | G78: =INDIRECT("'" & A78 & "'!B22") -> 339.9121089 | H78: =INDIRECT("'" & A78 & "'!B40") -> 34.98284145 | I78: =INDIRECT("'" &A78 & "'!AD19") -> 32.64271762
A79: SU6 | B79: =INDIRECT("'" &A79 & "'!C18") -> 359.8034942 | C79: =INDIRECT("'" & A79 & "'!B18") -> 360.4311452 | D79: =INDIRECT("'" & A79 & "'!B36") -> 35.69028137 | E79: =INDIRECT("'" &A79 & "'!AD18") -> 33.30594237 | F79: =INDIRECT("'" &A79 & "'!C22") -> 377.4938327 | G79: =INDIRECT("'" & A79 & "'!B22") -> 378.1523432 | H79: =INDIRECT("'" & A79 & "'!B40") -> 37.44505354 | I79: =INDIRECT("'" &A79 & "'!AD19") -> 34.94348454
A80: SU7 | B80: =INDIRECT("'" &A80 & "'!C18") -> 392.2441922 | C80: =INDIRECT("'" & A80 & "'!B18") -> 392.3524681 | D80: =INDIRECT("'" & A80 & "'!B36") -> 37.93084972 | E80: =INDIRECT("'" &A80 & "'!AD18") -> 35.40043055 | F80: =INDIRECT("'" &A80 & "'!C22") -> 411.5295316 | G80: =INDIRECT("'" & A80 & "'!B22") -> 411.6431311 | H80: =INDIRECT("'" & A80 & "'!B40") -> 39.79578317 | I80: =INDIRECT("'" &A80 & "'!AD19") -> 37.14095172
A81: D. Emergency Vehicles
A82: EV2 | B82: =INDIRECT("'" &A82 & "'!C18") -> 297.6580608 | C82: =INDIRECT("'" & A82 & "'!B18") -> 301.0204498 | D82: =INDIRECT("'" & A82 & "'!B36") -> 31.84885591 | E82: =INDIRECT("'" &A82 & "'!AD18") -> 29.71666989 | F82: =INDIRECT("'" &A82 & "'!C22") -> 312.2929154 | G82: =INDIRECT("'" & A82 & "'!B22") -> 315.8206219 | H82: =INDIRECT("'" & A82 & "'!B40") -> 33.414758 | I82: =INDIRECT("'" &A82 & "'!AD19") -> 31.1777395
A83: EV3 | B83: =INDIRECT("'" &A83 & "'!C18") -> 455.8308916 | C83: =INDIRECT("'" & A83 & "'!B18") -> 456.7970234 | D83: =INDIRECT("'" & A83 & "'!B36") -> 47.23530821 | E83: =INDIRECT("'" &A83 & "'!AD18") -> 44.0737598 | F83: =INDIRECT("'" &A83 & "'!C22") -> 478.2425771 | G83: =INDIRECT("'" & A83 & "'!B22") -> 479.2562103 | H83: =INDIRECT("'" & A83 & "'!B40") -> 49.55771086 | I83: =INDIRECT("'" &A83 & "'!AD19") -> 46.24071966
A84: E. AASHTO Legal Vehicles
A85: Type3 | B85: =INDIRECT("'" &A85 & "'!C18") -> 259.8187226 | C85: =INDIRECT("'" & A85 & "'!B18") -> 260.7013912 | D85: =INDIRECT("'" & A85 & "'!B36") -> 27.12799914 | E85: =INDIRECT("'" &A85 & "'!AD18") -> 25.31287423 | F85: =INDIRECT("'" &A85 & "'!C22") -> 272.5931431 | G85: =INDIRECT("'" & A85 & "'!B22") -> 273.5192096 | H85: =INDIRECT("'" & A85 & "'!B40") -> 28.46179243 | I85: =INDIRECT("'" &A85 & "'!AD19") -> 26.55742388
A86: Type3S2 | B86: =INDIRECT("'" &A86 & "'!C18") -> 273.9870997 | C86: =INDIRECT("'" & A86 & "'!B18") -> 279.8512025 | D86: =INDIRECT("'" & A86 & "'!B36") -> 31.33363023 | E86: =INDIRECT("'" &A86 & "'!AD18") -> 29.25122807 | F86: =INDIRECT("'" &A86 & "'!C22") -> 287.4581321 | G86: =INDIRECT("'" & A86 & "'!B22") -> 293.6105533 | H86: =INDIRECT("'" & A86 & "'!B40") -> 32.87420039 | I86: =INDIRECT("'" &A86 & "'!AD19") -> 30.68941346
A87: Type3_3 | B87: =INDIRECT("'" &A87 & "'!C18") -> 256.9850471 | C87: =INDIRECT("'" & A87 & "'!B18") -> 257.18723 | D87: =INDIRECT("'" & A87 & "'!B36") -> 30.7484297 | E87: =INDIRECT("'" &A87 & "'!AD18") -> 28.71417982 | F87: =INDIRECT("'" &A87 & "'!C22") -> 269.6201453 | G87: =INDIRECT("'" & A87 & "'!B22") -> 269.8322688 | H87: =INDIRECT("'" & A87 & "'!B40") -> 32.26022749 | I87: =INDIRECT("'" &A87 & "'!AD19") -> 30.12596033
A88: F. Permit Vehicles
A89: PL60T | B89: =INDIRECT("'" &A89 & "'!C18") -> 253.6495827 | C89: =INDIRECT("'" & A89 & "'!B18") -> 253.6496806 | D89: =INDIRECT("'" & A89 & "'!B36") -> 30.28509906 | E89: =INDIRECT("'" &A89 & "'!AD18") -> 28.28277125 | F89: =INDIRECT("'" &A89 & "'!C22") -> 266.1206872 | G89: =INDIRECT("'" & A89 & "'!B22") -> 266.1207899 | H89: =INDIRECT("'" & A89 & "'!B40") -> 31.77411643 | I89: =INDIRECT("'" &A89 & "'!AD19") -> 29.67334084
A90: PL65T | B90: =INDIRECT("'" &A90 & "'!C18") -> 334.6484719 | C90: =INDIRECT("'" & A90 & "'!B18") -> 345.8615672 | D90: =INDIRECT("'" & A90 & "'!B36") -> 40.0762214 | E90: =INDIRECT("'" &A90 & "'!AD18") -> 37.41839945 | F90: =INDIRECT("'" &A90 & "'!C22") -> 351.1020217 | G90: =INDIRECT("'" & A90 & "'!B22") -> 362.8664276 | H90: =INDIRECT("'" & A90 & "'!B40") -> 42.04663562 | I90: =INDIRECT("'" &A90 & "'!AD19") -> 39.25813742
A91: G. Custom Vehicles
A92: Custom_Vehicle_1 | B92: =IF(add_custom_vehicle = "YES",INDIRECT("'" &A92 & "'!C18"),"N/A") -> 303.6761009 | C92: =IF(add_custom_vehicle = "YES",INDIRECT("'" & A92 & "'!B18"),"N/A") -> 305.0547147 | D92: =IF(add_custom_vehicle = "YES",INDIRECT("'" & A92 & "'!B36"),"N/A") -> 27.34458699 | E92: =IF(add_custom_vehicle= "NO", "N/A",INDIRECT("'" &A92 & "'!AD18")) -> 25.55914707 | F92: =IF(add_custom_vehicle="YES",INDIRECT("'"&A92&"'!C22"),"N/A") -> 343.9553615 | G92: =IF(add_custom_vehicle = "YES",INDIRECT("'" & A92 & "'!B22"),"N/A") -> 345.5168331 | H92: =IF(add_custom_vehicle = "YES",INDIRECT("'" & A92 & "'!B40"),"N/A") -> 30.97154263 | I92: =IF(add_custom_vehicle= "NO", "N/A",INDIRECT("'" &A92 & "'!AD19")) -> 28.94928394
A94: Unfactored Shear Force for Interior and Exterior Beam due to Live Load with Impact
A96: Vehicle types | B96: Interior beam | C96: Exterior beam | D96: Interior beam | E96: Exterior beam
B97: At shear critical point | C97: At shear critical point | D97: At Region 2 | E97: At Region 2
B98: LL+IM | C98: LL+IM | D98: LL+IM | E98: LL+IM
B99: (kips-ft) | C99: (kips-ft) | D99: (kips-ft) | E99: (kips-ft)
A100: A. Design Vehicle
A101: HL93 | B101: =B102 -> 53.62716486 | C101: =C102 -> 66.2869435 | D101: =D102 -> 42.99347406 | E101: =E102 -> 53.14295456
A102: Inventory | B102: =INDIRECT("'" & A101 & "'!C36") -> 53.62716486 | C102: =INDIRECT("'" & A101 & "'!C40") -> 66.2869435 | D102: =INDIRECT("'" & A101 & "'!AE18") -> 42.99347406 | E102: =INDIRECT("'" & A101 & "'!AE19") -> 53.14295456
A103: Operating | B103: =INDIRECT("'" & A101 & "'!C36") -> 53.62716486 | C103: =INDIRECT("'" & A101 & "'!C40") -> 66.2869435 | D103: =INDIRECT("'" & A101 & "'!AE18") -> 42.99347406 | E103: =INDIRECT("'" & A101 & "'!AE19") -> 53.14295456
A104: HL93_Tandem | B104: =B105 -> 44.52202653 | C104: =C105 -> 55.03235281 | D104: =D105 -> 33.86173007 | E104: =E105 -> 41.85547743
A105: Inventory_Tandem | B105: =INDIRECT("'" & A104 & "'!C36") -> 44.52202653 | C105: =INDIRECT("'" & A104 & "'!C40") -> 55.03235281 | D105: =INDIRECT("'" & A104 & "'!AE18") -> 33.86173007 | E105: =INDIRECT("'" & A104 & "'!AE19") -> 41.85547743
A106: Operating_Tandem | B106: =INDIRECT("'" & A104 & "'!C36") -> 44.52202653 | C106: =INDIRECT("'" & A104 & "'!C40") -> 55.03235281 | D106: =INDIRECT("'" & A104 & "'!AE18") -> 33.86173007 | E106: =INDIRECT("'" & A104 & "'!AE19") -> 41.85547743
A107: B. Ohio Legal Vehicles
A108: 2F1 | B108: =INDIRECT("'" & A108 & "'!C36") -> 19.84383207 | C108: =INDIRECT("'" & A108 & "'!C40") -> 24.52837062 | D108: =INDIRECT("'" & A108 & "'!AE18") -> 19.88011249 | E108: =INDIRECT("'" & A108 & "'!AE19") -> 24.57321578
A109: 3F1 | B109: =INDIRECT("'" & A109 & "'!C36") -> 29.52422971 | C109: =INDIRECT("'" & A109 & "'!C40") -> 36.49402223 | D109: =INDIRECT("'" & A109 & "'!AE18") -> 29.57985969 | E109: =INDIRECT("'" & A109 & "'!AE19") -> 36.5627848
A110: 5C1 | B110: =INDIRECT("'" & A110 & "'!C36") -> 34.66067965 | C110: =INDIRECT("'" & A110 & "'!C40") -> 42.84303523 | D110: =INDIRECT("'" & A110 & "'!AE18") -> 34.75742745 | E110: =INDIRECT("'" & A110 & "'!AE19") -> 42.96262231
A111: C. Special Hauling Vehicles
A112: SU4 | B112: =INDIRECT("'" & A112 & "'!C36") -> 33.88381042 | C112: =INDIRECT("'" & A112 & "'!C40") -> 41.88277028 | D112: =INDIRECT("'" & A112 & "'!AE18") -> 33.94911518 | E112: =INDIRECT("'" & A112 & "'!AE19") -> 41.96349156
A113: SU5 | B113: =INDIRECT("'" & A113 & "'!C36") -> 37.89385069 | C113: =INDIRECT("'" & A113 & "'!C40") -> 46.8394618 | D113: =INDIRECT("'" & A113 & "'!AE18") -> 37.96883024 | E113: =INDIRECT("'" & A113 & "'!AE19") -> 46.93214178
A114: SU6 | B114: =INDIRECT("'" & A114 & "'!C36") -> 40.56094958 | C114: =INDIRECT("'" & A114 & "'!C40") -> 50.1361834 | D114: =INDIRECT("'" & A114 & "'!AE18") -> 40.64499923 | E114: =INDIRECT("'" & A114 & "'!AE19") -> 50.24007468
A115: SU7 | B115: =INDIRECT("'" & A115 & "'!C36") -> 43.10728926 | C115: =INDIRECT("'" & A115 & "'!C40") -> 53.28363815 | D115: =INDIRECT("'" & A115 & "'!AE18") -> 43.20101369 | E115: =INDIRECT("'" & A115 & "'!AE19") -> 53.39948813
A116: D. Emergency Vehicles
A117: EV2 | B117: =INDIRECT("'" & A117 & "'!C36") -> 36.19528311 | C117: =INDIRECT("'" & A117 & "'!C40") -> 44.73991293 | D117: =INDIRECT("'" & A117 & "'!AE18") -> 36.2648206 | E117: =INDIRECT("'" & A117 & "'!AE19") -> 44.82586615
A118: EV3 | B118: =INDIRECT("'" & A118 & "'!C36") -> 53.68153124 | C118: =INDIRECT("'" & A118 & "'!C40") -> 66.35414416 | D118: =INDIRECT("'" & A118 & "'!AE18") -> 53.78553512 | E118: =INDIRECT("'" & A118 & "'!AE19") -> 66.48270027
A119: E. AASHTO Legal Vehicles
A120: Type3 | B120: =INDIRECT("'" & A120 & "'!C36") -> 30.83016896 | C120: =INDIRECT("'" & A120 & "'!C40") -> 38.1082549 | D120: =INDIRECT("'" & A120 & "'!AE18") -> 30.89063634 | E120: =INDIRECT("'" & A120 & "'!AE19") -> 38.18299683
A121: Type3S2 | B121: =INDIRECT("'" & A121 & "'!C36") -> 35.60974436 | C121: =INDIRECT("'" & A121 & "'!C40") -> 44.0161459 | D121: =INDIRECT("'" & A121 & "'!AE18") -> 35.69681738 | E121: =INDIRECT("'" & A121 & "'!AE19") -> 44.12377427
A122: Type3_3 | B122: =INDIRECT("'" & A122 & "'!C36") -> 34.94468126 | C122: =INDIRECT("'" & A122 & "'!C40") -> 43.19408117 | D122: =INDIRECT("'" & A122 & "'!AE18") -> 35.04142906 | E122: =INDIRECT("'" & A122 & "'!AE19") -> 43.31366825
A123: F. Permit Vehicles
A124: PL60T | B124: =INDIRECT("'" & A124 & "'!C36") -> 34.41811968 | C124: =INDIRECT("'" & A124 & "'!C40") -> 42.54321407 | D124: =INDIRECT("'" & A124 & "'!AE18") -> 34.51495841 | E124: =INDIRECT("'" & A124 & "'!AE19") -> 42.66291354
A125: PL65T | B125: =INDIRECT("'" & A125 & "'!C36") -> 45.54544074 | C125: =INDIRECT("'" & A125 & "'!C40") -> 56.29736468 | D125: =INDIRECT("'" & A125 & "'!AE18") -> 45.66364764 | E125: =INDIRECT("'" & A125 & "'!AE19") -> 56.44347671
A126: G. Custom Vehicles
A127: Custom_Vehicle_1 | B127: =IF(add_custom_vehicle = "YES",INDIRECT("'" & A127 & "'!C36"),"N/A") -> 45.55524016 | C127: =IF(add_custom_vehicle = "YES",INDIRECT("'" & A127 & "'!C40"),"N/A") -> 57.46603733 | D127: =IF(add_custom_vehicle= "NO", "N/A",INDIRECT("'" & A127 & "'!AE18")) -> 45.72361727 | E127: =IF(add_custom_vehicle= "NO", "N/A",INDIRECT("'" & A127 & "'!AE19")) -> 57.67843803
A129: Capacity
A131: Flexure Capacity
A132: Nominal flexural resistance, Mn | B132: =Capacity!$G$29 -> 1680.550572 | C132: kips-ft
A133: Flexural resistance, Mr | B133: =Capacity!$G$58 -> 1680.550572 | C133: kips-ft
A135: Resistance factor | B135: ϕ | C135: =Capacity!$G$36 -> 1
A136: Condition factor | B136: ϕc | C136: =IF(MAIN!$B$43="","",IF(MAIN!$B$43=5,0.95,IF(MAIN!$B$43>5,1,0.85))) -> 1
A137: Condition factor | B137: ϕs | C137: 1
A140: Shear Capacity
A141: Vehicle types | B141: Nominal shear resistance Vn (kips)
B142: At shear critical point | D142: At Region 2
B143: Interior beam | C143: Exterior beam | D143: Interior beam | E143: Exterior beam
A144: A. Design Vehicle
A145: HL93
A146: Inventory | B146: =VLOOKUP($A146,Capacity!$A$101:$I$130,9,FALSE) -> 314.325 | C146: =VLOOKUP($A146,Capacity!$A$133:$I$162,9,FALSE) -> 314.325 | D146: =Capacity!I169 -> 217.0196954 | E146: =Capacity!I201 -> 217.0197123
A147: Operating | B147: =VLOOKUP($A147,Capacity!$A$101:$I$130,9,FALSE) -> 314.325 | C147: =VLOOKUP($A147,Capacity!$A$133:$I$162,9,FALSE) -> 314.325 | D147: =Capacity!I170 -> 217.0196805 | E147: =Capacity!I202 -> 217.019692
A148: HL93_Tandem
A149: Inventory_Tandem | B149: =VLOOKUP($A149,Capacity!$A$101:$I$130,9,FALSE) -> 314.325 | C149: =VLOOKUP($A149,Capacity!$A$133:$I$162,9,FALSE) -> 314.325 | D149: =Capacity!I172 -> 217.0196813 | E149: =Capacity!I204 -> 217.0196934
A150: Operating_Tandem | B150: =VLOOKUP($A150,Capacity!$A$101:$I$130,9,FALSE) -> 314.325 | C150: =VLOOKUP($A150,Capacity!$A$133:$I$162,9,FALSE) -> 314.325 | D150: =Capacity!I173 -> 217.0196722 | E150: =Capacity!I205 -> 217.0196795
A151: B. Ohio Legal Vehicles
A152: 2F1 | B152: =VLOOKUP($A152,Capacity!$A$101:$I$130,9,FALSE) -> 314.325 | C152: =VLOOKUP($A152,Capacity!$A$133:$I$162,9,FALSE) -> 314.325 | D152: =Capacity!I175 -> 217.0196608 | E152: =Capacity!I207 -> 217.0196654
A153: 3F1 | B153: =VLOOKUP($A153,Capacity!$A$101:$I$130,9,FALSE) -> 314.325 | C153: =VLOOKUP($A153,Capacity!$A$133:$I$162,9,FALSE) -> 314.325 | D153: =Capacity!I176 -> 217.0196703 | E153: =Capacity!I208 -> 217.0196771
A154: 5C1 | B154: =VLOOKUP($A154,Capacity!$A$101:$I$130,9,FALSE) -> 314.325 | C154: =VLOOKUP($A154,Capacity!$A$133:$I$162,9,FALSE) -> 314.325 | D154: =Capacity!I177 -> 217.0196754 | E154: =Capacity!I209 -> 217.0196833
A155: C. Special Hauling Vehicles
A156: SU4 | B156: =VLOOKUP($A156,Capacity!$A$101:$I$130,9,FALSE) -> 314.325 | C156: =VLOOKUP($A156,Capacity!$A$133:$I$162,9,FALSE) -> 314.325 | D156: =Capacity!I179 -> 217.0196746 | E156: =Capacity!I211 -> 217.0196824
A157: SU5 | B157: =VLOOKUP($A157,Capacity!$A$101:$I$130,9,FALSE) -> 314.325 | C157: =VLOOKUP($A157,Capacity!$A$133:$I$162,9,FALSE) -> 314.325 | D157: =Capacity!I180 -> 217.0196785 | E157: =Capacity!I212 -> 217.0196884
A158: SU6 | B158: =VLOOKUP($A158,Capacity!$A$101:$I$130,9,FALSE) -> 314.325 | C158: =VLOOKUP($A158,Capacity!$A$133:$I$162,9,FALSE) -> 314.325 | D158: =Capacity!I181 -> 217.0196811 | E158: =Capacity!I213 -> 217.0196931
A159: SU7 | B159: =VLOOKUP($A159,Capacity!$A$101:$I$130,9,FALSE) -> 314.325 | C159: =VLOOKUP($A159,Capacity!$A$133:$I$162,9,FALSE) -> 314.325 | D159: =Capacity!I182 -> 217.0196836 | E159: =Capacity!I214 -> 217.0196975
A160: D. Emergency Vehicles
A161: EV2 | B161: =VLOOKUP($A161,Capacity!$A$101:$I$130,9,FALSE) -> 314.325 | C161: =VLOOKUP($A161,Capacity!$A$133:$I$162,9,FALSE) -> 314.325 | D161: =Capacity!I184 -> 217.0196732 | E161: =Capacity!I216 -> 217.0196806
A162: EV3 | B162: =VLOOKUP($A162,Capacity!$A$101:$I$130,9,FALSE) -> 314.325 | C162: =VLOOKUP($A162,Capacity!$A$133:$I$162,9,FALSE) -> 314.325 | D162: =Capacity!I185 -> 217.0196812 | E162: =Capacity!I217 -> 217.0196933
A163: E. AASHTO Legal Vehicles
A164: Type3 | B164: =VLOOKUP($A164,Capacity!$A$101:$I$130,9,FALSE) -> 314.325 | C164: =VLOOKUP($A164,Capacity!$A$133:$I$162,9,FALSE) -> 314.325 | D164: =Capacity!I187 -> 217.0196716 | E164: =Capacity!I219 -> 217.0196787
A165: Type3S2 | B165: =VLOOKUP($A165,Capacity!$A$101:$I$130,9,FALSE) -> 314.325 | C165: =VLOOKUP($A165,Capacity!$A$133:$I$162,9,FALSE) -> 314.325 | D165: =Capacity!I188 -> 217.0196763 | E165: =Capacity!I220 -> 217.0196845
A166: Type3_3 | B166: =VLOOKUP($A166,Capacity!$A$101:$I$130,9,FALSE) -> 314.325 | C166: =VLOOKUP($A166,Capacity!$A$133:$I$162,9,FALSE) -> 314.325 | D166: =Capacity!I189 -> 217.0196756 | E166: =Capacity!I221 -> 217.0196837
A167: F. Permit Vehicles
A168: PL60T | B168: =VLOOKUP($A168,Capacity!$A$101:$I$130,9,FALSE) -> 314.325 | C168: =VLOOKUP($A168,Capacity!$A$133:$I$162,9,FALSE) -> 314.325 | D168: =Capacity!I191 -> 217.019674 | E168: =Capacity!I223 -> 217.0196816
A169: PL65T | B169: =VLOOKUP($A169,Capacity!$A$101:$I$130,9,FALSE) -> 314.325 | C169: =VLOOKUP($A169,Capacity!$A$133:$I$162,9,FALSE) -> 314.325 | D169: =Capacity!I192 -> 217.0196829 | E169: =Capacity!I224 -> 217.0196963
A170: G. Custom Vehicles
A171: Custom_Vehicle_1 | B171: =IF(add_custom_vehicle = "YES",VLOOKUP($A171,Capacity!$A$101:$I$130,9,FALSE),"N/A") -> 314.325 | C171: =IF(add_custom_vehicle = "YES",VLOOKUP($A171,Capacity!$A$133:$I$162,9,FALSE),"N/A") -> 314.325 | D171: =Capacity!I194 -> 217.0196753 | E171: =Capacity!I226 -> 217.0196841
A173: Load Rating
B174: Interior Beam | E174: Exterior Beam
A175: Vehicle types | B175: Rating Factor | C175: Criteria | D175: Limit State | E175: Rating Factor | F175: Criteria | G175: Limit State
A176: A. Design Vehicle
A177: HL93
A178: Inventory | B178: =VLOOKUP($A178,'Load Rating Interior Beam'!$A$186:$J$215,8,FALSE) -> 1.053196492 | C178: =VLOOKUP($A178,'Load Rating Interior Beam'!$A$186:$J$215,9,FALSE) -> Flexure | D178: =VLOOKUP($A178,'Load Rating Interior Beam'!$A$186:$J$215,10,FALSE) -> Service III | E178: =VLOOKUP(A178,'Load Rating Exterior Beam'!$A$186:$H$215,8,FALSE) -> 1.003840977 | F178: =VLOOKUP($A178,'Load Rating Exterior Beam'!$A$186:$J$215,9,FALSE) -> Flexure | G178: =VLOOKUP($A178,'Load Rating Exterior Beam'!$A$186:$J$215,10,FALSE) -> Service III
A179: Operating | B179: =VLOOKUP($A179,'Load Rating Interior Beam'!$A$186:$J$215,8,FALSE) -> 1.390329849 | C179: =VLOOKUP($A179,'Load Rating Interior Beam'!$A$186:$J$215,9,FALSE) -> Flexure | D179: =VLOOKUP($A179,'Load Rating Interior Beam'!$A$186:$J$215,10,FALSE) -> Strength I | E179: =VLOOKUP(A179,'Load Rating Exterior Beam'!$A$186:$H$215,8,FALSE) -> 1.325175393 | F179: =VLOOKUP($A179,'Load Rating Exterior Beam'!$A$186:$J$215,9,FALSE) -> Flexure | G179: =VLOOKUP($A179,'Load Rating Exterior Beam'!$A$186:$J$215,10,FALSE) -> Strength I
A180: HL93_Tandem
A181: Inventory_Tandem | B181: =VLOOKUP($A181,'Load Rating Interior Beam'!$A$186:$J$215,8,FALSE) -> 1.186793577 | C181: =VLOOKUP($A181,'Load Rating Interior Beam'!$A$186:$J$215,9,FALSE) -> Flexure | D181: =VLOOKUP($A181,'Load Rating Interior Beam'!$A$186:$J$215,10,FALSE) -> Service III | E181: =VLOOKUP(A181,'Load Rating Exterior Beam'!$A$186:$H$215,8,FALSE) -> 1.131177357 | F181: =VLOOKUP($A181,'Load Rating Exterior Beam'!$A$186:$J$215,9,FALSE) -> Flexure | G181: =VLOOKUP($A181,'Load Rating Exterior Beam'!$A$186:$J$215,10,FALSE) -> Service III
A182: Operating_Tandem | B182: =VLOOKUP($A182,'Load Rating Interior Beam'!$A$186:$J$215,8,FALSE) -> 1.566692016 | C182: =VLOOKUP($A182,'Load Rating Interior Beam'!$A$186:$J$215,9,FALSE) -> Flexure | D182: =VLOOKUP($A182,'Load Rating Interior Beam'!$A$186:$J$215,10,FALSE) -> Strength I | E182: =VLOOKUP(A182,'Load Rating Exterior Beam'!$A$186:$H$215,8,FALSE) -> 1.493272771 | F182: =VLOOKUP($A182,'Load Rating Exterior Beam'!$A$186:$J$215,9,FALSE) -> Flexure | G182: =VLOOKUP($A182,'Load Rating Exterior Beam'!$A$186:$J$215,10,FALSE) -> Strength I
A183: B. Ohio Legal Vehicles
A184: 2F1 | B184: =VLOOKUP($A184,'Load Rating Interior Beam'!$A$186:$J$215,8,FALSE) -> 3.392867922 | C184: =VLOOKUP($A184,'Load Rating Interior Beam'!$A$186:$J$215,9,FALSE) -> Flexure | D184: =VLOOKUP($A184,'Load Rating Interior Beam'!$A$186:$J$215,10,FALSE) -> Strength I | E184: =VLOOKUP(A184,'Load Rating Exterior Beam'!$A$186:$H$215,8,FALSE) -> 3.233869346 | F184: =VLOOKUP($A184,'Load Rating Exterior Beam'!$A$186:$J$215,9,FALSE) -> Flexure | G184: =VLOOKUP($A184,'Load Rating Exterior Beam'!$A$186:$J$215,10,FALSE) -> Strength I
A185: 3F1 | B185: =VLOOKUP($A185,'Load Rating Interior Beam'!$A$186:$J$215,8,FALSE) -> 2.271767945 | C185: =VLOOKUP($A185,'Load Rating Interior Beam'!$A$186:$J$215,9,FALSE) -> Flexure | D185: =VLOOKUP($A185,'Load Rating Interior Beam'!$A$186:$J$215,10,FALSE) -> Strength I | E185: =VLOOKUP(A185,'Load Rating Exterior Beam'!$A$186:$H$215,8,FALSE) -> 2.165307017 | F185: =VLOOKUP($A185,'Load Rating Exterior Beam'!$A$186:$J$215,9,FALSE) -> Flexure | G185: =VLOOKUP($A185,'Load Rating Exterior Beam'!$A$186:$J$215,10,FALSE) -> Strength I
A186: 5C1 | B186: =VLOOKUP($A186,'Load Rating Interior Beam'!$A$186:$J$215,8,FALSE) -> 2.314022037 | C186: =VLOOKUP($A186,'Load Rating Interior Beam'!$A$186:$J$215,9,FALSE) -> Flexure | D186: =VLOOKUP($A186,'Load Rating Interior Beam'!$A$186:$J$215,10,FALSE) -> Strength I | E186: =VLOOKUP(A186,'Load Rating Exterior Beam'!$A$186:$H$215,8,FALSE) -> 2.205580973 | F186: =VLOOKUP($A186,'Load Rating Exterior Beam'!$A$186:$J$215,9,FALSE) -> Flexure | G186: =VLOOKUP($A186,'Load Rating Exterior Beam'!$A$186:$J$215,10,FALSE) -> Strength I
A187: C. Special Hauling Vehicles
A188: SU4 | B188: =VLOOKUP($A188,'Load Rating Interior Beam'!$A$186:$J$215,8,FALSE) -> 1.995689417 | C188: =VLOOKUP($A188,'Load Rating Interior Beam'!$A$186:$J$215,9,FALSE) -> Flexure | D188: =VLOOKUP($A188,'Load Rating Interior Beam'!$A$186:$J$215,10,FALSE) -> Strength I | E188: =VLOOKUP(A188,'Load Rating Exterior Beam'!$A$186:$H$215,8,FALSE) -> 1.902166243 | F188: =VLOOKUP($A188,'Load Rating Exterior Beam'!$A$186:$J$215,9,FALSE) -> Flexure | G188: =VLOOKUP($A188,'Load Rating Exterior Beam'!$A$186:$J$215,10,FALSE) -> Strength I
A189: SU5 | B189: =VLOOKUP($A189,'Load Rating Interior Beam'!$A$186:$J$215,8,FALSE) -> 1.813050361 | C189: =VLOOKUP($A189,'Load Rating Interior Beam'!$A$186:$J$215,9,FALSE) -> Flexure | D189: =VLOOKUP($A189,'Load Rating Interior Beam'!$A$186:$J$215,10,FALSE) -> Strength I | E189: =VLOOKUP(A189,'Load Rating Exterior Beam'!$A$186:$H$215,8,FALSE) -> 1.728086126 | F189: =VLOOKUP($A189,'Load Rating Exterior Beam'!$A$186:$J$215,9,FALSE) -> Flexure | G189: =VLOOKUP($A189,'Load Rating Exterior Beam'!$A$186:$J$215,10,FALSE) -> Strength I
A190: SU6 | B190: =VLOOKUP($A190,'Load Rating Interior Beam'!$A$186:$J$215,8,FALSE) -> 1.626329581 | C190: =VLOOKUP($A190,'Load Rating Interior Beam'!$A$186:$J$215,9,FALSE) -> Flexure | D190: =VLOOKUP($A190,'Load Rating Interior Beam'!$A$186:$J$215,10,FALSE) -> Strength I | E190: =VLOOKUP(A190,'Load Rating Exterior Beam'!$A$186:$H$215,8,FALSE) -> 1.550115565 | F190: =VLOOKUP($A190,'Load Rating Exterior Beam'!$A$186:$J$215,9,FALSE) -> Flexure | G190: =VLOOKUP($A190,'Load Rating Exterior Beam'!$A$186:$J$215,10,FALSE) -> Strength I
A191: SU7 | B191: =VLOOKUP($A191,'Load Rating Interior Beam'!$A$186:$J$215,8,FALSE) -> 1.49233016 | C191: =VLOOKUP($A191,'Load Rating Interior Beam'!$A$186:$J$215,9,FALSE) -> Flexure | D191: =VLOOKUP($A191,'Load Rating Interior Beam'!$A$186:$J$215,10,FALSE) -> Strength I | E191: =VLOOKUP(A191,'Load Rating Exterior Beam'!$A$186:$H$215,8,FALSE) -> 1.422395704 | F191: =VLOOKUP($A191,'Load Rating Exterior Beam'!$A$186:$J$215,9,FALSE) -> Flexure | G191: =VLOOKUP($A191,'Load Rating Exterior Beam'!$A$186:$J$215,10,FALSE) -> Strength I
A192: D. Emergency Vehicles
A193: EV2 | B193: =VLOOKUP($A193,'Load Rating Interior Beam'!$A$186:$J$215,8,FALSE) -> 2.187848393 | C193: =VLOOKUP($A193,'Load Rating Interior Beam'!$A$186:$J$215,9,FALSE) -> Flexure | D193: =VLOOKUP($A193,'Load Rating Interior Beam'!$A$186:$J$215,10,FALSE) -> Strength I | E193: =VLOOKUP(A193,'Load Rating Exterior Beam'!$A$186:$H$215,8,FALSE) -> 2.085320152 | F193: =VLOOKUP($A193,'Load Rating Exterior Beam'!$A$186:$J$215,9,FALSE) -> Flexure | G193: =VLOOKUP($A193,'Load Rating Exterior Beam'!$A$186:$J$215,10,FALSE) -> Strength I
A194: EV3 | B194: =VLOOKUP($A194,'Load Rating Interior Beam'!$A$186:$J$215,8,FALSE) -> 1.692092547 | C194: =VLOOKUP($A194,'Load Rating Interior Beam'!$A$186:$J$215,9,FALSE) -> Flexure | D194: =VLOOKUP($A194,'Load Rating Interior Beam'!$A$186:$J$215,10,FALSE) -> Strength I | E194: =VLOOKUP(A194,'Load Rating Exterior Beam'!$A$186:$H$215,8,FALSE) -> 1.612796709 | F194: =VLOOKUP($A194,'Load Rating Exterior Beam'!$A$186:$J$215,9,FALSE) -> Flexure | G194: =VLOOKUP($A194,'Load Rating Exterior Beam'!$A$186:$J$215,10,FALSE) -> Strength I
A195: E. AASHTO Legal Vehicles
A196: Type3 | B196: =VLOOKUP($A196,'Load Rating Interior Beam'!$A$186:$J$215,8,FALSE) -> 2.251333473 | C196: =VLOOKUP($A196,'Load Rating Interior Beam'!$A$186:$J$215,9,FALSE) -> Flexure | D196: =VLOOKUP($A196,'Load Rating Interior Beam'!$A$186:$J$215,10,FALSE) -> Strength I | E196: =VLOOKUP(A196,'Load Rating Exterior Beam'!$A$186:$H$215,8,FALSE) -> 2.145830157 | F196: =VLOOKUP($A196,'Load Rating Exterior Beam'!$A$186:$J$215,9,FALSE) -> Flexure | G196: =VLOOKUP($A196,'Load Rating Exterior Beam'!$A$186:$J$215,10,FALSE) -> Strength I
A197: Type3S2 | B197: =VLOOKUP($A197,'Load Rating Interior Beam'!$A$186:$J$215,8,FALSE) -> 2.116998324 | C197: =VLOOKUP($A197,'Load Rating Interior Beam'!$A$186:$J$215,9,FALSE) -> Flexure | D197: =VLOOKUP($A197,'Load Rating Interior Beam'!$A$186:$J$215,10,FALSE) -> Strength I | E197: =VLOOKUP(A197,'Load Rating Exterior Beam'!$A$186:$H$215,8,FALSE) -> 2.0177903 | F197: =VLOOKUP($A197,'Load Rating Exterior Beam'!$A$186:$J$215,9,FALSE) -> Flexure | G197: =VLOOKUP($A197,'Load Rating Exterior Beam'!$A$186:$J$215,10,FALSE) -> Strength I
A198: Type3_3 | B198: =VLOOKUP($A198,'Load Rating Interior Beam'!$A$186:$J$215,8,FALSE) -> 2.277157297 | C198: =VLOOKUP($A198,'Load Rating Interior Beam'!$A$186:$J$215,9,FALSE) -> Flexure | D198: =VLOOKUP($A198,'Load Rating Interior Beam'!$A$186:$J$215,10,FALSE) -> Strength I | E198: =VLOOKUP(A198,'Load Rating Exterior Beam'!$A$186:$H$215,8,FALSE) -> 2.170443809 | F198: =VLOOKUP($A198,'Load Rating Exterior Beam'!$A$186:$J$215,9,FALSE) -> Flexure | G198: =VLOOKUP($A198,'Load Rating Exterior Beam'!$A$186:$J$215,10,FALSE) -> Strength I
A199: F. Permit Vehicles
A200: PL60T | B200: =VLOOKUP($A200,'Load Rating Interior Beam'!$A$186:$J$215,8,FALSE) -> 2.390327664 | C200: =VLOOKUP($A200,'Load Rating Interior Beam'!$A$186:$J$215,9,FALSE) -> Flexure | D200: =VLOOKUP($A200,'Load Rating Interior Beam'!$A$186:$J$215,10,FALSE) -> Strength II | E200: =VLOOKUP(A200,'Load Rating Exterior Beam'!$A$186:$H$215,8,FALSE) -> 2.27831072 | F200: =VLOOKUP($A200,'Load Rating Exterior Beam'!$A$186:$J$215,9,FALSE) -> Flexure | G200: =VLOOKUP($A200,'Load Rating Exterior Beam'!$A$186:$J$215,10,FALSE) -> Strength II
A201: PL65T | B201: =VLOOKUP($A201,'Load Rating Interior Beam'!$A$186:$J$215,8,FALSE) -> 1.848777213 | C201: =VLOOKUP($A201,'Load Rating Interior Beam'!$A$186:$J$215,9,FALSE) -> Flexure | D201: =VLOOKUP($A201,'Load Rating Interior Beam'!$A$186:$J$215,10,FALSE) -> Strength II | E201: =VLOOKUP(A201,'Load Rating Exterior Beam'!$A$186:$H$215,8,FALSE) -> 1.762138726 | F201: =VLOOKUP($A201,'Load Rating Exterior Beam'!$A$186:$J$215,9,FALSE) -> Flexure | G201: =VLOOKUP($A201,'Load Rating Exterior Beam'!$A$186:$J$215,10,FALSE) -> Strength II
A202: G. Custom Vehicles
A203: Custom_Vehicle_1 | B203: =IF(add_custom_vehicle = "YES",VLOOKUP($A203,'Load Rating Interior Beam'!$A$186:$J$215,8,FALSE),"N/A") -> 2.536096016 | C203: =IF(add_custom_vehicle = "YES",VLOOKUP($A203,'Load Rating Interior Beam'!$A$186:$J$215,9,FALSE),"N/A") -> Flexure | D203: =IF(add_custom_vehicle = "YES",VLOOKUP($A203,'Load Rating Interior Beam'!$A$186:$J$215,10,FALSE),"N/A") -> Strength II | E203: =IF(add_custom_vehicle = "YES",VLOOKUP(A203,'Load Rating Exterior Beam'!$A$186:$H$215,8,FALSE),"N/A") -> 2.239103778 | F203: =IF(add_custom_vehicle = "YES",VLOOKUP($A203,'Load Rating Exterior Beam'!$A$186:$J$215,9,FALSE),"N/A") -> Flexure | G203: =IF(add_custom_vehicle = "YES",VLOOKUP($A203,'Load Rating Exterior Beam'!$A$186:$J$215,10,FALSE),"N/A") -> Strength II

Sheet Capacity (hidden)
A1: Moment Capacity of Beam
A3: a. Nominal Flexural Resistance (Mn)
A4: Area of prestressing strands | F4: Aps | G4: =(SUMIF(MAIN!E107:E109,"Bottom Flange",MAIN!B107:B109))*Area_PS -> 5.01 | H4: in2
A5: Area of non-prestressed reinforcement | F5: As | G5: =MAIN!C115*MAIN!D115 -> 0.62 | H5: in2
A6: Area of compressive reinforcement | F6: As' | G6: 0 | H6: in2
A7: Stress block factor | F7: β' | G7: =Stress_block_Factor(S_type) -> 0.7
A9: Centroid of prestressing strands from extreme tensile face | F9: ybs | G9: =SUMPRODUCT(MAIN!B107:B108,MAIN!C107:C108)/SUM(MAIN!B107:B108) -> 2.8 | H9: in
A10: Depth from extreme compression face to centroid of prestressing strand | F10: dp | G10: =(h+h_slab)-ybs_center -> 18.2 | H10: in
A11: Centroid of non prestressing reinforcement from exteme tensile face | F11: ys | G11: =MAIN!E115 -> 2 | H11: in
A12: Depth from extreme compression face to centroid of non-prestressing reinforcement | F12: ds | G12: =IF(ys_center=0,0,(h+h_slab)-ys_center) -> 19 | H12: in
A14: Rectangular section behaviour
A15: Distance from the extreme compression fiber to the neutral axis | F15: c | G15: =Depth_NA_rect(S_type) -> 6.296811291 | H15: in
A16: Depth of compression block | F16: a | G16: =G15*beta -> 4.407767904 | H16: in
F17: check a <hf | H17: =IF(G16<hf+h_slab, "OK","NG") -> OK
A19: T-section behaviour
A20: Distance from the extreme compression fiber to the neutral axis | F20: c | G20: =IF(H17="NG",Depth_NA_T_section(S_type),NA()) ->  | H20: in
A21: Depth of compression block | F21: a | G21: =_xlfn.IFNA(G20*beta,NA()) ->  | H21: in
F22: check a >hf | H22: =IF(G21>hf,"OK",NA()) -> 
A24: Behaviour of beam | F24: =IF(H17="OK","Rectangular Section Behaviour","T-Section Behaviour") -> Rectangular Section Behaviour
A25: Depth of compression block | F25: a | G25: =IF(F24="Rectangular Section Behaviour",G16,G21) -> 4.407767904 | H25: in
A26: Distance from the extreme compression fiber to the neutral axis | F26: c | G26: =IF(F24="Rectangular Section Behaviour",G15,G20) -> 6.296811291 | H26: in
A27: Average stress in prestressing strands | F27: fps | G27: =fpu*(1-MAIN!C74*(c_beam/dp)) -> 243.8440146 | H27: ksi
A29: Nominal flexural resistance | F29: Mn | G29: =Nominal_flexural_resistance(S_type) -> 1680.550572 | H29: kips-ft
A31: b. Flexural Resistance
A32: Maximum Reinforcement
A33: Depth from extreme compression strand to centroid of extreme tensile strand | F33: dt | G33: =(h+h_slab)-MAIN!C107 -> 19 | H33: in
A34: Strain in tensile face | F34: et | G34: =(dt/c_beam-1)*0.003 -> 0.006052200767
A35: Section control | F35: =IF(G34<0.002,"Compression Ccontrolled",IF(G34>0.005,"Tension controlled","Transition")) -> Tension controlled
A36: Resistance factor | F36: ϕ | G36: =IF(F35="Tension controlled",1,IF(F35="Compression controlled",0.75,0.75+0.25*(G34-0.002)/(0.003))) -> 1
A38: Minimum Reinforcement
A39: Amount of reinforcement must be sufficient to develop Mr equal to or lesser of 1.33Mu or Mcr
A40: Check at mid span
A41: Ultimate bending moment for strength I for HL93 | F41: Mu | G41: ='Load Rating Interior Beam'!B84*'Load Rating Interior Beam'!F84+'Load Rating Interior Beam'!C84*'Load Rating Interior Beam'!G84+'Load Rating Interior Beam'!D84*'Load Rating Interior Beam'!H84 -> 1622.263126 | H41: kip-ft
A42: Non composite dead load moment at mid span | F42: Mdnc | G42: ='Calculation Summary'!D14+'Calculation Summary'!F14 -> 384.9781185 | H42: kip-ft
A44: Flexural cracking variability factor | F44: ᵞ1 | G44: 1.6
A45: Prestress variability factor | F45: ᵞ2 | G45: 1.1
A46: For prestressed steel | F46: ᵞ3 | G46: 1
A48: Modulus of rupture of concrete | F48: fr | G48: =0.24*1*SQRT(fc_design) -> 0.6349803147 | H48: ksi
A49: Compressive stress in concrete due to effective prestress force | F49: fcpe | G49: =('Prestress Losses'!C96/'Section Props'!C90) + ('Prestress Losses'!C96 * 'Section Props'!C92 / 'Section Props'!C95) -> 3.19245402 | H49: ksi
F50: Sbtc | G50: =Sbtc -> 3465.869589 | H50: in3
F51: Sbtf | G51: =Sbtf -> 3465.869589 | H51: in3
A52: Cracking moment | F52: Mcr | G52: =G50/12*(G48+G49)-G42*(G50/G51 - 1) -> 1105.449022 | H52: kips-ft
F53: 1.33Mu | G53: =1.33*G41 -> 2157.609958 | H53: kips-ft
A54: Flexural resistance | F54: Mr | G54: =G36*G29 -> 1680.550572 | H54: kips-ft
A55: Check | F55: Mr > Min (1.33 Mu , Mcr) | H55: =IFERROR(IF(G54>MIN(G52:G53),"OK","Minimum reinforcement not available"), "Not Ok") -> OK
A56: Reduction factor | F56: K | G56: =MIN(G54/MIN(G52:G53),1) -> 1
A58: Flexural resistance | F58: Mr | G58: =G36*G29*G56 -> 1680.550572 | H58: kips-ft
A60: For Service I limit state
A62: For Service III limit state
A63: Allowable tensile stress | G63: ='Prestress Losses'!C112 -> -0.5026927491 | H63: ksi
A64: Compressive stress due to prestress | F64: fpb | G64: =G49 -> 3.19245402 | H64: ksi
A65: Flexural resistance | F65: fr | G65: =ABS(G63)+G64 -> 3.69514677 | H65: ksi
A67: Shear Capacity of Beam
A69: Shear critical location from inside face of bearing | F69: dv | G69: =MAX(de-a/2,G70,G71) -> 16.32857143 | H69: in
A70: dv = de - a/2 but not less than 0.92de or 0.72h | F70: 0.9de | G70: =0.9*de -> 16.32857143 | H70: in
F71: 0.72h | G71: =0.72*(h+h_slab) -> 15.12 | H71: in
A73: Centroid of prestressing strands from extreme tensile face | F73: ybs | G73: =(SUMPRODUCT(MAIN!B107:B108,MAIN!C107:C108)-SUMPRODUCT(MAIN!B111,MAIN!C111))/(SUM(MAIN!B107:B108)-MAIN!B111) -> 2.857142857 | H73: in
A74: Depth from extreme compression face to centroid of prestressing strand | F74: de | G74: =(h+h_slab)-G73 -> 18.14285714 | H74: in
A76: Location of critical shear from center of the support | G76: =G69+MAIN!B11/2 -> 19.32857143 | H76: in
A77: Location of critical shear from center of the support | G77: =G76/12 -> 1.610714286 | H77: ft
A79: a. Nominal Shear Resistance (Vn)
A80: Minimum traverse reinforcement required in typical shear critical point | F80: Av_min | G80: =0.0316*1*SQRT(fc_design)*bw_single*2*MAIN!$D$119/fy -> 0.04598315779 | H80: in2
A81: Traverse reinforcement provided in typical shear critical point | F81: Av | G81: =MAIN!E119 -> 0.4 | H81: in2
A82: Minimum traverse reinforcement required in Region 2 | F82: Av_min | G82: =0.0316*1*SQRT(fc_design)*bw_single*2*MAIN!$D$120/fy -> 0.09196631557 | H82: in2
A83: Traverse reinforcement provided in Region 2 | F83: Av | G83: =MAIN!E120 -> 0.4 | H83: in2
A84: =IF(G81>G80, "Section has minimum traverse reinforcement","Section doesnot have minimum traverse reinforcement") -> Section has minimum traverse reinforcement | G84: =IF(A84= "Section has minimum traverse reinforcement", "OK","Not OK") -> OK
A86: Nominal shear resistance at shear critical location for interior beam due to HL93
A87: Nominal shear resistance for concrete | F87: Vc | G87: =0.0316*beta_shear*1*SQRT(fc_design)*(bw_single*2)*dv -> 72.08057054 | H87: kips
A88: Shear reistance due to traverse reinforcement | F88: Vs | G88: =MAIN!E119*fy*dv*(_xlfn.COT(RADIANS(theta))+_xlfn.COT(RADIANS(90))*SIN(RADIANS(90)))/MAIN!D119 -> 235.6601811 | H88: kips
A89: Shear resistance due to prestressing strands | F89: Vp | G89: 0 | H89: kips
A91: Factor indicating ability of diagonally cracked concrete to transmit tension and shear | F91: β | G91: =4.8/(1+750*epsilon_s) -> 4.8
A92: Angle of inclination of diagonal compressive stress | F92: θ | G92: =29+3500*epsilon_s -> 29 | H92: degrees
A94: Factored bending moment at shear critical location due to HL93 | F94: Mu | G94: =1.25*'Calculation Summary'!G15+1.5*'Calculation Summary'!I15+1.75*('Calculation Summary'!D67) -> 163.2805144 | H94: kips-ft
A95: Factored shear force at shear critical location due to HL93 | F95: Vu | G95: =1.25*SUM('Calculation Summary'!G51)+1.5*'Calculation Summary'!I51+1.75*('Calculation Summary'!B102) -> 141.8400603 | H95: kips
A96: Strain at tensile face | F96: εs | G96: =MAX((ABS(G94)/dv+0+ABS(G95-Vp)-Aps*189)/(Ep*As+28000*Aps),0) -> 0
A98: Nominal shear resistance | F98: Vn | G98: =Vc+Vs+Vp -> 307.7407516 | H98: kips
A99: Nominal Shear Resistance at Shear Critical Location for Interior Beam due to
A101: Vehicle type | B101: Mu | C101: Vu | D101: εs | E101: β | F101: θ | G101: Vc | H101: Vs | I101: Vn | J101: Remarks
B102: (kips-ft) | C102: (kips) | F102: (degrees) | G102: (kips) | H102: (kips) | I102: (kips)
A103: A. Design Vehicles
A104: HL93
A105: Inventory | B105: =1.25*'Calculation Summary'!$G$15+1.5*'Calculation Summary'!$I$15+'Load Rating Interior Beam'!D84*'Calculation Summary'!D67 -> 163.2805144 | C105: =1.25*'Calculation Summary'!$G$51+1.5*'Calculation Summary'!$I$51+'Load Rating Interior Beam'!D84*'Calculation Summary'!B102 -> 141.8400603 | D105: =VLOOKUP(A105,Shear_capacity!$A$5:$AP$23,40,FALSE) -> -0.0001984172168 | E105: =4.8/(1+750*D105) -> 5.63918329 | F105: =29+3500*D105 -> 28.30553974 | G105: =0.0316*E105*1*SQRT(fc_design)*(bw_single*2)*dv -> 84.68240602 | H105: =$G$81*fy*dv*(_xlfn.COT(RADIANS(F105))+_xlfn.COT(RADIANS(90))*SIN(RADIANS(90)))/MAIN!$D$119 -> 242.547401 | I105: =MIN(G105+H105,0.25*fc_design*bw_single*2*dv) -> 314.325 | J105: =VLOOKUP(A105,Shear_capacity!$A$5:$AP$23,42,FALSE) -> Sectional method governs
A106: Operating | B106: =1.25*'Calculation Summary'!$G$15+1.5*'Calculation Summary'!$I$15+'Load Rating Interior Beam'!D85*'Calculation Summary'!D68 -> 144.3079358 | C106: =1.25*'Calculation Summary'!$G$51+1.5*'Calculation Summary'!$I$51+'Load Rating Interior Beam'!D85*'Calculation Summary'!B103 -> 120.3891944 | D106: =VLOOKUP(A106,Shear_capacity!$A$5:$AP$23,40,FALSE) -> -0.0001984173709 | E106: =4.8/(1+750*D106) -> 5.639184056 | F106: =29+3500*D106 -> 28.3055392 | G106: =0.0316*E106*1*SQRT(fc_design)*(bw_single*2)*dv -> 84.68241752 | H106: =$G$81*fy*dv*(_xlfn.COT(RADIANS(F106))+_xlfn.COT(RADIANS(90))*SIN(RADIANS(90)))/MAIN!$D$119 -> 242.5474064 | I106: =MIN(G106+H106,0.25*fc_design*bw_single*2*dv) -> 314.325 | J106: =VLOOKUP(A106,Shear_capacity!$A$5:$AP$23,42,FALSE) -> Sectional method governs
A107: HL93_Tandem
A108: Inventory_Tandem | B108: =1.25*'Calculation Summary'!$G$15+1.5*'Calculation Summary'!$I$15+'Load Rating Interior Beam'!D87*'Calculation Summary'!D70 -> 149.259919 | C108: =1.25*'Calculation Summary'!$G$51+1.5*'Calculation Summary'!$I$51+'Load Rating Interior Beam'!D87*'Calculation Summary'!B105 -> 125.9060682 | D108: =VLOOKUP(A108,Shear_capacity!$A$5:$AP$23,40,FALSE) -> -0.0001984173301 | E108: =4.8/(1+750*D108) -> 5.639183853 | F108: =29+3500*D108 -> 28.30553934 | G108: =0.0316*E108*1*SQRT(fc_design)*(bw_single*2)*dv -> 84.68241448 | H108: =$G$81*fy*dv*(_xlfn.COT(RADIANS(F108))+_xlfn.COT(RADIANS(90))*SIN(RADIANS(90)))/MAIN!$D$119 -> 242.547405 | I108: =MIN(G108+H108,0.25*fc_design*bw_single*2*dv) -> 314.325 | J108: =VLOOKUP(A108,Shear_capacity!$A$5:$AP$23,42,FALSE) -> Sectional method governs
A109: Operating_Tandem | B109: =1.25*'Calculation Summary'!$G$15+1.5*'Calculation Summary'!$I$15+'Load Rating Interior Beam'!D88*'Calculation Summary'!D71 -> 133.4920479 | C109: =1.25*'Calculation Summary'!$G$51+1.5*'Calculation Summary'!$I$51+'Load Rating Interior Beam'!D88*'Calculation Summary'!B106 -> 108.0972576 | D109: =VLOOKUP(A109,Shear_capacity!$A$5:$AP$23,40,FALSE) -> -0.0001984173859 | E109: =4.8/(1+750*D109) -> 5.63918413 | F109: =29+3500*D109 -> 28.30553915 | G109: =0.0316*E109*1*SQRT(fc_design)*(bw_single*2)*dv -> 84.68241864 | H109: =$G$81*fy*dv*(_xlfn.COT(RADIANS(F109))+_xlfn.COT(RADIANS(90))*SIN(RADIANS(90)))/MAIN!$D$119 -> 242.547407 | I109: =MIN(G109+H109,0.25*fc_design*bw_single*2*dv) -> 314.325 | J109: =VLOOKUP(A109,Shear_capacity!$A$5:$AP$23,42,FALSE) -> Sectional method governs
A110: B. Ohio Legal Vehicles
A111: 2F1 | B111: =1.25*'Calculation Summary'!$G$15+1.5*'Calculation Summary'!$I$15+'Load Rating Interior Beam'!D90*'Calculation Summary'!D73 -> 105.5938333 | C111: =1.25*'Calculation Summary'!$G$51+1.5*'Calculation Summary'!$I$51+'Load Rating Interior Beam'!D90*'Calculation Summary'!B108 -> 76.76607829 | D111: =VLOOKUP(A111,Shear_capacity!$A$5:$AP$23,40,FALSE) -> -0.0001984170897 | E111: =4.8/(1+750*D111) -> 5.639182659 | F111: =29+3500*D111 -> 28.30554019 | G111: =0.0316*E111*1*SQRT(fc_design)*(bw_single*2)*dv -> 84.68239654 | H111: =$G$81*fy*dv*(_xlfn.COT(RADIANS(F111))+_xlfn.COT(RADIANS(90))*SIN(RADIANS(90)))/MAIN!$D$119 -> 242.5473965 | I111: =MIN(G111+H111,0.25*fc_design*bw_single*2*dv) -> 314.325 | J111: =VLOOKUP(A111,Shear_capacity!$A$5:$AP$23,42,FALSE) -> Sectional method governs
A112: 3F1 | B112: =1.25*'Calculation Summary'!$G$15+1.5*'Calculation Summary'!$I$15+'Load Rating Interior Beam'!D91*'Calculation Summary'!D74 -> 117.9448599 | C112: =1.25*'Calculation Summary'!$G$51+1.5*'Calculation Summary'!$I$51+'Load Rating Interior Beam'!D91*'Calculation Summary'!B109 -> 90.80265487 | D112: =VLOOKUP(A112,Shear_capacity!$A$5:$AP$23,40,FALSE) -> -0.0001984172229 | E112: =4.8/(1+750*D112) -> 5.63918332 | F112: =29+3500*D112 -> 28.30553972 | G112: =0.0316*E112*1*SQRT(fc_design)*(bw_single*2)*dv -> 84.68240648 | H112: =$G$81*fy*dv*(_xlfn.COT(RADIANS(F112))+_xlfn.COT(RADIANS(90))*SIN(RADIANS(90)))/MAIN!$D$119 -> 242.5474012 | I112: =MIN(G112+H112,0.25*fc_design*bw_single*2*dv) -> 314.325 | J112: =VLOOKUP(A112,Shear_capacity!$A$5:$AP$23,42,FALSE) -> Sectional method governs
A113: 5C1 | B113: =1.25*'Calculation Summary'!$G$15+1.5*'Calculation Summary'!$I$15+'Load Rating Interior Beam'!D92*'Calculation Summary'!D75 -> 124.4983541 | C113: =1.25*'Calculation Summary'!$G$51+1.5*'Calculation Summary'!$I$51+'Load Rating Interior Beam'!D92*'Calculation Summary'!B110 -> 98.25050729 | D113: =VLOOKUP(A113,Shear_capacity!$A$5:$AP$23,40,FALSE) -> -0.0001984172932 | E113: =4.8/(1+750*D113) -> 5.63918367 | F113: =29+3500*D113 -> 28.30553947 | G113: =0.0316*E113*1*SQRT(fc_design)*(bw_single*2)*dv -> 84.68241173 | H113: =$G$81*fy*dv*(_xlfn.COT(RADIANS(F113))+_xlfn.COT(RADIANS(90))*SIN(RADIANS(90)))/MAIN!$D$119 -> 242.5474037 | I113: =MIN(G113+H113,0.25*fc_design*bw_single*2*dv) -> 314.325 | J113: =VLOOKUP(A113,Shear_capacity!$A$5:$AP$23,42,FALSE) -> Sectional method governs
A114: C. Specialized Hauling Vehicles
A115: SU4 | B115: =1.25*'Calculation Summary'!$G$15+1.5*'Calculation Summary'!$I$15+'Load Rating Interior Beam'!D94*'Calculation Summary'!D77 -> 123.5071621 | C115: =1.25*'Calculation Summary'!$G$51+1.5*'Calculation Summary'!$I$51+'Load Rating Interior Beam'!D94*'Calculation Summary'!B112 -> 97.1240469 | D115: =VLOOKUP(A115,Shear_capacity!$A$5:$AP$23,40,FALSE) -> -0.0001984172826 | E115: =4.8/(1+750*D115) -> 5.639183617 | F115: =29+3500*D115 -> 28.30553951 | G115: =0.0316*E115*1*SQRT(fc_design)*(bw_single*2)*dv -> 84.68241093 | H115: =$G$81*fy*dv*(_xlfn.COT(RADIANS(F115))+_xlfn.COT(RADIANS(90))*SIN(RADIANS(90)))/MAIN!$D$119 -> 242.5474033 | I115: =MIN(G115+H115,0.25*fc_design*bw_single*2*dv) -> 314.325 | J115: =VLOOKUP(A115,Shear_capacity!$A$5:$AP$23,42,FALSE) -> Sectional method governs
A116: SU5 | B116: =1.25*'Calculation Summary'!$G$15+1.5*'Calculation Summary'!$I$15+'Load Rating Interior Beam'!D95*'Calculation Summary'!D78 -> 128.6234926 | C116: =1.25*'Calculation Summary'!$G$51+1.5*'Calculation Summary'!$I$51+'Load Rating Interior Beam'!D95*'Calculation Summary'!B113 -> 102.9386053 | D116: =VLOOKUP(A116,Shear_capacity!$A$5:$AP$23,40,FALSE) -> -0.0001984173374 | E116: =4.8/(1+750*D116) -> 5.639183889 | F116: =29+3500*D116 -> 28.30553932 | G116: =0.0316*E116*1*SQRT(fc_design)*(bw_single*2)*dv -> 84.68241502 | H116: =$G$81*fy*dv*(_xlfn.COT(RADIANS(F116))+_xlfn.COT(RADIANS(90))*SIN(RADIANS(90)))/MAIN!$D$119 -> 242.5474052 | I116: =MIN(G116+H116,0.25*fc_design*bw_single*2*dv) -> 314.325 | J116: =VLOOKUP(A116,Shear_capacity!$A$5:$AP$23,42,FALSE) -> Sectional method governs
A117: SU6 | B117: =1.25*'Calculation Summary'!$G$15+1.5*'Calculation Summary'!$I$15+'Load Rating Interior Beam'!D96*'Calculation Summary'!D79 -> 132.026391 | C117: =1.25*'Calculation Summary'!$G$51+1.5*'Calculation Summary'!$I$51+'Load Rating Interior Beam'!D96*'Calculation Summary'!B114 -> 106.8058987 | D117: =VLOOKUP(A117,Shear_capacity!$A$5:$AP$23,40,FALSE) -> -0.0001984173738 | E117: =4.8/(1+750*D117) -> 5.63918407 | F117: =29+3500*D117 -> 28.30553919 | G117: =0.0316*E117*1*SQRT(fc_design)*(bw_single*2)*dv -> 84.68241774 | H117: =$G$81*fy*dv*(_xlfn.COT(RADIANS(F117))+_xlfn.COT(RADIANS(90))*SIN(RADIANS(90)))/MAIN!$D$119 -> 242.5474065 | I117: =MIN(G117+H117,0.25*fc_design*bw_single*2*dv) -> 314.325 | J117: =VLOOKUP(A117,Shear_capacity!$A$5:$AP$23,42,FALSE) -> Sectional method governs
A118: SU7 | B118: =1.25*'Calculation Summary'!$G$15+1.5*'Calculation Summary'!$I$15+'Load Rating Interior Beam'!D97*'Calculation Summary'!D80 -> 135.2752151 | C118: =1.25*'Calculation Summary'!$G$51+1.5*'Calculation Summary'!$I$51+'Load Rating Interior Beam'!D97*'Calculation Summary'!B115 -> 110.4980912 | D118: =VLOOKUP(A118,Shear_capacity!$A$5:$AP$23,40,FALSE) -> -0.0001984174085 | E118: =4.8/(1+750*D118) -> 5.639184242 | F118: =29+3500*D118 -> 28.30553907 | G118: =0.0316*E118*1*SQRT(fc_design)*(bw_single*2)*dv -> 84.68242032 | H118: =$G$81*fy*dv*(_xlfn.COT(RADIANS(F118))+_xlfn.COT(RADIANS(90))*SIN(RADIANS(90)))/MAIN!$D$119 -> 242.5474078 | I118: =MIN(G118+H118,0.25*fc_design*bw_single*2*dv) -> 314.325 | J118: =VLOOKUP(A118,Shear_capacity!$A$5:$AP$23,42,FALSE) -> Sectional method governs
A119: D. Emergency Vehicles
A120: EV2 | B120: =1.25*'Calculation Summary'!$G$15+1.5*'Calculation Summary'!$I$15+'Load Rating Interior Beam'!D99*'Calculation Summary'!D82 -> 121.6789957 | C120: =1.25*'Calculation Summary'!$G$51+1.5*'Calculation Summary'!$I$51+'Load Rating Interior Beam'!D99*'Calculation Summary'!B117 -> 95.04638984 | D120: =VLOOKUP(A120,Shear_capacity!$A$5:$AP$23,40,FALSE) -> -0.000198417263 | E120: =4.8/(1+750*D120) -> 5.63918352 | F120: =29+3500*D120 -> 28.30553958 | G120: =0.0316*E120*1*SQRT(fc_design)*(bw_single*2)*dv -> 84.68240947 | H120: =$G$81*fy*dv*(_xlfn.COT(RADIANS(F120))+_xlfn.COT(RADIANS(90))*SIN(RADIANS(90)))/MAIN!$D$119 -> 242.5474026 | I120: =MIN(G120+H120,0.25*fc_design*bw_single*2*dv) -> 314.325 | J120: =VLOOKUP(A120,Shear_capacity!$A$5:$AP$23,42,FALSE) -> Sectional method governs
A121: EV3 | B121: =1.25*'Calculation Summary'!$G$15+1.5*'Calculation Summary'!$I$15+'Load Rating Interior Beam'!D100*'Calculation Summary'!D83 -> 132.234322 | C121: =1.25*'Calculation Summary'!$G$51+1.5*'Calculation Summary'!$I$51+'Load Rating Interior Beam'!D100*'Calculation Summary'!B118 -> 107.0422062 | D121: =VLOOKUP(A121,Shear_capacity!$A$5:$AP$23,40,FALSE) -> -0.000198417376 | E121: =4.8/(1+750*D121) -> 5.639184081 | F121: =29+3500*D121 -> 28.30553918 | G121: =0.0316*E121*1*SQRT(fc_design)*(bw_single*2)*dv -> 84.6824179 | H121: =$G$81*fy*dv*(_xlfn.COT(RADIANS(F121))+_xlfn.COT(RADIANS(90))*SIN(RADIANS(90)))/MAIN!$D$119 -> 242.5474066 | I121: =MIN(G121+H121,0.25*fc_design*bw_single*2*dv) -> 314.325 | J121: =VLOOKUP(A121,Shear_capacity!$A$5:$AP$23,42,FALSE) -> Sectional method governs
A122: E. AASHTO Legal Vehicles
A123: Type3 | B123: =1.25*'Calculation Summary'!$G$15+1.5*'Calculation Summary'!$I$15+'Load Rating Interior Beam'!D102*'Calculation Summary'!D85 -> 119.6110818 | C123: =1.25*'Calculation Summary'!$G$51+1.5*'Calculation Summary'!$I$51+'Load Rating Interior Beam'!D102*'Calculation Summary'!B120 -> 92.69626679 | D123: =VLOOKUP(A123,Shear_capacity!$A$5:$AP$23,40,FALSE) -> -0.0001984172408 | E123: =4.8/(1+750*D123) -> 5.639183409 | F123: =29+3500*D123 -> 28.30553966 | G123: =0.0316*E123*1*SQRT(fc_design)*(bw_single*2)*dv -> 84.68240781 | H123: =$G$81*fy*dv*(_xlfn.COT(RADIANS(F123))+_xlfn.COT(RADIANS(90))*SIN(RADIANS(90)))/MAIN!$D$119 -> 242.5474018 | I123: =MIN(G123+H123,0.25*fc_design*bw_single*2*dv) -> 314.325 | J123: =VLOOKUP(A123,Shear_capacity!$A$5:$AP$23,42,FALSE) -> Sectional method governs
A124: Type3S2 | B124: =1.25*'Calculation Summary'!$G$15+1.5*'Calculation Summary'!$I$15+'Load Rating Interior Beam'!D103*'Calculation Summary'!D86 -> 125.7092469 | C124: =1.25*'Calculation Summary'!$G$51+1.5*'Calculation Summary'!$I$51+'Load Rating Interior Beam'!D103*'Calculation Summary'!B121 -> 99.62665112 | D124: =VLOOKUP(A124,Shear_capacity!$A$5:$AP$23,40,FALSE) -> -0.0001984173062 | E124: =4.8/(1+750*D124) -> 5.639183734 | F124: =29+3500*D124 -> 28.30553943 | G124: =0.0316*E124*1*SQRT(fc_design)*(bw_single*2)*dv -> 84.68241269 | H124: =$G$81*fy*dv*(_xlfn.COT(RADIANS(F124))+_xlfn.COT(RADIANS(90))*SIN(RADIANS(90)))/MAIN!$D$119 -> 242.5474041 | I124: =MIN(G124+H124,0.25*fc_design*bw_single*2*dv) -> 314.325 | J124: =VLOOKUP(A124,Shear_capacity!$A$5:$AP$23,42,FALSE) -> Sectional method governs
A125: Type3_3 | B125: =1.25*'Calculation Summary'!$G$15+1.5*'Calculation Summary'!$I$15+'Load Rating Interior Beam'!D104*'Calculation Summary'!D87 -> 124.8607061 | C125: =1.25*'Calculation Summary'!$G$51+1.5*'Calculation Summary'!$I$51+'Load Rating Interior Beam'!D104*'Calculation Summary'!B122 -> 98.66230962 | D125: =VLOOKUP(A125,Shear_capacity!$A$5:$AP$23,40,FALSE) -> -0.0001984172971 | E125: =4.8/(1+750*D125) -> 5.639183689 | F125: =29+3500*D125 -> 28.30553946 | G125: =0.0316*E125*1*SQRT(fc_design)*(bw_single*2)*dv -> 84.68241202 | H125: =$G$81*fy*dv*(_xlfn.COT(RADIANS(F125))+_xlfn.COT(RADIANS(90))*SIN(RADIANS(90)))/MAIN!$D$119 -> 242.5474038 | I125: =MIN(G125+H125,0.25*fc_design*bw_single*2*dv) -> 314.325 | J125: =VLOOKUP(A125,Shear_capacity!$A$5:$AP$23,42,FALSE) -> Sectional method governs
A126: F. Permit Vehicles
A127: PL60T | B127: =1.25*'Calculation Summary'!$G$15+1.5*'Calculation Summary'!$I$15+'Load Rating Interior Beam'!D109*'Calculation Summary'!D89 -> 122.6746217 | C127: =1.25*'Calculation Summary'!$G$51+1.5*'Calculation Summary'!$I$51+'Load Rating Interior Beam'!D109*'Calculation Summary'!B124 -> 96.17788935 | D127: =VLOOKUP(A127,Shear_capacity!$A$5:$AP$23,40,FALSE) -> -0.0001984172737 | E127: =4.8/(1+750*D127) -> 5.639183573 | F127: =29+3500*D127 -> 28.30553954 | G127: =0.0316*E127*1*SQRT(fc_design)*(bw_single*2)*dv -> 84.68241027 | H127: =$G$81*fy*dv*(_xlfn.COT(RADIANS(F127))+_xlfn.COT(RADIANS(90))*SIN(RADIANS(90)))/MAIN!$D$119 -> 242.547403 | I127: =MIN(G127+H127,0.25*fc_design*bw_single*2*dv) -> 314.325 | J127: =VLOOKUP(A127,Shear_capacity!$A$5:$AP$23,42,FALSE) -> Sectional method governs
A128: PL65T | B128: =1.25*'Calculation Summary'!$G$15+1.5*'Calculation Summary'!$I$15+'Load Rating Interior Beam'!D110*'Calculation Summary'!D90 -> 134.3783819 | C128: =1.25*'Calculation Summary'!$G$51+1.5*'Calculation Summary'!$I$51+'Load Rating Interior Beam'!D110*'Calculation Summary'!B125 -> 109.4788668 | D128: =VLOOKUP(A128,Shear_capacity!$A$5:$AP$23,40,FALSE) -> -0.0001984173989 | E128: =4.8/(1+750*D128) -> 5.639184195 | F128: =29+3500*D128 -> 28.3055391 | G128: =0.0316*E128*1*SQRT(fc_design)*(bw_single*2)*dv -> 84.68241961 | H128: =$G$81*fy*dv*(_xlfn.COT(RADIANS(F128))+_xlfn.COT(RADIANS(90))*SIN(RADIANS(90)))/MAIN!$D$119 -> 242.5474074 | I128: =MIN(G128+H128,0.25*fc_design*bw_single*2*dv) -> 314.325 | J128: =VLOOKUP(A128,Shear_capacity!$A$5:$AP$23,42,FALSE) -> Sectional method governs
A129: G. Custom Vehicles
A130: Custom_Vehicle_1 | B130: =IF(add_custom_vehicle = "YES",1.25*'Calculation Summary'!$G$15+1.5*'Calculation Summary'!$I$15+'Load Rating Interior Beam'!D112*'Calculation Summary'!D92,"N/A") -> 110.3545287 | C130: =IF(add_custom_vehicle = "YES",1.25*'Calculation Summary'!$G$51+1.5*'Calculation Summary'!$I$51+'Load Rating Interior Beam'!D112*'Calculation Summary'!B127,"N/A") -> 98.10328597 | D130: =IF(add_custom_vehicle="YES",VLOOKUP(A130,Shear_capacity!$A$5:$AP$23,40,FALSE),"N/A") -> -0.0001984172918 | E130: =IF(add_custom_vehicle = "YES",4.8/(1+750*D130),"N/A") -> 5.639183663 | F130: =IF(add_custom_vehicle = "YES",29+3500*D130,"N/A") -> 28.30553948 | G130: =IF(add_custom_vehicle = "YES",0.0316*E130*1*SQRT(fc_design)*(bw_single*2)*dv,"N/A") -> 84.68241162 | H130: =IF(add_custom_vehicle = "YES",$G$81*fy*dv*(_xlfn.COT(RADIANS(F130))+_xlfn.COT(RADIANS(90))*SIN(RADIANS(90)))/MAIN!$D$119,"N/A") -> 242.5474036 | I130: =IF(add_custom_vehicle = "YES",MIN(G130+H130,0.25*fc_design*bw_single*2*dv),"N/A") -> 314.325 | J130: =IF(add_custom_vehicle = "YES",VLOOKUP(A130,Shear_capacity!$A$5:$AP$23,42,FALSE),"N/A") -> Sectional method governs
A132: Nominal Shear Resistance at Shear Critical Location for Exterior Beam due to
A133: Vehicle type | B133: Mu | C133: Vu | D133: εs | E133: β | F133: θ | G133: Vc | H133: Vs | I133: Vn | J133: Remarks
B134: (kips-ft) | C134: (kips) | F134: (degrees) | G134: (kips) | H134: (kips) | I134: (kips)
A135: A. Design Vehicles
A136: HL93
A137: Inventory | B137: =1.25*'Calculation Summary'!$G$15+1.5*'Calculation Summary'!$I$15+'Load Rating Exterior Beam'!D84*'Calculation Summary'!H67 -> 167.3615951 | C137: =1.25*'Calculation Summary'!$G$51+1.5*'Calculation Summary'!$I$51+'Load Rating Exterior Beam'!D84*'Calculation Summary'!C102 -> 163.9946729 | D137: =VLOOKUP(A137,Shear_capacity!$A$29:$AP$47,40,FALSE) -> -0.0001984170702 | E137: =4.8/(1+750*D137) -> 5.639182562 | F137: =29+3500*D137 -> 28.30554025 | G137: =0.0316*E137*1*SQRT(fc_design)*(bw_single*2)*dv -> 84.68239509 | H137: =$G$81*fy*dv*(_xlfn.COT(RADIANS(F137))+_xlfn.COT(RADIANS(90))*SIN(RADIANS(90)))/MAIN!$D$119 -> 242.5473958 | I137: =MIN(G137+H137,0.25*fc_design*bw_single*2*dv) -> 314.325 | J137: =VLOOKUP(A137,Shear_capacity!$A$29:$AP$47,42,FALSE) -> Sectional method governs
A138: Operating | B138: =1.25*'Calculation Summary'!$G$15+1.5*'Calculation Summary'!$I$15+'Load Rating Exterior Beam'!D85*'Calculation Summary'!H68 -> 147.456198 | C138: =1.25*'Calculation Summary'!$G$51+1.5*'Calculation Summary'!$I$51+'Load Rating Exterior Beam'!D85*'Calculation Summary'!C103 -> 137.4798955 | D138: =VLOOKUP(A138,Shear_capacity!$A$29:$AP$47,40,FALSE) -> -0.0001984172471 | E138: =4.8/(1+750*D138) -> 5.639183441 | F138: =29+3500*D138 -> 28.30553964 | G138: =0.0316*E138*1*SQRT(fc_design)*(bw_single*2)*dv -> 84.68240828 | H138: =$G$81*fy*dv*(_xlfn.COT(RADIANS(F138))+_xlfn.COT(RADIANS(90))*SIN(RADIANS(90)))/MAIN!$D$119 -> 242.547402 | I138: =MIN(G138+H138,0.25*fc_design*bw_single*2*dv) -> 314.325 | J138: =VLOOKUP(A138,Shear_capacity!$A$29:$AP$47,42,FALSE) -> Sectional method governs
A139: HL93_Tandem
A140: Inventory_Tandem | B140: =1.25*'Calculation Summary'!$G$15+1.5*'Calculation Summary'!$I$15+'Load Rating Exterior Beam'!D87*'Calculation Summary'!H70 -> 152.6516538 | C140: =1.25*'Calculation Summary'!$G$51+1.5*'Calculation Summary'!$I$51+'Load Rating Exterior Beam'!D87*'Calculation Summary'!C105 -> 144.2991392 | D140: =VLOOKUP(A140,Shear_capacity!$A$29:$AP$47,40,FALSE) -> -0.0001984171999 | E140: =4.8/(1+750*D140) -> 5.639183206 | F140: =29+3500*D140 -> 28.3055398 | G140: =0.0316*E140*1*SQRT(fc_design)*(bw_single*2)*dv -> 84.68240476 | H140: =$G$81*fy*dv*(_xlfn.COT(RADIANS(F140))+_xlfn.COT(RADIANS(90))*SIN(RADIANS(90)))/MAIN!$D$119 -> 242.5474004 | I140: =MIN(G140+H140,0.25*fc_design*bw_single*2*dv) -> 314.325 | J140: =VLOOKUP(A140,Shear_capacity!$A$29:$AP$47,42,FALSE) -> Sectional method governs
A141: Operating_Tandem | B141: =1.25*'Calculation Summary'!$G$15+1.5*'Calculation Summary'!$I$15+'Load Rating Exterior Beam'!D88*'Calculation Summary'!H71 -> 136.1085291 | C141: =1.25*'Calculation Summary'!$G$51+1.5*'Calculation Summary'!$I$51+'Load Rating Exterior Beam'!D88*'Calculation Summary'!C106 -> 122.2861981 | D141: =VLOOKUP(A141,Shear_capacity!$A$29:$AP$47,40,FALSE) -> -0.0001984173568 | E141: =4.8/(1+750*D141) -> 5.639183986 | F141: =29+3500*D141 -> 28.30553925 | G141: =0.0316*E141*1*SQRT(fc_design)*(bw_single*2)*dv -> 84.68241647 | H141: =$G$81*fy*dv*(_xlfn.COT(RADIANS(F141))+_xlfn.COT(RADIANS(90))*SIN(RADIANS(90)))/MAIN!$D$119 -> 242.5474059 | I141: =MIN(G141+H141,0.25*fc_design*bw_single*2*dv) -> 314.325 | J141: =VLOOKUP(A141,Shear_capacity!$A$29:$AP$47,42,FALSE) -> Sectional method governs
A142: B. Ohio Legal Vehicles
A143: 2F1 | B143: =1.25*'Calculation Summary'!$G$15+1.5*'Calculation Summary'!$I$15+'Load Rating Exterior Beam'!D90*'Calculation Summary'!H73 -> 106.8386522 | C143: =1.25*'Calculation Summary'!$G$51+1.5*'Calculation Summary'!$I$51+'Load Rating Exterior Beam'!D90*'Calculation Summary'!C108 -> 83.5586592 | D143: =VLOOKUP(A143,Shear_capacity!$A$29:$AP$47,40,FALSE) -> -0.0001984171543 | E143: =4.8/(1+750*D143) -> 5.639182979 | F143: =29+3500*D143 -> 28.30553996 | G143: =0.0316*E143*1*SQRT(fc_design)*(bw_single*2)*dv -> 84.68240136 | H143: =$G$81*fy*dv*(_xlfn.COT(RADIANS(F143))+_xlfn.COT(RADIANS(90))*SIN(RADIANS(90)))/MAIN!$D$119 -> 242.5473987 | I143: =MIN(G143+H143,0.25*fc_design*bw_single*2*dv) -> 314.325 | J143: =VLOOKUP(A143,Shear_capacity!$A$29:$AP$47,42,FALSE) -> Sectional method governs
A144: 3F1 | B144: =1.25*'Calculation Summary'!$G$15+1.5*'Calculation Summary'!$I$15+'Load Rating Exterior Beam'!D91*'Calculation Summary'!H74 -> 119.7969376 | C144: =1.25*'Calculation Summary'!$G$51+1.5*'Calculation Summary'!$I$51+'Load Rating Exterior Beam'!D91*'Calculation Summary'!C109 -> 100.908854 | D144: =VLOOKUP(A144,Shear_capacity!$A$29:$AP$47,40,FALSE) -> -0.0001984173183 | E144: =4.8/(1+750*D144) -> 5.639183794 | F144: =29+3500*D144 -> 28.30553939 | G144: =0.0316*E144*1*SQRT(fc_design)*(bw_single*2)*dv -> 84.6824136 | H144: =$G$81*fy*dv*(_xlfn.COT(RADIANS(F144))+_xlfn.COT(RADIANS(90))*SIN(RADIANS(90)))/MAIN!$D$119 -> 242.5474046 | I144: =MIN(G144+H144,0.25*fc_design*bw_single*2*dv) -> 314.325 | J144: =VLOOKUP(A144,Shear_capacity!$A$29:$AP$47,42,FALSE) -> Sectional method governs
A145: 5C1 | B145: =1.25*'Calculation Summary'!$G$15+1.5*'Calculation Summary'!$I$15+'Load Rating Exterior Beam'!D92*'Calculation Summary'!H75 -> 126.6726452 | C145: =1.25*'Calculation Summary'!$G$51+1.5*'Calculation Summary'!$I$51+'Load Rating Exterior Beam'!D92*'Calculation Summary'!C110 -> 110.1149229 | D145: =VLOOKUP(A145,Shear_capacity!$A$29:$AP$47,40,FALSE) -> -0.0001984174049 | E145: =4.8/(1+750*D145) -> 5.639184224 | F145: =29+3500*D145 -> 28.30553908 | G145: =0.0316*E145*1*SQRT(fc_design)*(bw_single*2)*dv -> 84.68242005 | H145: =$G$81*fy*dv*(_xlfn.COT(RADIANS(F145))+_xlfn.COT(RADIANS(90))*SIN(RADIANS(90)))/MAIN!$D$119 -> 242.5474076 | I145: =MIN(G145+H145,0.25*fc_design*bw_single*2*dv) -> 314.325 | J145: =VLOOKUP(A145,Shear_capacity!$A$29:$AP$47,42,FALSE) -> Sectional method governs
A146: C. Specialized Hauling Vehicles
A147: SU4 | B147: =1.25*'Calculation Summary'!$G$15+1.5*'Calculation Summary'!$I$15+'Load Rating Exterior Beam'!D94*'Calculation Summary'!H77 -> 125.6327197 | C147: =1.25*'Calculation Summary'!$G$51+1.5*'Calculation Summary'!$I$51+'Load Rating Exterior Beam'!D94*'Calculation Summary'!C112 -> 108.7225387 | D147: =VLOOKUP(A147,Shear_capacity!$A$29:$AP$47,40,FALSE) -> -0.0001984173918 | E147: =4.8/(1+750*D147) -> 5.63918416 | F147: =29+3500*D147 -> 28.30553913 | G147: =0.0316*E147*1*SQRT(fc_design)*(bw_single*2)*dv -> 84.68241908 | H147: =$G$81*fy*dv*(_xlfn.COT(RADIANS(F147))+_xlfn.COT(RADIANS(90))*SIN(RADIANS(90)))/MAIN!$D$119 -> 242.5474072 | I147: =MIN(G147+H147,0.25*fc_design*bw_single*2*dv) -> 314.325 | J147: =VLOOKUP(A147,Shear_capacity!$A$29:$AP$47,42,FALSE) -> Sectional method governs
A148: SU5 | B148: =1.25*'Calculation Summary'!$G$15+1.5*'Calculation Summary'!$I$15+'Load Rating Exterior Beam'!D95*'Calculation Summary'!H78 -> 131.0006031 | C148: =1.25*'Calculation Summary'!$G$51+1.5*'Calculation Summary'!$I$51+'Load Rating Exterior Beam'!D95*'Calculation Summary'!C113 -> 115.9097414 | D148: =VLOOKUP(A148,Shear_capacity!$A$29:$AP$47,40,FALSE) -> -0.0001984174047 | E148: =4.8/(1+750*D148) -> 5.639184224 | F148: =29+3500*D148 -> 28.30553908 | G148: =0.0316*E148*1*SQRT(fc_design)*(bw_single*2)*dv -> 84.68242005 | H148: =$G$81*fy*dv*(_xlfn.COT(RADIANS(F148))+_xlfn.COT(RADIANS(90))*SIN(RADIANS(90)))/MAIN!$D$119 -> 242.5474076 | I148: =MIN(G148+H148,0.25*fc_design*bw_single*2*dv) -> 314.325 | J148: =VLOOKUP(A148,Shear_capacity!$A$29:$AP$47,42,FALSE) -> Sectional method governs
A149: SU6 | B149: =1.25*'Calculation Summary'!$G$15+1.5*'Calculation Summary'!$I$15+'Load Rating Exterior Beam'!D96*'Calculation Summary'!H79 -> 134.5708107 | C149: =1.25*'Calculation Summary'!$G$51+1.5*'Calculation Summary'!$I$51+'Load Rating Exterior Beam'!D96*'Calculation Summary'!C114 -> 120.6899877 | D149: =VLOOKUP(A149,Shear_capacity!$A$29:$AP$47,40,FALSE) -> -0.0001984173687 | E149: =4.8/(1+750*D149) -> 5.639184045 | F149: =29+3500*D149 -> 28.30553921 | G149: =0.0316*E149*1*SQRT(fc_design)*(bw_single*2)*dv -> 84.68241736 | H149: =$G$81*fy*dv*(_xlfn.COT(RADIANS(F149))+_xlfn.COT(RADIANS(90))*SIN(RADIANS(90)))/MAIN!$D$119 -> 242.5474064 | I149: =MIN(G149+H149,0.25*fc_design*bw_single*2*dv) -> 314.325 | J149: =VLOOKUP(A149,Shear_capacity!$A$29:$AP$47,42,FALSE) -> Sectional method governs
A150: SU7 | B150: =1.25*'Calculation Summary'!$G$15+1.5*'Calculation Summary'!$I$15+'Load Rating Exterior Beam'!D97*'Calculation Summary'!H80 -> 137.9793686 | C150: =1.25*'Calculation Summary'!$G$51+1.5*'Calculation Summary'!$I$51+'Load Rating Exterior Beam'!D97*'Calculation Summary'!C115 -> 125.2537971 | D150: =VLOOKUP(A150,Shear_capacity!$A$29:$AP$47,40,FALSE) -> -0.0001984173349 | E150: =4.8/(1+750*D150) -> 5.639183877 | F150: =29+3500*D150 -> 28.30553933 | G150: =0.0316*E150*1*SQRT(fc_design)*(bw_single*2)*dv -> 84.68241483 | H150: =$G$81*fy*dv*(_xlfn.COT(RADIANS(F150))+_xlfn.COT(RADIANS(90))*SIN(RADIANS(90)))/MAIN!$D$119 -> 242.5474052 | I150: =MIN(G150+H150,0.25*fc_design*bw_single*2*dv) -> 314.325 | J150: =VLOOKUP(A150,Shear_capacity!$A$29:$AP$47,42,FALSE) -> Sectional method governs
A151: D. Emergency Vehicles
A152: EV2 | B152: =1.25*'Calculation Summary'!$G$15+1.5*'Calculation Summary'!$I$15+'Load Rating Exterior Beam'!D99*'Calculation Summary'!H82 -> 123.7146684 | C152: =1.25*'Calculation Summary'!$G$51+1.5*'Calculation Summary'!$I$51+'Load Rating Exterior Beam'!D99*'Calculation Summary'!C117 -> 106.1544086 | D152: =VLOOKUP(A152,Shear_capacity!$A$29:$AP$47,40,FALSE) -> -0.0001984173676 | E152: =4.8/(1+750*D152) -> 5.63918404 | F152: =29+3500*D152 -> 28.30553921 | G152: =0.0316*E152*1*SQRT(fc_design)*(bw_single*2)*dv -> 84.68241728 | H152: =$G$81*fy*dv*(_xlfn.COT(RADIANS(F152))+_xlfn.COT(RADIANS(90))*SIN(RADIANS(90)))/MAIN!$D$119 -> 242.5474063 | I152: =MIN(G152+H152,0.25*fc_design*bw_single*2*dv) -> 314.325 | J152: =VLOOKUP(A152,Shear_capacity!$A$29:$AP$47,42,FALSE) -> Sectional method governs
A153: EV3 | B153: =1.25*'Calculation Summary'!$G$15+1.5*'Calculation Summary'!$I$15+'Load Rating Exterior Beam'!D100*'Calculation Summary'!H83 -> 134.788965 | C153: =1.25*'Calculation Summary'!$G$51+1.5*'Calculation Summary'!$I$51+'Load Rating Exterior Beam'!D100*'Calculation Summary'!C118 -> 120.9820804 | D153: =VLOOKUP(A153,Shear_capacity!$A$29:$AP$47,40,FALSE) -> -0.0001984173665 | E153: =4.8/(1+750*D153) -> 5.639184034 | F153: =29+3500*D153 -> 28.30553922 | G153: =0.0316*E153*1*SQRT(fc_design)*(bw_single*2)*dv -> 84.68241719 | H153: =$G$81*fy*dv*(_xlfn.COT(RADIANS(F153))+_xlfn.COT(RADIANS(90))*SIN(RADIANS(90)))/MAIN!$D$119 -> 242.5474063 | I153: =MIN(G153+H153,0.25*fc_design*bw_single*2*dv) -> 314.325 | J153: =VLOOKUP(A153,Shear_capacity!$A$29:$AP$47,42,FALSE) -> Sectional method governs
A154: E. AASHTO Legal Vehicles
A155: Type3 | B155: =1.25*'Calculation Summary'!$G$15+1.5*'Calculation Summary'!$I$15+'Load Rating Exterior Beam'!D102*'Calculation Summary'!H85 -> 121.545082 | C155: =1.25*'Calculation Summary'!$G$51+1.5*'Calculation Summary'!$I$51+'Load Rating Exterior Beam'!D102*'Calculation Summary'!C120 -> 103.2494914 | D155: =VLOOKUP(A155,Shear_capacity!$A$29:$AP$47,40,FALSE) -> -0.0001984173403 | E155: =4.8/(1+750*D155) -> 5.639183904 | F155: =29+3500*D155 -> 28.30553931 | G155: =0.0316*E155*1*SQRT(fc_design)*(bw_single*2)*dv -> 84.68241524 | H155: =$G$81*fy*dv*(_xlfn.COT(RADIANS(F155))+_xlfn.COT(RADIANS(90))*SIN(RADIANS(90)))/MAIN!$D$119 -> 242.5474053 | I155: =MIN(G155+H155,0.25*fc_design*bw_single*2*dv) -> 314.325 | J155: =VLOOKUP(A155,Shear_capacity!$A$29:$AP$47,42,FALSE) -> Sectional method governs
A156: Type3S2 | B156: =1.25*'Calculation Summary'!$G$15+1.5*'Calculation Summary'!$I$15+'Load Rating Exterior Beam'!D103*'Calculation Summary'!H86 -> 127.9430736 | C156: =1.25*'Calculation Summary'!$G$51+1.5*'Calculation Summary'!$I$51+'Load Rating Exterior Beam'!D103*'Calculation Summary'!C121 -> 111.8159333 | D156: =VLOOKUP(A156,Shear_capacity!$A$29:$AP$47,40,FALSE) -> -0.0001984168259 | E156: =4.8/(1+750*D156) -> 5.639181348 | F156: =29+3500*D156 -> 28.30554111 | G156: =0.0316*E156*1*SQRT(fc_design)*(bw_single*2)*dv -> 84.68237686 | H156: =$G$81*fy*dv*(_xlfn.COT(RADIANS(F156))+_xlfn.COT(RADIANS(90))*SIN(RADIANS(90)))/MAIN!$D$119 -> 242.5473871 | I156: =MIN(G156+H156,0.25*fc_design*bw_single*2*dv) -> 314.325 | J156: =VLOOKUP(A156,Shear_capacity!$A$29:$AP$47,42,FALSE) -> Sectional method governs
A157: Type3_3 | B157: =1.25*'Calculation Summary'!$G$15+1.5*'Calculation Summary'!$I$15+'Load Rating Exterior Beam'!D104*'Calculation Summary'!H87 -> 127.0528129 | C157: =1.25*'Calculation Summary'!$G$51+1.5*'Calculation Summary'!$I$51+'Load Rating Exterior Beam'!D104*'Calculation Summary'!C122 -> 110.6239395 | D157: =VLOOKUP(A157,Shear_capacity!$A$29:$AP$47,40,FALSE) -> -0.0001984174096 | E157: =4.8/(1+750*D157) -> 5.639184248 | F157: =29+3500*D157 -> 28.30553907 | G157: =0.0316*E157*1*SQRT(fc_design)*(bw_single*2)*dv -> 84.68242041 | H157: =$G$81*fy*dv*(_xlfn.COT(RADIANS(F157))+_xlfn.COT(RADIANS(90))*SIN(RADIANS(90)))/MAIN!$D$119 -> 242.5474078 | I157: =MIN(G157+H157,0.25*fc_design*bw_single*2*dv) -> 314.325 | J157: =VLOOKUP(A157,Shear_capacity!$A$29:$AP$47,42,FALSE) -> Sectional method governs
A158: F. Permit Vehicles
A159: PL60T | B159: =1.25*'Calculation Summary'!$G$15+1.5*'Calculation Summary'!$I$15+'Load Rating Exterior Beam'!D109*'Calculation Summary'!H89 -> 124.759246 | C159: =1.25*'Calculation Summary'!$G$51+1.5*'Calculation Summary'!$I$51+'Load Rating Exterior Beam'!D109*'Calculation Summary'!C124 -> 107.5530215 | D159: =VLOOKUP(A159,Shear_capacity!$A$29:$AP$47,40,FALSE) -> -0.0001984173808 | E159: =4.8/(1+750*D159) -> 5.639184105 | F159: =29+3500*D159 -> 28.30553917 | G159: =0.0316*E159*1*SQRT(fc_design)*(bw_single*2)*dv -> 84.68241826 | H159: =$G$81*fy*dv*(_xlfn.COT(RADIANS(F159))+_xlfn.COT(RADIANS(90))*SIN(RADIANS(90)))/MAIN!$D$119 -> 242.5474068 | I159: =MIN(G159+H159,0.25*fc_design*bw_single*2*dv) -> 314.325 | J159: =VLOOKUP(A159,Shear_capacity!$A$29:$AP$47,42,FALSE) -> Sectional method governs
A160: PL65T | B160: =1.25*'Calculation Summary'!$G$15+1.5*'Calculation Summary'!$I$15+'Load Rating Exterior Beam'!D110*'Calculation Summary'!H90 -> 137.0384411 | C160: =1.25*'Calculation Summary'!$G$51+1.5*'Calculation Summary'!$I$51+'Load Rating Exterior Beam'!D110*'Calculation Summary'!C125 -> 123.9939641 | D160: =VLOOKUP(A160,Shear_capacity!$A$29:$AP$47,40,FALSE) -> -0.0001984173441 | E160: =4.8/(1+750*D160) -> 5.639183923 | F160: =29+3500*D160 -> 28.3055393 | G160: =0.0316*E160*1*SQRT(fc_design)*(bw_single*2)*dv -> 84.68241552 | H160: =$G$81*fy*dv*(_xlfn.COT(RADIANS(F160))+_xlfn.COT(RADIANS(90))*SIN(RADIANS(90)))/MAIN!$D$119 -> 242.5474055 | I160: =MIN(G160+H160,0.25*fc_design*bw_single*2*dv) -> 314.325 | J160: =VLOOKUP(A160,Shear_capacity!$A$29:$AP$47,42,FALSE) -> Sectional method governs
A161: G. Custom Vehicles
A162: Custom_Vehicle_1 | B162: =IF(add_custom_vehicle = "YES",1.25*'Calculation Summary'!$G$15+1.5*'Calculation Summary'!$I$15+'Load Rating Exterior Beam'!D112*'Calculation Summary'!H92,"N/A") -> 114.3441799 | C162: =IF(add_custom_vehicle = "YES",1.25*'Calculation Summary'!$G$51+1.5*'Calculation Summary'!$I$51+'Load Rating Exterior Beam'!D112*'Calculation Summary'!C127,"N/A") -> 111.2051629 | D162: =IF(add_custom_vehicle = "YES",VLOOKUP(A162,Shear_capacity!$A$29:$AP$47,40,FALSE),"N/A") -> -0.0001984174151 | E162: =IF(add_custom_vehicle = "YES",4.8/(1+750*D162),"N/A") -> 5.639184275 | F162: =IF(add_custom_vehicle = "YES",29+3500*D162,"N/A") -> 28.30553905 | G162: =IF(add_custom_vehicle = "YES",0.0316*E162*1*SQRT(fc_design)*(bw_single*2)*dv,"N/A") -> 84.68242082 | H162: =IF(add_custom_vehicle = "YES",$G$81*fy*dv*(_xlfn.COT(RADIANS(F162))+_xlfn.COT(RADIANS(90))*SIN(RADIANS(90)))/MAIN!$D$119,"N/A") -> 242.547408 | I162: =IF(add_custom_vehicle = "YES",MIN(G162+H162,0.25*fc_design*bw_single*2*dv),"N/A") -> 314.325 | J162: =IF(add_custom_vehicle = "YES",VLOOKUP(A162,Shear_capacity!$A$29:$AP$47,42,FALSE),"N/A") -> Sectional method governs
A164: Nominal Shear Resistance at Region 2 for Interior Beam due to
A165: Vehicle type | B165: Mu | C165: Vu | D165: εs | E165: β | F165: θ | G165: Vc | H165: Vs | I165: Vn | J165: Remarks
B166: (kips-ft) | C166: (kips) | F166: (degrees) | G166: (kips) | H166: (kips) | I166: (kips)
A167: A. Design Vehicles
A168: HL93
A169: Inventory | B169: =1.25*'Calculation Summary'!$G$16+1.5*'Calculation Summary'!$I$16+'Load Rating Interior Beam'!D84*'Calculation Summary'!E67 -> 136.6059892 | C169: =1.25*'Calculation Summary'!$G$52+1.5*'Calculation Summary'!$I$52+'Load Rating Interior Beam'!D84*'Calculation Summary'!D102 -> 124.0843478 | D169: =VLOOKUP(A169,Shear_capacity!$A$53:$AP$71,40,FALSE) -> -0.0003084019043 | E169: =4.8/(1+750*D169) -> 6.244320175 | F169: =29+3500*D169 -> 27.92059333 | G169: =0.0316*E169*1*SQRT(fc_design)*(bw_single*2)*dv -> 93.76961684 | H169: =$G$83*fy*dv*(_xlfn.COT(RADIANS(F169))+_xlfn.COT(RADIANS(90))*SIN(RADIANS(90)))/MAIN!$D$120 -> 123.2500785 | I169: =MIN(G169+H169,0.25*fc_design*bw_single*2*dv) -> 217.0196954 | J169: =VLOOKUP(A169,Shear_capacity!$A$53:$AP$71,42,FALSE) -> Sectional method governs
A170: Operating | B170: =1.25*'Calculation Summary'!$G$16+1.5*'Calculation Summary'!$I$16+'Load Rating Interior Beam'!D85*'Calculation Summary'!E68 -> 122.5138431 | C170: =1.25*'Calculation Summary'!$G$52+1.5*'Calculation Summary'!$I$52+'Load Rating Interior Beam'!D85*'Calculation Summary'!D103 -> 106.8869582 | D170: =VLOOKUP(A170,Shear_capacity!$A$53:$AP$71,40,FALSE) -> -0.0003084017687 | E170: =4.8/(1+750*D170) -> 6.244319348 | F170: =29+3500*D170 -> 27.92059381 | G170: =0.0316*E170*1*SQRT(fc_design)*(bw_single*2)*dv -> 93.76960443 | H170: =$G$83*fy*dv*(_xlfn.COT(RADIANS(F170))+_xlfn.COT(RADIANS(90))*SIN(RADIANS(90)))/MAIN!$D$120 -> 123.2500761 | I170: =MIN(G170+H170,0.25*fc_design*bw_single*2*dv) -> 217.0196805 | J170: =VLOOKUP(A170,Shear_capacity!$A$53:$AP$71,42,FALSE) -> Sectional method governs
A171: HL93_Tandem
A172: Inventory_Tandem | B172: =1.25*'Calculation Summary'!$G$16+1.5*'Calculation Summary'!$I$16+'Load Rating Interior Beam'!D87*'Calculation Summary'!E70 -> 123.5109627 | C172: =1.25*'Calculation Summary'!$G$52+1.5*'Calculation Summary'!$I$52+'Load Rating Interior Beam'!D87*'Calculation Summary'!D105 -> 108.1037959 | D172: =VLOOKUP(A172,Shear_capacity!$A$53:$AP$71,40,FALSE) -> -0.0003084017761 | E172: =4.8/(1+750*D172) -> 6.244319394 | F172: =29+3500*D172 -> 27.92059378 | G172: =0.0316*E172*1*SQRT(fc_design)*(bw_single*2)*dv -> 93.76960511 | H172: =$G$83*fy*dv*(_xlfn.COT(RADIANS(F172))+_xlfn.COT(RADIANS(90))*SIN(RADIANS(90)))/MAIN!$D$120 -> 123.2500762 | I172: =MIN(G172+H172,0.25*fc_design*bw_single*2*dv) -> 217.0196813 | J172: =VLOOKUP(A172,Shear_capacity!$A$53:$AP$71,42,FALSE) -> Sectional method governs
A173: Operating_Tandem | B173: =1.25*'Calculation Summary'!$G$16+1.5*'Calculation Summary'!$I$16+'Load Rating Interior Beam'!D88*'Calculation Summary'!E71 -> 112.4119655 | C173: =1.25*'Calculation Summary'!$G$52+1.5*'Calculation Summary'!$I$52+'Load Rating Interior Beam'!D88*'Calculation Summary'!D106 -> 94.55910383 | D173: =VLOOKUP(A173,Shear_capacity!$A$53:$AP$71,40,FALSE) -> -0.0003084016932 | E173: =4.8/(1+750*D173) -> 6.244318889 | F173: =29+3500*D173 -> 27.92059407 | G173: =0.0316*E173*1*SQRT(fc_design)*(bw_single*2)*dv -> 93.76959752 | H173: =$G$83*fy*dv*(_xlfn.COT(RADIANS(F173))+_xlfn.COT(RADIANS(90))*SIN(RADIANS(90)))/MAIN!$D$120 -> 123.2500747 | I173: =MIN(G173+H173,0.25*fc_design*bw_single*2*dv) -> 217.0196722 | J173: =VLOOKUP(A173,Shear_capacity!$A$53:$AP$71,42,FALSE) -> Sectional method governs
A174: B. Ohio Legal Vehicles
A175: 2F1 | B175: =1.25*'Calculation Summary'!$G$16+1.5*'Calculation Summary'!$I$16+'Load Rating Interior Beam'!D90*'Calculation Summary'!E73 -> 98.57402224 | C175: =1.25*'Calculation Summary'!$G$52+1.5*'Calculation Summary'!$I$52+'Load Rating Interior Beam'!D90*'Calculation Summary'!D108 -> 77.67193135 | D175: =VLOOKUP(A175,Shear_capacity!$A$53:$AP$71,40,FALSE) -> -0.0003084015891 | E175: =4.8/(1+750*D175) -> 6.244318254 | F175: =29+3500*D175 -> 27.92059444 | G175: =0.0316*E175*1*SQRT(fc_design)*(bw_single*2)*dv -> 93.76958799 | H175: =$G$83*fy*dv*(_xlfn.COT(RADIANS(F175))+_xlfn.COT(RADIANS(90))*SIN(RADIANS(90)))/MAIN!$D$120 -> 123.2500728 | I175: =MIN(G175+H175,0.25*fc_design*bw_single*2*dv) -> 217.0196608 | J175: =VLOOKUP(A175,Shear_capacity!$A$53:$AP$71,42,FALSE) -> Sectional method governs
A176: 3F1 | B176: =1.25*'Calculation Summary'!$G$16+1.5*'Calculation Summary'!$I$16+'Load Rating Interior Beam'!D91*'Calculation Summary'!E74 -> 110.0990777 | C176: =1.25*'Calculation Summary'!$G$52+1.5*'Calculation Summary'!$I$52+'Load Rating Interior Beam'!D91*'Calculation Summary'!D109 -> 91.73656478 | D176: =VLOOKUP(A176,Shear_capacity!$A$53:$AP$71,40,FALSE) -> -0.0003084016759 | E176: =4.8/(1+750*D176) -> 6.244318783 | F176: =29+3500*D176 -> 27.92059413 | G176: =0.0316*E176*1*SQRT(fc_design)*(bw_single*2)*dv -> 93.76959593 | H176: =$G$83*fy*dv*(_xlfn.COT(RADIANS(F176))+_xlfn.COT(RADIANS(90))*SIN(RADIANS(90)))/MAIN!$D$120 -> 123.2500744 | I176: =MIN(G176+H176,0.25*fc_design*bw_single*2*dv) -> 217.0196703 | J176: =VLOOKUP(A176,Shear_capacity!$A$53:$AP$71,42,FALSE) -> Sectional method governs
A177: 5C1 | B177: =1.25*'Calculation Summary'!$G$16+1.5*'Calculation Summary'!$I$16+'Load Rating Interior Beam'!D92*'Calculation Summary'!E75 -> 116.2509654 | C177: =1.25*'Calculation Summary'!$G$52+1.5*'Calculation Summary'!$I$52+'Load Rating Interior Beam'!D92*'Calculation Summary'!D110 -> 99.24403803 | D177: =VLOOKUP(A177,Shear_capacity!$A$53:$AP$71,40,FALSE) -> -0.0003084017219 | E177: =4.8/(1+750*D177) -> 6.244319064 | F177: =29+3500*D177 -> 27.92059397 | G177: =0.0316*E177*1*SQRT(fc_design)*(bw_single*2)*dv -> 93.76960015 | H177: =$G$83*fy*dv*(_xlfn.COT(RADIANS(F177))+_xlfn.COT(RADIANS(90))*SIN(RADIANS(90)))/MAIN!$D$120 -> 123.2500752 | I177: =MIN(G177+H177,0.25*fc_design*bw_single*2*dv) -> 217.0196754 | J177: =VLOOKUP(A177,Shear_capacity!$A$53:$AP$71,42,FALSE) -> Sectional method governs
A178: C. Specialized Hauling Vehicles
A179: SU4 | B179: =1.25*'Calculation Summary'!$G$16+1.5*'Calculation Summary'!$I$16+'Load Rating Interior Beam'!D94*'Calculation Summary'!E77 -> 115.2905441 | C179: =1.25*'Calculation Summary'!$G$52+1.5*'Calculation Summary'!$I$52+'Load Rating Interior Beam'!D94*'Calculation Summary'!D112 -> 98.07198525 | D179: =VLOOKUP(A179,Shear_capacity!$A$53:$AP$71,40,FALSE) -> -0.0003084017148 | E179: =4.8/(1+750*D179) -> 6.24431902 | F179: =29+3500*D179 -> 27.920594 | G179: =0.0316*E179*1*SQRT(fc_design)*(bw_single*2)*dv -> 93.76959949 | H179: =$G$83*fy*dv*(_xlfn.COT(RADIANS(F179))+_xlfn.COT(RADIANS(90))*SIN(RADIANS(90)))/MAIN!$D$120 -> 123.2500751 | I179: =MIN(G179+H179,0.25*fc_design*bw_single*2*dv) -> 217.0196746 | J179: =VLOOKUP(A179,Shear_capacity!$A$53:$AP$71,42,FALSE) -> Sectional method governs
A180: SU5 | B180: =1.25*'Calculation Summary'!$G$16+1.5*'Calculation Summary'!$I$16+'Load Rating Interior Beam'!D95*'Calculation Summary'!E78 -> 120.0666933 | C180: =1.25*'Calculation Summary'!$G$52+1.5*'Calculation Summary'!$I$52+'Load Rating Interior Beam'!D95*'Calculation Summary'!D113 -> 103.9005721 | D180: =VLOOKUP(A180,Shear_capacity!$A$53:$AP$71,40,FALSE) -> -0.0003084017504 | E180: =4.8/(1+750*D180) -> 6.244319237 | F180: =29+3500*D180 -> 27.92059387 | G180: =0.0316*E180*1*SQRT(fc_design)*(bw_single*2)*dv -> 93.76960276 | H180: =$G$83*fy*dv*(_xlfn.COT(RADIANS(F180))+_xlfn.COT(RADIANS(90))*SIN(RADIANS(90)))/MAIN!$D$120 -> 123.2500757 | I180: =MIN(G180+H180,0.25*fc_design*bw_single*2*dv) -> 217.0196785 | J180: =VLOOKUP(A180,Shear_capacity!$A$53:$AP$71,42,FALSE) -> Sectional method governs
A181: SU6 | B181: =1.25*'Calculation Summary'!$G$16+1.5*'Calculation Summary'!$I$16+'Load Rating Interior Beam'!D96*'Calculation Summary'!E79 -> 123.2464664 | C181: =1.25*'Calculation Summary'!$G$52+1.5*'Calculation Summary'!$I$52+'Load Rating Interior Beam'!D96*'Calculation Summary'!D114 -> 107.7810171 | D181: =VLOOKUP(A181,Shear_capacity!$A$53:$AP$71,40,FALSE) -> -0.0003084017741 | E181: =4.8/(1+750*D181) -> 6.244319382 | F181: =29+3500*D181 -> 27.92059379 | G181: =0.0316*E181*1*SQRT(fc_design)*(bw_single*2)*dv -> 93.76960493 | H181: =$G$83*fy*dv*(_xlfn.COT(RADIANS(F181))+_xlfn.COT(RADIANS(90))*SIN(RADIANS(90)))/MAIN!$D$120 -> 123.2500762 | I181: =MIN(G181+H181,0.25*fc_design*bw_single*2*dv) -> 217.0196811 | J181: =VLOOKUP(A181,Shear_capacity!$A$53:$AP$71,42,FALSE) -> Sectional method governs
A182: SU7 | B182: =1.25*'Calculation Summary'!$G$16+1.5*'Calculation Summary'!$I$16+'Load Rating Interior Beam'!D97*'Calculation Summary'!E80 -> 126.2834743 | C182: =1.25*'Calculation Summary'!$G$52+1.5*'Calculation Summary'!$I$52+'Load Rating Interior Beam'!D97*'Calculation Summary'!D115 -> 111.4872381 | D182: =VLOOKUP(A182,Shear_capacity!$A$53:$AP$71,40,FALSE) -> -0.0003084017967 | E182: =4.8/(1+750*D182) -> 6.244319519 | F182: =29+3500*D182 -> 27.92059371 | G182: =0.0316*E182*1*SQRT(fc_design)*(bw_single*2)*dv -> 93.76960699 | H182: =$G$83*fy*dv*(_xlfn.COT(RADIANS(F182))+_xlfn.COT(RADIANS(90))*SIN(RADIANS(90)))/MAIN!$D$120 -> 123.2500766 | I182: =MIN(G182+H182,0.25*fc_design*bw_single*2*dv) -> 217.0196836 | J182: =VLOOKUP(A182,Shear_capacity!$A$53:$AP$71,42,FALSE) -> Sectional method governs
A183: D. Emergency Vehicles
A184: EV2 | B184: =1.25*'Calculation Summary'!$G$16+1.5*'Calculation Summary'!$I$16+'Load Rating Interior Beam'!D99*'Calculation Summary'!E82 -> 113.5845209 | C184: =1.25*'Calculation Summary'!$G$52+1.5*'Calculation Summary'!$I$52+'Load Rating Interior Beam'!D99*'Calculation Summary'!D117 -> 95.990035 | D184: =VLOOKUP(A184,Shear_capacity!$A$53:$AP$71,40,FALSE) -> -0.000308401702 | E184: =4.8/(1+750*D184) -> 6.244318942 | F184: =29+3500*D184 -> 27.92059404 | G184: =0.0316*E184*1*SQRT(fc_design)*(bw_single*2)*dv -> 93.76959833 | H184: =$G$83*fy*dv*(_xlfn.COT(RADIANS(F184))+_xlfn.COT(RADIANS(90))*SIN(RADIANS(90)))/MAIN!$D$120 -> 123.2500748 | I184: =MIN(G184+H184,0.25*fc_design*bw_single*2*dv) -> 217.0196732 | J184: =VLOOKUP(A184,Shear_capacity!$A$53:$AP$71,42,FALSE) -> Sectional method governs
A185: EV3 | B185: =1.25*'Calculation Summary'!$G$16+1.5*'Calculation Summary'!$I$16+'Load Rating Interior Beam'!D100*'Calculation Summary'!E83 -> 123.4339858 | C185: =1.25*'Calculation Summary'!$G$52+1.5*'Calculation Summary'!$I$52+'Load Rating Interior Beam'!D100*'Calculation Summary'!D118 -> 108.0098569 | D185: =VLOOKUP(A185,Shear_capacity!$A$53:$AP$71,40,FALSE) -> -0.0003084017755 | E185: =4.8/(1+750*D185) -> 6.24431939 | F185: =29+3500*D185 -> 27.92059379 | G185: =0.0316*E185*1*SQRT(fc_design)*(bw_single*2)*dv -> 93.76960505 | H185: =$G$83*fy*dv*(_xlfn.COT(RADIANS(F185))+_xlfn.COT(RADIANS(90))*SIN(RADIANS(90)))/MAIN!$D$120 -> 123.2500762 | I185: =MIN(G185+H185,0.25*fc_design*bw_single*2*dv) -> 217.0196812 | J185: =VLOOKUP(A185,Shear_capacity!$A$53:$AP$71,42,FALSE) -> Sectional method governs
A186: E. AASHTO Legal Vehicles
A187: Type3 | B187: =1.25*'Calculation Summary'!$G$16+1.5*'Calculation Summary'!$I$16+'Load Rating Interior Beam'!D102*'Calculation Summary'!E85 -> 111.6565176 | C187: =1.25*'Calculation Summary'!$G$52+1.5*'Calculation Summary'!$I$52+'Load Rating Interior Beam'!D102*'Calculation Summary'!D120 -> 93.63719092 | D187: =VLOOKUP(A187,Shear_capacity!$A$53:$AP$71,40,FALSE) -> -0.0003084016875 | E187: =4.8/(1+750*D187) -> 6.244318854 | F187: =29+3500*D187 -> 27.92059409 | G187: =0.0316*E187*1*SQRT(fc_design)*(bw_single*2)*dv -> 93.769597 | H187: =$G$83*fy*dv*(_xlfn.COT(RADIANS(F187))+_xlfn.COT(RADIANS(90))*SIN(RADIANS(90)))/MAIN!$D$120 -> 123.2500746 | I187: =MIN(G187+H187,0.25*fc_design*bw_single*2*dv) -> 217.0196716 | J187: =VLOOKUP(A187,Shear_capacity!$A$53:$AP$71,42,FALSE) -> Sectional method governs
A188: Type3S2 | B188: =1.25*'Calculation Summary'!$G$16+1.5*'Calculation Summary'!$I$16+'Load Rating Interior Beam'!D103*'Calculation Summary'!E86 -> 117.3671307 | C188: =1.25*'Calculation Summary'!$G$52+1.5*'Calculation Summary'!$I$52+'Load Rating Interior Beam'!D103*'Calculation Summary'!D121 -> 100.6061534 | D188: =VLOOKUP(A188,Shear_capacity!$A$53:$AP$71,40,FALSE) -> -0.0003084017303 | E188: =4.8/(1+750*D188) -> 6.244319115 | F188: =29+3500*D188 -> 27.92059394 | G188: =0.0316*E188*1*SQRT(fc_design)*(bw_single*2)*dv -> 93.76960091 | H188: =$G$83*fy*dv*(_xlfn.COT(RADIANS(F188))+_xlfn.COT(RADIANS(90))*SIN(RADIANS(90)))/MAIN!$D$120 -> 123.2500754 | I188: =MIN(G188+H188,0.25*fc_design*bw_single*2*dv) -> 217.0196763 | J188: =VLOOKUP(A188,Shear_capacity!$A$53:$AP$71,42,FALSE) -> Sectional method governs
A189: Type3_3 | B189: =1.25*'Calculation Summary'!$G$16+1.5*'Calculation Summary'!$I$16+'Load Rating Interior Beam'!D104*'Calculation Summary'!E87 -> 116.5884107 | C189: =1.25*'Calculation Summary'!$G$52+1.5*'Calculation Summary'!$I$52+'Load Rating Interior Beam'!D104*'Calculation Summary'!D122 -> 99.65584036 | D189: =VLOOKUP(A189,Shear_capacity!$A$53:$AP$71,40,FALSE) -> -0.0003084017245 | E189: =4.8/(1+750*D189) -> 6.244319079 | F189: =29+3500*D189 -> 27.92059396 | G189: =0.0316*E189*1*SQRT(fc_design)*(bw_single*2)*dv -> 93.76960038 | H189: =$G$83*fy*dv*(_xlfn.COT(RADIANS(F189))+_xlfn.COT(RADIANS(90))*SIN(RADIANS(90)))/MAIN!$D$120 -> 123.2500753 | I189: =MIN(G189+H189,0.25*fc_design*bw_single*2*dv) -> 217.0196756 | J189: =VLOOKUP(A189,Shear_capacity!$A$53:$AP$71,42,FALSE) -> Sectional method governs
A190: F. Permit Vehicles
A191: PL60T | B191: =1.25*'Calculation Summary'!$G$16+1.5*'Calculation Summary'!$I$16+'Load Rating Interior Beam'!D109*'Calculation Summary'!E89 -> 114.5487298 | C191: =1.25*'Calculation Summary'!$G$52+1.5*'Calculation Summary'!$I$52+'Load Rating Interior Beam'!D109*'Calculation Summary'!D124 -> 97.16671 | D191: =VLOOKUP(A191,Shear_capacity!$A$53:$AP$71,40,FALSE) -> -0.0003084017092 | E191: =4.8/(1+750*D191) -> 6.244318986 | F191: =29+3500*D191 -> 27.92059402 | G191: =0.0316*E191*1*SQRT(fc_design)*(bw_single*2)*dv -> 93.76959899 | H191: =$G$83*fy*dv*(_xlfn.COT(RADIANS(F191))+_xlfn.COT(RADIANS(90))*SIN(RADIANS(90)))/MAIN!$D$120 -> 123.250075 | I191: =MIN(G191+H191,0.25*fc_design*bw_single*2*dv) -> 217.019674 | J191: =VLOOKUP(A191,Shear_capacity!$A$53:$AP$71,42,FALSE) -> Sectional method governs
A192: PL65T | B192: =1.25*'Calculation Summary'!$G$16+1.5*'Calculation Summary'!$I$16+'Load Rating Interior Beam'!D110*'Calculation Summary'!E90 -> 125.4676893 | C192: =1.25*'Calculation Summary'!$G$52+1.5*'Calculation Summary'!$I$52+'Load Rating Interior Beam'!D110*'Calculation Summary'!D125 -> 110.4916925 | D192: =VLOOKUP(A192,Shear_capacity!$A$53:$AP$71,40,FALSE) -> -0.0003084017907 | E192: =4.8/(1+750*D192) -> 6.244319482 | F192: =29+3500*D192 -> 27.92059373 | G192: =0.0316*E192*1*SQRT(fc_design)*(bw_single*2)*dv -> 93.76960644 | H192: =$G$83*fy*dv*(_xlfn.COT(RADIANS(F192))+_xlfn.COT(RADIANS(90))*SIN(RADIANS(90)))/MAIN!$D$120 -> 123.2500765 | I192: =MIN(G192+H192,0.25*fc_design*bw_single*2*dv) -> 217.0196829 | J192: =VLOOKUP(A192,Shear_capacity!$A$53:$AP$71,42,FALSE) -> Sectional method governs
A193: G. Custom Vehicles
A194: Custom_Vehicle_1 | B194: =IF(add_custom_vehicle = "YES",1.25*'Calculation Summary'!$G$16+1.5*'Calculation Summary'!$I$16+'Load Rating Interior Beam'!D112*'Calculation Summary'!E92,"N/A") -> 103.0679118 | C194: =IF(add_custom_vehicle = "YES",1.25*'Calculation Summary'!$G$52+1.5*'Calculation Summary'!$I$52+'Load Rating Interior Beam'!D112*'Calculation Summary'!D127,"N/A") -> 99.14174722 | D194: =IF(add_custom_vehicle = "YES",VLOOKUP(A194,Shear_capacity!$A$53:$AP$71,40,FALSE),"N/A") -> -0.0003084017213 | E194: =IF(add_custom_vehicle = "YES",4.8/(1+750*D194),"N/A") -> 6.24431906 | F194: =IF(add_custom_vehicle = "YES",29+3500*D194,"N/A") -> 27.92059398 | G194: =IF(add_custom_vehicle = "YES",0.0316*E194*1*SQRT(fc_design)*(bw_single*2)*dv,"N/A") -> 93.76960009 | H194: =IF(add_custom_vehicle = "YES",$G$83*fy*dv*(_xlfn.COT(RADIANS(F194))+_xlfn.COT(RADIANS(90))*SIN(RADIANS(90)))/MAIN!$D$120,"N/A") -> 123.2500752 | I194: =IF(add_custom_vehicle = "YES",MIN(G194+H194,0.25*fc_design*bw_single*2*dv),"N/A") -> 217.0196753 | J194: =IF(add_custom_vehicle = "YES",VLOOKUP(A194,Shear_capacity!$A$53:$AP$71,42,FALSE),"N/A") -> Sectional method governs
A196: Nominal Shear Resistance at Region 2 for Exterior Beam due to
A197: Vehicle type | B197: Mu | C197: Vu | D197: εs | E197: β | F197: θ | G197: Vc | H197: Vs | I197: Vn | J197: Remarks
B198: (kips-ft) | C198: (kips) | F198: (degrees) | G198: (kips) | H198: (kips) | I198: (kips)
A199: A. Design Vehicles
A200: HL93
A201: Inventory | B201: =1.25*'Calculation Summary'!$G$16+1.5*'Calculation Summary'!$I$16+'Load Rating Interior Beam'!D84*'Calculation Summary'!I67 -> 139.6372686 | C201: =1.25*'Calculation Summary'!$G$52+1.5*'Calculation Summary'!$I$52+'Load Rating Interior Beam'!D84*'Calculation Summary'!E102 -> 141.8459387 | D201: =VLOOKUP(A201,Shear_capacity!$A$77:$AP$95,40,FALSE) -> -0.000308402059 | E201: =4.8/(1+750*D201) -> 6.244321117 | F201: =29+3500*D201 -> 27.92059279 | G201: =0.0316*E201*1*SQRT(fc_design)*(bw_single*2)*dv -> 93.76963098 | H201: =$G$83*fy*dv*(_xlfn.COT(RADIANS(F201))+_xlfn.COT(RADIANS(90))*SIN(RADIANS(90)))/MAIN!$D$120 -> 123.2500813 | I201: =MIN(G201+H201,0.25*fc_design*bw_single*2*dv) -> 217.0197123 | J201: =VLOOKUP(A201,Shear_capacity!$A$77:$AP$95,42,FALSE) -> Sectional method governs
A202: Operating | B202: =1.25*'Calculation Summary'!$G$16+1.5*'Calculation Summary'!$I$16+'Load Rating Interior Beam'!D85*'Calculation Summary'!I68 -> 124.8522586 | C202: =1.25*'Calculation Summary'!$G$52+1.5*'Calculation Summary'!$I$52+'Load Rating Interior Beam'!D85*'Calculation Summary'!E103 -> 120.5887569 | D202: =VLOOKUP(A202,Shear_capacity!$A$77:$AP$95,40,FALSE) -> -0.0003084018737 | E202: =4.8/(1+750*D202) -> 6.244319988 | F202: =29+3500*D202 -> 27.92059344 | G202: =0.0316*E202*1*SQRT(fc_design)*(bw_single*2)*dv -> 93.76961403 | H202: =$G$83*fy*dv*(_xlfn.COT(RADIANS(F202))+_xlfn.COT(RADIANS(90))*SIN(RADIANS(90)))/MAIN!$D$120 -> 123.250078 | I202: =MIN(G202+H202,0.25*fc_design*bw_single*2*dv) -> 217.019692 | J202: =VLOOKUP(A202,Shear_capacity!$A$77:$AP$95,42,FALSE) -> Sectional method governs
A203: HL93_Tandem
A204: Inventory_Tandem | B204: =1.25*'Calculation Summary'!$G$16+1.5*'Calculation Summary'!$I$16+'Load Rating Interior Beam'!D87*'Calculation Summary'!I70 -> 125.8984032 | C204: =1.25*'Calculation Summary'!$G$52+1.5*'Calculation Summary'!$I$52+'Load Rating Interior Beam'!D87*'Calculation Summary'!E105 -> 122.0928537 | D204: =VLOOKUP(A204,Shear_capacity!$A$77:$AP$95,40,FALSE) -> -0.0003084018869 | E204: =4.8/(1+750*D204) -> 6.244320068 | F204: =29+3500*D204 -> 27.9205934 | G204: =0.0316*E204*1*SQRT(fc_design)*(bw_single*2)*dv -> 93.76961524 | H204: =$G$83*fy*dv*(_xlfn.COT(RADIANS(F204))+_xlfn.COT(RADIANS(90))*SIN(RADIANS(90)))/MAIN!$D$120 -> 123.2500782 | I204: =MIN(G204+H204,0.25*fc_design*bw_single*2*dv) -> 217.0196934 | J204: =VLOOKUP(A204,Shear_capacity!$A$77:$AP$95,42,FALSE) -> Sectional method governs
A205: Operating_Tandem | B205: =1.25*'Calculation Summary'!$G$16+1.5*'Calculation Summary'!$I$16+'Load Rating Interior Beam'!D88*'Calculation Summary'!I71 -> 114.2537054 | C205: =1.25*'Calculation Summary'!$G$52+1.5*'Calculation Summary'!$I$52+'Load Rating Interior Beam'!D88*'Calculation Summary'!E106 -> 105.3506628 | D205: =VLOOKUP(A205,Shear_capacity!$A$77:$AP$95,40,FALSE) -> -0.0003084017593 | E205: =4.8/(1+750*D205) -> 6.244319291 | F205: =29+3500*D205 -> 27.92059384 | G205: =0.0316*E205*1*SQRT(fc_design)*(bw_single*2)*dv -> 93.76960357 | H205: =$G$83*fy*dv*(_xlfn.COT(RADIANS(F205))+_xlfn.COT(RADIANS(90))*SIN(RADIANS(90)))/MAIN!$D$120 -> 123.2500759 | I205: =MIN(G205+H205,0.25*fc_design*bw_single*2*dv) -> 217.0196795 | J205: =VLOOKUP(A205,Shear_capacity!$A$77:$AP$95,42,FALSE) -> Sectional method governs
A206: B. Ohio Legal Vehicles
A207: 2F1 | B207: =1.25*'Calculation Summary'!$G$16+1.5*'Calculation Summary'!$I$16+'Load Rating Interior Beam'!D90*'Calculation Summary'!I73 -> 99.73539654 | C207: =1.25*'Calculation Summary'!$G$52+1.5*'Calculation Summary'!$I$52+'Load Rating Interior Beam'!D90*'Calculation Summary'!E108 -> 84.47693111 | D207: =VLOOKUP(A207,Shear_capacity!$A$77:$AP$95,40,FALSE) -> -0.0003084016311 | E207: =4.8/(1+750*D207) -> 6.24431851 | F207: =29+3500*D207 -> 27.92059429 | G207: =0.0316*E207*1*SQRT(fc_design)*(bw_single*2)*dv -> 93.76959184 | H207: =$G$83*fy*dv*(_xlfn.COT(RADIANS(F207))+_xlfn.COT(RADIANS(90))*SIN(RADIANS(90)))/MAIN!$D$120 -> 123.2500736 | I207: =MIN(G207+H207,0.25*fc_design*bw_single*2*dv) -> 217.0196654 | J207: =VLOOKUP(A207,Shear_capacity!$A$77:$AP$95,42,FALSE) -> Sectional method governs
A208: 3F1 | B208: =1.25*'Calculation Summary'!$G$16+1.5*'Calculation Summary'!$I$16+'Load Rating Interior Beam'!D91*'Calculation Summary'!I74 -> 111.8271006 | C208: =1.25*'Calculation Summary'!$G$52+1.5*'Calculation Summary'!$I$52+'Load Rating Interior Beam'!D91*'Calculation Summary'!E109 -> 101.8618062 | D208: =VLOOKUP(A208,Shear_capacity!$A$77:$AP$95,40,FALSE) -> -0.000308401738 | E208: =4.8/(1+750*D208) -> 6.244319161 | F208: =29+3500*D208 -> 27.92059392 | G208: =0.0316*E208*1*SQRT(fc_design)*(bw_single*2)*dv -> 93.76960162 | H208: =$G$83*fy*dv*(_xlfn.COT(RADIANS(F208))+_xlfn.COT(RADIANS(90))*SIN(RADIANS(90)))/MAIN!$D$120 -> 123.2500755 | I208: =MIN(G208+H208,0.25*fc_design*bw_single*2*dv) -> 217.0196771 | J208: =VLOOKUP(A208,Shear_capacity!$A$77:$AP$95,42,FALSE) -> Sectional method governs
A209: 5C1 | B209: =1.25*'Calculation Summary'!$G$16+1.5*'Calculation Summary'!$I$16+'Load Rating Interior Beam'!D92*'Calculation Summary'!I75 -> 118.2814561 | C209: =1.25*'Calculation Summary'!$G$52+1.5*'Calculation Summary'!$I$52+'Load Rating Interior Beam'!D92*'Calculation Summary'!E110 -> 111.1415706 | D209: =VLOOKUP(A209,Shear_capacity!$A$77:$AP$95,40,FALSE) -> -0.0003084017946 | E209: =4.8/(1+750*D209) -> 6.244319507 | F209: =29+3500*D209 -> 27.92059372 | G209: =0.0316*E209*1*SQRT(fc_design)*(bw_single*2)*dv -> 93.7696068 | H209: =$G$83*fy*dv*(_xlfn.COT(RADIANS(F209))+_xlfn.COT(RADIANS(90))*SIN(RADIANS(90)))/MAIN!$D$120 -> 123.2500765 | I209: =MIN(G209+H209,0.25*fc_design*bw_single*2*dv) -> 217.0196833 | J209: =VLOOKUP(A209,Shear_capacity!$A$77:$AP$95,42,FALSE) -> Sectional method governs
A210: C. Specialized Hauling Vehicles
A211: SU4 | B211: =1.25*'Calculation Summary'!$G$16+1.5*'Calculation Summary'!$I$16+'Load Rating Interior Beam'!D94*'Calculation Summary'!I77 -> 117.2738141 | C211: =1.25*'Calculation Summary'!$G$52+1.5*'Calculation Summary'!$I$52+'Load Rating Interior Beam'!D94*'Calculation Summary'!E112 -> 109.692831 | D211: =VLOOKUP(A211,Shear_capacity!$A$77:$AP$95,40,FALSE) -> -0.0003084017858 | E211: =4.8/(1+750*D211) -> 6.244319453 | F211: =29+3500*D211 -> 27.92059375 | G211: =0.0316*E211*1*SQRT(fc_design)*(bw_single*2)*dv -> 93.76960599 | H211: =$G$83*fy*dv*(_xlfn.COT(RADIANS(F211))+_xlfn.COT(RADIANS(90))*SIN(RADIANS(90)))/MAIN!$D$120 -> 123.2500764 | I211: =MIN(G211+H211,0.25*fc_design*bw_single*2*dv) -> 217.0196824 | J211: =VLOOKUP(A211,Shear_capacity!$A$77:$AP$95,42,FALSE) -> Sectional method governs
A212: SU5 | B212: =1.25*'Calculation Summary'!$G$16+1.5*'Calculation Summary'!$I$16+'Load Rating Interior Beam'!D95*'Calculation Summary'!I78 -> 122.2847905 | C212: =1.25*'Calculation Summary'!$G$52+1.5*'Calculation Summary'!$I$52+'Load Rating Interior Beam'!D95*'Calculation Summary'!E113 -> 116.8973738 | D212: =VLOOKUP(A212,Shear_capacity!$A$77:$AP$95,40,FALSE) -> -0.0003084018412 | E212: =4.8/(1+750*D212) -> 6.24431979 | F212: =29+3500*D212 -> 27.92059356 | G212: =0.0316*E212*1*SQRT(fc_design)*(bw_single*2)*dv -> 93.76961106 | H212: =$G$83*fy*dv*(_xlfn.COT(RADIANS(F212))+_xlfn.COT(RADIANS(90))*SIN(RADIANS(90)))/MAIN!$D$120 -> 123.2500774 | I212: =MIN(G212+H212,0.25*fc_design*bw_single*2*dv) -> 217.0196884 | J212: =VLOOKUP(A212,Shear_capacity!$A$77:$AP$95,42,FALSE) -> Sectional method governs
A213: SU6 | B213: =1.25*'Calculation Summary'!$G$16+1.5*'Calculation Summary'!$I$16+'Load Rating Interior Beam'!D96*'Calculation Summary'!I79 -> 125.6209026 | C213: =1.25*'Calculation Summary'!$G$52+1.5*'Calculation Summary'!$I$52+'Load Rating Interior Beam'!D96*'Calculation Summary'!E114 -> 121.6938765 | D213: =VLOOKUP(A213,Shear_capacity!$A$77:$AP$95,40,FALSE) -> -0.0003084018834 | E213: =4.8/(1+750*D213) -> 6.244320047 | F213: =29+3500*D213 -> 27.92059341 | G213: =0.0316*E213*1*SQRT(fc_design)*(bw_single*2)*dv -> 93.76961492 | H213: =$G$83*fy*dv*(_xlfn.COT(RADIANS(F213))+_xlfn.COT(RADIANS(90))*SIN(RADIANS(90)))/MAIN!$D$120 -> 123.2500781 | I213: =MIN(G213+H213,0.25*fc_design*bw_single*2*dv) -> 217.0196931 | J213: =VLOOKUP(A213,Shear_capacity!$A$77:$AP$95,42,FALSE) -> Sectional method governs
A214: SU7 | B214: =1.25*'Calculation Summary'!$G$16+1.5*'Calculation Summary'!$I$16+'Load Rating Interior Beam'!D97*'Calculation Summary'!I80 -> 128.80723 | C214: =1.25*'Calculation Summary'!$G$52+1.5*'Calculation Summary'!$I$52+'Load Rating Interior Beam'!D97*'Calculation Summary'!E115 -> 126.275026 | D214: =VLOOKUP(A214,Shear_capacity!$A$77:$AP$95,40,FALSE) -> -0.0003084019235 | E214: =4.8/(1+750*D214) -> 6.244320292 | F214: =29+3500*D214 -> 27.92059327 | G214: =0.0316*E214*1*SQRT(fc_design)*(bw_single*2)*dv -> 93.76961859 | H214: =$G$83*fy*dv*(_xlfn.COT(RADIANS(F214))+_xlfn.COT(RADIANS(90))*SIN(RADIANS(90)))/MAIN!$D$120 -> 123.2500789 | I214: =MIN(G214+H214,0.25*fc_design*bw_single*2*dv) -> 217.0196975 | J214: =VLOOKUP(A214,Shear_capacity!$A$77:$AP$95,42,FALSE) -> Sectional method governs
A215: D. Emergency Vehicles
A216: EV2 | B216: =1.25*'Calculation Summary'!$G$16+1.5*'Calculation Summary'!$I$16+'Load Rating Interior Beam'!D99*'Calculation Summary'!I82 -> 115.4839113 | C216: =1.25*'Calculation Summary'!$G$52+1.5*'Calculation Summary'!$I$52+'Load Rating Interior Beam'!D99*'Calculation Summary'!E117 -> 107.1193942 | D216: =VLOOKUP(A216,Shear_capacity!$A$77:$AP$95,40,FALSE) -> -0.0003084017701 | E216: =4.8/(1+750*D216) -> 6.244319357 | F216: =29+3500*D216 -> 27.9205938 | G216: =0.0316*E216*1*SQRT(fc_design)*(bw_single*2)*dv -> 93.76960456 | H216: =$G$83*fy*dv*(_xlfn.COT(RADIANS(F216))+_xlfn.COT(RADIANS(90))*SIN(RADIANS(90)))/MAIN!$D$120 -> 123.2500761 | I216: =MIN(G216+H216,0.25*fc_design*bw_single*2*dv) -> 217.0196806 | J216: =VLOOKUP(A216,Shear_capacity!$A$77:$AP$95,42,FALSE) -> Sectional method governs
A217: EV3 | B217: =1.25*'Calculation Summary'!$G$16+1.5*'Calculation Summary'!$I$16+'Load Rating Interior Beam'!D100*'Calculation Summary'!I83 -> 125.8176416 | C217: =1.25*'Calculation Summary'!$G$52+1.5*'Calculation Summary'!$I$52+'Load Rating Interior Beam'!D100*'Calculation Summary'!E118 -> 121.9767385 | D217: =VLOOKUP(A217,Shear_capacity!$A$77:$AP$95,40,FALSE) -> -0.0003084018858 | E217: =4.8/(1+750*D217) -> 6.244320062 | F217: =29+3500*D217 -> 27.9205934 | G217: =0.0316*E217*1*SQRT(fc_design)*(bw_single*2)*dv -> 93.76961515 | H217: =$G$83*fy*dv*(_xlfn.COT(RADIANS(F217))+_xlfn.COT(RADIANS(90))*SIN(RADIANS(90)))/MAIN!$D$120 -> 123.2500782 | I217: =MIN(G217+H217,0.25*fc_design*bw_single*2*dv) -> 217.0196933 | J217: =VLOOKUP(A217,Shear_capacity!$A$77:$AP$95,42,FALSE) -> Sectional method governs
A218: E. AASHTO Legal Vehicles
A219: Type3 | B219: =1.25*'Calculation Summary'!$G$16+1.5*'Calculation Summary'!$I$16+'Load Rating Interior Beam'!D102*'Calculation Summary'!I85 -> 113.4611146 | C219: =1.25*'Calculation Summary'!$G$52+1.5*'Calculation Summary'!$I$52+'Load Rating Interior Beam'!D102*'Calculation Summary'!E120 -> 104.2111136 | D219: =VLOOKUP(A219,Shear_capacity!$A$77:$AP$95,40,FALSE) -> -0.0003084017523 | E219: =4.8/(1+750*D219) -> 6.244319249 | F219: =29+3500*D219 -> 27.92059387 | G219: =0.0316*E219*1*SQRT(fc_design)*(bw_single*2)*dv -> 93.76960293 | H219: =$G$83*fy*dv*(_xlfn.COT(RADIANS(F219))+_xlfn.COT(RADIANS(90))*SIN(RADIANS(90)))/MAIN!$D$120 -> 123.2500758 | I219: =MIN(G219+H219,0.25*fc_design*bw_single*2*dv) -> 217.0196787 | J219: =VLOOKUP(A219,Shear_capacity!$A$77:$AP$95,42,FALSE) -> Sectional method governs
A220: Type3S2 | B220: =1.25*'Calculation Summary'!$G$16+1.5*'Calculation Summary'!$I$16+'Load Rating Interior Beam'!D103*'Calculation Summary'!I86 -> 119.4524995 | C220: =1.25*'Calculation Summary'!$G$52+1.5*'Calculation Summary'!$I$52+'Load Rating Interior Beam'!D103*'Calculation Summary'!E121 -> 112.8252409 | D220: =VLOOKUP(A220,Shear_capacity!$A$77:$AP$95,40,FALSE) -> -0.0003084018052 | E220: =4.8/(1+750*D220) -> 6.244319571 | F220: =29+3500*D220 -> 27.92059368 | G220: =0.0316*E220*1*SQRT(fc_design)*(bw_single*2)*dv -> 93.76960777 | H220: =$G$83*fy*dv*(_xlfn.COT(RADIANS(F220))+_xlfn.COT(RADIANS(90))*SIN(RADIANS(90)))/MAIN!$D$120 -> 123.2500767 | I220: =MIN(G220+H220,0.25*fc_design*bw_single*2*dv) -> 217.0196845 | J220: =VLOOKUP(A220,Shear_capacity!$A$77:$AP$95,42,FALSE) -> Sectional method governs
A221: Type3_3 | B221: =1.25*'Calculation Summary'!$G$16+1.5*'Calculation Summary'!$I$16+'Load Rating Interior Beam'!D104*'Calculation Summary'!I87 -> 118.6354925 | C221: =1.25*'Calculation Summary'!$G$52+1.5*'Calculation Summary'!$I$52+'Load Rating Interior Beam'!D104*'Calculation Summary'!E122 -> 111.6505872 | D221: =VLOOKUP(A221,Shear_capacity!$A$77:$AP$95,40,FALSE) -> -0.0003084017977 | E221: =4.8/(1+750*D221) -> 6.244319525 | F221: =29+3500*D221 -> 27.92059371 | G221: =0.0316*E221*1*SQRT(fc_design)*(bw_single*2)*dv -> 93.76960708 | H221: =$G$83*fy*dv*(_xlfn.COT(RADIANS(F221))+_xlfn.COT(RADIANS(90))*SIN(RADIANS(90)))/MAIN!$D$120 -> 123.2500766 | I221: =MIN(G221+H221,0.25*fc_design*bw_single*2*dv) -> 217.0196837 | J221: =VLOOKUP(A221,Shear_capacity!$A$77:$AP$95,42,FALSE) -> Sectional method governs
A222: F. Permit Vehicles
A223: PL60T | B223: =1.25*'Calculation Summary'!$G$16+1.5*'Calculation Summary'!$I$16+'Load Rating Interior Beam'!D109*'Calculation Summary'!I89 -> 116.4955272 | C223: =1.25*'Calculation Summary'!$G$52+1.5*'Calculation Summary'!$I$52+'Load Rating Interior Beam'!D109*'Calculation Summary'!E124 -> 108.5738472 | D223: =VLOOKUP(A223,Shear_capacity!$A$77:$AP$95,40,FALSE) -> -0.000308401779 | E223: =4.8/(1+750*D223) -> 6.244319411 | F223: =29+3500*D223 -> 27.92059377 | G223: =0.0316*E223*1*SQRT(fc_design)*(bw_single*2)*dv -> 93.76960537 | H223: =$G$83*fy*dv*(_xlfn.COT(RADIANS(F223))+_xlfn.COT(RADIANS(90))*SIN(RADIANS(90)))/MAIN!$D$120 -> 123.2500762 | I223: =MIN(G223+H223,0.25*fc_design*bw_single*2*dv) -> 217.0196816 | J223: =VLOOKUP(A223,Shear_capacity!$A$77:$AP$95,42,FALSE) -> Sectional method governs
A224: PL65T | B224: =1.25*'Calculation Summary'!$G$16+1.5*'Calculation Summary'!$I$16+'Load Rating Interior Beam'!D110*'Calculation Summary'!I90 -> 127.9513355 | C224: =1.25*'Calculation Summary'!$G$52+1.5*'Calculation Summary'!$I$52+'Load Rating Interior Beam'!D110*'Calculation Summary'!E125 -> 125.0444618 | D224: =VLOOKUP(A224,Shear_capacity!$A$77:$AP$95,40,FALSE) -> -0.0003084019128 | E224: =4.8/(1+750*D224) -> 6.244320226 | F224: =29+3500*D224 -> 27.92059331 | G224: =0.0316*E224*1*SQRT(fc_design)*(bw_single*2)*dv -> 93.76961761 | H224: =$G$83*fy*dv*(_xlfn.COT(RADIANS(F224))+_xlfn.COT(RADIANS(90))*SIN(RADIANS(90)))/MAIN!$D$120 -> 123.2500787 | I224: =MIN(G224+H224,0.25*fc_design*bw_single*2*dv) -> 217.0196963 | J224: =VLOOKUP(A224,Shear_capacity!$A$77:$AP$95,42,FALSE) -> Sectional method governs
A225: G. Custom Vehicles
A226: Custom_Vehicle_1 | B226: =IF(add_custom_vehicle = "YES",1.25*'Calculation Summary'!$G$16+1.5*'Calculation Summary'!$I$16+'Load Rating Interior Beam'!D112*'Calculation Summary'!I92,"N/A") -> 106.7970623 | C226: =IF(add_custom_vehicle = "YES",1.25*'Calculation Summary'!$G$52+1.5*'Calculation Summary'!$I$52+'Load Rating Interior Beam'!D112*'Calculation Summary'!E127,"N/A") -> 112.2920501 | D226: =IF(add_custom_vehicle = "YES",VLOOKUP(A226,Shear_capacity!$A$77:$AP$95,40,FALSE),"N/A") -> -0.0003084018016 | E226: =IF(add_custom_vehicle = "YES",4.8/(1+750*D226),"N/A") -> 6.244319549 | F226: =IF(add_custom_vehicle = "YES",29+3500*D226,"N/A") -> 27.92059369 | G226: =IF(add_custom_vehicle = "YES",0.0316*E226*1*SQRT(fc_design)*(bw_single*2)*dv,"N/A") -> 93.76960744 | H226: =IF(add_custom_vehicle = "YES",$G$83*fy*dv*(_xlfn.COT(RADIANS(F226))+_xlfn.COT(RADIANS(90))*SIN(RADIANS(90)))/MAIN!$D$120,"N/A") -> 123.2500767 | I226: =IF(add_custom_vehicle = "YES",MIN(G226+H226,0.25*fc_design*bw_single*2*dv),"N/A") -> 217.0196841 | J226: =IF(add_custom_vehicle = "YES",VLOOKUP(A226,Shear_capacity!$A$77:$AP$95,42,FALSE),"N/A") -> Sectional method governs

Sheet Distribution Factors (hidden)
A1: Live Load Distribution Factors
A2: Number of design lane | B2: =TRUNC(MAIN!B16/12) -> 2 | C2: nos
A4: Adopted Live Load Distribution Factors
A5: Distribution factors | B5: Interior beam | C5: Exterior beam | D5: Unit
A6: DFM | B6: =$B$114 -> 0.2938735208 | C6: =C$114 -> 0.3083223023 | D6: lanes/beam
A7: DFV | B7: =$B$115 -> 0.5379440504 | C7: =C$115 -> 0.6649366411 | D7: lanes/beam
A9: Live Distribution Factor for Typical Interior Beam
A11: Checks as per LRFD Table 4.6.2.2.2b-1
A12: 35<=b<=60 | B12: =_xlfn.CONCAT("b = ",MAIN!$C$85, " in") -> b = 48 in | C12: =IF(AND(35<=MAIN!$C$85,MAIN!$C$85<=60),"OK","Cannot Proceed") -> OK
A13: 20<=L<=120 | B13: =_xlfn.CONCAT("L = ",Bridge_span, " ft") -> L = 65.5 ft | C13: =IF(AND(20<=MAIN!$B$6,MAIN!$B$6<=120),"OK","Cannot Proceed") -> OK
A14: 5<=Nb<20 | B14: =_xlfn.CONCAT("Nb = ",MAIN!$C$87, " Nos") -> Nb = 8 Nos | C14: =IF(AND(5<=MAIN!$C$87,MAIN!$C$87<=20),"OK","Cannot Proceed") -> OK
A15: k>=1.5 | B15: =MAX(2.5*MAIN!$C$87^-0.2,1.5) -> 1.649384888
A17: Distribution factors | C17: Value | D17: Unit
A18: Moment | B18: DFM | C18: =B25 -> 0.2947989361 | D18: lanes/beam
A19: Shear force | B19: DFV | C19: =B47 -> 0.4513962647 | D19: lanes/beam
A21: Live Distribution Factor for Moment for Typical Interior Beam
A22: Condition | B22: DFM (Interior Beam)
A23: Two or more lanes loaded | B23: =E31 -> 0.2947989361 | C23: lanes/beam
A24: Single lane loaded | B24: =E34 -> 0.1959959261 | C24: lanes/beam
A25: Adopted | B25: =MAX(B23:B24) -> 0.2947989361 | C25: lanes/beam
A27: Two or more lanes loaded
A28: Area enclosed by centerlines of the beam | D28: Ao | E28: =IF(MAIN!$B$18 = "Non Composite",(h-0.5*(hf+hc))*(b-0.5*bw_single*2), ((h+h_slab)-0.5*(hf+h_slab+hc))*(b-0.5*bw_single*2)) -> 658.75 | F28: in2
A29: St. Venant torsional constant | D29: jg | E29: =(4 * Am^2) / (2*((h+h_slab)-0.5*(hf + h_slab + hc))/bw_single + (b - bw_single)/hc + (b - bw_single)/ (hf + h_slab)) -> 82301.15841 | F29: in4
A30: =MAIN!A99 -> Moment of inertia | D30: Ig | E30: ='Section Props'!C47 -> 33884 | F30: in4
A31: Distribution factor for bending moment | D31: DFM 2+ | E31: =IF(B2>1,B15 * (b/305)^0.6 * (b / (12 * Bridge_span))^0.2 * (E30/E29)^0.06,0) -> 0.2947989361 | F31: lanes/beam
A33: Single Lane loaded
A34: Distribution factor for bending moment | D34: DFM 1 | E34: =B15 * (b/ (33.3*Bridge_span))^0.5 * (E30/E29)^0.25 -> 0.1959959261 | F34: lanes/beam
A36: Live Distribution Factor for Shear Force for Typical Interior Beam
A37: Checks as per LRFD Table 4.6.2.2.2b-1
A38: 35<=b<=60 | B38: =_xlfn.CONCAT("b = ",MAIN!$C$85, " inch") -> b = 48 inch | D38: =IF(AND(35<=MAIN!$C$85,MAIN!$C$85<=60),"OK","Cannot Proceed") -> OK
A39: 20<=L<=120 | B39: =_xlfn.CONCAT("L = ",MAIN!$B$6, " ft") -> L = 66.5 ft | D39: =IF(AND(20<=MAIN!$B$6,MAIN!$B$6<=120),"OK","Cannot Proceed") -> OK
A40: 5<=Nb<20 | B40: =_xlfn.CONCAT("Nb = ",MAIN!$C$87, " Nos") -> Nb = 8 Nos | D40: =IF(AND(5<=MAIN!$C$87,MAIN!$C$87<=20),"OK","Cannot Proceed") -> OK
A41: 25000 <= jg <= 610000 | B41: =_xlfn.CONCAT("jg = ", ROUND($E$29,2), " in4") -> jg = 82301.16 in4 | D41: =IF(AND(25000<=$E$29,$E$29<=610000),"OK","Cannot Proceed") -> OK
A42: 40000 <= Ig <= 610000 | B42: =_xlfn.CONCAT("Ig = ", ROUND($E$30,2), " in4") -> Ig = 33884 in4 | D42: =IF(AND(40000<=$E$30,$E$30<=610000),"OK","Modified factor used") -> Modified factor used
A44: Condition | B44: DFV (Interior Beam)
A45: Two or more lanes loaded | B45: =D50 -> 0.4513962647 | C45: lanes/beam
A46: Single lane loaded | B46: =D53 -> 0.4399344017 | C46: lanes/beam
A47: Adopted | B47: =MAX(B45:B46) -> 0.4513962647 | C47: lanes/beam
A49: For two or more lanes loaded
A50: Distribution factor for shear force | C50: DFV 2+ | D50: =IF(B2>1, (b/156)^0.4 * ((b/(12 *Bridge_span))^0.1 * (E30/E29)^0.05 * MAX(1,b/48)),0) -> 0.4513962647 | E50: lanes/beam
A52: For one lane loaded
A53: Distribution factor for shear force | C53: DFV 1 | D53: =(b/(130*Bridge_span))^0.15 * (E30/E29)^0.05 -> 0.4399344017 | E53: lanes/beam
A55: Live Load Distribution Factors For Typical Exterior Beam
A57: Total width | B57: =MAIN!B7 -> 32 | C57: ft
A58: Single lane width: | B58: =MAIN!$B$9 -> 11 | C58: ft
A59: Number of design lane | B59: =TRUNC(B57/B58) -> 2 | C59: nos
A60: Traffic width | B60: =B58*B59 -> 22 | C60: ft
A61: Width outside traffic lane in single side | B61: =12*(B57-B60)/2 -> 60 | C61: in
A62: de | B62: =MAX(-(B61-bw_single/2)/12,-1) -> -1 | C62: ft | D62: check de < 2.0
A63: de | B63: =bw_single/24 -> 0.2291666667 | C63: ft | D63: =IF(MAX(B62:B63)<2,"OK",) -> OK
A65: Distribution Factors | B65: Value
A66: Moment | B66: DFM | C66: =$B$73 -> 0.3092932171 | D66: lanes/beam
A67: Shear force | B67: DFV | C67: =$B$87 -> 0.5579574974 | D67: lanes/beam
A69: Distribution Factor for Bending Moment
A70: Condition | B70: DFM (Exterior beam)
A71: Two or more lanes loaded | B71: =$D$77 -> 0.3092932171 | C71: lanes/beam
A72: Single lane loaded | B72: =$D$81 -> 0.221992608 | C72: lanes/beam
A73: Adopted | B73: =MAX(B71:B72) -> 0.3092932171 | C73: lanes/beam
A75: Two or more lanes loaded
A76: Correction factor | C76: e | D76: =MAX((1.04 + $B$63/25),1) -> 1.049166667
A77: Distribution factor for bending moment | C77: DFM_ext 2+ | D77: =$E$31*$D$76 -> 0.3092932171 | E77: lanes/beam
A79: Single lane loaded
A80: Correction factor | C80: e | D80: =MAX((1.125 + $B$63/30),1) -> 1.132638889
A81: Distribution factor for bending moment | C81: DFM_ext 1 | D81: =$E$34*$D$80 -> 0.221992608 | E81: lanes/beam
A83: Distribution Factor for Shear Force
A84: Condition | B84: DFV (Exterior beam)
A85: Two or more lanes loaded | B85: =D91 -> 0.5579574974 | C85: lanes/beam
A86: Single lane loaded | B86: =D95 -> 0.5549589172 | C86: lanes/beam
A87: Adopted | B87: =MAX(B85:B86) -> 0.5579574974 | C87: lanes/beam
A89: Two or more lanes loaded
A90: Correction factor | C90: e | D90: =MAX((1 + ((B63+ b/12 - 2)/40)^0.5),1) -> 1.236070258
A91: Distribution factor for shear force | C91: DFM_ext 2+ | D91: =$D$50*$D$90 * MIN(48/b,1) -> 0.5579574974 | E91: lanes/beam
A93: Single lane loaded
A94: Correction factor | C94: e | D94: =MAX((1.25 + $B$63/20),1) -> 1.261458333
A95: Distribution factor for shear force | C95: DFM_ext 1 | D95: =$D$53*$D$94 -> 0.5549589172 | E95: lanes/beam
A97: Live Load Distribution Factors with Skew Effect
A99: Skew angle, ϑ | B99: =MAIN!$B$22 -> 12 | C99: Degrees
A101: For line support skew distance < 10 degrees
A103: Checks as per Table 4.6.2.2.2e-1 & Table 4.6.2.2.3c-1
A104: 0° < ϑ < 60° | B104: =_xlfn.CONCAT("ϑ = ",B99, " °") -> ϑ = 12 ° | C104: =IF(AND(0<=$B$99,$B$99<=60),"OK","Cannot Proceed") -> OK
A105: 20<=L<=120 | B105: =_xlfn.CONCAT("L = ",Bridge_span, " ft") -> L = 65.5 ft | C105: =IF(AND(20<=Bridge_span,Bridge_span<=120),"OK","Cannot Proceed") -> OK
A106: 17<=d<=60 | B106: =_xlfn.CONCAT("d = ",h, " in") -> d = 21 in | C106: =IF(AND(17<=h,h<=60),"OK","Cannot Proceed") -> OK
A107: 35<=b<=60 | B107: =_xlfn.CONCAT("b = ",MAIN!$C$85, " in") -> b = 48 in | C107: =IF(AND(35<=b,b<=60),"OK","Cannot Proceed") -> OK
A108: 5<=Nb<20 | B108: =_xlfn.CONCAT("Nb = ",MAIN!$C$87, " nos") -> Nb = 8 nos | C108: =IF(AND(5<=MAIN!$C$87,MAIN!$C$87<=20),"OK","Cannot Proceed") -> OK
A110: Reduction factor for DFM | C110: =IF(AND(C104="OK",C105="OK",C106="OK",C107="OK",C108="OK"),MIN(1.05-0.25*TAN(RADIANS(MIN(B99,60))),1),"Cannot Proceed") -> 0.9968608596
A111: Correction factor for DFV at obtuse corner | C111: =IF(AND(C104="OK",C105="OK",C106="OK",C107="OK",C108="OK"),1+(12*Bridge_span*SQRT(TAN(RADIANS(B99))))/(90*h),"Cannot Proceed") -> 1.1917335
A113: Distribution factor | B113: Interior beam | C113: Exterior beam | D113: Unit
A114: DFM | B114: =C110*C18 -> 0.2938735208 | C114: =C110*C66 -> 0.3083223023 | D114: lanes/beam
A115: DFV | B115: =C111*C19 -> 0.5379440504 | C115: =C111*C67 -> 0.6649366411 | D115: lanes/beam

Sheet Section Props (hidden)
A1: EVALUATION OF PRECAST, PRESTRESSED BOX BEAM BRIDGES
A3: Section Properties of Beam
A5: =MAIN!A84 -> Box beam section used | B5: =MAIN!B84 -> B21-48
A6: =MAIN!A85 -> Width of each box beam | B6: =MAIN!B85 -> b | C6: =MAIN!C85 -> 48 | D6: =MAIN!D85 -> in.
A7: =MAIN!A86 -> Height of each box beam | B7: =MAIN!B86 -> h | C7: =MAIN!C86 -> 21 | D7: =MAIN!D86 -> in.
A9: =MAIN!A89 -> Section Geometry
A10: =MAIN!A90 -> No of webs in beam | C10: =MAIN!C90 -> 2 | D10: =MAIN!D90 -> nos
A11: =MAIN!A91 -> Depth of top flange | B11: hf | C11: =MAIN!C91 -> 5.5 | D11: =MAIN!D91 -> in.
A12: =MAIN!A92 -> Depth of bottom flange | B12: hc | C12: =MAIN!C92 -> 5.5 | D12: =MAIN!D92 -> in.
A13: =MAIN!A93 -> Width of end web | B13: bw | C13: =MAIN!C93 -> 5.5 | D13: =MAIN!D93 -> in.
A14: =MAIN!A95 -> Width of chamfer | B14: wh | C14: =MAIN!C95 -> 3 | D14: =MAIN!D95 -> in.
A16: Non Composite, Non Transformed Beam Section Properties
A17: Box beam section | B17: =_xlfn.CONCAT("B",C7,"-",C6) -> B21-48
A18: Area of cross section | B18: Ag | C18: =MAIN!C98 -> 647.8 | D18: in2
A19: Moment of inertia about centriod | B19: Ig | C19: =MAIN!C99 -> 33884 | D19: in4
A20: Distance from centroid to extreme bottom fiber | B20: Yb | C20: =MAIN!C100 -> 10.42 | D20: in
A21: Distance from centroid to extreme top fiber | B21: Yt | C21: =MAIN!C101 -> 10.58 | D21: in
A22: Section modulus for extreme bottom fiber | B22: Sb | C22: =MAIN!C102 -> 3253 | D22: in3
A23: Section modulus for extreme top fiber | B23: St | C23: =MAIN!C103 -> 3202 | D23: in3
A25: =MAIN!A58 -> Modulus of elasticity of concrete for precast beam at transfer | B25: Eci | C25: =MAIN!F58 -> 4286.825749 | D25: =MAIN!G58 -> ksi
A26: =MAIN!A59 -> Modulus of elasticity of concrete for precast beam at service load | B26: Ec_beam | C26: =MAIN!F59 -> 5072.240629 | D26: =MAIN!G59 -> ksi
A27: =MAIN!A60 -> Modulus of elasticity of concrete for deck slab | B27: Ec_slab | C27: =MAIN!F60 -> 4066.839989 | D27: =MAIN!G60 -> ksi
A29: Distance of CG of strands from bottom fiber of beam | B29: ybs | C29: =SUMPRODUCT(MAIN!B107:B109,MAIN!C107:C109)/SUM(MAIN!B107:B109) -> 2.8 | D29: in
A30: Strand eccentricity | B30: epg | C30: =C20-C29 -> 7.62 | D30: in
A32: Composite, Non Transformed Beam Section Properties
A34: Effective width | B34: beff | C34: =C6 -> 48
A35: Modular ratio between slab and beam | B35: n | C35: =IF(S_type = "Composite",C27/C26,NA()) -> 
A37: Transformed deck width | B37: bt | C37: =C35*C34 ->  | D37: in
A38: Transformed deck area | B38: At | C38: =C35*C34*h_slab ->  | D38: in2
A39: Transformed moment of inertia of deck | B39: I_slab | C39: =C35*(h_slab^3)*C34/12 ->  | D39: in4
A41: Particulars | B41: Area | C41: yb | D41: A.yb | E41: A(ybc-yb)2 | F41: I | G41: I+A(ybc -yb)2
A42: Non composite beam | B42: =C18 -> 647.8 | C42: =C20 -> 10.42 | D42: =B42*C42 -> 6750.076 | E42: =B42*($C$49-C42)^2 -> 0 | F42: =C19 -> 33884 | G42: =F42+E42 -> 33884
A43: Deck | B43: =_xlfn.IFNA(C38,0) -> 0 | C43: =IF(B43=0,0,h+h_slab/2) -> 0 | D43: =B43*C43 -> 0 | E43: =B43*($C$49-C43)^2 -> 0 | F43: =_xlfn.IFNA(C39,0) -> 0 | G43: =F43+E43 -> 0
A44: Sum | B44: =SUM(B42:B43) -> 647.8 | D44: =SUM(D42:D43) -> 6750.076 | G44: =SUM(G42:G43) -> 33884
A46: Area of cross section | B46: Ac | C46: =B44 -> 647.8 | D46: in2
A47: Moment of inertia about centriod | B47: Ic | C47: =IFERROR(G44,0) -> 33884 | D47: in4
A48: Distance from centroid of the composite section to top fiber of precast beam | B48: ytg | C48: =IFERROR(h-C49,0) -> 10.58 | D48: in | E48: `
A49: Distance from centroid to extreme bottom fiber of precast beam | B49: ybc | C49: =IFERROR(D44/B44,0) -> 10.42 | D49: in
A50: Distance from centroid to extreme top fiber of deck | B50: ytc | C50: =IFERROR(h+h_slab-C49,0) -> 10.58 | D50: in
A51: Section modulus for extreme top fiber of the precast beam | B51: Stg | C51: =IFERROR(C47/C48,0) -> 3202.646503 | D51: in3
A52: Section modulus for extreme bottom fiber | B52: Sbc | C52: =IFERROR(C47/C49,0) -> 3251.823417 | D52: in3
A53: Section modulus for extreme top fiber | B53: Stc | C53: =IFERROR((1/C35)*(C47/C50),0) -> 0 | D53: in3
A56: Steel Transformed Section Properties
A58: Non Composite Transformed Section at Transfer
A59: Modular ratio between prestressing strands and concrete | B59: n | C59: =Ep/$C$25 -> 6.648275827
A60: Multiplier | B60: n-1 | C60: =$C$59-1 -> 5.648275827
A62: Particulars | B62: Area | C62: yb | D62: A.yb | E62: A(ybc-yb)2 | F62: I | G62: I+A(ybc -yb)2
A63: Beam | B63: =$B$42 -> 647.8 | C63: =$C$42 -> 10.42 | D63: =B63*C63 -> 6750.076 | E63: =B63*($C$73-C63)^2 -> 65.89295843 | F63: =$F$42 -> 33884 | G63: =F63+E63 -> 33949.89296
A64: Layer 1 | B64: =$C$60*MAIN!$B$107*Area_PS -> 16.97871714 | C64: =MAIN!$C$107 -> 2 | D64: =B64*C64 -> 33.95743427 | E64: =B64*($C$73-C64)^2 -> 1114.267221 | F64: 0 | G64: =F64+E64 -> 1114.267221
A65: Layer 2 | B65: =$C$60*MAIN!$B$108*Area_PS -> 11.31914476 | C65: =MAIN!$C$108 -> 4 | D65: =B65*C65 -> 45.27657903 | E65: =B65*($C$73-C65)^2 -> 421.3327784 | F65: 0 | G65: =F65+E65 -> 421.3327784
A66: Layer 3 | B66: =$C$60*MAIN!$B$109*Area_PS -> 0 | C66: =MAIN!$C$109 -> 0 | D66: =B66*C66 -> 0 | E66: =B66*($C$73-C66)^2 -> 0 | F66: 0 | G66: =F66+E66 -> 0
A67: Layer 4 | B67: =$C$60*MAIN!$B$110*Area_PS -> 0 | C67: =MAIN!$C$110 -> 0 | D67: =B67*C67 -> 0 | E67: =B67*($C$73-C67)^2 -> 0 | F67: 0 | G67: =F67+E67 -> 0
A68: Sum | B68: =SUM(B63:B67) -> 676.0978619 | D68: =SUM(D63:D67) -> 6829.310013 | G68: =SUM(G63:G67) -> 35485.49296
A70: Area of cross section | B70: Ati | C70: =B68 -> 676.0978619 | D70: in2
A71: Moment of inertia about centriod | B71: Iti | C71: =G68 -> 35485.49296 | D71: in4
A72: Eccentricity of strands w.r.t transformed section at transfer | B72: eti | C72: =C73-$C$29 -> 7.301067313 | D72: in
A73: Distance from centroid to extreme bottom fiber | B73: ybti | C73: =D68/B68 -> 10.10106731 | D73: in
A74: Distance from centroid to extreme top fiber | B74: ytti | C74: =h-C73 -> 10.89893269 | D74: in
A75: Section modulus for extreme bottom fiber | B75: Sbti | C75: =C71/C73 -> 3513.043905 | D75: in3
A76: Section modulus for extreme top fiber | B76: Stti | C76: =C71/C74 -> 3255.868623 | D76: in3
A78: Non Composite Transformed Section at Final Time
A79: Modular ratio between prestressing strands and concrete | B79: n | C79: =Ep/$C$26 -> 5.618818602
A80: Multiplier | B80: n-1 | C80: =$C$79-1 -> 4.618818602
A82: Particulars | B82: Area | C82: yb | D82: A.yb | E82: A(ybc-yb)2 | F82: I | G82: I+A(ybc -yb)2
A83: Beam | B83: =$B$42 -> 647.8 | C83: =$C$42 -> 10.42 | D83: =B83*C83 -> 6750.076 | E83: =B83*($C$93-C83)^2 -> 44.74251762 | F83: =$F$42 -> 33884 | G83: =F83+E83 -> 33928.74252
A84: Layer 1 | B84: =$C$80*MAIN!$B$107*Area_PS -> 13.88416872 | C84: =MAIN!$C$107 -> 2 | D84: =B84*C84 -> 27.76833743 | E84: =B84*($C$93-C84)^2 -> 923.8493919 | F84: 0 | G84: =F84+E84 -> 923.8493919
A85: Layer 2 | B85: =$C$80*MAIN!$B$108*Area_PS -> 9.256112478 | C85: =MAIN!$C$108 -> 4 | D85: =B85*C85 -> 37.02444991 | E85: =B85*($C$93-C85)^2 -> 350.9085238 | F85: 0 | G85: =F85+E85 -> 350.9085238
A86: Layer 3 | B86: =$C$80*MAIN!$B$109*Area_PS -> 0 | C86: =MAIN!$C$109 -> 0 | D86: =B86*C86 -> 0 | E86: =B86*($C$93-C86)^2 -> 0 | F86: 0 | G86: =F86+E86 -> 0
A87: Layer 4 | B87: =$C$80*MAIN!$B$110*Area_PS -> 0 | C87: =MAIN!$C$110 -> 0 | D87: =B87*C87 -> 0 | E87: =B87*($C$93-C87)^2 -> 0 | F87: 0 | G87: =F87+E87 -> 0
A88: Sum | B88: =SUM(B83:B87) -> 670.9402812 | D88: =SUM(D83:D87) -> 6814.868787 | G88: =SUM(G83:G87) -> 35203.50043
A90: Area of cross section | B90: Atf | C90: =B88 -> 670.9402812 | D90: in2
A91: Moment of inertia about centriod | B91: Itf | C91: =G88 -> 35203.50043 | D91: in4
A92: Eccentricity of strands w.r.t transformed section at transfer | B92: etf | C92: =C93-$C$29 -> 7.357191301 | D92: in
A93: Distance from centroid to extreme bottom fiber | B93: ybtf | C93: =D88/B88 -> 10.1571913 | D93: in
A94: Distance from centroid to extreme top fiber | B94: yttf | C94: =h-C93 -> 10.8428087 | D94: in
A95: Section modulus for extreme bottom fiber | B95: Sbtf | C95: =C91/C93 -> 3465.869589 | D95: in3
A96: Section modulus for extreme top fiber | B96: Sttf | C96: =C91/C94 -> 3246.71415 | D96: in3
A98: Composite Transformed Section at Final Time
A99: Modular ratio between prestressing strands and concrete | B99: n | C99: =Ep/$C$26 -> 5.618818602
A100: Multiplier | B100: n-1 | C100: =$C$79-1 -> 4.618818602
A102: Particulars | B102: Area | C102: yb | D102: A.yb | E102: A(ybc-yb)2 | F102: I | G102: I+A(ybc -yb)2
A103: Beam | B103: =$B$42 -> 647.8 | C103: =$C$42 -> 10.42 | D103: =B103*C103 -> 6750.076 | E103: =B103*($C$114-C103)^2 -> 44.74251762 | F103: =$F$42 -> 33884 | G103: =F103+E103 -> 33928.74252
A104: Deck | B104: =$B$43 -> 0 | C104: =$C$43 -> 0 | D104: 0 | E104: 0 | F104: =$F$43 -> 0 | G104: 0
A105: Layer 1 | B105: =$C$100*MAIN!$B$107*Area_PS -> 13.88416872 | C105: =MAIN!$C$107 -> 2 | D105: 27.76833743 | E105: 923.8493919 | F105: 0 | G105: 923.8493919
A106: Layer 2 | B106: =$C$100*MAIN!$B$108*Area_PS -> 9.256112478 | C106: =MAIN!$C$108 -> 4 | D106: 37.02444991 | E106: 350.9085238 | F106: 0 | G106: 350.9085238
A107: Layer 3 | B107: =$C$100*MAIN!$B$109*Area_PS -> 0 | C107: =MAIN!$C$109 -> 0 | D107: 0 | E107: 0 | F107: 0 | G107: 0
A108: Layer 4 | B108: =$C$100*MAIN!$B$110*Area_PS -> 0 | C108: =MAIN!$C$110 -> 0 | D108: 0 | E108: 0 | F108: 0 | G108: 0
A109: Sum | B109: =SUM(B103:B108) -> 670.9402812 | D109: =SUM(D103:D108) -> 6814.868787 | G109: =SUM(G103:G108) -> 35203.50043
A111: Area of cross section | B111: Atc | C111: =B109 -> 670.9402812 | D111: in2
A112: Moment of inertia about centriod | B112: Itc | C112: =G109 -> 35203.50043 | D112: in4
A113: Eccentricity of strands w.r.t transformed section at transfer | B113: etc | C113: =C114-$C$29 -> 7.357191301 | D113: in
A114: Distance from centroid to extreme bottom fiber | B114: ybtc | C114: =D109/B109 -> 10.1571913 | D114: in
A115: Distance from centroid to extreme top fiber of the precast beam | B115: yttc | C115: =h-C114 -> 10.8428087 | D115: in
A116: Distance from centroid to extreme top fiber of the deck | B116: ydtc | C116: =h+h_slab-C114 -> 10.8428087 | D116: in
A117: Section modulus for extreme bottom fiber | B117: Sbtc | C117: =C112/C114 -> 3465.869589 | D117: in3
A118: Section modulus for extreme top fiber of the precast beam | B118: Sttc | C118: =C112/C115 -> 3246.71415 | D118: in3
A119: Section modulus for extreme top fiber of the deck | B119: Sdtc | C119: =(C112/C116)*(1/$C$35) ->  | D119: in3
A121: Section properties for cracked section
A122: Area of prestressing strands | B122: Aps | C122: =Aps -> 5.01 | D122: in2
A123: Modular ratio | B123: n | C123: =C79 -> 5.618818602
A124: Modular ratio applicable to prestressed concrete | B124: 2n | C124: =C123*2 -> 11.2376372
A125: Transforemd area | B125: ATrans | C125: =C124*C122 -> 56.30056239 | D125: in2
A127: Check if neutral axis in the top flange
A128: Assumed neutral axis | B128: c | C128: 5.455518309 | D128: in
A129: compression block (C) | B129: bc2/2 | C129: =0.5*b*C128^2 -> 714.3043205 | D129: in3
A130: Tension block (T) | B130: Atrans (de-c) | C130: =C125*(de-C128) -> 714.3043116 | D130: in3
A131: Goal seek changing value of c such that compression block is equal to tension block
A132: Diifference | B132: (C-T) | C132: =C129-C130 -> 8.893551694e-06 | D132: in
A133: Check | C133: =IF(C128<(hf+h_slab),"Neutral axis lies in the top flange", "Neutral axis lies in the web") -> Neutral axis lies in the top flange
A135: Trial and adjustment for value of c | B135: =IF(C133="Neutral axis lies in the top flange","Not Applicable","Continue with trial and adjustment") -> Not Applicable
A136: Adopted neutral axis | B136: c | C136: 5.465622222 | D136: in
A137: Moment of inertia of the cracked section | B137: Icr | C137: =moment_inertia_cr(5.47) -> 11742.34657 | D137: in4
A139: Trial and adjustment for value of c
A140: Trial c | B140: Centriod | C140: Concrete area | D140: Calculated c | E140: Difference
A141: in | B141: in | C141: in2 | D141: in2 | E141: Trial - Calculated
A142: 5.455518309 | B142: 2.727759154 | C142: 261.8648788 | D142: 5.465629923 | E142: -0.01011161391
A143: 5.465629923 | B143: 2.732814961 | C143: 262.3502363 | D143: 5.465622222 | E143: 7.700823815e-06
A144: 5.465622222 | B144: 2.732811111 | C144: 262.3498667 | D144: 5.465622222 | E144: 4.466649273e-12
A145: 5.465622222 | B145: 2.732811111 | C145: 262.3498667 | D145: 5.465622222 | E145: 0
A146: 5.465622222 | B146: 2.732811111 | C146: 262.3498667 | D146: 5.465622222 | E146: 0
A147: 5.465622222 | B147: 2.732811111 | C147: 262.3498667 | D147: 5.465622222 | E147: 0
A148: 5.465622222 | B148: 2.732811111 | C148: 262.3498667 | D148: 5.465622222 | E148: 0
A149: 5.465622222 | B149: 2.732811111 | C149: 262.3498667 | D149: 5.465622222 | E149: 0
A150: 5.465622222 | B150: 2.732811111 | C150: 262.3498667 | D150: 5.465622222 | E150: 0
A151: 5.465622222 | B151: 2.732811111 | C151: 262.3498667 | D151: 5.465622222 | E151: 0
A152: 5.465622222 | B152: 2.732811111 | C152: 262.3498667 | D152: 5.465622222 | E152: 0
A153: 5.465622222 | B153: 2.732811111 | C153: 262.3498667 | D153: 5.465622222 | E153: 0
A154: 5.465622222 | B154: 2.732811111 | C154: 262.3498667 | D154: 5.465622222 | E154: 0
A155: 5.465622222 | B155: 2.732811111 | C155: 262.3498667 | D155: 5.465622222 | E155: 0
A156: 5.465622222 | B156: 2.732811111 | C156: 262.3498667 | D156: 5.465622222 | E156: 0
A157: 5.465622222 | B157: 2.732811111 | C157: 262.3498667 | D157: 5.465622222 | E157: 0
A158: 5.465622222 | B158: 2.732811111 | C158: 262.3498667 | D158: 5.465622222 | E158: 0
A159: 5.465622222 | B159: 2.732811111 | C159: 262.3498667 | D159: 5.465622222 | E159: 0
A160: 5.465622222 | B160: 2.732811111 | C160: 262.3498667 | D160: 5.465622222 | E160: 0
A161: 5.465622222 | B161: 2.732811111 | C161: 262.3498667 | D161: 5.465622222 | E161: 0
A162: 5.465622222 | B162: 2.732811111 | C162: 262.3498667 | D162: 5.465622222 | E162: 0
A163: 5.465622222 | B163: 2.732811111 | C163: 262.3498667 | D163: 5.465622222 | E163: 0
A164: 5.465622222 | B164: 2.732811111 | C164: 262.3498667 | D164: 5.465622222 | E164: 0
A165: 5.465622222 | B165: 2.732811111 | C165: 262.3498667 | D165: 5.465622222 | E165: 0
A166: 5.465622222 | B166: 2.732811111 | C166: 262.3498667 | D166: 5.465622222 | E166: 0
A167: 5.465622222 | B167: 2.732811111 | C167: 262.3498667 | D167: 5.465622222 | E167: 0
A168: 5.465622222 | B168: 2.732811111 | C168: 262.3498667 | D168: 5.465622222 | E168: 0
A169: 5.465622222 | B169: 2.732811111 | C169: 262.3498667 | D169: 5.465622222 | E169: 0
A170: 5.465622222 | B170: 2.732811111 | C170: 262.3498667 | D170: 5.465622222 | E170: 0
A171: 5.465622222 | B171: 2.732811111 | C171: 262.3498667 | D171: 5.465622222 | E171: 0
A172: 5.465622222 | B172: 2.732811111 | C172: 262.3498667 | D172: 5.465622222 | E172: 0
A173: 5.465622222 | B173: 2.732811111 | C173: 262.3498667 | D173: 5.465622222 | E173: 0
A174: 5.465622222 | B174: 2.732811111 | C174: 262.3498667 | D174: 5.465622222 | E174: 0
A175: 5.465622222 | B175: 2.732811111 | C175: 262.3498667 | D175: 5.465622222 | E175: 0
A176: 5.465622222 | B176: 2.732811111 | C176: 262.3498667 | D176: 5.465622222 | E176: 0
A177: 5.465622222 | B177: 2.732811111 | C177: 262.3498667 | D177: 5.465622222 | E177: 0
A178: 5.465622222 | B178: 2.732811111 | C178: 262.3498667 | D178: 5.465622222 | E178: 0
A179: 5.465622222 | B179: 2.732811111 | C179: 262.3498667 | D179: 5.465622222 | E179: 0
A180: 5.465622222 | B180: 2.732811111 | C180: 262.3498667 | D180: 5.465622222 | E180: 0
A181: 5.465622222 | B181: 2.732811111 | C181: 262.3498667 | D181: 5.465622222 | E181: 0
A182: 5.465622222 | B182: 2.732811111 | C182: 262.3498667 | D182: 5.465622222 | E182: 0
A183: 5.465622222 | B183: 2.732811111 | C183: 262.3498667 | D183: 5.465622222 | E183: 0
A184: 5.465622222 | B184: 2.732811111 | C184: 262.3498667 | D184: 5.465622222 | E184: 0
A185: 5.465622222 | B185: 2.732811111 | C185: 262.3498667 | D185: 5.465622222 | E185: 0
A186: 5.465622222 | B186: 2.732811111 | C186: 262.3498667 | D186: 5.465622222 | E186: 0
A187: 5.465622222 | B187: 2.732811111 | C187: 262.3498667 | D187: 5.465622222 | E187: 0
A188: 5.465622222 | B188: 2.732811111 | C188: 262.3498667 | D188: 5.465622222 | E188: 0
A189: 5.465622222 | B189: 2.732811111 | C189: 262.3498667 | D189: 5.465622222 | E189: 0
A190: 5.465622222 | B190: 2.732811111 | C190: 262.3498667 | D190: 5.465622222 | E190: 0
A191: 5.465622222 | B191: 2.732811111 | C191: 262.3498667 | D191: 5.465622222 | E191: 0

Sheet Prestress Losses (hidden)
A1: Prestress Losses
A3: Total prestress losses | B3: ΔfpT | C3: =SUM(C4:C5) -> 39.93101909 | D3: ksi
A4: Loss due to elastic shortening | B4: ΔfpES | C4: =$C$19 -> 13.78890086 | D4: ksi
A5: Time dependent losses | B5: ΔfpLT | C5: =$C$89 -> 26.14211823 | D5: ksi
A7: Loss due to Elastic Shortening, ΔfpES
A8: Modulus of elasticity of prestressing steel | B8: Ep | C8: =Ep -> 28500 | D8: ksi
A9: Modulus of elasticity of concrete at transfer | B9: Eci | C9: =MAIN!F58 -> 4286.825749 | D9: ksi
A11: Initial prestress prior to transfer | B11: fpi | C11: =IF(MAIN!D67="Low-relaxation strand",0.75*fpu,0.7*fpu) -> 202.5 | D11: ksi
A12: Prestress immediately after transfer | B12: 0.90(0.7fpu) | C12: =C11*0.9 -> 182.25 | D12: ksi
A13: Prestress force before transfer | B13: Ppi | C13: =C11*SUM(MAIN!B107:B109)*Area_PS -> 1014.525 | D13: kips
A14: Eccentricity of strands at transfer | B14: eti | C14: =eti -> 7.301067313 | D14: in
A15: Maximum moment due to dead load | B15: MD | C15: =((MAIN!F55*(MAIN!C98))/(144)*(1+MAIN!$B$46))*Bridge_span^2/8 + 'Calculation Summary'!F14 -> 384.9781185 | D15: kips-ft
A16: Transformed area of the beam at transfer | B16: Ati | C16: ='Section Props'!C70 -> 676.0978619 | D16: in2
A17: Transformed moment of inertia of beam at transfer | B17: Iti | C17: ='Section Props'!C71 -> 35485.49296 | D17: in4
A18: Concrete stress at CG of prestresing tendons due to prestressing force immediately after transfer and self weight of the beam at section of maximum moment | B18: fcgp | C18: =(C13/C16) + (C13 * C14^2)/C17 - (C15 * C14*12) / C17 -> 2.074056675 | D18: ksi
A19: Loss due to elastic shortening | B19: ΔfpES | C19: =(C8/C9)*C18 -> 13.78890086 | D19: ksi
A21: Time-Dependent Losses, ΔfpLT
A22: Prestress losses between transfer and deck placement, (ΔfpSR + ΔfpCR + ΔfpR1)id
A24: Annual average humidity | B24: H | C24: =MAIN!$B$138 -> 0.7
A25: Concrete age at transfer | B25: t1 | C25: =MAIN!B140 -> 1 | D25: days
A26: Concrete age at deck placement | B26: td | C26: =MAIN!B141 -> 28 | D26: days
A27: Concrete age at final stage | B27: tf | C27: =MAIN!B142 -> 18250 | D27: days
A29: Factor for effect of volume to surface ratio | B29: kvs | C29: =MAX(1.45-0.13* (C48), 1) -> 1
A30: Humidity factor for shrinkage | B30: khs | C30: =2 - 0.014*C24*100 -> 1.02
A31: Humidity factor for creep | B31: khc | C31: =1.56-0.008*C24*100 -> 1
A32: Factor for effect of concrete strength | B32: kf | C32: =5 / (1 + fc_transfer) -> 0.8333333333
A33: Time development factor at time of deck placement | B33: ktd(d,i) | C33: =(C26-C25)/ (12 *(100-4*fc_transfer)/(fc_transfer+20) +(C26-C25)) -> 0.4128440367
A34: Time development factor at final time from transfer | B34: ktd(f,i) | C34: =(C27-C26)/ (12 *(100-4*fc_transfer)/(fc_transfer+20) +(C27-C26)) -> 0.9978970888
A35: Time development factor at final time from transfer | B35: ktd(f,d) | C35: =(C27-C25)/ (12 *(100-4*fc_transfer)/(fc_transfer+20) +(C27-C25)) -> 0.9979001936
A38: Modulus of elasticity of prestressing steel | B38: Ep | C38: =Ep -> 28500 | D38: ksi
A39: Modulus of elasticity of precast beam at transfer | B39: Eci | C39: =C9 -> 4286.825749 | D39: ksi
A40: Modulus of elasticity of deck slab | B40: Ec_deck | C40: =MAIN!F60 -> 4066.839989 | D40: ksi
A41: Area of prestressing strands | B41: Aps | C41: =SUM(MAIN!$B$107:$B$110)*Area_PS -> 5.01 | D41: in2
A42: Area of precast beam | B42: Ag | C42: =Ag -> 647.8 | D42: in2
A43: Area of composite beam | B43: Ac | C43: ='Section Props'!C46 -> 647.8 | D43: in2
A44: Strand eccentricity from centroid of precast beam | B44: epg | C44: =epg -> 7.62 | D44: in
A45: Strand eccentricity from centroid of composite beam | B45: epc | C45: ='Section Props'!$C$49-'Section Props'!$C$29 -> 7.62 | D45: in
A46: Moment of inertia of precast beam | B46: Ig | C46: ='Section Props'!C19 -> 33884 | D46: in4
A47: Moment of inertia of composite beam | B47: Ic | C47: ='Section Props'!C47 -> 33884 | D47: in4
A48: Volume to surface ratio of beam | B48: V/S | C48: =(Ag)/((b+h)*2+(b+h-wh*2-wh*2-2*bw_single-hf-hc+2*SQRT(2*wh^2))) -> 3.569435467 | D48: in
A49: Girder creep coefficient at final time due to loading introduced at transfer | B49: Ψb (tf,ti) | C49: =1.9*C29*C31*C32*C34*C25^(-0.118) -> 1.580003724
A50: Girder creep coefficient at deck placement due to loading introduced at transfer | B50: Ψb (td,ti) | C50: =1.9*(C29*C31*C32*(C33)*C25^(-0.118)) -> 0.6536697248
A51: Girder creep coefficient at final time due to loading at deck placement | B51: Ψb (tf,td) | C51: =1.9*(C29*C31*C32*C35*C26^(-0.118)) -> 1.066337823
A52: Transformed section coefficient | B52: Kid | C52: =1/(1 + (C38/C39)*(C41/C42)*(1 + (C42 *C44^2/C46)) *(1 + 0.7*C49)) -> 0.8140083264
A54: Concrete shrinkage strain | B54: εbid | C54: =C29*C30*C32*(C33)*0.48*10^-3 -> 0.000168440367 | D54: in/in
A55: Shrinkage of girder concrete, ΔfpSR | B55: ΔfpSR | C55: =C54*C38*C52 -> 3.907688045 | D55: ksi
A57: Creep of concrete, ΔfpCR | B57: ΔfpCR | C57: =(C38/C39)*C18*C50*C52 -> 7.336972091 | D57: ksi
A59: Stress in prestressing strands immediately after transfer | B59: fpt | C59: =MAX(IF(MAIN!D67="Low-relaxation strand",0.75,0.7)*fpu-C19,0.55*fpy) -> 188.7110991 | D59: ksi
A60: Factor accounting type of steel | B60: KL | C60: =IF(MAIN!D67 = "Low-relaxation strand", 30,7) -> 30
A61: Relaxation of prestressing strands | B61: ΔfpR1 | C61: =(C59/C60)*(C59/fpy - 0.55) -> 1.42532792 | D61: ksi
A63: Prestress losses between transfer and deck placement, (ΔfpSR + ΔfpCR + ΔfpR1)id | B63: (ΔfpSR + ΔfpCR + ΔfpR1)id | C63: =C61+C57+C55 -> 12.66998806 | D63: ksi
A65: Prestress losses between transfer and deck placement, (ΔfpSD + ΔfpCD + ΔfpR2 + ΔfpSS)if
B67: kdf | C67: =1/(1 + (C38/C39)*(C41/C43)*(1 + (C43 *C45^2/C47)) *(1 + 0.7*C49)) -> 0.8140083264
A68: Total girder concrete shrinkage between transfer and final time | B68: εbif | C68: =C29*C30*C32*(C35)*(0.48*10^-3) -> 0.000407143279 | D68: in/in
A69: Girder concrete shrinkage strain between deck placement and final time | B69: εbdf | C69: =C68-C54 -> 0.000238702912 | D69: in/in
A71: Shrinkage of girder concrete, ΔfpSD | B71: ΔfpSD | C71: =C69*C8*C67 -> 5.5377255 | D71: ksi
A73: Change in concrete stress | B73: Δfcd | C73: =-((C55+C57+C61)*(C41/C42)*(1 + (C42*C44^2)/C46))-(((((MAIN!F55*(((h_slab+0.5*0)*b))/(144))*(1+MAIN!$B$46)*Bridge_span^2/8)*12*'Section Props'!C92)/'Section Props'!C91)+ (('Calculation Summary'!E14+'Calculation Summary'!H14)*12*'Section Props'!C113)/'Section Props'!C112) -> -0.797255078 | D73: ksi
A74: Creep of concrete, ΔfpCRD | B74: ΔfpCD | C74: =((C8/C9)*C18*(C49-C50)*C67) + (C8/'Section Props'!C26)*'Prestress Losses'!C73*'Prestress Losses'!C51*'Prestress Losses'!C67 -> 6.509076758 | D74: ksi
A76: Relaxation of prestressing strands | B76: ΔfpR2 | C76: =C61 -> 1.42532792 | D76: ksi
A78: Volume to surface ratio of deck slab | B78: V/S | C78: =(h_slab*b)/((b+h_slab)) -> 0
A79: Factor for effect of volume to surface ratio | B79: kvs | C79: =MAX(1.45-0.13* (C78), 1) -> 1.45
A80: Humidity factor for shrinkage | B80: khs | C80: =2 - 0.014*C24*100 -> 1.02
A81: Humidity factor for creep | B81: khc | C81: =1.56-0.008*C24*100 -> 1
A82: Factor for effect of concrete strength | B82: kf | C82: =5 / (1 + 0.8*fc_slab) -> 1.086956522
A83: deck creep coefficient at final time due to loading after deck placement | B83: Ψd (tf,td) | C83: =1.9*C79*C81*C82*C35*C25^-0.118 -> 2.98827721
A84: Shrinkage strain of deck concrete between placement and final time | B84: εddf | C84: =C79*C80*C82*C35*0.48*10^-3 -> 0.0007700318537 | D84: in/in
B85: Δfcdf | C85: =((C84*h_slab*b*C40)/(1+0.7*C83))*(1/C43 - C45*(h+h_slab-(h_slab)/2-'Section Props'!C49)/'Section Props'!C47) -> 0 | D85: ksi
A86: Shrinkage of deck concrete | B86: ΔfpSS | C86: =(C8/'Section Props'!C26) * 'Prestress Losses'!C85*'Prestress Losses'!C67*(1+0.7*'Prestress Losses'!C51) -> 0 | D86: ksi
A87: Prestress losses between transfer and deck placement, (ΔfpSD + ΔfpCD + ΔfpR2 + ΔfpSS)if | B87: (ΔfpSD + ΔfpCD + ΔfpR2 + ΔfpSS)if | C87: =C71+C74+C76+C86 -> 13.47213018 | D87: ksi
A89: Total time-dependent loss | B89: ΔfpLT | C89: =C63+C87 -> 26.14211823 | D89: ksi
A91: Effective Stress in Strands After All Losses and Gains
A93: When calculating concrete stress using transformed section properties, the effect of losses and gains due to elastic deformations are implicitly accounted for and Dpes shouldnot be included in the prestressing force applied to transformed section at transfer.
A95: Force per strand with only time-dependent losses | C95: =(C11-C89)*Area_PS -> 29.45176625 | D95: kips
A96: Total prestressing force | B96: Ppe | C96: =C95*SUM(MAIN!$B$107:$B$110) -> 883.5529876 | D96: kips
A98: Concrete Stresses Limits at Service Loads
A100: Compression: For load combination Service-I
A101: a. Due to permanent loads( i.e., beam self weight, diaphragm weight, deck slab, wearing surface and barrier loads)
A102: For precast beam | B102: 0.45 f'c | C102: =0.45*fc_design -> 3.15 | D102: ksi
A103: For deck slab | B103: 0.45 f'c_deck | C103: =0.45*fc_slab -> 2.025 | D103: ksi
A105: b. Due to permanent loads and transient loads ( i.e., all dead loads and live loads)
A106: For precast beam | B106: 0.60 f'c | C106: =0.6*fc_design -> 4.2 | D106: ksi
A107: For deck slab | B107: 0.60 f'c_deck | C107: =0.6*fc_slab -> 2.7 | D107: ksi
A109: Tension: For load combination Service-III
A110: a. For components with bonded prestressing tendons
A111: Rebar conditions | B111: =MAIN!B139 -> Low to moderate corrosion
A112: For precast beam | B112: =IF(B111 = "Low to moderate corrosion","-0.19 √(f'c)", "-0.0948√(f'c)") -> -0.19 √(f'c) | C112: =IF(B111="Low to moderate corrosion",-0.19*SQRT(fc_design),-0.0948*SQRT(fc_design)) -> -0.5026927491 | D112: ksi

Sheet Load Rating Interior Beam (hidden)
A1: Load Rating for Interior Beams
A3: Limit States and Load Factors for Load Rating
A5: Bridge Type | B5: Limit State | C5: Dead Load | D5: Dead Load | E5: Design Load | G5: Legal Load | H5: Permit Load
E6: Inventory | F6: Operating
C7: ᵞDc | D7: ᵞDw | E7: ᵞLL | F7: ᵞLL | G7: ᵞLL | H7: ᵞLL
A8: Prestressed Concrete | B8: Strength I | C8: 1.25 | D8: 1.5 | E8: 1.75 | F8: 1.35 | G8: Tables 6A.4.4.2.3a-1 and 6A.4,4.2.3b-1 | H8: -
B9: Strength II | C9: 1.25 | D9: 1.5 | E9: - | F9: - | G9: - | H9: Table 6A.4.5.4.2a-1
B10: Service III | C10: 1 | D10: 1 | E10: 0.8 | F10: - | G10: 1 | H10: -
B11: Service I | C11: 1 | D11: 1 | E11: - | F11: - | G11: - | H11: 1
A14: Live load factors for routine commercial traffic according to AASHTO LRFD Table 6A.4.4.2.3a-1
A15: Traffic Volume (One direction) ADTT | B15: Load Factor | C15: Remark
A16: Unknown | B16: 1.45
A17: 5000 | B17: 1.45 | C17: ADTT >= 5,000
A18: 1000 | B18: 1.3 | C18: ADTT <= 1,000
A19: =MAIN!$B$145 -> 8000 | B19: =IF($A$19=$A$16,$B$16,IF($A$19<$A$18,$B$18,IF($A$19>$A$17,$B$16,FORECAST($A$19,$B$17:$B$18,$A$17:$A$18)))) -> 1.45
A22: Live load factors for special hauling vehicles according to AASHTO LRFD Table 6A.4.4.2.3b-1
A23: Traffic Volume (One direction) ADTT | B23: Load Factor | C23: Remark
A24: Unknown | B24: 1.45
A25: 5000 | B25: 1.45 | C25: ADTT >= 5,000
A26: 1000 | B26: 1.3 | C26: ADTT <= 1,000
A27: =MAIN!$B$145 -> 8000 | B27: =IF($A$27=$A$24,$B$24,IF($A$27<$A$26,$B$26,IF($A$27>$A$25,$B$24,FORECAST($A$27,$B$25:$B$26,$A$25:$A$26)))) -> 1.45
A29: Table 6A.4.5.4.2a-1 Permit Load Factors: γL
A30: Permit Type | B30: Frequency | C30: Loading Condition | D30: Dfa | E30: ADTT (one direction) | F30: Load Factor by Permit Weight Ratiob
F32: GVW / AL < 2.0 (kip/ft) | G32: 2.0 < GVW / AL < 3.0 (kip/ft) | H32: GVW / AL > 3.0 (kip/ft)
A35: Routine or Annual | B35: Unlimited Crossings | C35: Mix with traffic (other vehicles may be on the bridge) | D35: Two or more Lanes | E35: > 5000 | F35: 1.4 | G35: 1.35 | H35: 1.3
E36: =1000 | F36: 1.35 | G36: 1.25 | H36: 1.2
E37: <1000 | F37: 1.3 | G37: 1.2 | H37: 1.15
B38: Unlimited Crossings (Reinforced Concrete Box Culverts)c | C38: Mix with traffic (other vehicles may be on the bridge) | D38: One lane | E38: All ADTTs | F38: 1.4
F43: All Weights
A44: Special or Limited Crossing | B44: Single-Trip | C44: Escorted with no other vehicles on the bridge | D44: One lane | E44: N/A | F44: 1.1
B47: Single-Trip | C47: Mix with traffic (other vehicles may be on the bridge) | D47: One lane | E47: All ADTTs | F47: 1.2
B51: Multiple Trips (less than 100 crossings) | C51: Mix with traffic (other vehicles may be on the bridge) | D51: One lane | E51: All ADTTs | F51: 1.4
A56: Notes:
A57: a | B57: DF= LRFD distribution factor. When one-lane distribution factor is used, the built-in multiple presence factor should be divided out.
A59: b | B59: Permit Weight Ratio= GVW / AL; GVW= Gross Vehicle Weight; AL= Front axle to rear axle length; Use only axles on the bridge.
A61: c | B61: Refer to Article 6A.5.12.
A63: Permit Load Condition | F63: Custom Vehicle Load Condition
A64: Permit Type: | B64: =MAIN!B153 -> Routine or Annual | F64: Permit Type: | G64: =MAIN!B204 -> Special or Limited crossing
A65: Frequency: | B65: =MAIN!B154 -> Unlimited crossings | F65: Frequency: | G65: =MAIN!B205 -> Single trip
A66: Loading Condition: | B66: =MAIN!B155 -> Mixed with traffic | F66: Loading Condition: | G66: =MAIN!B206 -> Escorted with no other vehicle on the bridge
A67: DF using: | B67: =MAIN!B156 -> Two or more lanes | F67: DF using: | G67: =MAIN!B207 -> One lane
A69: ADTT | B69: =MAIN!B145 -> 8000
A71: Live load factors for permit vehicles according to AASHTO MBE Table 6A.4.5.4.2a-1 | I71: Adopted Live Load Distribution Factor for
A72: Permit vehicle types | B72: Gross vehicle weight | D72: Axle length | F72: GVW / AL | G72: Load factor | J72: Permit Vehicles | L72: Custom Vehicle
B73: GVW (kip) | D73: AL (ft) | G73: ᵞLL | J73: Interior beam | K73: Exterior beam | L73: Interior beam | M73: Exterior beam
A74: PL60T | B74: 119.5 | D74: 65.083 | F74: =B74/D74 -> 1.836116958 | G74: =Live_Load_Factors_PL(B64,B65,B66,B67,B69,F74) -> 1.4 | I74: DFM | J74: =IF($B$67="One lane",(DFM_Int_One_lane*DFM_CF_Skew)/1.2,DFM) -> 0.2938735208 | K74: =IF($B$67="One lane",(DFM_Ext_One_lane*DFM_CF_Skew)/1.2,DFM_ext) -> 0.3083223023 | L74: =IF($G$67="One lane",(DFM_Int_One_lane*DFM_CF_Skew)/1.2,DFM) -> 0.1628172228 | M74: =IF($G$67="One lane",(DFM_Ext_One_lane*DFM_CF_Skew)/1.2,DFM_ext) -> 0.1844131184
A75: PL65T | B75: 130 | D75: 48 | F75: =B75/D75 -> 2.708333333 | G75: =Live_Load_Factors_PL(B64,B65,B66,B67,B69,F75) -> 1.35 | I75: DFV | J75: =IF($B$67="One lane",(DFV_Int_one_lane*DFV_RF_Skew)/1.2,DFV) -> 0.5379440504 | K75: =IF($B$67="One lane",(DFV_Ext_One_lane*DFV_RF_Skew)/1.2,DFV_ext) -> 0.6649366411 | L75: =IF($G$67="One lane",(DFV_Int_one_lane*DFV_RF_Skew)/1.2,DFV) -> 0.4369038036 | M75: =IF($G$67="One lane",(DFV_Ext_One_lane*DFV_RF_Skew)/1.2,DFV_ext) -> 0.5511359439
A76: Custom vehicle 1 | B76: =Vehicles!$O$40 -> 365 | D76: =Vehicles!$AI$39 -> 126.25 | F76: =IF(add_custom_vehicle= "NO", "N/A",B76/D76) -> 2.891089109 | G76: =IF(add_custom_vehicle= "NO", "N/A",Live_Load_Factors_PL(G64,G65,G66,G67,B69,F76)) -> 1.1
A78: Rating Factor With Flexure
A80: Strength I | B80: Load factors | E80: At moment critical point | J80: At center | N80: Adopted RF
A81: Vehicle types | B81: ᵞDc | C81: ᵞDw | D81: ᵞLL | E81: Capacity | F81: Dc | G81: Dw | H81: LL+IM | I81: RF | J81: Dc | K81: Dw | L81: LL+IM | M81: RF
A82: A. Design Vehicles
A83: HL93
A84: Inventory | B84: =VLOOKUP($A$80,$B$5:$D$11,MATCH(B$81,$B$7:$D$7,0),FALSE) -> 1.25 | C84: =VLOOKUP($A$80,$B$5:$D$11,MATCH(C$81,$B$7:$D$7,0),FALSE) -> 1.5 | D84: =$E$8 -> 1.75 | E84: ='Calculation Summary'!$B$132*PRODUCT('Calculation Summary'!$C$135:$C$137) -> 1680.550572 | F84: =VLOOKUP($A84,'Calculation Summary'!$B$17:$I$44,MATCH(F$81,'Calculation Summary'!$B$11:$I$11,0),FALSE) -> 393.8123662 | G84: =VLOOKUP($A84,'Calculation Summary'!$B$17:$I$44,MATCH(G$81,'Calculation Summary'!$B$11:$I$11,0),FALSE) -> 223.5879106 | H84: =VLOOKUP($A84,'Calculation Summary'!$A$65:$D$92,MATCH($E$80,'Calculation Summary'!$A$62:$D$62,0),FALSE) -> 454.066173 | I84: =Loadrating($B84,$C84,$D84,$E84,$F84,$G84,$H84) -> 1.073352991 | J84: ='Calculation Summary'!$G$14 -> 395.7037435 | K84: ='Calculation Summary'!$I$14 -> 224.7286578 | L84: =VLOOKUP($A84,'Calculation Summary'!$A$65:$D$92,MATCH($J$80,'Calculation Summary'!$A$62:$D$62,0),FALSE) -> 452.2390225 | M84: =Loadrating($B84,$C84,$D84,$E84,$J84,$K84,$L84) -> 1.072540169 | N84: =MIN(I84,M84) -> 1.072540169
A85: Operating | B85: =VLOOKUP($A$80,$B$5:$D$11,MATCH(B$81,$B$7:$D$7,0),FALSE) -> 1.25 | C85: =VLOOKUP($A$80,$B$5:$D$11,MATCH(C$81,$B$7:$D$7,0),FALSE) -> 1.5 | D85: =$F$8 -> 1.35 | E85: ='Calculation Summary'!$B$132*PRODUCT('Calculation Summary'!$C$135:$C$137) -> 1680.550572 | F85: =VLOOKUP($A85,'Calculation Summary'!$B$17:$I$44,MATCH(F$81,'Calculation Summary'!$B$11:$I$11,0),FALSE) -> 393.8123662 | G85: =VLOOKUP($A85,'Calculation Summary'!$B$17:$I$44,MATCH(G$81,'Calculation Summary'!$B$11:$I$11,0),FALSE) -> 223.5879106 | H85: =VLOOKUP($A85,'Calculation Summary'!$A$65:$D$92,MATCH($E$80,'Calculation Summary'!$A$62:$D$62,0),FALSE) -> 454.066173 | I85: =Loadrating($B85,$C85,$D85,$E85,$F85,$G85,$H85) -> 1.391383507 | J85: ='Calculation Summary'!$G$14 -> 395.7037435 | K85: ='Calculation Summary'!$I$14 -> 224.7286578 | L85: =VLOOKUP($A85,'Calculation Summary'!$A$65:$D$92,MATCH($J$80,'Calculation Summary'!$A$62:$D$62,0),FALSE) -> 452.2390225 | M85: =Loadrating($B85,$C85,$D85,$E85,$J85,$K85,$L85) -> 1.390329849 | N85: =MIN(I85,M85) -> 1.390329849
A86: HL93_Tandem
A87: Inventory_Tandem | B87: =VLOOKUP($A$80,$B$5:$D$11,MATCH(B$81,$B$7:$D$7,0),FALSE) -> 1.25 | C87: =VLOOKUP($A$80,$B$5:$D$11,MATCH(C$81,$B$7:$D$7,0),FALSE) -> 1.5 | D87: =$E$8 -> 1.75 | E87: ='Calculation Summary'!$B$132*PRODUCT('Calculation Summary'!$C$135:$C$137) -> 1680.550572 | F87: =VLOOKUP($A87,'Calculation Summary'!$B$17:$I$44,MATCH(F$81,'Calculation Summary'!$B$11:$I$11,0),FALSE) -> 395.3563477 | G87: =VLOOKUP($A87,'Calculation Summary'!$B$17:$I$44,MATCH(G$81,'Calculation Summary'!$B$11:$I$11,0),FALSE) -> 224.5191328 | H87: =VLOOKUP($A87,'Calculation Summary'!$A$65:$D$92,MATCH($E$80,'Calculation Summary'!$A$62:$D$62,0),FALSE) -> 401.5348984 | I87: =Loadrating($B87,$C87,$D87,$E87,$F87,$G87,$H87) -> 1.209041238 | J87: ='Calculation Summary'!$G$14 -> 395.7037435 | K87: ='Calculation Summary'!$I$14 -> 224.7286578 | L87: =VLOOKUP($A87,'Calculation Summary'!$A$65:$D$92,MATCH($J$80,'Calculation Summary'!$A$62:$D$62,0),FALSE) -> 401.3305778 | M87: =Loadrating($B87,$C87,$D87,$E87,$J87,$K87,$L87) -> 1.208590984 | N87: =MIN(I87,M87) -> 1.208590984
A88: Operating_Tandem | B88: =VLOOKUP($A$80,$B$5:$D$11,MATCH(B$81,$B$7:$D$7,0),FALSE) -> 1.25 | C88: =VLOOKUP($A$80,$B$5:$D$11,MATCH(C$81,$B$7:$D$7,0),FALSE) -> 1.5 | D88: =$F$8 -> 1.35 | E88: ='Calculation Summary'!$B$132*PRODUCT('Calculation Summary'!$C$135:$C$137) -> 1680.550572 | F88: =VLOOKUP($A88,'Calculation Summary'!$B$17:$I$44,MATCH(F$81,'Calculation Summary'!$B$11:$I$11,0),FALSE) -> 395.3563477 | G88: =VLOOKUP($A88,'Calculation Summary'!$B$17:$I$44,MATCH(G$81,'Calculation Summary'!$B$11:$I$11,0),FALSE) -> 224.5191328 | H88: =VLOOKUP($A88,'Calculation Summary'!$A$65:$D$92,MATCH($E$80,'Calculation Summary'!$A$62:$D$62,0),FALSE) -> 401.5348984 | I88: =Loadrating($B88,$C88,$D88,$E88,$F88,$G88,$H88) -> 1.567275679 | J88: ='Calculation Summary'!$G$14 -> 395.7037435 | K88: ='Calculation Summary'!$I$14 -> 224.7286578 | L88: =VLOOKUP($A88,'Calculation Summary'!$A$65:$D$92,MATCH($J$80,'Calculation Summary'!$A$62:$D$62,0),FALSE) -> 401.3305778 | M88: =Loadrating($B88,$C88,$D88,$E88,$J88,$K88,$L88) -> 1.566692016 | N88: =MIN(I88,M88) -> 1.566692016
A89: B. Ohio Legal Vehicles
A90: 2F1 | B90: =VLOOKUP($A$80,$B$5:$D$11,MATCH(B$81,$B$7:$D$7,0),FALSE) -> 1.25 | C90: 1.5 | D90: =$B$19 -> 1.45 | E90: ='Calculation Summary'!$B$132*PRODUCT('Calculation Summary'!$C$135:$C$137) -> 1680.550572 | F90: =VLOOKUP($A90,'Calculation Summary'!$B$17:$I$44,MATCH(F$81,'Calculation Summary'!$B$11:$I$11,0),FALSE) -> 394.7387551 | G90: =VLOOKUP($A90,'Calculation Summary'!$B$17:$I$44,MATCH(G$81,'Calculation Summary'!$B$11:$I$11,0),FALSE) -> 224.1466439 | H90: =VLOOKUP($A90,'Calculation Summary'!$A$65:$D$92,MATCH($E$80,'Calculation Summary'!$A$62:$D$62,0),FALSE) -> 172.960616 | I90: =Loadrating($B90,$C90,$D90,$E90,$F90,$G90,$H90) -> 3.392867922 | J90: ='Calculation Summary'!$G$14 -> 395.7037435 | K90: ='Calculation Summary'!$I$14 -> 224.7286578 | L90: =VLOOKUP($A90,'Calculation Summary'!$A$65:$D$92,MATCH($J$80,'Calculation Summary'!$A$62:$D$62,0),FALSE) -> 172.4633491 | M90: =Loadrating($B90,$C90,$D90,$E90,$J90,$K90,$L90) -> 3.394336008 | N90: =MIN(I90,M90) -> 3.392867922
A91: 3F1 | B91: 1.25 | C91: 1.5 | D91: =$B$19 -> 1.45 | E91: ='Calculation Summary'!$B$132*PRODUCT('Calculation Summary'!$C$135:$C$137) -> 1680.550572 | F91: =VLOOKUP($A91,'Calculation Summary'!$B$17:$I$44,MATCH(F$81,'Calculation Summary'!$B$11:$I$11,0),FALSE) -> 395.5927607 | G91: =VLOOKUP($A91,'Calculation Summary'!$B$17:$I$44,MATCH(G$81,'Calculation Summary'!$B$11:$I$11,0),FALSE) -> 224.6617207 | H91: =VLOOKUP($A91,'Calculation Summary'!$A$65:$D$92,MATCH($E$80,'Calculation Summary'!$A$62:$D$62,0),FALSE) -> 257.7567297 | I91: =Loadrating($B91,$C91,$D91,$E91,$F91,$G91,$H91) -> 2.271767945 | J91: ='Calculation Summary'!$G$14 -> 395.7037435 | K91: ='Calculation Summary'!$I$14 -> 224.7286578 | L91: =VLOOKUP($A91,'Calculation Summary'!$A$65:$D$92,MATCH($J$80,'Calculation Summary'!$A$62:$D$62,0),FALSE) -> 257.6690378 | M91: =Loadrating($B91,$C91,$D91,$E91,$J91,$K91,$L91) -> 2.271901044 | N91: =MIN(I91,M91) -> 2.271767945
A92: 5C1 | B92: 1.25 | C92: 1.5 | D92: =$B$19 -> 1.45 | E92: ='Calculation Summary'!$B$132*PRODUCT('Calculation Summary'!$C$135:$C$137) -> 1680.550572 | F92: =VLOOKUP($A92,'Calculation Summary'!$B$17:$I$44,MATCH(F$81,'Calculation Summary'!$B$11:$I$11,0),FALSE) -> 385.6205251 | G92: =VLOOKUP($A92,'Calculation Summary'!$B$17:$I$44,MATCH(G$81,'Calculation Summary'!$B$11:$I$11,0),FALSE) -> 218.6471619 | H92: =VLOOKUP($A92,'Calculation Summary'!$A$65:$D$92,MATCH($E$80,'Calculation Summary'!$A$62:$D$62,0),FALSE) -> 255.793173 | I92: =Loadrating($B92,$C92,$D92,$E92,$F92,$G92,$H92) -> 2.347139219 | J92: ='Calculation Summary'!$G$14 -> 395.7037435 | K92: ='Calculation Summary'!$I$14 -> 224.7286578 | L92: =VLOOKUP($A92,'Calculation Summary'!$A$65:$D$92,MATCH($J$80,'Calculation Summary'!$A$62:$D$62,0),FALSE) -> 252.9788164 | M92: =Loadrating($B92,$C92,$D92,$E92,$J92,$K92,$L92) -> 2.314022037 | N92: =MIN(I92,M92) -> 2.314022037
A93: C. Specialized Hauling Vehicles
A94: SU4 | B94: =VLOOKUP($A$80,$B$5:$D$11,MATCH(B$81,$B$7:$D$7,0),FALSE) -> 1.25 | C94: 1.5 | D94: =$B$27 -> 1.45 | E94: ='Calculation Summary'!$B$132*PRODUCT('Calculation Summary'!$C$135:$C$137) -> 1680.550572 | F94: =VLOOKUP($A94,'Calculation Summary'!$B$17:$I$44,MATCH(F$81,'Calculation Summary'!$B$11:$I$11,0),FALSE) -> 395.1847942 | G94: =VLOOKUP($A94,'Calculation Summary'!$B$17:$I$44,MATCH(G$81,'Calculation Summary'!$B$11:$I$11,0),FALSE) -> 224.4156637 | H94: =VLOOKUP($A94,'Calculation Summary'!$A$65:$D$92,MATCH($E$80,'Calculation Summary'!$A$62:$D$62,0),FALSE) -> 293.7179043 | I94: =Loadrating($B94,$C94,$D94,$E94,$F94,$G94,$H94) -> 1.995689417 | J94: ='Calculation Summary'!$G$14 -> 395.7037435 | K94: ='Calculation Summary'!$I$14 -> 224.7286578 | L94: =VLOOKUP($A94,'Calculation Summary'!$A$65:$D$92,MATCH($J$80,'Calculation Summary'!$A$62:$D$62,0),FALSE) -> 293.23655 | M94: =Loadrating($B94,$C94,$D94,$E94,$J94,$K94,$L94) -> 1.996335573 | N94: =MIN(I94,M94) -> 1.995689417
A95: SU5 | B95: 1.25 | C95: 1.5 | D95: =$B$27 -> 1.45 | E95: ='Calculation Summary'!$B$132*PRODUCT('Calculation Summary'!$C$135:$C$137) -> 1680.550572 | F95: =VLOOKUP($A95,'Calculation Summary'!$B$17:$I$44,MATCH(F$81,'Calculation Summary'!$B$11:$I$11,0),FALSE) -> 394.3586239 | G95: =VLOOKUP($A95,'Calculation Summary'!$B$17:$I$44,MATCH(G$81,'Calculation Summary'!$B$11:$I$11,0),FALSE) -> 223.9173753 | H95: =VLOOKUP($A95,'Calculation Summary'!$A$65:$D$92,MATCH($E$80,'Calculation Summary'!$A$62:$D$62,0),FALSE) -> 323.9829473 | I95: =Loadrating($B95,$C95,$D95,$E95,$F95,$G95,$H95) -> 1.813050361 | J95: ='Calculation Summary'!$G$14 -> 395.7037435 | K95: ='Calculation Summary'!$I$14 -> 224.7286578 | L95: =VLOOKUP($A95,'Calculation Summary'!$A$65:$D$92,MATCH($J$80,'Calculation Summary'!$A$62:$D$62,0),FALSE) -> 322.5504337 | M95: =Loadrating($B95,$C95,$D95,$E95,$J95,$K95,$L95) -> 1.8149055 | N95: =MIN(I95,M95) -> 1.813050361
A96: SU6 | B96: 1.25 | C96: 1.5 | D96: =$B$27 -> 1.45 | E96: ='Calculation Summary'!$B$132*PRODUCT('Calculation Summary'!$C$135:$C$137) -> 1680.550572 | F96: =VLOOKUP($A96,'Calculation Summary'!$B$17:$I$44,MATCH(F$81,'Calculation Summary'!$B$11:$I$11,0),FALSE) -> 395.1779839 | G96: =VLOOKUP($A96,'Calculation Summary'!$B$17:$I$44,MATCH(G$81,'Calculation Summary'!$B$11:$I$11,0),FALSE) -> 224.4115562 | H96: =VLOOKUP($A96,'Calculation Summary'!$A$65:$D$92,MATCH($E$80,'Calculation Summary'!$A$62:$D$62,0),FALSE) -> 360.4311452 | I96: =Loadrating($B96,$C96,$D96,$E96,$F96,$G96,$H96) -> 1.626329581 | J96: ='Calculation Summary'!$G$14 -> 395.7037435 | K96: ='Calculation Summary'!$I$14 -> 224.7286578 | L96: =VLOOKUP($A96,'Calculation Summary'!$A$65:$D$92,MATCH($J$80,'Calculation Summary'!$A$62:$D$62,0),FALSE) -> 359.8034942 | M96: =Loadrating($B96,$C96,$D96,$E96,$J96,$K96,$L96) -> 1.626995194 | N96: =MIN(I96,M96) -> 1.626329581
A97: SU7 | B97: 1.25 | C97: 1.5 | D97: =$B$27 -> 1.45 | E97: ='Calculation Summary'!$B$132*PRODUCT('Calculation Summary'!$C$135:$C$137) -> 1680.550572 | F97: =VLOOKUP($A97,'Calculation Summary'!$B$17:$I$44,MATCH(F$81,'Calculation Summary'!$B$11:$I$11,0),FALSE) -> 395.6224073 | G97: =VLOOKUP($A97,'Calculation Summary'!$B$17:$I$44,MATCH(G$81,'Calculation Summary'!$B$11:$I$11,0),FALSE) -> 224.6796015 | H97: =VLOOKUP($A97,'Calculation Summary'!$A$65:$D$92,MATCH($E$80,'Calculation Summary'!$A$62:$D$62,0),FALSE) -> 392.3524681 | I97: =Loadrating($B97,$C97,$D97,$E97,$F97,$G97,$H97) -> 1.49233016 | J97: ='Calculation Summary'!$G$14 -> 395.7037435 | K97: ='Calculation Summary'!$I$14 -> 224.7286578 | L97: =VLOOKUP($A97,'Calculation Summary'!$A$65:$D$92,MATCH($J$80,'Calculation Summary'!$A$62:$D$62,0),FALSE) -> 392.2441922 | M97: =Loadrating($B97,$C97,$D97,$E97,$J97,$K97,$L97) -> 1.492433968 | N97: =MIN(I97,M97) -> 1.49233016
A98: D. Emergency Vehicles
A99: EV2 | B99: =VLOOKUP($A$80,$B$5:$D$11,MATCH(B$81,$B$7:$D$7,0),FALSE) -> 1.25 | C99: =VLOOKUP($A$80,$B$5:$D$11,MATCH(C$81,$B$7:$D$7,0),FALSE) -> 1.5 | D99: =MAIN!B149 -> 1.3 | E99: ='Calculation Summary'!$B$132*PRODUCT('Calculation Summary'!$C$135:$C$137) -> 1680.550572 | F99: =VLOOKUP($A99,'Calculation Summary'!$B$17:$I$44,MATCH(F$81,'Calculation Summary'!$B$11:$I$11,0),FALSE) -> 392.2993957 | G99: =VLOOKUP($A99,'Calculation Summary'!$B$17:$I$44,MATCH(G$81,'Calculation Summary'!$B$11:$I$11,0),FALSE) -> 222.675392 | H99: =VLOOKUP($A99,'Calculation Summary'!$A$65:$D$92,MATCH($E$80,'Calculation Summary'!$A$62:$D$62,0),FALSE) -> 301.0204498 | I99: =Loadrating($B99,$C99,$D99,$E99,$F99,$G99,$H99) -> 2.187848393 | J99: ='Calculation Summary'!$G$14 -> 395.7037435 | K99: ='Calculation Summary'!$I$14 -> 224.7286578 | L99: =VLOOKUP($A99,'Calculation Summary'!$A$65:$D$92,MATCH($J$80,'Calculation Summary'!$A$62:$D$62,0),FALSE) -> 297.6580608 | M99: =Loadrating($B99,$C99,$D99,$E99,$J99,$K99,$L99) -> 2.193606118 | N99: =MIN(I99,M99) -> 2.187848393
A100: EV3 | B100: =VLOOKUP($A$80,$B$5:$D$11,MATCH(B$81,$B$7:$D$7,0),FALSE) -> 1.25 | C100: =VLOOKUP($A$80,$B$5:$D$11,MATCH(C$81,$B$7:$D$7,0),FALSE) -> 1.5 | D100: =MAIN!B150 -> 1.1 | E100: ='Calculation Summary'!$B$132*PRODUCT('Calculation Summary'!$C$135:$C$137) -> 1680.550572 | F100: =VLOOKUP($A100,'Calculation Summary'!$B$17:$I$44,MATCH(F$81,'Calculation Summary'!$B$11:$I$11,0),FALSE) -> 395.0497225 | G100: =VLOOKUP($A100,'Calculation Summary'!$B$17:$I$44,MATCH(G$81,'Calculation Summary'!$B$11:$I$11,0),FALSE) -> 224.3341978 | H100: =VLOOKUP($A100,'Calculation Summary'!$A$65:$D$92,MATCH($E$80,'Calculation Summary'!$A$62:$D$62,0),FALSE) -> 456.7970234 | I100: =Loadrating($B100,$C100,$D100,$E100,$F100,$G100,$H100) -> 1.692092547 | J100: ='Calculation Summary'!$G$14 -> 395.7037435 | K100: ='Calculation Summary'!$I$14 -> 224.7286578 | L100: =VLOOKUP($A100,'Calculation Summary'!$A$65:$D$92,MATCH($J$80,'Calculation Summary'!$A$62:$D$62,0),FALSE) -> 455.8308916 | M100: =Loadrating($B100,$C100,$D100,$E100,$J100,$K100,$L100) -> 1.692868446 | N100: =MIN(I100,M100) -> 1.692092547
A101: E. AASHTO Legal Vehicles
A102: Type3 | B102: =VLOOKUP($A$80,$B$5:$D$11,MATCH(B$81,$B$7:$D$7,0),FALSE) -> 1.25 | C102: 1.5 | D102: =$B$19 -> 1.45 | E102: ='Calculation Summary'!$B$132*PRODUCT('Calculation Summary'!$C$135:$C$137) -> 1680.550572 | F102: =VLOOKUP($A102,'Calculation Summary'!$B$17:$I$44,MATCH(F$81,'Calculation Summary'!$B$11:$I$11,0),FALSE) -> 394.6760077 | G102: =VLOOKUP($A102,'Calculation Summary'!$B$17:$I$44,MATCH(G$81,'Calculation Summary'!$B$11:$I$11,0),FALSE) -> 224.1087991 | H102: =VLOOKUP($A102,'Calculation Summary'!$A$65:$D$92,MATCH($E$80,'Calculation Summary'!$A$62:$D$62,0),FALSE) -> 260.7013912 | I102: =Loadrating($B102,$C102,$D102,$E102,$F102,$G102,$H102) -> 2.251333473 | J102: ='Calculation Summary'!$G$14 -> 395.7037435 | K102: ='Calculation Summary'!$I$14 -> 224.7286578 | L102: =VLOOKUP($A102,'Calculation Summary'!$A$65:$D$92,MATCH($J$80,'Calculation Summary'!$A$62:$D$62,0),FALSE) -> 259.8187226 | M102: =Loadrating($B102,$C102,$D102,$E102,$J102,$K102,$L102) -> 2.253103819 | N102: =MIN(I102,M102) -> 2.251333473
A103: Type3S2 | B103: 1.25 | C103: 1.5 | D103: =$B$19 -> 1.45 | E103: ='Calculation Summary'!$B$132*PRODUCT('Calculation Summary'!$C$135:$C$137) -> 1680.550572 | F103: =VLOOKUP($A103,'Calculation Summary'!$B$17:$I$44,MATCH(F$81,'Calculation Summary'!$B$11:$I$11,0),FALSE) -> 390.9621656 | G103: =VLOOKUP($A103,'Calculation Summary'!$B$17:$I$44,MATCH(G$81,'Calculation Summary'!$B$11:$I$11,0),FALSE) -> 221.8688679 | H103: =VLOOKUP($A103,'Calculation Summary'!$A$65:$D$92,MATCH($E$80,'Calculation Summary'!$A$62:$D$62,0),FALSE) -> 279.8512025 | I103: =Loadrating($B103,$C103,$D103,$E103,$F103,$G103,$H103) -> 2.116998324 | J103: ='Calculation Summary'!$G$14 -> 395.7037435 | K103: ='Calculation Summary'!$I$14 -> 224.7286578 | L103: =VLOOKUP($A103,'Calculation Summary'!$A$65:$D$92,MATCH($J$80,'Calculation Summary'!$A$62:$D$62,0),FALSE) -> 273.9870997 | M103: =Loadrating($B103,$C103,$D103,$E103,$J103,$K103,$L103) -> 2.136591674 | N103: =MIN(I103,M103) -> 2.116998324
A104: Type3_3 | B104: 1.25 | C104: 1.5 | D104: =$B$19 -> 1.45 | E104: ='Calculation Summary'!$B$132*PRODUCT('Calculation Summary'!$C$135:$C$137) -> 1680.550572 | F104: =VLOOKUP($A104,'Calculation Summary'!$B$17:$I$44,MATCH(F$81,'Calculation Summary'!$B$11:$I$11,0),FALSE) -> 395.5306466 | G104: =VLOOKUP($A104,'Calculation Summary'!$B$17:$I$44,MATCH(G$81,'Calculation Summary'!$B$11:$I$11,0),FALSE) -> 224.6242578 | H104: =VLOOKUP($A104,'Calculation Summary'!$A$65:$D$92,MATCH($E$80,'Calculation Summary'!$A$62:$D$62,0),FALSE) -> 257.18723 | I104: =Loadrating($B104,$C104,$D104,$E104,$F104,$G104,$H104) -> 2.277157297 | J104: ='Calculation Summary'!$G$14 -> 395.7037435 | K104: ='Calculation Summary'!$I$14 -> 224.7286578 | L104: =VLOOKUP($A104,'Calculation Summary'!$A$65:$D$92,MATCH($J$80,'Calculation Summary'!$A$62:$D$62,0),FALSE) -> 256.9850471 | M104: =Loadrating($B104,$C104,$D104,$E104,$J104,$K104,$L104) -> 2.277947929 | N104: =MIN(I104,M104) -> 2.277157297
A106: Strength II | B106: Load factors | E106: At Moment critical point | J106: At center | N106: Adopted RF
A107: Vehicle types | B107: ᵞDc | C107: ᵞDw | D107: ᵞLL | E107: Capacity | F107: Dc | G107: Dw | H107: LL+IM | I107: RF | J107: Dc | K107: Dw | L107: LL+IM | M107: RF
A108: F.Permit Loads
A109: PL60T | B109: =VLOOKUP($A$106,$B$5:$D$11,MATCH(B$107,$B$7:$D$7,0),FALSE) -> 1.25 | C109: =VLOOKUP($A$106,$B$5:$D$11,MATCH(C$107,$B$7:$D$7,0),FALSE) -> 1.5 | D109: =$G$74 -> 1.4 | E109: ='Calculation Summary'!$B$132*PRODUCT('Calculation Summary'!$C$135:$C$137) -> 1680.550572 | F109: =VLOOKUP($A109,'Calculation Summary'!$B$17:$I$44,MATCH(F$81,'Calculation Summary'!$B$11:$I$11,0),FALSE) -> 395.7036128 | G109: =VLOOKUP($A109,'Calculation Summary'!$B$17:$I$44,MATCH(G$81,'Calculation Summary'!$B$11:$I$11,0),FALSE) -> 224.728579 | H109: =VLOOKUP($A109,'Calculation Summary'!$A$65:$D$92,MATCH($E$80,'Calculation Summary'!$A$62:$D$62,0),FALSE) -> 253.6496806 | I109: =Loadrating($B109,$C109,$D109,$E109,$F109,$G109,$H109) -> 2.390327664 | J109: ='Calculation Summary'!$G$14 -> 395.7037435 | K109: ='Calculation Summary'!$I$14 -> 224.7286578 | L109: =VLOOKUP($A109,'Calculation Summary'!$A$65:$D$92,MATCH($J$80,'Calculation Summary'!$A$62:$D$62,0),FALSE) -> 253.6495827 | M109: =Loadrating($B109,$C109,$D109,$E109,$J109,$K109,$L109) -> 2.390327794 | N109: =MIN(I109,M109) -> 2.390327664
A110: PL65T | B110: =VLOOKUP($A$106,$B$5:$D$11,MATCH(B$107,$B$7:$D$7,0),FALSE) -> 1.25 | C110: =VLOOKUP($A$106,$B$5:$D$11,MATCH(C$107,$B$7:$D$7,0),FALSE) -> 1.5 | D110: =$G$75 -> 1.35 | E110: ='Calculation Summary'!$B$132*PRODUCT('Calculation Summary'!$C$135:$C$137) -> 1680.550572 | F110: =VLOOKUP($A110,'Calculation Summary'!$B$17:$I$44,MATCH(F$81,'Calculation Summary'!$B$11:$I$11,0),FALSE) -> 389.02511 | G110: =VLOOKUP($A110,'Calculation Summary'!$B$17:$I$44,MATCH(G$81,'Calculation Summary'!$B$11:$I$11,0),FALSE) -> 220.7005707 | H110: =VLOOKUP($A110,'Calculation Summary'!$A$65:$D$92,MATCH($E$80,'Calculation Summary'!$A$62:$D$62,0),FALSE) -> 345.8615672 | I110: =Loadrating($B110,$C110,$D110,$E110,$F110,$G110,$H110) -> 1.848777213 | J110: ='Calculation Summary'!$G$14 -> 395.7037435 | K110: ='Calculation Summary'!$I$14 -> 224.7286578 | L110: =VLOOKUP($A110,'Calculation Summary'!$A$65:$D$92,MATCH($J$80,'Calculation Summary'!$A$62:$D$62,0),FALSE) -> 334.6484719 | M110: =Loadrating($B110,$C110,$D110,$E110,$J110,$K110,$L110) -> 1.878871308 | N110: =MIN(I110,M110) -> 1.848777213
A111: G.Custom Vehicle
A112: Custom_Vehicle_1 | B112: =VLOOKUP($A$106,$B$5:$D$11,MATCH(B$107,$B$7:$D$7,0),FALSE) -> 1.25 | C112: =VLOOKUP($A$106,$B$5:$D$11,MATCH(C$107,$B$7:$D$7,0),FALSE) -> 1.5 | D112: =IF(add_custom_vehicle= "NO", "N/A",$G$76) -> 1.1 | E112: ='Calculation Summary'!$B$132*PRODUCT('Calculation Summary'!$C$135:$C$137) -> 1680.550572 | F112: =VLOOKUP($A112,'Calculation Summary'!$B$17:$I$44,MATCH(F$81,'Calculation Summary'!$B$11:$I$11,0),FALSE) -> 394.6897047 | G112: =VLOOKUP($A112,'Calculation Summary'!$B$17:$I$44,MATCH(G$81,'Calculation Summary'!$B$11:$I$11,0),FALSE) -> 224.1170602 | H112: =VLOOKUP($A112,'Calculation Summary'!$A$65:$D$92,MATCH($E$80,'Calculation Summary'!$A$62:$D$62,0),FALSE) -> 305.0547147 | I112: =IF(add_custom_vehicle= "NO", "N/A",Loadrating($B112,$C112,$D112,$E112,$F112,$G112,$H112)) -> 2.536096016 | J112: ='Calculation Summary'!$G$14 -> 395.7037435 | K112: ='Calculation Summary'!$I$14 -> 224.7286578 | L112: =VLOOKUP($A112,'Calculation Summary'!$A$65:$D$92,MATCH($J$80,'Calculation Summary'!$A$62:$D$62,0),FALSE) -> 303.6761009 | M112: =IF(add_custom_vehicle= "NO", "N/A",Loadrating($B112,$C112,$D112,$E112,$J112,$K112,$L112)) -> 2.541068364 | N112: =IF(add_custom_vehicle= "NO", "N/A",MIN(I112,M112)) -> 2.536096016
A115: Service III | B115: Load factors | E115: At Moment critical point | J115: At center | N115: Adopted RF
A116: Vehicle types | B116: ᵞDc | C116: ᵞDw | D116: ᵞLL | E116: Capacity | F116: Dc | G116: Dw | H116: LL+IM | I116: RF | J116: Dc | K116: Dw | L116: LL+IM | M116: RF
A117: A. Design Vehicles
A118: HL93
A119: Inventory | B119: =VLOOKUP($A$115,$B$5:$D$11,MATCH(B$116,$B$7:$D$7,0),FALSE) -> 1 | C119: =VLOOKUP($A$115,$B$5:$D$11,MATCH(C$116,$B$7:$D$7,0),FALSE) -> 1 | D119: =$E$10 -> 0.8 | E119: =Capacity!$G$65 -> 3.69514677 | F119: =VLOOKUP($A119,'Calculation Summary'!$B$17:$I$44,MATCH("Beam weight",'Calculation Summary'!$B$11:$I$11,0),FALSE)*12/sb + VLOOKUP($A119,'Calculation Summary'!$B$17:$I$44,MATCH("diaphragm weight",'Calculation Summary'!$B$11:$I$11,0),FALSE)*12/sb +VLOOKUP($A119,'Calculation Summary'!$B$17:$I$44,MATCH("Barrier weight",'Calculation Summary'!$B$11:$I$11,0),FALSE)*12/sbc -> 1.452749686 | G119: =VLOOKUP($A119,'Calculation Summary'!$B$17:$I$44,MATCH("Wearing surface",'Calculation Summary'!$B$11:$I$11,0),FALSE)*12/sbc -> 0.825092443 | H119: =H84*12/sbc -> 1.675611919 | I119: =Loadrating($B119,$C119,$D119,$E119,$F119,$G119,$H119) -> 1.057303771 | J119: ='Calculation Summary'!D$14*12/sb +'Calculation Summary'!$F$14*12/sb + 'Calculation Summary'!$E$14*12 / sbc -> 1.459726865 | K119: ='Calculation Summary'!$I$14*12/sbc -> 0.829302071 | L119: =L84*12/sbc -> 1.6688693 | M119: =Loadrating($B119,$C119,$D119,$E119,$J119,$K119,$L119) -> 1.053196492 | N119: =MIN(I119,M119) -> 1.053196492
A120: HL93_Tandem
A121: Inventory_Tandem | B121: =VLOOKUP($A$115,$B$5:$D$11,MATCH(B$116,$B$7:$D$7,0),FALSE) -> 1 | C121: =VLOOKUP($A$115,$B$5:$D$11,MATCH(C$116,$B$7:$D$7,0),FALSE) -> 1 | D121: =$E$10 -> 0.8 | E121: =Capacity!$G$65 -> 3.69514677 | F121: =VLOOKUP($A121,'Calculation Summary'!$B$17:$I$44,MATCH("Beam weight",'Calculation Summary'!$B$11:$I$11,0),FALSE)*12/sb + VLOOKUP($A121,'Calculation Summary'!$B$17:$I$44,MATCH("diaphragm weight",'Calculation Summary'!$B$11:$I$11,0),FALSE)*12/sb +VLOOKUP($A121,'Calculation Summary'!$B$17:$I$44,MATCH("Barrier weight",'Calculation Summary'!$B$11:$I$11,0),FALSE)*12/sbc -> 1.458445342 | G121: =VLOOKUP($A121,'Calculation Summary'!$B$17:$I$44,MATCH("Wearing surface",'Calculation Summary'!$B$11:$I$11,0),FALSE)*12/sbc -> 0.828528874 | H121: =H87*12/sbc -> 1.481759051 | I121: =Loadrating($B121,$C121,$D121,$E121,$F121,$G121,$H121) -> 1.187923023 | J121: ='Calculation Summary'!D$14*12/sb +'Calculation Summary'!$F$14*12/sb + 'Calculation Summary'!$E$14*12 / sbc -> 1.459726865 | K121: ='Calculation Summary'!$I$14*12/sbc -> 0.829302071 | L121: =L87*12/sbc -> 1.48100506 | M121: =Loadrating($B121,$C121,$D121,$E121,$J121,$K121,$L121) -> 1.186793577 | N121: =MIN(I121,M121) -> 1.186793577
A122: B. Ohio Legal Vehicles
A123: 2F1 | B123: =VLOOKUP($A$115,$B$5:$D$11,MATCH(B$116,$B$7:$D$7,0),FALSE) -> 1 | C123: 1 | D123: =$G$10 -> 1 | E123: =Capacity!$G$65 -> 3.69514677 | F123: =VLOOKUP($A123,'Calculation Summary'!$B$17:$I$44,MATCH("Beam weight",'Calculation Summary'!$B$11:$I$11,0),FALSE)*12/sb + VLOOKUP($A123,'Calculation Summary'!$B$17:$I$44,MATCH("diaphragm weight",'Calculation Summary'!$B$11:$I$11,0),FALSE)*12/sb +VLOOKUP($A123,'Calculation Summary'!$B$17:$I$44,MATCH("Barrier weight",'Calculation Summary'!$B$11:$I$11,0),FALSE)*12/sbc -> 1.456167079 | G123: =VLOOKUP($A123,'Calculation Summary'!$B$17:$I$44,MATCH("Wearing surface",'Calculation Summary'!$B$11:$I$11,0),FALSE)*12/sbc -> 0.8271543016 | H123: =H90*12/sbc -> 0.6382657132 | I123: =Loadrating($B123,$C123,$D123,$E123,$F123,$G123,$H123) -> 2.21197122 | J123: ='Calculation Summary'!D$14*12/sb +'Calculation Summary'!$F$14*12/sb + 'Calculation Summary'!$E$14*12 / sbc -> 1.459726865 | K123: ='Calculation Summary'!$I$14*12/sbc -> 0.829302071 | L123: =L90*12/sbc -> 0.6364306804 | M123: =Loadrating($B123,$C123,$D123,$E123,$J123,$K123,$L123) -> 2.20938097 | N123: =MIN(I123,M123) -> 2.20938097
A124: 3F1 | B124: 1 | C124: 1 | D124: =$G$10 -> 1 | E124: =Capacity!$G$65 -> 3.69514677 | F124: =VLOOKUP($A124,'Calculation Summary'!$B$17:$I$44,MATCH("Beam weight",'Calculation Summary'!$B$11:$I$11,0),FALSE)*12/sb + VLOOKUP($A124,'Calculation Summary'!$B$17:$I$44,MATCH("diaphragm weight",'Calculation Summary'!$B$11:$I$11,0),FALSE)*12/sb +VLOOKUP($A124,'Calculation Summary'!$B$17:$I$44,MATCH("Barrier weight",'Calculation Summary'!$B$11:$I$11,0),FALSE)*12/sbc -> 1.459317456 | G124: =VLOOKUP($A124,'Calculation Summary'!$B$17:$I$44,MATCH("Wearing surface",'Calculation Summary'!$B$11:$I$11,0),FALSE)*12/sbc -> 0.8290550572 | H124: =H91*12/sbc -> 0.9511834931 | I124: =Loadrating($B124,$C124,$D124,$E124,$F124,$G124,$H124) -> 1.478972529 | J124: ='Calculation Summary'!D$14*12/sb +'Calculation Summary'!$F$14*12/sb + 'Calculation Summary'!$E$14*12 / sbc -> 1.459726865 | K124: ='Calculation Summary'!$I$14*12/sbc -> 0.829302071 | L124: =L91*12/sbc -> 0.9508598891 | M124: =Loadrating($B124,$C124,$D124,$E124,$J124,$K124,$L124) -> 1.478785518 | N124: =MIN(I124,M124) -> 1.478785518
A125: 5C1 | B125: 1 | C125: 1 | D125: =$G$10 -> 1 | E125: =Capacity!$G$65 -> 3.69514677 | F125: =VLOOKUP($A125,'Calculation Summary'!$B$17:$I$44,MATCH("Beam weight",'Calculation Summary'!$B$11:$I$11,0),FALSE)*12/sb + VLOOKUP($A125,'Calculation Summary'!$B$17:$I$44,MATCH("diaphragm weight",'Calculation Summary'!$B$11:$I$11,0),FALSE)*12/sb +VLOOKUP($A125,'Calculation Summary'!$B$17:$I$44,MATCH("Barrier weight",'Calculation Summary'!$B$11:$I$11,0),FALSE)*12/sbc -> 1.422530468 | G125: =VLOOKUP($A125,'Calculation Summary'!$B$17:$I$44,MATCH("Wearing surface",'Calculation Summary'!$B$11:$I$11,0),FALSE)*12/sbc -> 0.8068599082 | H125: =H92*12/sbc -> 0.9439375029 | I125: =Loadrating($B125,$C125,$D125,$E125,$F125,$G125,$H125) -> 1.552810847 | J125: ='Calculation Summary'!D$14*12/sb +'Calculation Summary'!$F$14*12/sb + 'Calculation Summary'!$E$14*12 / sbc -> 1.459726865 | K125: ='Calculation Summary'!$I$14*12/sbc -> 0.829302071 | L125: =L92*12/sbc -> 0.9335518592 | M125: =Loadrating($B125,$C125,$D125,$E125,$J125,$K125,$L125) -> 1.506202167 | N125: =MIN(I125,M125) -> 1.506202167
A126: C. Specialized Hauling Vehicles
A127: SU4 | B127: =VLOOKUP($A$115,$B$5:$D$11,MATCH(B$116,$B$7:$D$7,0),FALSE) -> 1 | C127: 1 | D127: =$G$10 -> 1 | E127: =Capacity!$G$65 -> 3.69514677 | F127: =VLOOKUP($A127,'Calculation Summary'!$B$17:$I$44,MATCH("Beam weight",'Calculation Summary'!$B$11:$I$11,0),FALSE)*12/sb + VLOOKUP($A127,'Calculation Summary'!$B$17:$I$44,MATCH("diaphragm weight",'Calculation Summary'!$B$11:$I$11,0),FALSE)*12/sb +VLOOKUP($A127,'Calculation Summary'!$B$17:$I$44,MATCH("Barrier weight",'Calculation Summary'!$B$11:$I$11,0),FALSE)*12/sbc -> 1.457812491 | G127: =VLOOKUP($A127,'Calculation Summary'!$B$17:$I$44,MATCH("Wearing surface",'Calculation Summary'!$B$11:$I$11,0),FALSE)*12/sbc -> 0.8281470483 | H127: =H94*12/sbc -> 1.08388876 | I127: =Loadrating($B127,$C127,$D127,$E127,$F127,$G127,$H127) -> 1.300121637 | J127: ='Calculation Summary'!D$14*12/sb +'Calculation Summary'!$F$14*12/sb + 'Calculation Summary'!$E$14*12 / sbc -> 1.459726865 | K127: ='Calculation Summary'!$I$14*12/sbc -> 0.829302071 | L127: =L94*12/sbc -> 1.082112449 | M127: =Loadrating($B127,$C127,$D127,$E127,$J127,$K127,$L127) -> 1.299419331 | N127: =MIN(I127,M127) -> 1.299419331
A128: SU5 | B128: 1 | C128: 1 | D128: =$G$10 -> 1 | E128: =Capacity!$G$65 -> 3.69514677 | F128: =VLOOKUP($A128,'Calculation Summary'!$B$17:$I$44,MATCH("Beam weight",'Calculation Summary'!$B$11:$I$11,0),FALSE)*12/sb + VLOOKUP($A128,'Calculation Summary'!$B$17:$I$44,MATCH("diaphragm weight",'Calculation Summary'!$B$11:$I$11,0),FALSE)*12/sb +VLOOKUP($A128,'Calculation Summary'!$B$17:$I$44,MATCH("Barrier weight",'Calculation Summary'!$B$11:$I$11,0),FALSE)*12/sbc -> 1.454764798 | G128: =VLOOKUP($A128,'Calculation Summary'!$B$17:$I$44,MATCH("Wearing surface",'Calculation Summary'!$B$11:$I$11,0),FALSE)*12/sbc -> 0.8263082459 | H128: =H95*12/sbc -> 1.19557395 | I128: =Loadrating($B128,$C128,$D128,$E128,$F128,$G128,$H128) -> 1.182757223 | J128: ='Calculation Summary'!D$14*12/sb +'Calculation Summary'!$F$14*12/sb + 'Calculation Summary'!$E$14*12 / sbc -> 1.459726865 | K128: ='Calculation Summary'!$I$14*12/sbc -> 0.829302071 | L128: =L95*12/sbc -> 1.190287635 | M128: =Loadrating($B128,$C128,$D128,$E128,$J128,$K128,$L128) -> 1.181326086 | N128: =MIN(I128,M128) -> 1.181326086
A129: SU6 | B129: 1 | C129: 1 | D129: =$G$10 -> 1 | E129: =Capacity!$G$65 -> 3.69514677 | F129: =VLOOKUP($A129,'Calculation Summary'!$B$17:$I$44,MATCH("Beam weight",'Calculation Summary'!$B$11:$I$11,0),FALSE)*12/sb + VLOOKUP($A129,'Calculation Summary'!$B$17:$I$44,MATCH("diaphragm weight",'Calculation Summary'!$B$11:$I$11,0),FALSE)*12/sb +VLOOKUP($A129,'Calculation Summary'!$B$17:$I$44,MATCH("Barrier weight",'Calculation Summary'!$B$11:$I$11,0),FALSE)*12/sbc -> 1.457787369 | G129: =VLOOKUP($A129,'Calculation Summary'!$B$17:$I$44,MATCH("Wearing surface",'Calculation Summary'!$B$11:$I$11,0),FALSE)*12/sbc -> 0.8281318907 | H129: =H96*12/sbc -> 1.330076449 | I129: =Loadrating($B129,$C129,$D129,$E129,$F129,$G129,$H129) -> 1.059508655 | J129: ='Calculation Summary'!D$14*12/sb +'Calculation Summary'!$F$14*12/sb + 'Calculation Summary'!$E$14*12 / sbc -> 1.459726865 | K129: ='Calculation Summary'!$I$14*12/sbc -> 0.829302071 | L129: =L96*12/sbc -> 1.327760268 | M129: =Loadrating($B129,$C129,$D129,$E129,$J129,$K129,$L129) -> 1.059014845 | N129: =MIN(I129,M129) -> 1.059014845
A130: SU7 | B130: 1 | C130: 1 | D130: =$G$10 -> 1 | E130: =Capacity!$G$65 -> 3.69514677 | F130: =VLOOKUP($A130,'Calculation Summary'!$B$17:$I$44,MATCH("Beam weight",'Calculation Summary'!$B$11:$I$11,0),FALSE)*12/sb + VLOOKUP($A130,'Calculation Summary'!$B$17:$I$44,MATCH("diaphragm weight",'Calculation Summary'!$B$11:$I$11,0),FALSE)*12/sb +VLOOKUP($A130,'Calculation Summary'!$B$17:$I$44,MATCH("Barrier weight",'Calculation Summary'!$B$11:$I$11,0),FALSE)*12/sbc -> 1.45942682 | G130: =VLOOKUP($A130,'Calculation Summary'!$B$17:$I$44,MATCH("Wearing surface",'Calculation Summary'!$B$11:$I$11,0),FALSE)*12/sbc -> 0.8291210415 | H130: =H97*12/sbc -> 1.447873705 | I130: =Loadrating($B130,$C130,$D130,$E130,$F130,$G130,$H130) -> 0.9714928195 | J130: ='Calculation Summary'!D$14*12/sb +'Calculation Summary'!$F$14*12/sb + 'Calculation Summary'!$E$14*12 / sbc -> 1.459726865 | K130: ='Calculation Summary'!$I$14*12/sbc -> 0.829302071 | L130: =L97*12/sbc -> 1.447474141 | M130: =Loadrating($B130,$C130,$D130,$E130,$J130,$K130,$L130) -> 0.9714286383 | N130: =MIN(I130,M130) -> 0.9714286383
A131: D. Emergency Vehicles
A132: EV2 | B132: =VLOOKUP($A$115,$B$5:$D$11,MATCH(B$116,$B$7:$D$7,0),FALSE) -> 1 | C132: =VLOOKUP($A$115,$B$5:$D$11,MATCH(C$116,$B$7:$D$7,0),FALSE) -> 1 | D132: =$G$10 -> 1 | E132: =Capacity!$G$65 -> 3.69514677 | F132: =VLOOKUP($A132,'Calculation Summary'!$B$17:$I$44,MATCH("Beam weight",'Calculation Summary'!$B$11:$I$11,0),FALSE)*12/sb + VLOOKUP($A132,'Calculation Summary'!$B$17:$I$44,MATCH("diaphragm weight",'Calculation Summary'!$B$11:$I$11,0),FALSE)*12/sb +VLOOKUP($A132,'Calculation Summary'!$B$17:$I$44,MATCH("Barrier weight",'Calculation Summary'!$B$11:$I$11,0),FALSE)*12/sbc -> 1.447168427 | G132: =VLOOKUP($A132,'Calculation Summary'!$B$17:$I$44,MATCH("Wearing surface",'Calculation Summary'!$B$11:$I$11,0),FALSE)*12/sbc -> 0.821725033 | H132: =H99*12/sbc -> 1.110836886 | I132: =Loadrating($B132,$C132,$D132,$E132,$F132,$G132,$H132) -> 1.28394486 | J132: ='Calculation Summary'!D$14*12/sb +'Calculation Summary'!$F$14*12/sb + 'Calculation Summary'!$E$14*12 / sbc -> 1.459726865 | K132: ='Calculation Summary'!$I$14*12/sbc -> 0.829302071 | L132: =L99*12/sbc -> 1.098428873 | M132: =Loadrating($B132,$C132,$D132,$E132,$J132,$K132,$L132) -> 1.280117328 | N132: =MIN(I132,M132) -> 1.280117328
A133: EV3 | B133: =VLOOKUP($A$115,$B$5:$D$11,MATCH(B$116,$B$7:$D$7,0),FALSE) -> 1 | C133: =VLOOKUP($A$115,$B$5:$D$11,MATCH(C$116,$B$7:$D$7,0),FALSE) -> 1 | D133: =$G$10 -> 1 | E133: =Capacity!$G$65 -> 3.69514677 | F133: =VLOOKUP($A133,'Calculation Summary'!$B$17:$I$44,MATCH("Beam weight",'Calculation Summary'!$B$11:$I$11,0),FALSE)*12/sb + VLOOKUP($A133,'Calculation Summary'!$B$17:$I$44,MATCH("diaphragm weight",'Calculation Summary'!$B$11:$I$11,0),FALSE)*12/sb +VLOOKUP($A133,'Calculation Summary'!$B$17:$I$44,MATCH("Barrier weight",'Calculation Summary'!$B$11:$I$11,0),FALSE)*12/sbc -> 1.45731422 | G133: =VLOOKUP($A133,'Calculation Summary'!$B$17:$I$44,MATCH("Wearing surface",'Calculation Summary'!$B$11:$I$11,0),FALSE)*12/sbc -> 0.82784642 | H133: =H100*12/sbc -> 1.685689405 | I133: =Loadrating($B133,$C133,$D133,$E133,$F133,$G133,$H133) -> 0.8364447955 | J133: ='Calculation Summary'!D$14*12/sb +'Calculation Summary'!$F$14*12/sb + 'Calculation Summary'!$E$14*12 / sbc -> 1.459726865 | K133: ='Calculation Summary'!$I$14*12/sbc -> 0.829302071 | L133: =L100*12/sbc -> 1.68212415 | M133: =Loadrating($B133,$C133,$D133,$E133,$J133,$K133,$L133) -> 0.8359179874 | N133: =MIN(I133,M133) -> 0.8359179874
A134: E. AASHTO Legal Vehicles
A135: Type3 | B135: =VLOOKUP($A$115,$B$5:$D$11,MATCH(B$116,$B$7:$D$7,0),FALSE) -> 1 | C135: 1 | D135: =$G$10 -> 1 | E135: =Capacity!$G$65 -> 3.69514677 | F135: =VLOOKUP($A135,'Calculation Summary'!$B$17:$I$44,MATCH("Beam weight",'Calculation Summary'!$B$11:$I$11,0),FALSE)*12/sb + VLOOKUP($A135,'Calculation Summary'!$B$17:$I$44,MATCH("diaphragm weight",'Calculation Summary'!$B$11:$I$11,0),FALSE)*12/sb +VLOOKUP($A135,'Calculation Summary'!$B$17:$I$44,MATCH("Barrier weight",'Calculation Summary'!$B$11:$I$11,0),FALSE)*12/sbc -> 1.455935608 | G135: =VLOOKUP($A135,'Calculation Summary'!$B$17:$I$44,MATCH("Wearing surface",'Calculation Summary'!$B$11:$I$11,0),FALSE)*12/sbc -> 0.8270146451 | H135: =H102*12/sbc -> 0.9620499928 | I135: =Loadrating($B135,$C135,$D135,$E135,$F135,$G135,$H135) -> 1.467903464 | J135: ='Calculation Summary'!D$14*12/sb +'Calculation Summary'!$F$14*12/sb + 'Calculation Summary'!$E$14*12 / sbc -> 1.459726865 | K135: ='Calculation Summary'!$I$14*12/sbc -> 0.829302071 | L135: =L102*12/sbc -> 0.9587927361 | M135: =Loadrating($B135,$C135,$D135,$E135,$J135,$K135,$L135) -> 1.466550362 | N135: =MIN(I135,M135) -> 1.466550362
A136: Type3S2 | B136: 1 | C136: 1 | D136: =$G$10 -> 1 | E136: =Capacity!$G$65 -> 3.69514677 | F136: =VLOOKUP($A136,'Calculation Summary'!$B$17:$I$44,MATCH("Beam weight",'Calculation Summary'!$B$11:$I$11,0),FALSE)*12/sb + VLOOKUP($A136,'Calculation Summary'!$B$17:$I$44,MATCH("diaphragm weight",'Calculation Summary'!$B$11:$I$11,0),FALSE)*12/sb +VLOOKUP($A136,'Calculation Summary'!$B$17:$I$44,MATCH("Barrier weight",'Calculation Summary'!$B$11:$I$11,0),FALSE)*12/sbc -> 1.442235464 | G136: =VLOOKUP($A136,'Calculation Summary'!$B$17:$I$44,MATCH("Wearing surface",'Calculation Summary'!$B$11:$I$11,0),FALSE)*12/sbc -> 0.8187487676 | H136: =H103*12/sbc -> 1.03271734 | I136: =Loadrating($B136,$C136,$D136,$E136,$F136,$G136,$H136) -> 1.388727081 | J136: ='Calculation Summary'!D$14*12/sb +'Calculation Summary'!$F$14*12/sb + 'Calculation Summary'!$E$14*12 / sbc -> 1.459726865 | K136: ='Calculation Summary'!$I$14*12/sbc -> 0.829302071 | L136: =L103*12/sbc -> 1.01107741 | M136: =Loadrating($B136,$C136,$D136,$E136,$J136,$K136,$L136) -> 1.390712344 | N136: =MIN(I136,M136) -> 1.388727081
A137: Type3_3 | B137: 1 | C137: 1 | D137: =$G$10 -> 1 | E137: =Capacity!$G$65 -> 3.69514677 | F137: =VLOOKUP($A137,'Calculation Summary'!$B$17:$I$44,MATCH("Beam weight",'Calculation Summary'!$B$11:$I$11,0),FALSE)*12/sb + VLOOKUP($A137,'Calculation Summary'!$B$17:$I$44,MATCH("diaphragm weight",'Calculation Summary'!$B$11:$I$11,0),FALSE)*12/sb +VLOOKUP($A137,'Calculation Summary'!$B$17:$I$44,MATCH("Barrier weight",'Calculation Summary'!$B$11:$I$11,0),FALSE)*12/sbc -> 1.459088321 | G137: =VLOOKUP($A137,'Calculation Summary'!$B$17:$I$44,MATCH("Wearing surface",'Calculation Summary'!$B$11:$I$11,0),FALSE)*12/sbc -> 0.8289168102 | H137: =H104*12/sbc -> 0.9490819042 | I137: =Loadrating($B137,$C137,$D137,$E137,$F137,$G137,$H137) -> 1.482634568 | J137: ='Calculation Summary'!D$14*12/sb +'Calculation Summary'!$F$14*12/sb + 'Calculation Summary'!$E$14*12 / sbc -> 1.459726865 | K137: ='Calculation Summary'!$I$14*12/sbc -> 0.829302071 | L137: =L104*12/sbc -> 0.9483358014 | M137: =Loadrating($B137,$C137,$D137,$E137,$J137,$K137,$L137) -> 1.482721449 | N137: =MIN(I137,M137) -> 1.482634568
A139: Service I | B139: Load factors | E139: At Moment critical point | G139: At center | I139: Adopted RF
A140: Vehicle types | B140: ᵞDc | C140: ᵞDw | D140: ᵞLL | E140: RF | G140: RF
A141: F.Permit Loads
A142: PL60T | B142: =VLOOKUP($A$139,$B$5:$D$11,MATCH(B$140,$B$7:$D$7,0),FALSE) -> 1 | C142: =VLOOKUP($A$139,$B$5:$D$11,MATCH(C$140,$B$7:$D$7,0),FALSE) -> 1 | D142: 1 | E142: ='Service I'!G20 -> 1.501535397 | G142: ='Service I'!D20 -> 1.501535313 | I142: =MIN(E142,G142) -> 1.501535313
A143: PL65T | B143: =VLOOKUP($A$139,$B$5:$D$11,MATCH(B$140,$B$7:$D$7,0),FALSE) -> 1 | C143: =VLOOKUP($A$139,$B$5:$D$11,MATCH(C$140,$B$7:$D$7,0),FALSE) -> 1 | D143: 1 | E143: ='Service I'!H20 -> 1.442509732 | G143: ='Service I'!E20 -> 1.442862116 | I143: =MIN(E143,G143) -> 1.442509732
A144: G.Custom Vehicle
A145: Custom_Vehicle_1 | B145: =VLOOKUP($A$139,$B$5:$D$11,MATCH(B$140,$B$7:$D$7,0),FALSE) -> 1 | C145: =VLOOKUP($A$139,$B$5:$D$11,MATCH(C$140,$B$7:$D$7,0),FALSE) -> 1 | D145: 1 | E145: ='Service I'!I20 -> 1.46492514 | G145: ='Service I'!F20 -> 1.464747919 | I145: =MIN(E145,G145) -> 1.464747919
A147: Rating Factor With Shear
A149: Strength I | B149: Load factors | E149: At shear critical point | J149: At Region 2 | O149: Adopted RF
A150: Vehicle types | B150: ᵞDc | C150: ᵞDw | D150: ᵞLL | E150: Capacity | F150: Dc | G150: Dw | H150: LL+IM | I150: RF | J150: Capacity | K150: Dc | L150: Dw | M150: LL+IM | N150: RF
A151: A. Design Vehicles
A152: HL93
A153: Inventory | B153: =VLOOKUP($A$149,$B$5:$D$11,MATCH(B$81,$B$7:$D$7,0),FALSE) -> 1.25 | C153: =VLOOKUP($A$149,$B$5:$D$11,MATCH(C$81,$B$7:$D$7,0),FALSE) -> 1.5 | D153: =$E$8 -> 1.75 | E153: =0.9*VLOOKUP($A153,'Calculation Summary'!$A$141:$C$171,2,FALSE) -> 282.8925 | F153: ='Calculation Summary'!$G$51 -> 22.73531622 | G153: ='Calculation Summary'!$I$51 -> 13.04891768 | H153: =VLOOKUP(A153,'Calculation Summary'!$A$100:$C$127,2,FALSE) -> 53.62716486 | I153: =Loadrating(B153,C153,D153,E153,F153,G153,H153) -> 2.502995624 | J153: =0.9*VLOOKUP($A153,'Calculation Summary'!$A$141:$E$171,4,FALSE) -> 195.3177258 | K153: ='Calculation Summary'!$G$52 -> 23.36223958 | L153: ='Calculation Summary'!$I$52 -> 13.0953125 | M153: =VLOOKUP(A153,'Calculation Summary'!$A$100:$E$127,4,FALSE) -> 42.99347406 | N153: =Loadrating(B153,C153,D153,J153,K153,L153,M153) -> 1.946766651 | O153: =MIN(I153,N153) -> 1.946766651
A154: Operating | B154: =VLOOKUP($A$149,$B$5:$D$11,MATCH(B$81,$B$7:$D$7,0),FALSE) -> 1.25 | C154: =VLOOKUP($A$149,$B$5:$D$11,MATCH(C$81,$B$7:$D$7,0),FALSE) -> 1.5 | D154: =$F$8 -> 1.35 | E154: =0.9*VLOOKUP($A154,'Calculation Summary'!$A$141:$C$171,2,FALSE) -> 282.8925 | F154: ='Calculation Summary'!$G$51 -> 22.73531622 | G154: ='Calculation Summary'!$I$51 -> 13.04891768 | H154: =VLOOKUP(A154,'Calculation Summary'!$A$100:$C$127,2,FALSE) -> 53.62716486 | I154: =Loadrating(B154,C154,D154,E154,F154,G154,H154) -> 3.244623957 | J154: =0.9*VLOOKUP($A154,'Calculation Summary'!$A$141:$E$171,4,FALSE) -> 195.3177124 | K154: ='Calculation Summary'!$G$52 -> 23.36223958 | L154: ='Calculation Summary'!$I$52 -> 13.0953125 | M154: =VLOOKUP(A154,'Calculation Summary'!$A$100:$E$127,4,FALSE) -> 42.99347406 | N154: =Loadrating(B154,C154,D154,J154,K154,L154,M154) -> 2.523586168 | O154: =MIN(I154,N154) -> 2.523586168
A155: HL93_Tandem
A156: Inventory_Tandem | B156: =VLOOKUP($A$149,$B$5:$D$11,MATCH(B$81,$B$7:$D$7,0),FALSE) -> 1.25 | C156: =VLOOKUP($A$149,$B$5:$D$11,MATCH(C$81,$B$7:$D$7,0),FALSE) -> 1.5 | D156: =$E$8 -> 1.75 | E156: =0.9*VLOOKUP($A156,'Calculation Summary'!$A$141:$C$171,2,FALSE) -> 282.8925 | F156: ='Calculation Summary'!$G$51 -> 22.73531622 | G156: ='Calculation Summary'!$I$51 -> 13.04891768 | H156: =VLOOKUP(A156,'Calculation Summary'!$A$100:$C$127,2,FALSE) -> 44.52202653 | I156: =Loadrating(B156,C156,D156,E156,F156,G156,H156) -> 3.014879812 | J156: =0.9*VLOOKUP($A156,'Calculation Summary'!$A$141:$E$171,4,FALSE) -> 195.3177132 | K156: ='Calculation Summary'!$G$52 -> 23.36223958 | L156: ='Calculation Summary'!$I$52 -> 13.0953125 | M156: =VLOOKUP(A156,'Calculation Summary'!$A$100:$E$127,4,FALSE) -> 33.86173007 | N156: =Loadrating(B156,C156,D156,J156,K156,L156,M156) -> 2.471765443 | O156: =MIN(I156,N156) -> 2.471765443
A157: Operating_Tandem | B157: =VLOOKUP($A$149,$B$5:$D$11,MATCH(B$81,$B$7:$D$7,0),FALSE) -> 1.25 | C157: =VLOOKUP($A$149,$B$5:$D$11,MATCH(C$81,$B$7:$D$7,0),FALSE) -> 1.5 | D157: =$F$8 -> 1.35 | E157: =0.9*VLOOKUP($A157,'Calculation Summary'!$A$141:$C$171,2,FALSE) -> 282.8925 | F157: ='Calculation Summary'!$G$51 -> 22.73531622 | G157: ='Calculation Summary'!$I$51 -> 13.04891768 | H157: =VLOOKUP(A157,'Calculation Summary'!$A$100:$C$127,2,FALSE) -> 44.52202653 | I157: =Loadrating(B157,C157,D157,E157,F157,G157,H157) -> 3.908177534 | J157: =0.9*VLOOKUP($A157,'Calculation Summary'!$A$141:$E$171,4,FALSE) -> 195.317705 | K157: ='Calculation Summary'!$G$52 -> 23.36223958 | L157: ='Calculation Summary'!$I$52 -> 13.0953125 | M157: =VLOOKUP(A157,'Calculation Summary'!$A$100:$E$127,4,FALSE) -> 33.86173007 | N157: =Loadrating(B157,C157,D157,J157,K157,L157,M157) -> 3.204140211 | O157: =MIN(I157,N157) -> 3.204140211
A158: B. Ohio Legal Vehicles
A159: 2F1 | B159: =VLOOKUP($A$149,$B$5:$D$11,MATCH(B$81,$B$7:$D$7,0),FALSE) -> 1.25 | C159: 1.5 | D159: =$B$19 -> 1.45 | E159: =0.9*VLOOKUP($A159,'Calculation Summary'!$A$141:$C$171,2,FALSE) -> 282.8925 | F159: ='Calculation Summary'!$G$51 -> 22.73531622 | G159: ='Calculation Summary'!$I$51 -> 13.04891768 | H159: =VLOOKUP(A159,'Calculation Summary'!$A$100:$C$127,2,FALSE) -> 19.84383207 | I159: =Loadrating(B159,C159,D159,E159,F159,G159,H159) -> 8.163745006 | J159: =0.9*VLOOKUP($A159,'Calculation Summary'!$A$141:$E$171,4,FALSE) -> 195.3176947 | K159: ='Calculation Summary'!$G$52 -> 23.36223958 | L159: ='Calculation Summary'!$I$52 -> 13.0953125 | M159: =VLOOKUP(A159,'Calculation Summary'!$A$100:$E$127,4,FALSE) -> 19.88011249 | N159: =Loadrating(B159,C159,D159,J159,K159,L159,M159) -> 5.081214794 | O159: =MIN(I159,N159) -> 5.081214794
A160: 3F1 | B160: 1.25 | C160: 1.5 | D160: =$B$19 -> 1.45 | E160: =0.9*VLOOKUP($A160,'Calculation Summary'!$A$141:$C$171,2,FALSE) -> 282.8925 | F160: ='Calculation Summary'!$G$51 -> 22.73531622 | G160: ='Calculation Summary'!$I$51 -> 13.04891768 | H160: =VLOOKUP(A160,'Calculation Summary'!$A$100:$C$127,2,FALSE) -> 29.52422971 | I160: =Loadrating(B160,C160,D160,E160,F160,G160,H160) -> 5.487018174 | J160: =0.9*VLOOKUP($A160,'Calculation Summary'!$A$141:$E$171,4,FALSE) -> 195.3177033 | K160: ='Calculation Summary'!$G$52 -> 23.36223958 | L160: ='Calculation Summary'!$I$52 -> 13.0953125 | M160: =VLOOKUP(A160,'Calculation Summary'!$A$100:$E$127,4,FALSE) -> 29.57985969 | N160: =Loadrating(B160,C160,D160,J160,K160,L160,M160) -> 3.414996848 | O160: =MIN(I160,N160) -> 3.414996848
A161: 5C1 | B161: 1.25 | C161: 1.5 | D161: =$B$19 -> 1.45 | E161: =0.9*VLOOKUP($A161,'Calculation Summary'!$A$141:$C$171,2,FALSE) -> 282.8925 | F161: ='Calculation Summary'!$G$51 -> 22.73531622 | G161: ='Calculation Summary'!$I$51 -> 13.04891768 | H161: =VLOOKUP(A161,'Calculation Summary'!$A$100:$C$127,2,FALSE) -> 34.66067965 | I161: =Loadrating(B161,C161,D161,E161,F161,G161,H161) -> 4.67388368 | J161: =0.9*VLOOKUP($A161,'Calculation Summary'!$A$141:$E$171,4,FALSE) -> 195.3177078 | K161: ='Calculation Summary'!$G$52 -> 23.36223958 | L161: ='Calculation Summary'!$I$52 -> 13.0953125 | M161: =VLOOKUP(A161,'Calculation Summary'!$A$100:$E$127,4,FALSE) -> 34.75742745 | N161: =Loadrating(B161,C161,D161,J161,K161,L161,M161) -> 2.906289049 | O161: =MIN(I161,N161) -> 2.906289049
A162: C. Specialized Hauling Vehicles
A163: SU4 | B163: =VLOOKUP($A$149,$B$5:$D$11,MATCH(B$81,$B$7:$D$7,0),FALSE) -> 1.25 | C163: 1.5 | D163: =$B$27 -> 1.45 | E163: =0.9*VLOOKUP($A163,'Calculation Summary'!$A$141:$C$171,2,FALSE) -> 282.8925 | F163: ='Calculation Summary'!$G$51 -> 22.73531622 | G163: ='Calculation Summary'!$I$51 -> 13.04891768 | H163: =VLOOKUP(A163,'Calculation Summary'!$A$100:$C$127,2,FALSE) -> 33.88381042 | I163: =Loadrating(B163,C163,D163,E163,F163,G163,H163) -> 4.781043896 | J163: =0.9*VLOOKUP($A163,'Calculation Summary'!$A$141:$E$171,4,FALSE) -> 195.3177071 | K163: ='Calculation Summary'!$G$52 -> 23.36223958 | L163: ='Calculation Summary'!$I$52 -> 13.0953125 | M163: =VLOOKUP(A163,'Calculation Summary'!$A$100:$E$127,4,FALSE) -> 33.94911518 | N163: =Loadrating(B163,C163,D163,J163,K163,L163,M163) -> 2.975486392 | O163: =MIN(I163,N163) -> 2.975486392
A164: SU5 | B164: 1.25 | C164: 1.5 | D164: =$B$27 -> 1.45 | E164: =0.9*VLOOKUP($A164,'Calculation Summary'!$A$141:$C$171,2,FALSE) -> 282.8925 | F164: ='Calculation Summary'!$G$51 -> 22.73531622 | G164: ='Calculation Summary'!$I$51 -> 13.04891768 | H164: =VLOOKUP(A164,'Calculation Summary'!$A$100:$C$127,2,FALSE) -> 37.89385069 | I164: =Loadrating(B164,C164,D164,E164,F164,G164,H164) -> 4.275099574 | J164: =0.9*VLOOKUP($A164,'Calculation Summary'!$A$141:$E$171,4,FALSE) -> 195.3177106 | K164: ='Calculation Summary'!$G$52 -> 23.36223958 | L164: ='Calculation Summary'!$I$52 -> 13.0953125 | M164: =VLOOKUP(A164,'Calculation Summary'!$A$100:$E$127,4,FALSE) -> 37.96883024 | N164: =Loadrating(B164,C164,D164,J164,K164,L164,M164) -> 2.660475239 | O164: =MIN(I164,N164) -> 2.660475239
A165: SU6 | B165: 1.25 | C165: 1.5 | D165: =$B$27 -> 1.45 | E165: =0.9*VLOOKUP($A165,'Calculation Summary'!$A$141:$C$171,2,FALSE) -> 282.8925 | F165: ='Calculation Summary'!$G$51 -> 22.73531622 | G165: ='Calculation Summary'!$I$51 -> 13.04891768 | H165: =VLOOKUP(A165,'Calculation Summary'!$A$100:$C$127,2,FALSE) -> 40.56094958 | I165: =Loadrating(B165,C165,D165,E165,F165,G165,H165) -> 3.993988964 | J165: =0.9*VLOOKUP($A165,'Calculation Summary'!$A$141:$E$171,4,FALSE) -> 195.317713 | K165: ='Calculation Summary'!$G$52 -> 23.36223958 | L165: ='Calculation Summary'!$I$52 -> 13.0953125 | M165: =VLOOKUP(A165,'Calculation Summary'!$A$100:$E$127,4,FALSE) -> 40.64499923 | N165: =Loadrating(B165,C165,D165,J165,K165,L165,M165) -> 2.485302897 | O165: =MIN(I165,N165) -> 2.485302897
A166: SU7 | B166: 1.25 | C166: 1.5 | D166: =$B$27 -> 1.45 | E166: =0.9*VLOOKUP($A166,'Calculation Summary'!$A$141:$C$171,2,FALSE) -> 282.8925 | F166: ='Calculation Summary'!$G$51 -> 22.73531622 | G166: ='Calculation Summary'!$I$51 -> 13.04891768 | H166: =VLOOKUP(A166,'Calculation Summary'!$A$100:$C$127,2,FALSE) -> 43.10728926 | I166: =Loadrating(B166,C166,D166,E166,F166,G166,H166) -> 3.758064767 | J166: =0.9*VLOOKUP($A166,'Calculation Summary'!$A$141:$E$171,4,FALSE) -> 195.3177152 | K166: ='Calculation Summary'!$G$52 -> 23.36223958 | L166: ='Calculation Summary'!$I$52 -> 13.0953125 | M166: =VLOOKUP(A166,'Calculation Summary'!$A$100:$E$127,4,FALSE) -> 43.20101369 | N166: =Loadrating(B166,C166,D166,J166,K166,L166,M166) -> 2.338258462 | O166: =MIN(I166,N166) -> 2.338258462
A167: D. Emergency Vehicles
A168: EV2 | B168: =VLOOKUP($A$149,$B$5:$D$11,MATCH(B$81,$B$7:$D$7,0),FALSE) -> 1.25 | C168: =VLOOKUP($A$149,$B$5:$D$11,MATCH(C$81,$B$7:$D$7,0),FALSE) -> 1.5 | D168: =MAIN!B149 -> 1.3 | E168: =0.9*VLOOKUP($A168,'Calculation Summary'!$A$141:$C$171,2,FALSE) -> 282.8925 | F168: ='Calculation Summary'!$G$51 -> 22.73531622 | G168: ='Calculation Summary'!$I$51 -> 13.04891768 | H168: =VLOOKUP(A168,'Calculation Summary'!$A$100:$C$127,2,FALSE) -> 36.19528311 | I168: =Loadrating(B168,C168,D168,E168,F168,G168,H168) -> 4.99215023 | J168: =0.9*VLOOKUP($A168,'Calculation Summary'!$A$141:$E$171,4,FALSE) -> 195.3177059 | K168: ='Calculation Summary'!$G$52 -> 23.36223958 | L168: ='Calculation Summary'!$I$52 -> 13.0953125 | M168: =VLOOKUP(A168,'Calculation Summary'!$A$100:$E$127,4,FALSE) -> 36.2648206 | N168: =Loadrating(B168,C168,D168,J168,K168,L168,M168) -> 3.106887595 | O168: =MIN(I168,N168) -> 3.106887595
A169: EV3 | B169: =VLOOKUP($A$149,$B$5:$D$11,MATCH(B$81,$B$7:$D$7,0),FALSE) -> 1.25 | C169: =VLOOKUP($A$149,$B$5:$D$11,MATCH(C$81,$B$7:$D$7,0),FALSE) -> 1.5 | D169: =MAIN!B150 -> 1.1 | E169: =0.9*VLOOKUP($A169,'Calculation Summary'!$A$141:$C$171,2,FALSE) -> 282.8925 | F169: ='Calculation Summary'!$G$51 -> 22.73531622 | G169: ='Calculation Summary'!$I$51 -> 13.04891768 | H169: =VLOOKUP(A169,'Calculation Summary'!$A$100:$C$127,2,FALSE) -> 53.68153124 | I169: =Loadrating(B169,C169,D169,E169,F169,G169,H169) -> 3.978005653 | J169: =0.9*VLOOKUP($A169,'Calculation Summary'!$A$141:$E$171,4,FALSE) -> 195.3177131 | K169: ='Calculation Summary'!$G$52 -> 23.36223958 | L169: ='Calculation Summary'!$I$52 -> 13.0953125 | M169: =VLOOKUP(A169,'Calculation Summary'!$A$100:$E$127,4,FALSE) -> 53.78553512 | N169: =Loadrating(B169,C169,D169,J169,K169,L169,M169) -> 2.475690039 | O169: =MIN(I169,N169) -> 2.475690039
A170: E. AASHTO Legal Vehicles
A171: Type3 | B171: =VLOOKUP($A$149,$B$5:$D$11,MATCH(B$81,$B$7:$D$7,0),FALSE) -> 1.25 | C171: 1.5 | D171: =$B$19 -> 1.45 | E171: =0.9*VLOOKUP($A171,'Calculation Summary'!$A$141:$C$171,2,FALSE) -> 282.8925 | F171: ='Calculation Summary'!$G$51 -> 22.73531622 | G171: ='Calculation Summary'!$I$51 -> 13.04891768 | H171: =VLOOKUP(A171,'Calculation Summary'!$A$100:$C$127,2,FALSE) -> 30.83016896 | I171: =Loadrating(B171,C171,D171,E171,F171,G171,H171) -> 5.254592836 | J171: =0.9*VLOOKUP($A171,'Calculation Summary'!$A$141:$E$171,4,FALSE) -> 195.3177044 | K171: ='Calculation Summary'!$G$52 -> 23.36223958 | L171: ='Calculation Summary'!$I$52 -> 13.0953125 | M171: =VLOOKUP(A171,'Calculation Summary'!$A$100:$E$127,4,FALSE) -> 30.89063634 | N171: =Loadrating(B171,C171,D171,J171,K171,L171,M171) -> 3.270088946 | O171: =MIN(I171,N171) -> 3.270088946
A172: Type3S2 | B172: 1.25 | C172: 1.5 | D172: =$B$19 -> 1.45 | E172: =0.9*VLOOKUP($A172,'Calculation Summary'!$A$141:$C$171,2,FALSE) -> 282.8925 | F172: ='Calculation Summary'!$G$51 -> 22.73531622 | G172: ='Calculation Summary'!$I$51 -> 13.04891768 | H172: =VLOOKUP(A172,'Calculation Summary'!$A$100:$C$127,2,FALSE) -> 35.60974436 | I172: =Loadrating(B172,C172,D172,E172,F172,G172,H172) -> 4.549316146 | J172: =0.9*VLOOKUP($A172,'Calculation Summary'!$A$141:$E$171,4,FALSE) -> 195.3177086 | K172: ='Calculation Summary'!$G$52 -> 23.36223958 | L172: ='Calculation Summary'!$I$52 -> 13.0953125 | M172: =VLOOKUP(A172,'Calculation Summary'!$A$100:$E$127,4,FALSE) -> 35.69681738 | N172: =Loadrating(B172,C172,D172,J172,K172,L172,M172) -> 2.829807774 | O172: =MIN(I172,N172) -> 2.829807774
A173: Type3_3 | B173: 1.25 | C173: 1.5 | D173: =$B$19 -> 1.45 | E173: =0.9*VLOOKUP($A173,'Calculation Summary'!$A$141:$C$171,2,FALSE) -> 282.8925 | F173: ='Calculation Summary'!$G$51 -> 22.73531622 | G173: ='Calculation Summary'!$I$51 -> 13.04891768 | H173: =VLOOKUP(A173,'Calculation Summary'!$A$100:$C$127,2,FALSE) -> 34.94468126 | I173: =Loadrating(B173,C173,D173,E173,F173,G173,H173) -> 4.635898201 | J173: =0.9*VLOOKUP($A173,'Calculation Summary'!$A$141:$E$171,4,FALSE) -> 195.3177081 | K173: ='Calculation Summary'!$G$52 -> 23.36223958 | L173: ='Calculation Summary'!$I$52 -> 13.0953125 | M173: =VLOOKUP(A173,'Calculation Summary'!$A$100:$E$127,4,FALSE) -> 35.04142906 | N173: =Loadrating(B173,C173,D173,J173,K173,L173,M173) -> 2.882734342 | O173: =MIN(I173,N173) -> 2.882734342
A176: Strength II | B176: Load factors | E176: At shear critical point | J176: At Region 2 | O176: Adopted RF
A177: Vehicle types | B177: ᵞDc | C177: ᵞDw | D177: ᵞLL | E177: Capacity | F177: Dc | G177: Dw | H177: LL+IM | I177: RF | J177: Capacity | K177: Dc | L177: Dw | M177: LL+IM | N177: RF
A178: E.Permit Loads
A179: PL60T | B179: =VLOOKUP($A$176,$B$5:$D$11,MATCH(B$107,$B$7:$D$7,0),FALSE) -> 1.25 | C179: =VLOOKUP($A$176,$B$5:$D$11,MATCH(C$107,$B$7:$D$7,0),FALSE) -> 1.5 | D179: =$G$74 -> 1.4 | E179: =0.9*VLOOKUP($A179,'Calculation Summary'!$A$141:$C$171,2,FALSE) -> 282.8925 | F179: ='Calculation Summary'!$G$51 -> 22.73531622 | G179: ='Calculation Summary'!$I$51 -> 13.04891768 | H179: =VLOOKUP(A179,'Calculation Summary'!$A$100:$C$127,2,FALSE) -> 34.41811968 | I179: =Loadrating(B179,C179,D179,E179,F179,G179,H179) -> 4.87492345 | J179: =0.9*VLOOKUP($A179,'Calculation Summary'!$A$141:$E$171,4,FALSE) -> 195.3177066 | K179: ='Calculation Summary'!$G$52 -> 23.36223958 | L179: ='Calculation Summary'!$I$52 -> 13.0953125 | M179: =VLOOKUP(A179,'Calculation Summary'!$A$100:$E$127,4,FALSE) -> 34.51495841 | N179: =Loadrating(B179,C179,D179,J179,K179,L179,M179) -> 3.031231035 | O179: =MIN(I179,N179) -> 3.031231035
A180: PL65T | B180: =VLOOKUP($A$176,$B$5:$D$11,MATCH(B$107,$B$7:$D$7,0),FALSE) -> 1.25 | C180: =VLOOKUP($A$176,$B$5:$D$11,MATCH(C$107,$B$7:$D$7,0),FALSE) -> 1.5 | D180: =$G$75 -> 1.35 | E180: =0.9*VLOOKUP($A180,'Calculation Summary'!$A$141:$C$171,2,FALSE) -> 282.8925 | F180: ='Calculation Summary'!$G$51 -> 22.73531622 | G180: ='Calculation Summary'!$I$51 -> 13.04891768 | H180: =VLOOKUP(A180,'Calculation Summary'!$A$100:$C$127,2,FALSE) -> 45.54544074 | I180: =Loadrating(B180,C180,D180,E180,F180,G180,H180) -> 3.820360085 | J180: =0.9*VLOOKUP($A180,'Calculation Summary'!$A$141:$E$171,4,FALSE) -> 195.3177146 | K180: ='Calculation Summary'!$G$52 -> 23.36223958 | L180: ='Calculation Summary'!$I$52 -> 13.0953125 | M180: =VLOOKUP(A180,'Calculation Summary'!$A$100:$E$127,4,FALSE) -> 45.66364764 | N180: =Loadrating(B180,C180,D180,J180,K180,L180,M180) -> 2.376019956 | O180: =MIN(I180,N180) -> 2.376019956
A181: F.Custom Vehicle
A182: Custom_Vehicle_1 | B182: =VLOOKUP($A$176,$B$5:$D$11,MATCH(B$107,$B$7:$D$7,0),FALSE) -> 1.25 | C182: =VLOOKUP($A$176,$B$5:$D$11,MATCH(C$107,$B$7:$D$7,0),FALSE) -> 1.5 | D182: =IF(add_custom_vehicle= "NO", "N/A",$G$76) -> 1.1 | E182: =0.9*VLOOKUP($A182,'Calculation Summary'!$A$141:$C$171,2,FALSE) -> 282.8925 | F182: ='Calculation Summary'!$G$51 -> 22.73531622 | G182: ='Calculation Summary'!$I$51 -> 13.04891768 | H182: =VLOOKUP(A182,'Calculation Summary'!$A$100:$C$127,2,FALSE) -> 45.55524016 | I182: =IF(add_custom_vehicle= "NO", "N/A",Loadrating(B182,C182,D182,E182,F182,G182,H182)) -> 4.687615167 | J182: =IF(add_custom_vehicle= "NO", "N/A",0.9*VLOOKUP($A182,'Calculation Summary'!$A$141:$E$171,4,FALSE)) -> 195.3177078 | K182: ='Calculation Summary'!$G$52 -> 23.36223958 | L182: ='Calculation Summary'!$I$52 -> 13.0953125 | M182: =VLOOKUP(A182,'Calculation Summary'!$A$100:$E$127,4,FALSE) -> 45.72361727 | N182: =IF(add_custom_vehicle= "NO", "N/A",Loadrating(B182,C182,D182,J182,K182,L182,M182)) -> 2.912199791 | O182: =IF(add_custom_vehicle= "NO", "N/A",MIN(I182,N182)) -> 2.912199791
A185: Summary
A186: Vehicle types | B186: Flexure | F186: Shear | H186: Adopted Rating Factor | I186: Criteria | J186: Limit State
B187: Strength I | C187: Strength II | D187: Service I | E187: Service III | F187: Strength I | G187: Strength II
A188: A. Design Vehicle
A189: HL93
A190: Inventory | B190: =IF(VLOOKUP($A$188,MAIN!$A$130:$D$135,3,FALSE) = "YES",N84,"-") -> 1.072540169 | C190: - | D190: - | E190: =IF(VLOOKUP($A$188,MAIN!$A$130:$D$135,4,FALSE) = "YES",N119,"-") -> 1.053196492 | F190: =O153 -> 1.946766651 | G190: - | H190: =MIN(B190:G190) -> 1.053196492 | I190: =INDEX($B$186:$G$187,1,IF(MATCH(H190,B190:G190,0)<=4,1,5)) -> Flexure | J190: =INDEX($B$186:$G$187,2,MATCH(H190,B190:G190,0)) -> Service III
A191: Operating | B191: =IF(VLOOKUP($A$188,MAIN!$A$130:$D$135,3,FALSE) = "YES",N85,"-") -> 1.390329849 | C191: - | D191: - | E191: - | F191: =O154 -> 2.523586168 | G191: - | H191: =MIN(B191:G191) -> 1.390329849 | I191: =INDEX($B$186:$G$187,1,IF(MATCH(H191,B191:G191,0)<=4,1,5)) -> Flexure | J191: =INDEX($B$186:$G$187,2,MATCH(H191,B191:G191,0)) -> Strength I
A192: HL93_Tandem
A193: Inventory_Tandem | B193: =IF(VLOOKUP($A$188,MAIN!$A$130:$D$135,3,FALSE) = "YES",N87,"-") -> 1.208590984 | C193: - | D193: - | E193: =IF(VLOOKUP($A$188,MAIN!$A$130:$D$135,4,FALSE) = "YES",N121,"-") -> 1.186793577 | F193: =O156 -> 2.471765443 | G193: - | H193: =MIN(B193:G193) -> 1.186793577 | I193: =INDEX($B$186:$G$187,1,IF(MATCH(H193,B193:G193,0)<=4,1,5)) -> Flexure | J193: =INDEX($B$186:$G$187,2,MATCH(H193,B193:G193,0)) -> Service III
A194: Operating_Tandem | B194: =IF(VLOOKUP($A$188,MAIN!$A$130:$D$135,3,FALSE) = "YES",N88,"-") -> 1.566692016 | C194: - | D194: - | E194: - | F194: 3.204140211 | G194: - | H194: =MIN(B194:G194) -> 1.566692016 | I194: =INDEX($B$186:$G$187,1,IF(MATCH(H194,B194:G194,0)<=4,1,5)) -> Flexure | J194: =INDEX($B$186:$G$187,2,MATCH(H194,B194:G194,0)) -> Strength I
A195: B. Ohio Legal Vehicles
A196: 2F1 | B196: =IF(VLOOKUP($A$195,MAIN!$A$130:$D$135,3,FALSE) = "YES",N90,"-") -> 3.392867922 | C196: - | D196: - | E196: =IF(VLOOKUP($A$195,MAIN!$A$130:$D$135,4,FALSE) = "YES",N123,"-") -> - | F196: 5.081214794 | G196: - | H196: =MIN(B196:G196) -> 3.392867922 | I196: =INDEX($B$186:$G$187,1,IF(MATCH(H196,B196:G196,0)<=4,1,5)) -> Flexure | J196: =INDEX($B$186:$G$187,2,MATCH(H196,B196:G196,0)) -> Strength I
A197: 3F1 | B197: =IF(VLOOKUP($A$195,MAIN!$A$130:$D$135,3,FALSE) = "YES",N91,"-") -> 2.271767945 | C197: - | D197: - | E197: =IF(VLOOKUP($A$195,MAIN!$A$130:$D$135,4,FALSE) = "YES",N124,"-") -> - | F197: 3.414996848 | G197: - | H197: =MIN(B197:G197) -> 2.271767945 | I197: =INDEX($B$186:$G$187,1,IF(MATCH(H197,B197:G197,0)<=4,1,5)) -> Flexure | J197: =INDEX($B$186:$G$187,2,MATCH(H197,B197:G197,0)) -> Strength I
A198: 5C1 | B198: =IF(VLOOKUP($A$195,MAIN!$A$130:$D$135,3,FALSE) = "YES",N92,"-") -> 2.314022037 | C198: - | D198: - | E198: =IF(VLOOKUP($A$195,MAIN!$A$130:$D$135,4,FALSE) = "YES",N125,"-") -> - | F198: 2.906289049 | G198: - | H198: =MIN(B198:G198) -> 2.314022037 | I198: =INDEX($B$186:$G$187,1,IF(MATCH(H198,B198:G198,0)<=4,1,5)) -> Flexure | J198: =INDEX($B$186:$G$187,2,MATCH(H198,B198:G198,0)) -> Strength I
A199: C. Specialized Hauling Vehicles
A200: SU4 | B200: =IF(VLOOKUP($A$199,MAIN!$A$130:$D$135,3,FALSE) = "YES",N94,"-") -> 1.995689417 | C200: - | D200: - | E200: =IF(VLOOKUP($A$199,MAIN!$A$130:$D$135,4,FALSE) = "YES",N127,"-") -> - | F200: 2.975486392 | G200: - | H200: =MIN(B200:G200) -> 1.995689417 | I200: =INDEX($B$186:$G$187,1,IF(MATCH(H200,B200:G200,0)<=4,1,5)) -> Flexure | J200: =INDEX($B$186:$G$187,2,MATCH(H200,B200:G200,0)) -> Strength I
A201: SU5 | B201: =IF(VLOOKUP($A$199,MAIN!$A$130:$D$135,3,FALSE) = "YES",N95,"-") -> 1.813050361 | C201: - | D201: - | E201: =IF(VLOOKUP($A$199,MAIN!$A$130:$D$135,4,FALSE) = "YES",N128,"-") -> - | F201: 2.660475239 | G201: - | H201: =MIN(B201:G201) -> 1.813050361 | I201: =INDEX($B$186:$G$187,1,IF(MATCH(H201,B201:G201,0)<=4,1,5)) -> Flexure | J201: =INDEX($B$186:$G$187,2,MATCH(H201,B201:G201,0)) -> Strength I
A202: SU6 | B202: =IF(VLOOKUP($A$199,MAIN!$A$130:$D$135,3,FALSE) = "YES",N96,"-") -> 1.626329581 | C202: - | D202: - | E202: =IF(VLOOKUP($A$199,MAIN!$A$130:$D$135,4,FALSE) = "YES",N129,"-") -> - | F202: 2.485302897 | G202: - | H202: =MIN(B202:G202) -> 1.626329581 | I202: =INDEX($B$186:$G$187,1,IF(MATCH(H202,B202:G202,0)<=4,1,5)) -> Flexure | J202: =INDEX($B$186:$G$187,2,MATCH(H202,B202:G202,0)) -> Strength I
A203: SU7 | B203: =IF(VLOOKUP($A$199,MAIN!$A$130:$D$135,3,FALSE) = "YES",N97,"-") -> 1.49233016 | C203: - | D203: - | E203: =IF(VLOOKUP($A$199,MAIN!$A$130:$D$135,4,FALSE) = "YES",N130,"-") -> - | F203: 2.338258462 | G203: - | H203: =MIN(B203:G203) -> 1.49233016 | I203: =INDEX($B$186:$G$187,1,IF(MATCH(H203,B203:G203,0)<=4,1,5)) -> Flexure | J203: =INDEX($B$186:$G$187,2,MATCH(H203,B203:G203,0)) -> Strength I
A204: D. Emergency Vehicles
A205: EV2 | B205: =IF(VLOOKUP($A$204,MAIN!$A$130:$D$135,3,FALSE) = "YES",N99,"-") -> 2.187848393 | C205: - | D205: - | E205: =IF(VLOOKUP($A$204,MAIN!$A$130:$D$135,4,FALSE) = "YES",N132,"-") -> - | F205: 3.106887595 | G205: - | H205: =MIN(B205:G205) -> 2.187848393 | I205: =INDEX($B$186:$G$187,1,IF(MATCH(H205,B205:G205,0)<=4,1,5)) -> Flexure | J205: =INDEX($B$186:$G$187,2,MATCH(H205,B205:G205,0)) -> Strength I
A206: EV3 | B206: =IF(VLOOKUP($A$204,MAIN!$A$130:$D$135,3,FALSE) = "YES",N100,"-") -> 1.692092547 | C206: - | D206: - | E206: =IF(VLOOKUP($A$204,MAIN!$A$130:$D$135,4,FALSE) = "YES",N133,"-") -> - | F206: 2.475690039 | G206: - | H206: =MIN(B206:G206) -> 1.692092547 | I206: =INDEX($B$186:$G$187,1,IF(MATCH(H206,B206:G206,0)<=4,1,5)) -> Flexure | J206: =INDEX($B$186:$G$187,2,MATCH(H206,B206:G206,0)) -> Strength I
A207: E. AASHTO Legal Vehicles
A208: Type3 | B208: =IF(VLOOKUP($A$207,MAIN!$A$130:$D$135,3,FALSE) = "YES",N102,"-") -> 2.251333473 | C208: - | D208: - | E208: =IF(VLOOKUP($A$207,MAIN!$A$130:$D$135,4,FALSE) = "YES",N135,"-") -> - | F208: 3.270088946 | G208: - | H208: =MIN(B208:G208) -> 2.251333473 | I208: =INDEX($B$186:$G$187,1,IF(MATCH(H208,B208:G208,0)<=4,1,5)) -> Flexure | J208: =INDEX($B$186:$G$187,2,MATCH(H208,B208:G208,0)) -> Strength I
A209: Type3S2 | B209: =IF(VLOOKUP($A$207,MAIN!$A$130:$D$135,3,FALSE) = "YES",N103,"-") -> 2.116998324 | C209: - | D209: - | E209: =IF(VLOOKUP($A$207,MAIN!$A$130:$D$135,4,FALSE) = "YES",N136,"-") -> - | F209: 2.829807774 | G209: - | H209: =MIN(B209:G209) -> 2.116998324 | I209: =INDEX($B$186:$G$187,1,IF(MATCH(H209,B209:G209,0)<=4,1,5)) -> Flexure | J209: =INDEX($B$186:$G$187,2,MATCH(H209,B209:G209,0)) -> Strength I
A210: Type3_3 | B210: =IF(VLOOKUP($A$207,MAIN!$A$130:$D$135,3,FALSE) = "YES",N104,"-") -> 2.277157297 | C210: - | D210: - | E210: =IF(VLOOKUP($A$207,MAIN!$A$130:$D$135,4,FALSE) = "YES",N137,"-") -> - | F210: 2.882734342 | G210: - | H210: =MIN(B210:G210) -> 2.277157297 | I210: =INDEX($B$186:$G$187,1,IF(MATCH(H210,B210:G210,0)<=4,1,5)) -> Flexure | J210: =INDEX($B$186:$G$187,2,MATCH(H210,B210:G210,0)) -> Strength I
A211: F. Permit Vehicles
A212: PL60T | B212: - | C212: =IF(VLOOKUP($A$211,MAIN!$A$130:$D$135,3,FALSE) = "YES",N109,"-") -> 2.390327664 | D212: =IF(VLOOKUP($A$211,MAIN!$A$130:$D$135,4,FALSE) = "YES",I142,"-") -> - | E212: =IF(VLOOKUP($A$207,MAIN!$A$130:$D$135,4,FALSE) = "YES",I139,"-") -> - | F212: =O179 -> 3.031231035 | G212: =I179 -> 4.87492345 | H212: =MIN(B212:G212) -> 2.390327664 | I212: =INDEX($B$186:$G$187,1,IF(MATCH(H212,B212:G212,0)<=4,1,5)) -> Flexure | J212: =INDEX($B$186:$G$187,2,MATCH(H212,B212:G212,0)) -> Strength II
A213: PL65T | B213: - | C213: =IF(VLOOKUP($A$211,MAIN!$A$130:$D$135,3,FALSE) = "YES",N110,"-") -> 1.848777213 | D213: =IF(VLOOKUP($A$211,MAIN!$A$130:$D$135,4,FALSE) = "YES",I143,"-") -> - | E213: - | F213: =O180 -> 2.376019956 | G213: =I180 -> 3.820360085 | H213: =MIN(B213:G213) -> 1.848777213 | I213: =INDEX($B$186:$G$187,1,IF(MATCH(H213,B213:G213,0)<=4,1,5)) -> Flexure | J213: =INDEX($B$186:$G$187,2,MATCH(H213,B213:G213,0)) -> Strength II
A214: G. Custom Vehicle
A215: Custom_Vehicle_1 | B215: - | C215: =IF(add_custom_vehicle= "NO", "N/A",IF(VLOOKUP($A$214,MAIN!$A$130:$D$136,3,FALSE) = "YES",N112,"-")) -> 2.536096016 | D215: =IF(VLOOKUP($A$211,MAIN!$A$130:$D$136,4,FALSE) = "YES",I145,"-") -> - | E215: - | F215: =IF(add_custom_vehicle= "NO", "N/A",O182) -> 2.912199791 | G215: =IF(add_custom_vehicle= "NO", "N/A",I182) -> 4.687615167 | H215: =IF(add_custom_vehicle= "NO", "N/A",MIN(B215:G215)) -> 2.536096016 | I215: =IF(add_custom_vehicle= "NO", "N/A",INDEX($B$186:$G$187,1,IF(MATCH(H215,B215:G215,0)<=4,1,5))) -> Flexure | J215: =IF(add_custom_vehicle= "NO", "N/A",INDEX($B$186:$G$187,2,MATCH(H215,B215:G215,0))) -> Strength II

Sheet Load Rating Exterior Beam (hidden)
A1: Load Rating for Exterior Beams
A3: Limit States and Load Factors for Load Rating
A5: Bridge Type | B5: Limit State | C5: Dead Load | D5: Dead Load | E5: Design Load | G5: Legal Load | H5: Permit Load
E6: Inventory | F6: Operating
C7: ᵞDc | D7: ᵞDw | E7: ᵞLL | F7: ᵞLL | G7: ᵞLL | H7: ᵞLL
A8: Prestressed Concrete | B8: Strength I | C8: 1.25 | D8: 1.5 | E8: 1.75 | F8: 1.35 | G8: Tables 6A.4.4.2.3a-1 and 6A.4,4.2.3b-1 | H8: -
B9: Strength II | C9: 1.25 | D9: 1.5 | E9: - | F9: - | G9: - | H9: Table 6A.4.5.4.2a-1
B10: Service III | C10: 1 | D10: 1 | E10: 0.8 | F10: - | G10: 1 | H10: -
B11: Service I | C11: 1 | D11: 1 | E11: - | F11: - | G11: - | H11: 1
A14: Live load factors for routine commercial traffic according to AASHTO LRFD Table 6A.4.4.2.3a-1
A15: Traffic Volume (One direction) ADTT | B15: Load Factor | C15: Remark
A16: Unknown | B16: 1.45
A17: 5000 | B17: 1.45 | C17: ADTT >= 5,000
A18: 1000 | B18: 1.3 | C18: ADTT <= 1,000
A19: =MAIN!$B$145 -> 8000 | B19: =IF($A$19=$A$16,$B$16,IF($A$19<$A$18,$B$18,IF($A$19>$A$17,$B$16,FORECAST($A$19,$B$17:$B$18,$A$17:$A$18)))) -> 1.45
A22: Live load factors for special hauling vehicles according to AASHTO LRFD Table 6A.4.4.2.3b-1
A23: Traffic Volume (One direction) ADTT | B23: Load Factor | C23: Remark
A24: Unknown | B24: 1.45
A25: 5000 | B25: 1.45 | C25: ADTT >= 5,000
A26: 1000 | B26: 1.3 | C26: ADTT <= 1,000
A27: =MAIN!$B$145 -> 8000 | B27: =IF($A$27=$A$24,$B$24,IF($A$27<$A$26,$B$26,IF($A$27>$A$25,$B$24,FORECAST($A$27,$B$25:$B$26,$A$25:$A$26)))) -> 1.45
A29: Table 6A.4.5.4.2a-1 Permit Load Factors: γL
A30: Permit Type | B30: Frequency | C30: Loading Condition | D30: Dfa | E30: ADTT (one direction) | F30: Load Factor by Permit Weight Ratiob
F32: GVW / AL < 2.0 (kip/ft) | G32: 2.0 < GVW / AL < 3.0 (kip/ft) | H32: GVW / AL > 3.0 (kip/ft)
A35: Routine or Annual | B35: Unlimited Crossings | C35: Mix with traffic (other vehicles may be on the bridge) | D35: Two or more Lanes | E35: > 5000 | F35: 1.4 | G35: 1.35 | H35: 1.3
E36: =1000 | F36: 1.35 | G36: 1.25 | H36: 1.2
E37: <1000 | F37: 1.3 | G37: 1.2 | H37: 1.15
B38: Unlimited Crossings (Reinforced Concrete Box Culverts)c | C38: Mix with traffic (other vehicles may be on the bridge) | D38: One lane | E38: All ADTTs | F38: 1.4
F43: All Weights
A44: Special or Limited Crossing | B44: Single-Trip | C44: Escorted with no other vehicles on the bridge | D44: One lane | E44: N/A | F44: 1.1
B47: Single-Trip | C47: Mix with traffic (other vehicles may be on the bridge) | D47: One lane | E47: All ADTTs | F47: 1.2
B51: Multiple Trips (less than 100 crossings) | C51: Mix with traffic (other vehicles may be on the bridge) | D51: One lane | E51: All ADTTs | F51: 1.4
A56: Notes:
A57: a | B57: DF= LRFD distribution factor. When one-lane distribution factor is used, the built-in multiple presence factor should be divided out.
A59: b | B59: Permit Weight Ratio= GVW / AL; GVW= Gross Vehicle Weight; AL= Front axle to rear axle length; Use only axles on the bridge.
A61: c | B61: Refer to Article 6A.5.12.
A63: Permit Load Condition | F63: Custom Vehicle Load Condition
A64: Permit Type: | B64: =MAIN!B153 -> Routine or Annual | F64: Permit Type: | G64: =MAIN!B204 -> Special or Limited crossing
A65: Frequency: | B65: =MAIN!B154 -> Unlimited crossings | F65: Frequency: | G65: =MAIN!B205 -> Single trip
A66: Loading Condition: | B66: =MAIN!B155 -> Mixed with traffic | F66: Loading Condition: | G66: =MAIN!B206 -> Escorted with no other vehicle on the bridge
A67: DF using: | B67: =MAIN!B156 -> Two or more lanes | F67: DF using: | G67: =MAIN!B207 -> One lane
A69: ADTT | B69: =MAIN!B145 -> 8000
A71: Live load factors for permit vehicles according to AASHTO MBE Table 6A.4.5.4.2a-1 | I71: Adopted Live Load Distribution Factor for
A72: Permit vehicle types | B72: Gross vehicle weight | D72: Axle length | F72: GVW / AL | G72: Load factor | J72: Permit Vehicles | L72: Custom Vehicle
B73: GVW (kip) | D73: AL (ft) | G73: ᵞLL | J73: Interior beam | K73: Exterior beam | L73: Interior beam | M73: Exterior beam
A74: PL60T | B74: 119.5 | D74: 65.083 | F74: =B74/D74 -> 1.836116958 | G74: =Live_Load_Factors_PL(B64,B65,B66,B67,B69,F74) -> 1.4 | I74: DFM | J74: =IF($B$67="One lane",(DFM_Int_One_lane*DFM_CF_Skew)/1.2,DFM) -> 0.2938735208 | K74: =IF($B$67="One lane",(DFM_Ext_One_lane*DFM_CF_Skew)/1.2,DFM_ext) -> 0.3083223023 | L74: =IF($G$67="One lane",(DFM_Int_One_lane*DFM_CF_Skew)/1.2,DFM) -> 0.1628172228 | M74: =IF($G$67="One lane",(DFM_Ext_One_lane*DFM_CF_Skew)/1.2,DFM_ext) -> 0.1844131184
A75: PL65T | B75: 130 | D75: 48 | F75: =B75/D75 -> 2.708333333 | G75: =Live_Load_Factors_PL(B64,B65,B66,B67,B69,F75) -> 1.35 | I75: DFV | J75: =IF($B$67="One lane",(DFV_Int_one_lane*DFV_RF_Skew)/1.2,DFV) -> 0.5379440504 | K75: =IF($B$67="One lane",(DFV_Ext_One_lane*DFV_RF_Skew)/1.2,DFV_ext) -> 0.6649366411 | L75: =IF($G$67="One lane",(DFV_Int_one_lane*DFV_RF_Skew)/1.2,DFV) -> 0.4369038036 | M75: =IF($G$67="One lane",(DFV_Ext_One_lane*DFV_RF_Skew)/1.2,DFV_ext) -> 0.5511359439
A76: Custom vehicle 1 | B76: =Vehicles!$O$40 -> 365 | D76: =Vehicles!$AI$39 -> 126.25 | F76: =IF(add_custom_vehicle= "NO", "N/A",B76/D76) -> 2.891089109 | G76: =IF(add_custom_vehicle= "NO", "N/A",Live_Load_Factors_PL(G64,G65,G66,G67,B69,F76)) -> 1.1
A78: Rating Factor With Flexure
A80: Strength I | B80: Load factors | E80: At moment critical point | J80: At center | N80: Adopted RF
A81: Vehicle types | B81: ᵞDc | C81: ᵞDw | D81: ᵞLL | E81: Capacity | F81: Dc | G81: Dw | H81: LL+IM | I81: RF | J81: Dc | K81: Dw | L81: LL+IM | M81: RF
A82: A. Design Vehicles
A83: HL93
A84: Inventory | B84: =VLOOKUP($A$80,$B$5:$D$11,MATCH(B$81,$B$7:$D$7,0),FALSE) -> 1.25 | C84: =VLOOKUP($A$80,$B$5:$D$11,MATCH(C$81,$B$7:$D$7,0),FALSE) -> 1.5 | D84: =$E$8 -> 1.75 | E84: ='Calculation Summary'!$B$132*PRODUCT('Calculation Summary'!$C$135:$C$137) -> 1680.550572 | F84: =VLOOKUP($A84,'Calculation Summary'!$B$17:$I$44,MATCH(F$81,'Calculation Summary'!$B$11:$I$11,0),FALSE) -> 393.8123662 | G84: =VLOOKUP($A84,'Calculation Summary'!$B$17:$I$44,MATCH(G$81,'Calculation Summary'!$B$11:$I$11,0),FALSE) -> 223.5879106 | H84: =VLOOKUP($A84,'Calculation Summary'!$A$65:$H$92, 4 + MATCH($E$80,'Calculation Summary'!$A$62:$D$62,0),FALSE) -> 476.3910932 | I84: =Loadrating($B84,$C84,$D84,$E84,$F84,$G84,$H84) -> 1.023052891 | J84: ='Calculation Summary'!$G$14 -> 395.7037435 | K84: ='Calculation Summary'!$I$14 -> 224.7286578 | L84: =VLOOKUP($A84,'Calculation Summary'!$A$65:$H$92,4+MATCH($J$80,'Calculation Summary'!$A$62:$D$62,0),FALSE) -> 474.4741078 | M84: =Loadrating($B84,$C84,$D84,$E84,$J84,$K84,$L84) -> 1.02227816 | N84: =MIN(I84,M84) -> 1.02227816
A85: Operating | B85: =VLOOKUP($A$80,$B$5:$D$11,MATCH(B$81,$B$7:$D$7,0),FALSE) -> 1.25 | C85: =VLOOKUP($A$80,$B$5:$D$11,MATCH(C$81,$B$7:$D$7,0),FALSE) -> 1.5 | D85: =$F$8 -> 1.35 | E85: ='Calculation Summary'!$B$132*PRODUCT('Calculation Summary'!$C$135:$C$137) -> 1680.550572 | F85: =VLOOKUP($A85,'Calculation Summary'!$B$17:$I$44,MATCH(F$81,'Calculation Summary'!$B$11:$I$11,0),FALSE) -> 393.8123662 | G85: =VLOOKUP($A85,'Calculation Summary'!$B$17:$I$44,MATCH(G$81,'Calculation Summary'!$B$11:$I$11,0),FALSE) -> 223.5879106 | H85: =VLOOKUP($A85,'Calculation Summary'!$A$65:$H$92, 4 + MATCH($E$80,'Calculation Summary'!$A$62:$D$62,0),FALSE) -> 476.3910932 | I85: =Loadrating($B85,$C85,$D85,$E85,$F85,$G85,$H85) -> 1.326179673 | J85: ='Calculation Summary'!$G$14 -> 395.7037435 | K85: ='Calculation Summary'!$I$14 -> 224.7286578 | L85: =VLOOKUP($A85,'Calculation Summary'!$A$65:$H$92,4+MATCH($J$80,'Calculation Summary'!$A$62:$D$62,0),FALSE) -> 474.4741078 | M85: =Loadrating($B85,$C85,$D85,$E85,$J85,$K85,$L85) -> 1.325175393 | N85: =MIN(I85,M85) -> 1.325175393
A86: HL93_Tandem
A87: Inventory_Tandem | B87: =VLOOKUP($A$80,$B$5:$D$11,MATCH(B$81,$B$7:$D$7,0),FALSE) -> 1.25 | C87: =VLOOKUP($A$80,$B$5:$D$11,MATCH(C$81,$B$7:$D$7,0),FALSE) -> 1.5 | D87: =$E$8 -> 1.75 | E87: ='Calculation Summary'!$B$132*PRODUCT('Calculation Summary'!$C$135:$C$137) -> 1680.550572 | F87: =VLOOKUP($A87,'Calculation Summary'!$B$17:$I$44,MATCH(F$81,'Calculation Summary'!$B$11:$I$11,0),FALSE) -> 395.3563477 | G87: =VLOOKUP($A87,'Calculation Summary'!$B$17:$I$44,MATCH(G$81,'Calculation Summary'!$B$11:$I$11,0),FALSE) -> 224.5191328 | H87: =VLOOKUP($A87,'Calculation Summary'!$A$65:$H$92, 4 + MATCH($E$80,'Calculation Summary'!$A$62:$D$62,0),FALSE) -> 421.2770309 | I87: =Loadrating($B87,$C87,$D87,$E87,$F87,$G87,$H87) -> 1.152382435 | J87: ='Calculation Summary'!$G$14 -> 395.7037435 | K87: ='Calculation Summary'!$I$14 -> 224.7286578 | L87: =VLOOKUP($A87,'Calculation Summary'!$A$65:$H$92,4+MATCH($J$80,'Calculation Summary'!$A$62:$D$62,0),FALSE) -> 421.0626645 | M87: =Loadrating($B87,$C87,$D87,$E87,$J87,$K87,$L87) -> 1.151953281 | N87: =MIN(I87,M87) -> 1.151953281
A88: Operating_Tandem | B88: =VLOOKUP($A$80,$B$5:$D$11,MATCH(B$81,$B$7:$D$7,0),FALSE) -> 1.25 | C88: =VLOOKUP($A$80,$B$5:$D$11,MATCH(C$81,$B$7:$D$7,0),FALSE) -> 1.5 | D88: =$F$8 -> 1.35 | E88: ='Calculation Summary'!$B$132*PRODUCT('Calculation Summary'!$C$135:$C$137) -> 1680.550572 | F88: =VLOOKUP($A88,'Calculation Summary'!$B$17:$I$44,MATCH(F$81,'Calculation Summary'!$B$11:$I$11,0),FALSE) -> 395.3563477 | G88: =VLOOKUP($A88,'Calculation Summary'!$B$17:$I$44,MATCH(G$81,'Calculation Summary'!$B$11:$I$11,0),FALSE) -> 224.5191328 | H88: =VLOOKUP($A88,'Calculation Summary'!$A$65:$H$92, 4 + MATCH($E$80,'Calculation Summary'!$A$62:$D$62,0),FALSE) -> 421.2770309 | I88: =Loadrating($B88,$C88,$D88,$E88,$F88,$G88,$H88) -> 1.493829082 | J88: ='Calculation Summary'!$G$14 -> 395.7037435 | K88: ='Calculation Summary'!$I$14 -> 224.7286578 | L88: =VLOOKUP($A88,'Calculation Summary'!$A$65:$H$92,4+MATCH($J$80,'Calculation Summary'!$A$62:$D$62,0),FALSE) -> 421.0626645 | M88: =Loadrating($B88,$C88,$D88,$E88,$J88,$K88,$L88) -> 1.493272771 | N88: =MIN(I88,M88) -> 1.493272771
A89: B. Ohio Legal Vehicles
A90: 2F1 | B90: =VLOOKUP($A$80,$B$5:$D$11,MATCH(B$81,$B$7:$D$7,0),FALSE) -> 1.25 | C90: 1.5 | D90: =$B$19 -> 1.45 | E90: ='Calculation Summary'!$B$132*PRODUCT('Calculation Summary'!$C$135:$C$137) -> 1680.550572 | F90: =VLOOKUP($A90,'Calculation Summary'!$B$17:$I$44,MATCH(F$81,'Calculation Summary'!$B$11:$I$11,0),FALSE) -> 394.7387551 | G90: =VLOOKUP($A90,'Calculation Summary'!$B$17:$I$44,MATCH(G$81,'Calculation Summary'!$B$11:$I$11,0),FALSE) -> 224.1466439 | H90: =VLOOKUP($A90,'Calculation Summary'!$A$65:$H$92, 4 + MATCH($E$80,'Calculation Summary'!$A$62:$D$62,0),FALSE) -> 181.464513 | I90: =Loadrating($B90,$C90,$D90,$E90,$F90,$G90,$H90) -> 3.233869346 | J90: ='Calculation Summary'!$G$14 -> 395.7037435 | K90: ='Calculation Summary'!$I$14 -> 224.7286578 | L90: =VLOOKUP($A90,'Calculation Summary'!$A$65:$H$92,4+MATCH($J$80,'Calculation Summary'!$A$62:$D$62,0),FALSE) -> 180.9427971 | M90: =Loadrating($B90,$C90,$D90,$E90,$J90,$K90,$L90) -> 3.235268634 | N90: =MIN(I90,M90) -> 3.233869346
A91: 3F1 | B91: 1.25 | C91: 1.5 | D91: =$B$19 -> 1.45 | E91: ='Calculation Summary'!$B$132*PRODUCT('Calculation Summary'!$C$135:$C$137) -> 1680.550572 | F91: =VLOOKUP($A91,'Calculation Summary'!$B$17:$I$44,MATCH(F$81,'Calculation Summary'!$B$11:$I$11,0),FALSE) -> 395.5927607 | G91: =VLOOKUP($A91,'Calculation Summary'!$B$17:$I$44,MATCH(G$81,'Calculation Summary'!$B$11:$I$11,0),FALSE) -> 224.6617207 | H91: =VLOOKUP($A91,'Calculation Summary'!$A$65:$H$92, 4 + MATCH($E$80,'Calculation Summary'!$A$62:$D$62,0),FALSE) -> 270.4297689 | I91: =Loadrating($B91,$C91,$D91,$E91,$F91,$G91,$H91) -> 2.165307017 | J91: ='Calculation Summary'!$G$14 -> 395.7037435 | K91: ='Calculation Summary'!$I$14 -> 224.7286578 | L91: =VLOOKUP($A91,'Calculation Summary'!$A$65:$H$92,4+MATCH($J$80,'Calculation Summary'!$A$62:$D$62,0),FALSE) -> 270.3377654 | M91: =Loadrating($B91,$C91,$D91,$E91,$J91,$K91,$L91) -> 2.165433879 | N91: =MIN(I91,M91) -> 2.165307017
A92: 5C1 | B92: 1.25 | C92: 1.5 | D92: =$B$19 -> 1.45 | E92: ='Calculation Summary'!$B$132*PRODUCT('Calculation Summary'!$C$135:$C$137) -> 1680.550572 | F92: =VLOOKUP($A92,'Calculation Summary'!$B$17:$I$44,MATCH(F$81,'Calculation Summary'!$B$11:$I$11,0),FALSE) -> 385.6205251 | G92: =VLOOKUP($A92,'Calculation Summary'!$B$17:$I$44,MATCH(G$81,'Calculation Summary'!$B$11:$I$11,0),FALSE) -> 218.6471619 | H92: =VLOOKUP($A92,'Calculation Summary'!$A$65:$H$92, 4 + MATCH($E$80,'Calculation Summary'!$A$62:$D$62,0),FALSE) -> 268.3696706 | I92: =Loadrating($B92,$C92,$D92,$E92,$F92,$G92,$H92) -> 2.237146198 | J92: ='Calculation Summary'!$G$14 -> 395.7037435 | K92: ='Calculation Summary'!$I$14 -> 224.7286578 | L92: =VLOOKUP($A92,'Calculation Summary'!$A$65:$H$92,4+MATCH($J$80,'Calculation Summary'!$A$62:$D$62,0),FALSE) -> 265.4169415 | M92: =Loadrating($B92,$C92,$D92,$E92,$J92,$K92,$L92) -> 2.205580973 | N92: =MIN(I92,M92) -> 2.205580973
A93: C. Specialized Hauling Vehicles
A94: SU4 | B94: =VLOOKUP($A$80,$B$5:$D$11,MATCH(B$81,$B$7:$D$7,0),FALSE) -> 1.25 | C94: 1.5 | D94: =$B$27 -> 1.45 | E94: ='Calculation Summary'!$B$132*PRODUCT('Calculation Summary'!$C$135:$C$137) -> 1680.550572 | F94: =VLOOKUP($A94,'Calculation Summary'!$B$17:$I$44,MATCH(F$81,'Calculation Summary'!$B$11:$I$11,0),FALSE) -> 395.1847942 | G94: =VLOOKUP($A94,'Calculation Summary'!$B$17:$I$44,MATCH(G$81,'Calculation Summary'!$B$11:$I$11,0),FALSE) -> 224.4156637 | H94: =VLOOKUP($A94,'Calculation Summary'!$A$65:$H$92, 4 + MATCH($E$80,'Calculation Summary'!$A$62:$D$62,0),FALSE) -> 308.1590346 | I94: =Loadrating($B94,$C94,$D94,$E94,$F94,$G94,$H94) -> 1.902166243 | J94: ='Calculation Summary'!$G$14 -> 395.7037435 | K94: ='Calculation Summary'!$I$14 -> 224.7286578 | L94: =VLOOKUP($A94,'Calculation Summary'!$A$65:$H$92,4+MATCH($J$80,'Calculation Summary'!$A$62:$D$62,0),FALSE) -> 307.6540137 | M94: =Loadrating($B94,$C94,$D94,$E94,$J94,$K94,$L94) -> 1.902782119 | N94: =MIN(I94,M94) -> 1.902166243
A95: SU5 | B95: 1.25 | C95: 1.5 | D95: =$B$27 -> 1.45 | E95: ='Calculation Summary'!$B$132*PRODUCT('Calculation Summary'!$C$135:$C$137) -> 1680.550572 | F95: =VLOOKUP($A95,'Calculation Summary'!$B$17:$I$44,MATCH(F$81,'Calculation Summary'!$B$11:$I$11,0),FALSE) -> 394.3586239 | G95: =VLOOKUP($A95,'Calculation Summary'!$B$17:$I$44,MATCH(G$81,'Calculation Summary'!$B$11:$I$11,0),FALSE) -> 223.9173753 | H95: =VLOOKUP($A95,'Calculation Summary'!$A$65:$H$92, 4 + MATCH($E$80,'Calculation Summary'!$A$62:$D$62,0),FALSE) -> 339.9121089 | I95: =Loadrating($B95,$C95,$D95,$E95,$F95,$G95,$H95) -> 1.728086126 | J95: ='Calculation Summary'!$G$14 -> 395.7037435 | K95: ='Calculation Summary'!$I$14 -> 224.7286578 | L95: =VLOOKUP($A95,'Calculation Summary'!$A$65:$H$92,4+MATCH($J$80,'Calculation Summary'!$A$62:$D$62,0),FALSE) -> 338.4091633 | M95: =Loadrating($B95,$C95,$D95,$E95,$J95,$K95,$L95) -> 1.729854328 | N95: =MIN(I95,M95) -> 1.728086126
A96: SU6 | B96: 1.25 | C96: 1.5 | D96: =$B$27 -> 1.45 | E96: ='Calculation Summary'!$B$132*PRODUCT('Calculation Summary'!$C$135:$C$137) -> 1680.550572 | F96: =VLOOKUP($A96,'Calculation Summary'!$B$17:$I$44,MATCH(F$81,'Calculation Summary'!$B$11:$I$11,0),FALSE) -> 395.1779839 | G96: =VLOOKUP($A96,'Calculation Summary'!$B$17:$I$44,MATCH(G$81,'Calculation Summary'!$B$11:$I$11,0),FALSE) -> 224.4115562 | H96: =VLOOKUP($A96,'Calculation Summary'!$A$65:$H$92, 4 + MATCH($E$80,'Calculation Summary'!$A$62:$D$62,0),FALSE) -> 378.1523432 | I96: =Loadrating($B96,$C96,$D96,$E96,$F96,$G96,$H96) -> 1.550115565 | J96: ='Calculation Summary'!$G$14 -> 395.7037435 | K96: ='Calculation Summary'!$I$14 -> 224.7286578 | L96: =VLOOKUP($A96,'Calculation Summary'!$A$65:$H$92,4+MATCH($J$80,'Calculation Summary'!$A$62:$D$62,0),FALSE) -> 377.4938327 | M96: =Loadrating($B96,$C96,$D96,$E96,$J96,$K96,$L96) -> 1.550749987 | N96: =MIN(I96,M96) -> 1.550115565
A97: SU7 | B97: 1.25 | C97: 1.5 | D97: =$B$27 -> 1.45 | E97: ='Calculation Summary'!$B$132*PRODUCT('Calculation Summary'!$C$135:$C$137) -> 1680.550572 | F97: =VLOOKUP($A97,'Calculation Summary'!$B$17:$I$44,MATCH(F$81,'Calculation Summary'!$B$11:$I$11,0),FALSE) -> 395.6224073 | G97: =VLOOKUP($A97,'Calculation Summary'!$B$17:$I$44,MATCH(G$81,'Calculation Summary'!$B$11:$I$11,0),FALSE) -> 224.6796015 | H97: =VLOOKUP($A97,'Calculation Summary'!$A$65:$H$92, 4 + MATCH($E$80,'Calculation Summary'!$A$62:$D$62,0),FALSE) -> 411.6431311 | I97: =Loadrating($B97,$C97,$D97,$E97,$F97,$G97,$H97) -> 1.422395704 | J97: ='Calculation Summary'!$G$14 -> 395.7037435 | K97: ='Calculation Summary'!$I$14 -> 224.7286578 | L97: =VLOOKUP($A97,'Calculation Summary'!$A$65:$H$92,4+MATCH($J$80,'Calculation Summary'!$A$62:$D$62,0),FALSE) -> 411.5295316 | M97: =Loadrating($B97,$C97,$D97,$E97,$J97,$K97,$L97) -> 1.422494647 | N97: =MIN(I97,M97) -> 1.422395704
A98: D. Emergency Vehicles
A99: EV2 | B99: =VLOOKUP($A$80,$B$5:$D$11,MATCH(B$81,$B$7:$D$7,0),FALSE) -> 1.25 | C99: =VLOOKUP($A$80,$B$5:$D$11,MATCH(C$81,$B$7:$D$7,0),FALSE) -> 1.5 | D99: =MAIN!B149 -> 1.3 | E99: ='Calculation Summary'!$B$132*PRODUCT('Calculation Summary'!$C$135:$C$137) -> 1680.550572 | F99: =VLOOKUP($A99,'Calculation Summary'!$B$17:$I$44,MATCH(F$81,'Calculation Summary'!$B$11:$I$11,0),FALSE) -> 392.2993957 | G99: =VLOOKUP($A99,'Calculation Summary'!$B$17:$I$44,MATCH(G$81,'Calculation Summary'!$B$11:$I$11,0),FALSE) -> 222.675392 | H99: =VLOOKUP($A99,'Calculation Summary'!$A$65:$H$92, 4 + MATCH($E$80,'Calculation Summary'!$A$62:$D$62,0),FALSE) -> 315.8206219 | I99: =Loadrating($B99,$C99,$D99,$E99,$F99,$G99,$H99) -> 2.085320152 | J99: ='Calculation Summary'!$G$14 -> 395.7037435 | K99: ='Calculation Summary'!$I$14 -> 224.7286578 | L99: =VLOOKUP($A99,'Calculation Summary'!$A$65:$H$92,4+MATCH($J$80,'Calculation Summary'!$A$62:$D$62,0),FALSE) -> 312.2929154 | M99: =Loadrating($B99,$C99,$D99,$E99,$J99,$K99,$L99) -> 2.090808055 | N99: =MIN(I99,M99) -> 2.085320152
A100: EV3 | B100: =VLOOKUP($A$80,$B$5:$D$11,MATCH(B$81,$B$7:$D$7,0),FALSE) -> 1.25 | C100: =VLOOKUP($A$80,$B$5:$D$11,MATCH(C$81,$B$7:$D$7,0),FALSE) -> 1.5 | D100: =MAIN!B150 -> 1.1 | E100: ='Calculation Summary'!$B$132*PRODUCT('Calculation Summary'!$C$135:$C$137) -> 1680.550572 | F100: =VLOOKUP($A100,'Calculation Summary'!$B$17:$I$44,MATCH(F$81,'Calculation Summary'!$B$11:$I$11,0),FALSE) -> 395.0497225 | G100: =VLOOKUP($A100,'Calculation Summary'!$B$17:$I$44,MATCH(G$81,'Calculation Summary'!$B$11:$I$11,0),FALSE) -> 224.3341978 | H100: =VLOOKUP($A100,'Calculation Summary'!$A$65:$H$92, 4 + MATCH($E$80,'Calculation Summary'!$A$62:$D$62,0),FALSE) -> 479.2562103 | I100: =Loadrating($B100,$C100,$D100,$E100,$F100,$G100,$H100) -> 1.612796709 | J100: ='Calculation Summary'!$G$14 -> 395.7037435 | K100: ='Calculation Summary'!$I$14 -> 224.7286578 | L100: =VLOOKUP($A100,'Calculation Summary'!$A$65:$H$92,4+MATCH($J$80,'Calculation Summary'!$A$62:$D$62,0),FALSE) -> 478.2425771 | M100: =Loadrating($B100,$C100,$D100,$E100,$J100,$K100,$L100) -> 1.613536247 | N100: =MIN(I100,M100) -> 1.612796709
A101: E. AASHTO Legal Vehicles
A102: Type3 | B102: =VLOOKUP($A$80,$B$5:$D$11,MATCH(B$81,$B$7:$D$7,0),FALSE) -> 1.25 | C102: 1.5 | D102: =$B$19 -> 1.45 | E102: ='Calculation Summary'!$B$132*PRODUCT('Calculation Summary'!$C$135:$C$137) -> 1680.550572 | F102: =VLOOKUP($A102,'Calculation Summary'!$B$17:$I$44,MATCH(F$81,'Calculation Summary'!$B$11:$I$11,0),FALSE) -> 394.6760077 | G102: =VLOOKUP($A102,'Calculation Summary'!$B$17:$I$44,MATCH(G$81,'Calculation Summary'!$B$11:$I$11,0),FALSE) -> 224.1087991 | H102: =VLOOKUP($A102,'Calculation Summary'!$A$65:$H$92, 4 + MATCH($E$80,'Calculation Summary'!$A$62:$D$62,0),FALSE) -> 273.5192096 | I102: =Loadrating($B102,$C102,$D102,$E102,$F102,$G102,$H102) -> 2.145830157 | J102: ='Calculation Summary'!$G$14 -> 395.7037435 | K102: ='Calculation Summary'!$I$14 -> 224.7286578 | L102: =VLOOKUP($A102,'Calculation Summary'!$A$65:$H$92,4+MATCH($J$80,'Calculation Summary'!$A$62:$D$62,0),FALSE) -> 272.5931431 | M102: =Loadrating($B102,$C102,$D102,$E102,$J102,$K102,$L102) -> 2.14751754 | N102: =MIN(I102,M102) -> 2.145830157
A103: Type3S2 | B103: 1.25 | C103: 1.5 | D103: =$B$19 -> 1.45 | E103: ='Calculation Summary'!$B$132*PRODUCT('Calculation Summary'!$C$135:$C$137) -> 1680.550572 | F103: =VLOOKUP($A103,'Calculation Summary'!$B$17:$I$44,MATCH(F$81,'Calculation Summary'!$B$11:$I$11,0),FALSE) -> 390.9621656 | G103: =VLOOKUP($A103,'Calculation Summary'!$B$17:$I$44,MATCH(G$81,'Calculation Summary'!$B$11:$I$11,0),FALSE) -> 221.8688679 | H103: =VLOOKUP($A103,'Calculation Summary'!$A$65:$H$92, 4 + MATCH($E$80,'Calculation Summary'!$A$62:$D$62,0),FALSE) -> 293.6105533 | I103: =Loadrating($B103,$C103,$D103,$E103,$F103,$G103,$H103) -> 2.0177903 | J103: ='Calculation Summary'!$G$14 -> 395.7037435 | K103: ='Calculation Summary'!$I$14 -> 224.7286578 | L103: =VLOOKUP($A103,'Calculation Summary'!$A$65:$H$92,4+MATCH($J$80,'Calculation Summary'!$A$62:$D$62,0),FALSE) -> 287.4581321 | M103: =Loadrating($B103,$C103,$D103,$E103,$J103,$K103,$L103) -> 2.036465456 | N103: =MIN(I103,M103) -> 2.0177903
A104: Type3_3 | B104: 1.25 | C104: 1.5 | D104: =$B$19 -> 1.45 | E104: ='Calculation Summary'!$B$132*PRODUCT('Calculation Summary'!$C$135:$C$137) -> 1680.550572 | F104: =VLOOKUP($A104,'Calculation Summary'!$B$17:$I$44,MATCH(F$81,'Calculation Summary'!$B$11:$I$11,0),FALSE) -> 395.5306466 | G104: =VLOOKUP($A104,'Calculation Summary'!$B$17:$I$44,MATCH(G$81,'Calculation Summary'!$B$11:$I$11,0),FALSE) -> 224.6242578 | H104: =VLOOKUP($A104,'Calculation Summary'!$A$65:$H$92, 4 + MATCH($E$80,'Calculation Summary'!$A$62:$D$62,0),FALSE) -> 269.8322688 | I104: =Loadrating($B104,$C104,$D104,$E104,$F104,$G104,$H104) -> 2.170443809 | J104: ='Calculation Summary'!$G$14 -> 395.7037435 | K104: ='Calculation Summary'!$I$14 -> 224.7286578 | L104: =VLOOKUP($A104,'Calculation Summary'!$A$65:$H$92,4+MATCH($J$80,'Calculation Summary'!$A$62:$D$62,0),FALSE) -> 269.6201453 | M104: =Loadrating($B104,$C104,$D104,$E104,$J104,$K104,$L104) -> 2.171197391 | N104: =MIN(I104,M104) -> 2.170443809
A106: Strength II | B106: Load factors | E106: At moment critical point | J106: At center | N106: Adopted RF
A107: Vehicle types | B107: ᵞDc | C107: ᵞDw | D107: ᵞLL | E107: Capacity | F107: Dc | G107: Dw | H107: LL+IM | I107: RF | J107: Dc | K107: Dw | L107: LL+IM | M107: RF
A108: F.Permit Loads
A109: PL60T | B109: =VLOOKUP($A$106,$B$5:$D$11,MATCH(B$107,$B$7:$D$7,0),FALSE) -> 1.25 | C109: =VLOOKUP($A$106,$B$5:$D$11,MATCH(C$107,$B$7:$D$7,0),FALSE) -> 1.5 | D109: =$G$74 -> 1.4 | E109: ='Calculation Summary'!$B$132*PRODUCT('Calculation Summary'!$C$135:$C$137) -> 1680.550572 | F109: =VLOOKUP($A109,'Calculation Summary'!$B$17:$I$44,MATCH(F$81,'Calculation Summary'!$B$11:$I$11,0),FALSE) -> 395.7036128 | G109: =VLOOKUP($A109,'Calculation Summary'!$B$17:$I$44,MATCH(G$81,'Calculation Summary'!$B$11:$I$11,0),FALSE) -> 224.728579 | H109: =VLOOKUP($A109,'Calculation Summary'!$A$65:$H$92, 4 + MATCH($E$80,'Calculation Summary'!$A$62:$D$62,0),FALSE) -> 266.1207899 | I109: =Loadrating($B109,$C109,$D109,$E109,$F109,$G109,$H109) -> 2.27831072 | J109: ='Calculation Summary'!$G$14 -> 395.7037435 | K109: ='Calculation Summary'!$I$14 -> 224.7286578 | L109: =VLOOKUP($A109,'Calculation Summary'!$A$65:$H$92,4+MATCH($J$80,'Calculation Summary'!$A$62:$D$62,0),FALSE) -> 266.1206872 | M109: =Loadrating($B109,$C109,$D109,$E109,$J109,$K109,$L109) -> 2.278310844 | N109: =MIN(I109,M109) -> 2.27831072
A110: PL65T | B110: =VLOOKUP($A$106,$B$5:$D$11,MATCH(B$107,$B$7:$D$7,0),FALSE) -> 1.25 | C110: =VLOOKUP($A$106,$B$5:$D$11,MATCH(C$107,$B$7:$D$7,0),FALSE) -> 1.5 | D110: =$G$75 -> 1.35 | E110: ='Calculation Summary'!$B$132*PRODUCT('Calculation Summary'!$C$135:$C$137) -> 1680.550572 | F110: =VLOOKUP($A110,'Calculation Summary'!$B$17:$I$44,MATCH(F$81,'Calculation Summary'!$B$11:$I$11,0),FALSE) -> 389.02511 | G110: =VLOOKUP($A110,'Calculation Summary'!$B$17:$I$44,MATCH(G$81,'Calculation Summary'!$B$11:$I$11,0),FALSE) -> 220.7005707 | H110: =VLOOKUP($A110,'Calculation Summary'!$A$65:$H$92, 4 + MATCH($E$80,'Calculation Summary'!$A$62:$D$62,0),FALSE) -> 362.8664276 | I110: =Loadrating($B110,$C110,$D110,$E110,$F110,$G110,$H110) -> 1.762138726 | J110: ='Calculation Summary'!$G$14 -> 395.7037435 | K110: ='Calculation Summary'!$I$14 -> 224.7286578 | L110: =VLOOKUP($A110,'Calculation Summary'!$A$65:$H$92,4+MATCH($J$80,'Calculation Summary'!$A$62:$D$62,0),FALSE) -> 351.1020217 | M110: =Loadrating($B110,$C110,$D110,$E110,$J110,$K110,$L110) -> 1.790822533 | N110: =MIN(I110,M110) -> 1.762138726
A111: G.Custom Vehicle
A112: Custom_Vehicle_1 | B112: =VLOOKUP($A$106,$B$5:$D$11,MATCH(B$81,$B$7:$D$7,0),FALSE) -> 1.25 | C112: =VLOOKUP($A$106,$B$5:$D$11,MATCH(C$81,$B$7:$D$7,0),FALSE) -> 1.5 | D112: =$G$76 -> 1.1 | E112: ='Calculation Summary'!$B$132*PRODUCT('Calculation Summary'!$C$135:$C$137) -> 1680.550572 | F112: =VLOOKUP($A112,'Calculation Summary'!$B$17:$I$44,MATCH(F$81,'Calculation Summary'!$B$11:$I$11,0),FALSE) -> 394.6897047 | G112: =VLOOKUP($A112,'Calculation Summary'!$B$17:$I$44,MATCH(G$81,'Calculation Summary'!$B$11:$I$11,0),FALSE) -> 224.1170602 | H112: =VLOOKUP($A112,'Calculation Summary'!$A$65:$H$92, 4 + MATCH($E$80,'Calculation Summary'!$A$62:$D$62,0),FALSE) -> 345.5168331 | I112: =IF(add_custom_vehicle= "NO", "N/A",Loadrating($B112,$C112,$D112,$E112,$F112,$G112,$H112)) -> 2.239103778 | J112: ='Calculation Summary'!$G$14 -> 395.7037435 | K112: ='Calculation Summary'!$I$14 -> 224.7286578 | L112: =VLOOKUP($A112,'Calculation Summary'!$A$65:$H$92,4+MATCH($J$80,'Calculation Summary'!$A$62:$D$62,0),FALSE) -> 343.9553615 | M112: =IF(add_custom_vehicle= "NO", "N/A",Loadrating($B112,$C112,$D112,$E112,$J112,$K112,$L112)) -> 2.243493834 | N112: =IF(add_custom_vehicle= "NO", "N/A",MIN(I112,M112)) -> 2.239103778
A115: Service III | B115: Load factors | E115: At moment critical point | J115: At center | N115: Adopted RF
A116: Vehicle types | B116: ᵞDc | C116: ᵞDw | D116: ᵞLL | E116: Capacity | F116: Dc | G116: Dw | H116: LL+IM | I116: RF | J116: Dc | K116: Dw | L116: LL+IM | M116: RF
A117: A. Design Vehicles
A118: HL93
A119: Inventory | B119: =VLOOKUP($A$115,$B$5:$D$11,MATCH(B$116,$B$7:$D$7,0),FALSE) -> 1 | C119: =VLOOKUP($A$115,$B$5:$D$11,MATCH(C$116,$B$7:$D$7,0),FALSE) -> 1 | D119: =$E$10 -> 0.8 | E119: =Capacity!$G$65 -> 3.69514677 | F119: =VLOOKUP($A119,'Calculation Summary'!$B$17:$I$44,MATCH("Beam weight",'Calculation Summary'!$B$11:$I$11,0),FALSE)*12/sb + VLOOKUP($A119,'Calculation Summary'!$B$17:$I$44,MATCH("diaphragm weight",'Calculation Summary'!$B$11:$I$11,0),FALSE)*12/sb +VLOOKUP($A119,'Calculation Summary'!$B$17:$I$44,MATCH("Barrier weight",'Calculation Summary'!$B$11:$I$11,0),FALSE)*12/sbc -> 1.452749686 | G119: =VLOOKUP($A119,'Calculation Summary'!$B$17:$I$44,MATCH("Wearing surface",'Calculation Summary'!$B$11:$I$11,0),FALSE)*12/sbc -> 0.825092443 | H119: =H84*12/sbc -> 1.757996172 | I119: =Loadrating($B119,$C119,$D119,$E119,$F119,$G119,$H119) -> 1.007755779 | J119: ='Calculation Summary'!D$14*12/sb +'Calculation Summary'!$F$14*12/sb + 'Calculation Summary'!$E$14*12 / sbc -> 1.459726865 | K119: ='Calculation Summary'!$I$14*12/sbc -> 0.829302071 | L119: =L84*12/sbc -> 1.750922041 | M119: =Loadrating($B119,$C119,$D119,$E119,$J119,$K119,$L119) -> 1.003840977 | N119: =MIN(I119,M119) -> 1.003840977
A120: HL93_Tandem
A121: Inventory_Tandem | B121: =VLOOKUP($A$115,$B$5:$D$11,MATCH(B$116,$B$7:$D$7,0),FALSE) -> 1 | C121: =VLOOKUP($A$115,$B$5:$D$11,MATCH(C$116,$B$7:$D$7,0),FALSE) -> 1 | D121: =$E$10 -> 0.8 | E121: =Capacity!$G$65 -> 3.69514677 | F121: =VLOOKUP($A121,'Calculation Summary'!$B$17:$I$44,MATCH("Beam weight",'Calculation Summary'!$B$11:$I$11,0),FALSE)*12/sb + VLOOKUP($A121,'Calculation Summary'!$B$17:$I$44,MATCH("diaphragm weight",'Calculation Summary'!$B$11:$I$11,0),FALSE)*12/sb +VLOOKUP($A121,'Calculation Summary'!$B$17:$I$44,MATCH("Barrier weight",'Calculation Summary'!$B$11:$I$11,0),FALSE)*12/sbc -> 1.458445342 | G121: =VLOOKUP($A121,'Calculation Summary'!$B$17:$I$44,MATCH("Wearing surface",'Calculation Summary'!$B$11:$I$11,0),FALSE)*12/sbc -> 0.828528874 | H121: =H87*12/sbc -> 1.554612205 | I121: =Loadrating($B121,$C121,$D121,$E121,$F121,$G121,$H121) -> 1.132253874 | J121: ='Calculation Summary'!D$14*12/sb +'Calculation Summary'!$F$14*12/sb + 'Calculation Summary'!$E$14*12 / sbc -> 1.459726865 | K121: ='Calculation Summary'!$I$14*12/sbc -> 0.829302071 | L121: =L87*12/sbc -> 1.553821142 | M121: =Loadrating($B121,$C121,$D121,$E121,$J121,$K121,$L121) -> 1.131177357 | N121: =MIN(I121,M121) -> 1.131177357
A122: B. Ohio Legal Vehicles
A123: 2F1 | B123: =VLOOKUP($A$115,$B$5:$D$11,MATCH(B$116,$B$7:$D$7,0),FALSE) -> 1 | C123: 1 | D123: =$G$10 -> 1 | E123: =Capacity!$G$65 -> 3.69514677 | F123: =VLOOKUP($A123,'Calculation Summary'!$B$17:$I$44,MATCH("Beam weight",'Calculation Summary'!$B$11:$I$11,0),FALSE)*12/sb + VLOOKUP($A123,'Calculation Summary'!$B$17:$I$44,MATCH("diaphragm weight",'Calculation Summary'!$B$11:$I$11,0),FALSE)*12/sb +VLOOKUP($A123,'Calculation Summary'!$B$17:$I$44,MATCH("Barrier weight",'Calculation Summary'!$B$11:$I$11,0),FALSE)*12/sbc -> 1.456167079 | G123: =VLOOKUP($A123,'Calculation Summary'!$B$17:$I$44,MATCH("Wearing surface",'Calculation Summary'!$B$11:$I$11,0),FALSE)*12/sbc -> 0.8271543016 | H123: =H90*12/sbc -> 0.6696471108 | I123: =Loadrating($B123,$C123,$D123,$E123,$F123,$G123,$H123) -> 2.108312521 | J123: ='Calculation Summary'!D$14*12/sb +'Calculation Summary'!$F$14*12/sb + 'Calculation Summary'!$E$14*12 / sbc -> 1.459726865 | K123: ='Calculation Summary'!$I$14*12/sbc -> 0.829302071 | L123: =L90*12/sbc -> 0.6677218555 | M123: =Loadrating($B123,$C123,$D123,$E123,$J123,$K123,$L123) -> 2.105843657 | N123: =MIN(I123,M123) -> 2.105843657
A124: 3F1 | B124: 1 | C124: 1 | D124: =$G$10 -> 1 | E124: =Capacity!$G$65 -> 3.69514677 | F124: =VLOOKUP($A124,'Calculation Summary'!$B$17:$I$44,MATCH("Beam weight",'Calculation Summary'!$B$11:$I$11,0),FALSE)*12/sb + VLOOKUP($A124,'Calculation Summary'!$B$17:$I$44,MATCH("diaphragm weight",'Calculation Summary'!$B$11:$I$11,0),FALSE)*12/sb +VLOOKUP($A124,'Calculation Summary'!$B$17:$I$44,MATCH("Barrier weight",'Calculation Summary'!$B$11:$I$11,0),FALSE)*12/sbc -> 1.459317456 | G124: =VLOOKUP($A124,'Calculation Summary'!$B$17:$I$44,MATCH("Wearing surface",'Calculation Summary'!$B$11:$I$11,0),FALSE)*12/sbc -> 0.8290550572 | H124: =H91*12/sbc -> 0.9979500149 | I124: =Loadrating($B124,$C124,$D124,$E124,$F124,$G124,$H124) -> 1.409664047 | J124: ='Calculation Summary'!D$14*12/sb +'Calculation Summary'!$F$14*12/sb + 'Calculation Summary'!$E$14*12 / sbc -> 1.459726865 | K124: ='Calculation Summary'!$I$14*12/sbc -> 0.829302071 | L124: =L91*12/sbc -> 0.9976105003 | M124: =Loadrating($B124,$C124,$D124,$E124,$J124,$K124,$L124) -> 1.4094858 | N124: =MIN(I124,M124) -> 1.4094858
A125: 5C1 | B125: 1 | C125: 1 | D125: =$G$10 -> 1 | E125: =Capacity!$G$65 -> 3.69514677 | F125: =VLOOKUP($A125,'Calculation Summary'!$B$17:$I$44,MATCH("Beam weight",'Calculation Summary'!$B$11:$I$11,0),FALSE)*12/sb + VLOOKUP($A125,'Calculation Summary'!$B$17:$I$44,MATCH("diaphragm weight",'Calculation Summary'!$B$11:$I$11,0),FALSE)*12/sb +VLOOKUP($A125,'Calculation Summary'!$B$17:$I$44,MATCH("Barrier weight",'Calculation Summary'!$B$11:$I$11,0),FALSE)*12/sbc -> 1.422530468 | G125: =VLOOKUP($A125,'Calculation Summary'!$B$17:$I$44,MATCH("Wearing surface",'Calculation Summary'!$B$11:$I$11,0),FALSE)*12/sbc -> 0.8068599082 | H125: =H92*12/sbc -> 0.9903477635 | I125: =Loadrating($B125,$C125,$D125,$E125,$F125,$G125,$H125) -> 1.48004211 | J125: ='Calculation Summary'!D$14*12/sb +'Calculation Summary'!$F$14*12/sb + 'Calculation Summary'!$E$14*12 / sbc -> 1.459726865 | K125: ='Calculation Summary'!$I$14*12/sbc -> 0.829302071 | L125: =L92*12/sbc -> 0.9794514923 | M125: =Loadrating($B125,$C125,$D125,$E125,$J125,$K125,$L125) -> 1.435617634 | N125: =MIN(I125,M125) -> 1.435617634
A126: C. Specialized Hauling Vehicles
A127: SU4 | B127: =VLOOKUP($A$115,$B$5:$D$11,MATCH(B$116,$B$7:$D$7,0),FALSE) -> 1 | C127: 1 | D127: =$G$10 -> 1 | E127: =Capacity!$G$65 -> 3.69514677 | F127: =VLOOKUP($A127,'Calculation Summary'!$B$17:$I$44,MATCH("Beam weight",'Calculation Summary'!$B$11:$I$11,0),FALSE)*12/sb + VLOOKUP($A127,'Calculation Summary'!$B$17:$I$44,MATCH("diaphragm weight",'Calculation Summary'!$B$11:$I$11,0),FALSE)*12/sb +VLOOKUP($A127,'Calculation Summary'!$B$17:$I$44,MATCH("Barrier weight",'Calculation Summary'!$B$11:$I$11,0),FALSE)*12/sbc -> 1.457812491 | G127: =VLOOKUP($A127,'Calculation Summary'!$B$17:$I$44,MATCH("Wearing surface",'Calculation Summary'!$B$11:$I$11,0),FALSE)*12/sbc -> 0.8281470483 | H127: =H94*12/sbc -> 1.137179958 | I127: =Loadrating($B127,$C127,$D127,$E127,$F127,$G127,$H127) -> 1.239194571 | J127: ='Calculation Summary'!D$14*12/sb +'Calculation Summary'!$F$14*12/sb + 'Calculation Summary'!$E$14*12 / sbc -> 1.459726865 | K127: ='Calculation Summary'!$I$14*12/sbc -> 0.829302071 | L127: =L94*12/sbc -> 1.135316311 | M127: =Loadrating($B127,$C127,$D127,$E127,$J127,$K127,$L127) -> 1.238525176 | N127: =MIN(I127,M127) -> 1.238525176
A128: SU5 | B128: 1 | C128: 1 | D128: =$G$10 -> 1 | E128: =Capacity!$G$65 -> 3.69514677 | F128: =VLOOKUP($A128,'Calculation Summary'!$B$17:$I$44,MATCH("Beam weight",'Calculation Summary'!$B$11:$I$11,0),FALSE)*12/sb + VLOOKUP($A128,'Calculation Summary'!$B$17:$I$44,MATCH("diaphragm weight",'Calculation Summary'!$B$11:$I$11,0),FALSE)*12/sb +VLOOKUP($A128,'Calculation Summary'!$B$17:$I$44,MATCH("Barrier weight",'Calculation Summary'!$B$11:$I$11,0),FALSE)*12/sbc -> 1.454764798 | G128: =VLOOKUP($A128,'Calculation Summary'!$B$17:$I$44,MATCH("Wearing surface",'Calculation Summary'!$B$11:$I$11,0),FALSE)*12/sbc -> 0.8263082459 | H128: =H95*12/sbc -> 1.254356336 | I128: =Loadrating($B128,$C128,$D128,$E128,$F128,$G128,$H128) -> 1.127330157 | J128: ='Calculation Summary'!D$14*12/sb +'Calculation Summary'!$F$14*12/sb + 'Calculation Summary'!$E$14*12 / sbc -> 1.459726865 | K128: ='Calculation Summary'!$I$14*12/sbc -> 0.829302071 | L128: =L95*12/sbc -> 1.248810111 | M128: =Loadrating($B128,$C128,$D128,$E128,$J128,$K128,$L128) -> 1.125966087 | N128: =MIN(I128,M128) -> 1.125966087
A129: SU6 | B129: 1 | C129: 1 | D129: =$G$10 -> 1 | E129: =Capacity!$G$65 -> 3.69514677 | F129: =VLOOKUP($A129,'Calculation Summary'!$B$17:$I$44,MATCH("Beam weight",'Calculation Summary'!$B$11:$I$11,0),FALSE)*12/sb + VLOOKUP($A129,'Calculation Summary'!$B$17:$I$44,MATCH("diaphragm weight",'Calculation Summary'!$B$11:$I$11,0),FALSE)*12/sb +VLOOKUP($A129,'Calculation Summary'!$B$17:$I$44,MATCH("Barrier weight",'Calculation Summary'!$B$11:$I$11,0),FALSE)*12/sbc -> 1.457787369 | G129: =VLOOKUP($A129,'Calculation Summary'!$B$17:$I$44,MATCH("Wearing surface",'Calculation Summary'!$B$11:$I$11,0),FALSE)*12/sbc -> 0.8281318907 | H129: =H96*12/sbc -> 1.395471874 | I129: =Loadrating($B129,$C129,$D129,$E129,$F129,$G129,$H129) -> 1.009857336 | J129: ='Calculation Summary'!D$14*12/sb +'Calculation Summary'!$F$14*12/sb + 'Calculation Summary'!$E$14*12 / sbc -> 1.459726865 | K129: ='Calculation Summary'!$I$14*12/sbc -> 0.829302071 | L129: =L96*12/sbc -> 1.393041814 | M129: =Loadrating($B129,$C129,$D129,$E129,$J129,$K129,$L129) -> 1.009386667 | N129: =MIN(I129,M129) -> 1.009386667
A130: SU7 | B130: 1 | C130: 1 | D130: =$G$10 -> 1 | E130: =Capacity!$G$65 -> 3.69514677 | F130: =VLOOKUP($A130,'Calculation Summary'!$B$17:$I$44,MATCH("Beam weight",'Calculation Summary'!$B$11:$I$11,0),FALSE)*12/sb + VLOOKUP($A130,'Calculation Summary'!$B$17:$I$44,MATCH("diaphragm weight",'Calculation Summary'!$B$11:$I$11,0),FALSE)*12/sb +VLOOKUP($A130,'Calculation Summary'!$B$17:$I$44,MATCH("Barrier weight",'Calculation Summary'!$B$11:$I$11,0),FALSE)*12/sbc -> 1.45942682 | G130: =VLOOKUP($A130,'Calculation Summary'!$B$17:$I$44,MATCH("Wearing surface",'Calculation Summary'!$B$11:$I$11,0),FALSE)*12/sbc -> 0.8291210415 | H130: =H97*12/sbc -> 1.519060828 | I130: =Loadrating($B130,$C130,$D130,$E130,$F130,$G130,$H130) -> 0.9259661505 | J130: ='Calculation Summary'!D$14*12/sb +'Calculation Summary'!$F$14*12/sb + 'Calculation Summary'!$E$14*12 / sbc -> 1.459726865 | K130: ='Calculation Summary'!$I$14*12/sbc -> 0.829302071 | L130: =L97*12/sbc -> 1.51864162 | M130: =Loadrating($B130,$C130,$D130,$E130,$J130,$K130,$L130) -> 0.925904977 | N130: =MIN(I130,M130) -> 0.925904977
A131: D. Emergency Vehicles
A132: EV2 | B132: =VLOOKUP($A$115,$B$5:$D$11,MATCH(B$116,$B$7:$D$7,0),FALSE) -> 1 | C132: =VLOOKUP($A$115,$B$5:$D$11,MATCH(C$116,$B$7:$D$7,0),FALSE) -> 1 | D132: =$G$10 -> 1 | E132: =Capacity!$G$65 -> 3.69514677 | F132: =VLOOKUP($A132,'Calculation Summary'!$B$17:$I$44,MATCH("Beam weight",'Calculation Summary'!$B$11:$I$11,0),FALSE)*12/sb + VLOOKUP($A132,'Calculation Summary'!$B$17:$I$44,MATCH("diaphragm weight",'Calculation Summary'!$B$11:$I$11,0),FALSE)*12/sb +VLOOKUP($A132,'Calculation Summary'!$B$17:$I$44,MATCH("Barrier weight",'Calculation Summary'!$B$11:$I$11,0),FALSE)*12/sbc -> 1.447168427 | G132: =VLOOKUP($A132,'Calculation Summary'!$B$17:$I$44,MATCH("Wearing surface",'Calculation Summary'!$B$11:$I$11,0),FALSE)*12/sbc -> 0.821725033 | H132: =H99*12/sbc -> 1.165453033 | I132: =Loadrating($B132,$C132,$D132,$E132,$F132,$G132,$H132) -> 1.223775879 | J132: ='Calculation Summary'!D$14*12/sb +'Calculation Summary'!$F$14*12/sb + 'Calculation Summary'!$E$14*12 / sbc -> 1.459726865 | K132: ='Calculation Summary'!$I$14*12/sbc -> 0.829302071 | L132: =L99*12/sbc -> 1.152434959 | M132: =Loadrating($B132,$C132,$D132,$E132,$J132,$K132,$L132) -> 1.220127716 | N132: =MIN(I132,M132) -> 1.220127716
A133: EV3 | B133: =VLOOKUP($A$115,$B$5:$D$11,MATCH(B$116,$B$7:$D$7,0),FALSE) -> 1 | C133: =VLOOKUP($A$115,$B$5:$D$11,MATCH(C$116,$B$7:$D$7,0),FALSE) -> 1 | D133: =$G$10 -> 1 | E133: =Capacity!$G$65 -> 3.69514677 | F133: =VLOOKUP($A133,'Calculation Summary'!$B$17:$I$44,MATCH("Beam weight",'Calculation Summary'!$B$11:$I$11,0),FALSE)*12/sb + VLOOKUP($A133,'Calculation Summary'!$B$17:$I$44,MATCH("diaphragm weight",'Calculation Summary'!$B$11:$I$11,0),FALSE)*12/sb +VLOOKUP($A133,'Calculation Summary'!$B$17:$I$44,MATCH("Barrier weight",'Calculation Summary'!$B$11:$I$11,0),FALSE)*12/sbc -> 1.45731422 | G133: =VLOOKUP($A133,'Calculation Summary'!$B$17:$I$44,MATCH("Wearing surface",'Calculation Summary'!$B$11:$I$11,0),FALSE)*12/sbc -> 0.82784642 | H133: =H100*12/sbc -> 1.768569134 | I133: =Loadrating($B133,$C133,$D133,$E133,$F133,$G133,$H133) -> 0.7972468265 | J133: ='Calculation Summary'!D$14*12/sb +'Calculation Summary'!$F$14*12/sb + 'Calculation Summary'!$E$14*12 / sbc -> 1.459726865 | K133: ='Calculation Summary'!$I$14*12/sbc -> 0.829302071 | L133: =L100*12/sbc -> 1.764828587 | M133: =Loadrating($B133,$C133,$D133,$E133,$J133,$K133,$L133) -> 0.7967447061 | N133: 0.7967447061
A134: E. AASHTO Legal Vehicles
A135: Type3 | B135: =VLOOKUP($A$115,$B$5:$D$11,MATCH(B$116,$B$7:$D$7,0),FALSE) -> 1 | C135: 1 | D135: =$G$10 -> 1 | E135: =Capacity!$G$65 -> 3.69514677 | F135: =VLOOKUP($A135,'Calculation Summary'!$B$17:$I$44,MATCH("Beam weight",'Calculation Summary'!$B$11:$I$11,0),FALSE)*12/sb + VLOOKUP($A135,'Calculation Summary'!$B$17:$I$44,MATCH("diaphragm weight",'Calculation Summary'!$B$11:$I$11,0),FALSE)*12/sb +VLOOKUP($A135,'Calculation Summary'!$B$17:$I$44,MATCH("Barrier weight",'Calculation Summary'!$B$11:$I$11,0),FALSE)*12/sbc -> 1.455935608 | G135: =VLOOKUP($A135,'Calculation Summary'!$B$17:$I$44,MATCH("Wearing surface",'Calculation Summary'!$B$11:$I$11,0),FALSE)*12/sbc -> 0.8270146451 | H135: =H102*12/sbc -> 1.009350784 | I135: =Loadrating($B135,$C135,$D135,$E135,$F135,$G135,$H135) -> 1.399113706 | J135: ='Calculation Summary'!D$14*12/sb +'Calculation Summary'!$F$14*12/sb + 'Calculation Summary'!$E$14*12 / sbc -> 1.459726865 | K135: ='Calculation Summary'!$I$14*12/sbc -> 0.829302071 | L135: =L102*12/sbc -> 1.005933379 | M135: =Loadrating($B135,$C135,$D135,$E135,$F135,$G135,$H135) -> 1.399113706 | N135: 1.399113706
A136: Type3S2 | B136: 1 | C136: 1 | D136: =$G$10 -> 1 | E136: =Capacity!$G$65 -> 3.69514677 | F136: =VLOOKUP($A136,'Calculation Summary'!$B$17:$I$44,MATCH("Beam weight",'Calculation Summary'!$B$11:$I$11,0),FALSE)*12/sb + VLOOKUP($A136,'Calculation Summary'!$B$17:$I$44,MATCH("diaphragm weight",'Calculation Summary'!$B$11:$I$11,0),FALSE)*12/sb +VLOOKUP($A136,'Calculation Summary'!$B$17:$I$44,MATCH("Barrier weight",'Calculation Summary'!$B$11:$I$11,0),FALSE)*12/sbc -> 1.442235464 | G136: =VLOOKUP($A136,'Calculation Summary'!$B$17:$I$44,MATCH("Wearing surface",'Calculation Summary'!$B$11:$I$11,0),FALSE)*12/sbc -> 0.8187487676 | H136: =H103*12/sbc -> 1.083492609 | I136: =Loadrating($B136,$C136,$D136,$E136,$F136,$G136,$H136) -> 1.323647735 | J136: ='Calculation Summary'!D$14*12/sb +'Calculation Summary'!$F$14*12/sb + 'Calculation Summary'!$E$14*12 / sbc -> 1.459726865 | K136: ='Calculation Summary'!$I$14*12/sbc -> 0.829302071 | L136: =L103*12/sbc -> 1.060788716 | M136: =Loadrating($B136,$C136,$D136,$E136,$F136,$G136,$H136) -> 1.323647735 | N136: 1.323647735
A137: Type3_3 | B137: 1 | C137: 1 | D137: =$G$10 -> 1 | E137: =Capacity!$G$65 -> 3.69514677 | F137: =VLOOKUP($A137,'Calculation Summary'!$B$17:$I$44,MATCH("Beam weight",'Calculation Summary'!$B$11:$I$11,0),FALSE)*12/sb + VLOOKUP($A137,'Calculation Summary'!$B$17:$I$44,MATCH("diaphragm weight",'Calculation Summary'!$B$11:$I$11,0),FALSE)*12/sb +VLOOKUP($A137,'Calculation Summary'!$B$17:$I$44,MATCH("Barrier weight",'Calculation Summary'!$B$11:$I$11,0),FALSE)*12/sbc -> 1.459088321 | G137: =VLOOKUP($A137,'Calculation Summary'!$B$17:$I$44,MATCH("Wearing surface",'Calculation Summary'!$B$11:$I$11,0),FALSE)*12/sbc -> 0.8289168102 | H137: =H104*12/sbc -> 0.9957450978 | I137: =Loadrating($B137,$C137,$D137,$E137,$F137,$G137,$H137) -> 1.413154473 | J137: ='Calculation Summary'!D$14*12/sb +'Calculation Summary'!$F$14*12/sb + 'Calculation Summary'!$E$14*12 / sbc -> 1.459726865 | K137: ='Calculation Summary'!$I$14*12/sbc -> 0.829302071 | L137: =L104*12/sbc -> 0.9949623116 | M137: =Loadrating($B137,$C137,$D137,$E137,$F137,$G137,$H137) -> 1.413154473 | N137: 1.413154473
A139: Service I | B139: Load factors | E139: At Moment critical point | G139: At center | I139: Adopted RF
A140: Vehicle types | B140: ᵞDc | C140: ᵞDw | D140: ᵞLL | E140: RF | G140: RF
A141: F.Permit Loads
A142: PL60T | B142: =VLOOKUP($A$139,$B$5:$D$11,MATCH(B$140,$B$7:$D$7,0),FALSE) -> 1 | C142: 1 | D142: 1 | E142: ='Service I'!G42 -> 1.492192836 | G142: ='Service I'!D42 -> 1.492192757 | I142: =MIN(E142,G142) -> 1.492192757
A143: PL65T | B143: 1 | C143: 1 | D143: 1 | E143: ='Service I'!H42 -> 1.43077526 | G143: ='Service I'!E42 -> 1.431499561 | I143: =MIN(E143,G143) -> 1.43077526
A144: G. Custom Vehicle
A145: Custom_Vehicle_1 | B145: 1 | C145: 1 | D145: 1 | E145: ='Service I'!I42 -> 1.436457135 | G145: ='Service I'!F42 -> 1.436412869 | I145: =MIN(E145,G145) -> 1.436412869
A147: Rating Factor With Shear
A149: Strength I | B149: Load factors | E149: At shear critical point | J149: At Region 2 | O149: Adopted RF
A150: Vehicle types | B150: ᵞDc | C150: ᵞDw | D150: ᵞLL | E150: Capacity | F150: Dc | G150: Dw | H150: LL+IM | I150: RF | J150: Capacity | K150: Dc | L150: Dw | M150: LL+IM | N150: RF
A151: A. Design Vehicles
A152: HL93
A153: Inventory | B153: =VLOOKUP($A$149,$B$5:$D$11,MATCH(B$81,$B$7:$D$7,0),FALSE) -> 1.25 | C153: =VLOOKUP($A$149,$B$5:$D$11,MATCH(C$81,$B$7:$D$7,0),FALSE) -> 1.5 | D153: =$E$8 -> 1.75 | E153: =0.9*VLOOKUP($A153,'Calculation Summary'!$A$141:$E$171,2,FALSE) -> 282.8925 | F153: ='Calculation Summary'!$G$51 -> 22.73531622 | G153: ='Calculation Summary'!$I$51 -> 13.04891768 | H153: =VLOOKUP(A153,'Calculation Summary'!$A$100:$E$127,3,FALSE) -> 66.2869435 | I153: =Loadrating(B153,C153,D153,E153,F153,G153,H153) -> 2.024962261 | J153: =0.9*VLOOKUP($A153,'Calculation Summary'!$A$141:$E$171,4,FALSE) -> 195.3177258 | K153: ='Calculation Summary'!$G$52 -> 23.36223958 | L153: ='Calculation Summary'!$I$52 -> 13.0953125 | M153: =VLOOKUP(A153,'Calculation Summary'!$A$100:$E$127,5,FALSE) -> 53.14295456 | N153: =Loadrating(B153,C153,D153,J153,K153,L153,M153) -> 1.574964399 | O153: =MIN(I153,N153) -> 1.574964399
A154: Operating | B154: =VLOOKUP($A$149,$B$5:$D$11,MATCH(B$81,$B$7:$D$7,0),FALSE) -> 1.25 | C154: =VLOOKUP($A$149,$B$5:$D$11,MATCH(C$81,$B$7:$D$7,0),FALSE) -> 1.5 | D154: =$F$8 -> 1.35 | E154: =0.9*VLOOKUP($A154,'Calculation Summary'!$A$141:$E$171,2,FALSE) -> 282.8925 | F154: ='Calculation Summary'!$G$51 -> 22.73531622 | G154: ='Calculation Summary'!$I$51 -> 13.04891768 | H154: =VLOOKUP(A154,'Calculation Summary'!$A$100:$E$127,3,FALSE) -> 66.2869435 | I154: =Loadrating(B154,C154,D154,E154,F154,G154,H154) -> 2.624951079 | J154: =0.9*VLOOKUP($A154,'Calculation Summary'!$A$141:$E$171,4,FALSE) -> 195.3177124 | K154: ='Calculation Summary'!$G$52 -> 23.36223958 | L154: ='Calculation Summary'!$I$52 -> 13.0953125 | M154: =VLOOKUP(A154,'Calculation Summary'!$A$100:$E$127,5,FALSE) -> 53.14295456 | N154: =Loadrating(B154,C154,D154,J154,K154,L154,M154) -> 2.04162033 | O154: =MIN(I154,N154) -> 2.04162033
A155: HL93_Tandem
A156: Inventory_Tandem | B156: =VLOOKUP($A$149,$B$5:$D$11,MATCH(B$81,$B$7:$D$7,0),FALSE) -> 1.25 | C156: =VLOOKUP($A$149,$B$5:$D$11,MATCH(C$81,$B$7:$D$7,0),FALSE) -> 1.5 | D156: =$E$8 -> 1.75 | E156: =0.9*VLOOKUP($A156,'Calculation Summary'!$A$141:$E$171,2,FALSE) -> 282.8925 | F156: ='Calculation Summary'!$G$51 -> 22.73531622 | G156: ='Calculation Summary'!$I$51 -> 13.04891768 | H156: =VLOOKUP(A156,'Calculation Summary'!$A$100:$C$127,3,FALSE) -> 55.03235281 | I156: =Loadrating(B156,C156,D156,E156,F156,G156,H156) -> 2.439084504 | J156: =0.9*VLOOKUP($A156,'Calculation Summary'!$A$141:$E$171,4,FALSE) -> 195.3177132 | K156: ='Calculation Summary'!$G$52 -> 23.36223958 | L156: ='Calculation Summary'!$I$52 -> 13.0953125 | M156: =VLOOKUP(A156,'Calculation Summary'!$A$100:$E$127,5,FALSE) -> 41.85547743 | N156: =Loadrating(B156,C156,D156,J156,K156,L156,M156) -> 1.999696561 | O156: =MIN(I156,N156) -> 1.999696561
A157: Operating_Tandem | B157: =VLOOKUP($A$149,$B$5:$D$11,MATCH(B$81,$B$7:$D$7,0),FALSE) -> 1.25 | C157: =VLOOKUP($A$149,$B$5:$D$11,MATCH(C$81,$B$7:$D$7,0),FALSE) -> 1.5 | D157: =$F$8 -> 1.35 | E157: =0.9*VLOOKUP($A157,'Calculation Summary'!$A$141:$E$171,2,FALSE) -> 282.8925 | F157: ='Calculation Summary'!$G$51 -> 22.73531622 | G157: ='Calculation Summary'!$I$51 -> 13.04891768 | H157: =VLOOKUP(A157,'Calculation Summary'!$A$100:$C$127,3,FALSE) -> 55.03235281 | I157: =Loadrating(B157,C157,D157,E157,F157,G157,H157) -> 3.161776209 | J157: =0.9*VLOOKUP($A157,'Calculation Summary'!$A$141:$E$171,4,FALSE) -> 195.317705 | K157: ='Calculation Summary'!$G$52 -> 23.36223958 | L157: ='Calculation Summary'!$I$52 -> 13.0953125 | M157: =VLOOKUP(A157,'Calculation Summary'!$A$100:$E$127,5,FALSE) -> 41.85547743 | N157: =Loadrating(B157,C157,D157,J157,K157,L157,M157) -> 2.5921991 | O157: =MIN(I157,N157) -> 2.5921991
A158: B. Ohio Legal Vehicles
A159: 2F1 | B159: =VLOOKUP($A$149,$B$5:$D$11,MATCH(B$81,$B$7:$D$7,0),FALSE) -> 1.25 | C159: 1.5 | D159: =$B$19 -> 1.45 | E159: =0.9*VLOOKUP($A159,'Calculation Summary'!$A$141:$E$171,2,FALSE) -> 282.8925 | F159: ='Calculation Summary'!$G$51 -> 22.73531622 | G159: ='Calculation Summary'!$I$51 -> 13.04891768 | H159: =VLOOKUP(A159,'Calculation Summary'!$A$100:$E$127,3,FALSE) -> 24.52837062 | I159: =Loadrating(B159,C159,D159,E159,F159,G159,H159) -> 6.604596263 | J159: =0.9*VLOOKUP($A159,'Calculation Summary'!$A$141:$E$171,4,FALSE) -> 195.3176947 | K159: ='Calculation Summary'!$G$52 -> 23.36223958 | L159: ='Calculation Summary'!$I$52 -> 13.0953125 | M159: =VLOOKUP(A159,'Calculation Summary'!$A$100:$E$127,5,FALSE) -> 24.57321578 | N159: =Loadrating(B159,C159,D159,J159,K159,L159,M159) -> 4.110781536 | O159: =MIN(I159,N159) -> 4.110781536
A160: 3F1 | B160: 1.25 | C160: 1.5 | D160: =$B$19 -> 1.45 | E160: =0.9*VLOOKUP($A160,'Calculation Summary'!$A$141:$E$171,2,FALSE) -> 282.8925 | F160: ='Calculation Summary'!$G$51 -> 22.73531622 | G160: ='Calculation Summary'!$I$51 -> 13.04891768 | H160: =VLOOKUP(A160,'Calculation Summary'!$A$100:$E$127,3,FALSE) -> 36.49402223 | I160: =Loadrating(B160,C160,D160,E160,F160,G160,H160) -> 4.439082762 | J160: =0.9*VLOOKUP($A160,'Calculation Summary'!$A$141:$E$171,4,FALSE) -> 195.3177033 | K160: ='Calculation Summary'!$G$52 -> 23.36223958 | L160: ='Calculation Summary'!$I$52 -> 13.0953125 | M160: =VLOOKUP(A160,'Calculation Summary'!$A$100:$E$127,5,FALSE) -> 36.5627848 | N160: =Loadrating(B160,C160,D160,J160,K160,L160,M160) -> 2.762785389 | O160: =MIN(I160,N160) -> 2.762785389
A161: 5C1 | B161: 1.25 | C161: 1.5 | D161: =$B$19 -> 1.45 | E161: =0.9*VLOOKUP($A161,'Calculation Summary'!$A$141:$E$171,2,FALSE) -> 282.8925 | F161: ='Calculation Summary'!$G$51 -> 22.73531622 | G161: ='Calculation Summary'!$I$51 -> 13.04891768 | H161: =VLOOKUP(A161,'Calculation Summary'!$A$100:$E$127,3,FALSE) -> 42.84303523 | I161: =Loadrating(B161,C161,D161,E161,F161,G161,H161) -> 3.781244351 | J161: =0.9*VLOOKUP($A161,'Calculation Summary'!$A$141:$E$171,4,FALSE) -> 195.3177078 | K161: ='Calculation Summary'!$G$52 -> 23.36223958 | L161: ='Calculation Summary'!$I$52 -> 13.0953125 | M161: =VLOOKUP(A161,'Calculation Summary'!$A$100:$E$127,5,FALSE) -> 42.96262231 | N161: =Loadrating(B161,C161,D161,J161,K161,L161,M161) -> 2.351232893 | O161: =MIN(I161,N161) -> 2.351232893
A162: C. Specialized Hauling Vehicles
A163: SU4 | B163: =VLOOKUP($A$149,$B$5:$D$11,MATCH(B$81,$B$7:$D$7,0),FALSE) -> 1.25 | C163: 1.5 | D163: =$B$27 -> 1.45 | E163: =0.9*VLOOKUP($A163,'Calculation Summary'!$A$141:$E$171,2,FALSE) -> 282.8925 | F163: ='Calculation Summary'!$G$51 -> 22.73531622 | G163: ='Calculation Summary'!$I$51 -> 13.04891768 | H163: =VLOOKUP(A163,'Calculation Summary'!$A$100:$E$127,3,FALSE) -> 41.88277028 | I163: =Loadrating(B163,C163,D163,E163,F163,G163,H163) -> 3.867938627 | J163: =0.9*VLOOKUP($A163,'Calculation Summary'!$A$141:$E$171,4,FALSE) -> 195.3177071 | K163: ='Calculation Summary'!$G$52 -> 23.36223958 | L163: ='Calculation Summary'!$I$52 -> 13.0953125 | M163: =VLOOKUP(A163,'Calculation Summary'!$A$100:$E$127,5,FALSE) -> 41.96349156 | N163: =Loadrating(B163,C163,D163,J163,K163,L163,M163) -> 2.407214617 | O163: =MIN(I163,N163) -> 2.407214617
A164: SU5 | B164: 1.25 | C164: 1.5 | D164: =$B$27 -> 1.45 | E164: =0.9*VLOOKUP($A164,'Calculation Summary'!$A$141:$E$171,2,FALSE) -> 282.8925 | F164: ='Calculation Summary'!$G$51 -> 22.73531622 | G164: ='Calculation Summary'!$I$51 -> 13.04891768 | H164: =VLOOKUP(A164,'Calculation Summary'!$A$100:$E$127,3,FALSE) -> 46.8394618 | I164: =Loadrating(B164,C164,D164,E164,F164,G164,H164) -> 3.458621828 | J164: =0.9*VLOOKUP($A164,'Calculation Summary'!$A$141:$E$171,4,FALSE) -> 195.3177106 | K164: ='Calculation Summary'!$G$52 -> 23.36223958 | L164: ='Calculation Summary'!$I$52 -> 13.0953125 | M164: =VLOOKUP(A164,'Calculation Summary'!$A$100:$E$127,5,FALSE) -> 46.93214178 | N164: =Loadrating(B164,C164,D164,J164,K164,L164,M164) -> 2.15236571 | O164: =MIN(I164,N164) -> 2.15236571
A165: SU6 | B165: 1.25 | C165: 1.5 | D165: =$B$27 -> 1.45 | E165: =0.9*VLOOKUP($A165,'Calculation Summary'!$A$141:$E$171,2,FALSE) -> 282.8925 | F165: ='Calculation Summary'!$G$51 -> 22.73531622 | G165: ='Calculation Summary'!$I$51 -> 13.04891768 | H165: =VLOOKUP(A165,'Calculation Summary'!$A$100:$E$127,3,FALSE) -> 50.1361834 | I165: =Loadrating(B165,C165,D165,E165,F165,G165,H165) -> 3.231198986 | J165: =0.9*VLOOKUP($A165,'Calculation Summary'!$A$141:$E$171,4,FALSE) -> 195.317713 | K165: ='Calculation Summary'!$G$52 -> 23.36223958 | L165: ='Calculation Summary'!$I$52 -> 13.0953125 | M165: =VLOOKUP(A165,'Calculation Summary'!$A$100:$E$127,5,FALSE) -> 50.24007468 | N165: =Loadrating(B165,C165,D165,J165,K165,L165,M165) -> 2.01064857 | O165: =MIN(I165,N165) -> 2.01064857
A166: SU7 | B166: 1.25 | C166: 1.5 | D166: =$B$27 -> 1.45 | E166: =0.9*VLOOKUP($A166,'Calculation Summary'!$A$141:$E$171,2,FALSE) -> 282.8925 | F166: ='Calculation Summary'!$G$51 -> 22.73531622 | G166: ='Calculation Summary'!$I$51 -> 13.04891768 | H166: =VLOOKUP(A166,'Calculation Summary'!$A$100:$E$127,3,FALSE) -> 53.28363815 | I166: =Loadrating(B166,C166,D166,E166,F166,G166,H166) -> 3.040332653 | J166: =0.9*VLOOKUP($A166,'Calculation Summary'!$A$141:$E$171,4,FALSE) -> 195.3177152 | K166: ='Calculation Summary'!$G$52 -> 23.36223958 | L166: ='Calculation Summary'!$I$52 -> 13.0953125 | M166: =VLOOKUP(A166,'Calculation Summary'!$A$100:$E$127,5,FALSE) -> 53.39948813 | N166: =Loadrating(B166,C166,D166,J166,K166,L166,M166) -> 1.891687343 | O166: =MIN(I166,N166) -> 1.891687343
A167: D. Emergency Vehicles
A168: EV2 | B168: =VLOOKUP($A$149,$B$5:$D$11,MATCH(B$81,$B$7:$D$7,0),FALSE) -> 1.25 | C168: =VLOOKUP($A$149,$B$5:$D$11,MATCH(C$81,$B$7:$D$7,0),FALSE) -> 1.5 | D168: =MAIN!B149 -> 1.3 | E168: =0.9*VLOOKUP($A168,'Calculation Summary'!$A$141:$E$171,2,FALSE) -> 282.8925 | F168: ='Calculation Summary'!$G$51 -> 22.73531622 | G168: ='Calculation Summary'!$I$51 -> 13.04891768 | H168: =VLOOKUP(A168,'Calculation Summary'!$A$100:$E$127,3,FALSE) -> 44.73991293 | I168: =Loadrating(B168,C168,D168,E168,F168,G168,H168) -> 4.038726924 | J168: =0.9*VLOOKUP($A168,'Calculation Summary'!$A$141:$E$171,4,FALSE) -> 195.3177059 | K168: ='Calculation Summary'!$G$52 -> 23.36223958 | L168: ='Calculation Summary'!$I$52 -> 13.0953125 | M168: =VLOOKUP(A168,'Calculation Summary'!$A$100:$E$127,5,FALSE) -> 44.82586615 | N168: =Loadrating(B168,C168,D168,J168,K168,L168,M168) -> 2.513520227 | O168: =MIN(I168,N168) -> 2.513520227
A169: EV3 | B169: =VLOOKUP($A$149,$B$5:$D$11,MATCH(B$81,$B$7:$D$7,0),FALSE) -> 1.25 | C169: =VLOOKUP($A$149,$B$5:$D$11,MATCH(C$81,$B$7:$D$7,0),FALSE) -> 1.5 | D169: =MAIN!B150 -> 1.1 | E169: =0.9*VLOOKUP($A169,'Calculation Summary'!$A$141:$E$171,2,FALSE) -> 282.8925 | F169: ='Calculation Summary'!$G$51 -> 22.73531622 | G169: ='Calculation Summary'!$I$51 -> 13.04891768 | H169: =VLOOKUP(A169,'Calculation Summary'!$A$100:$E$127,3,FALSE) -> 66.35414416 | I169: =Loadrating(B169,C169,D169,E169,F169,G169,H169) -> 3.21826824 | J169: =0.9*VLOOKUP($A169,'Calculation Summary'!$A$141:$E$171,4,FALSE) -> 195.3177131 | K169: ='Calculation Summary'!$G$52 -> 23.36223958 | L169: ='Calculation Summary'!$I$52 -> 13.0953125 | M169: =VLOOKUP(A169,'Calculation Summary'!$A$100:$E$127,5,FALSE) -> 66.48270027 | N169: =Loadrating(B169,C169,D169,J169,K169,L169,M169) -> 2.002871619 | O169: =MIN(I169,N169) -> 2.002871619
A170: E. AASHTO Legal Vehicles
A171: Type3 | B171: =VLOOKUP($A$149,$B$5:$D$11,MATCH(B$81,$B$7:$D$7,0),FALSE) -> 1.25 | C171: 1.5 | D171: =$B$19 -> 1.45 | E171: =0.9*VLOOKUP($A171,'Calculation Summary'!$A$141:$E$171,2,FALSE) -> 282.8925 | F171: ='Calculation Summary'!$G$51 -> 22.73531622 | G171: ='Calculation Summary'!$I$51 -> 13.04891768 | H171: =VLOOKUP(A171,'Calculation Summary'!$A$100:$E$127,3,FALSE) -> 38.1082549 | I171: =Loadrating(B171,C171,D171,E171,F171,G171,H171) -> 4.25104706 | J171: =0.9*VLOOKUP($A171,'Calculation Summary'!$A$141:$E$171,4,FALSE) -> 195.3177044 | K171: ='Calculation Summary'!$G$52 -> 23.36223958 | L171: ='Calculation Summary'!$I$52 -> 13.0953125 | M171: =VLOOKUP(A171,'Calculation Summary'!$A$100:$E$127,5,FALSE) -> 38.18299683 | N171: =Loadrating(B171,C171,D171,J171,K171,L171,M171) -> 2.645552649 | O171: =MIN(I171,N171) -> 2.645552649
A172: Type3S2 | B172: 1.25 | C172: 1.5 | D172: =$B$19 -> 1.45 | E172: =0.9*VLOOKUP($A172,'Calculation Summary'!$A$141:$E$171,2,FALSE) -> 282.8925 | F172: ='Calculation Summary'!$G$51 -> 22.73531622 | G172: ='Calculation Summary'!$I$51 -> 13.04891768 | H172: =VLOOKUP(A172,'Calculation Summary'!$A$100:$E$127,3,FALSE) -> 44.0161459 | I172: =Loadrating(B172,C172,D172,E172,F172,G172,H172) -> 3.680467285 | J172: =0.9*VLOOKUP($A172,'Calculation Summary'!$A$141:$E$171,4,FALSE) -> 195.3177086 | K172: ='Calculation Summary'!$G$52 -> 23.36223958 | L172: ='Calculation Summary'!$I$52 -> 13.0953125 | M172: =VLOOKUP(A172,'Calculation Summary'!$A$100:$E$127,5,FALSE) -> 44.12377427 | N172: =Loadrating(B172,C172,D172,J172,K172,L172,M172) -> 2.289358356 | O172: =MIN(I172,N172) -> 2.289358356
A173: Type3_3 | B173: 1.25 | C173: 1.5 | D173: =$B$19 -> 1.45 | E173: =0.9*VLOOKUP($A173,'Calculation Summary'!$A$141:$E$171,2,FALSE) -> 282.8925 | F173: ='Calculation Summary'!$G$51 -> 22.73531622 | G173: ='Calculation Summary'!$I$51 -> 13.04891768 | H173: =VLOOKUP(A173,'Calculation Summary'!$A$100:$E$127,3,FALSE) -> 43.19408117 | I173: =Loadrating(B173,C173,D173,E173,F173,G173,H173) -> 3.750513509 | J173: =0.9*VLOOKUP($A173,'Calculation Summary'!$A$141:$E$171,4,FALSE) -> 195.3177081 | K173: ='Calculation Summary'!$G$52 -> 23.36223958 | L173: ='Calculation Summary'!$I$52 -> 13.0953125 | M173: =VLOOKUP(A173,'Calculation Summary'!$A$100:$E$127,5,FALSE) -> 43.31366825 | N173: =Loadrating(B173,C173,D173,J173,K173,L173,M173) -> 2.33217677 | O173: =MIN(I173,N173) -> 2.33217677
A176: Strength II | B176: Load factors | E176: At shear critical point | J176: At Region 2 | O176: Adopted RF
A177: Vehicle types | B177: ᵞDc | C177: ᵞDw | D177: ᵞLL | E177: Capacity | F177: Dc | G177: Dw | H177: LL+IM | I177: RF | J177: Capacity | K177: Dc | L177: Dw | M177: LL+IM | N177: RF
A178: F.Permit Loads
A179: PL60T | B179: =VLOOKUP($A$176,$B$5:$D$11,MATCH(B$107,$B$7:$D$7,0),FALSE) -> 1.25 | C179: =VLOOKUP($A$176,$B$5:$D$11,MATCH(C$107,$B$7:$D$7,0),FALSE) -> 1.5 | D179: =$G$74 -> 1.4 | E179: =0.9*VLOOKUP($A179,'Calculation Summary'!$A$141:$E$171,2,FALSE) -> 282.8925 | F179: ='Calculation Summary'!$G$51 -> 22.73531622 | G179: ='Calculation Summary'!$I$51 -> 13.04891768 | H179: =VLOOKUP(A179,'Calculation Summary'!$A$100:$C$127,3,FALSE) -> 42.54321407 | I179: =Loadrating(B179,C179,D179,E179,F179,G179,H179) -> 3.943888641 | J179: =0.9*VLOOKUP($A179,'Calculation Summary'!$A$141:$E$171,4,FALSE) -> 195.3177066 | K179: ='Calculation Summary'!$G$52 -> 23.36223958 | L179: ='Calculation Summary'!$I$52 -> 13.0953125 | M179: =VLOOKUP(A179,'Calculation Summary'!$A$100:$E$127,4,FALSE) -> 34.51495841 | N179: =Loadrating(B179,C179,D179,J179,K179,L179,M179) -> 3.031231035 | O179: =MIN(I179,N179) -> 3.031231035
A180: PL65T | B180: =VLOOKUP($A$176,$B$5:$D$11,MATCH(B$107,$B$7:$D$7,0),FALSE) -> 1.25 | C180: =VLOOKUP($A$176,$B$5:$D$11,MATCH(C$107,$B$7:$D$7,0),FALSE) -> 1.5 | D180: =$G$75 -> 1.35 | E180: =0.9*VLOOKUP($A180,'Calculation Summary'!$A$141:$E$171,2,FALSE) -> 282.8925 | F180: ='Calculation Summary'!$G$51 -> 22.73531622 | G180: ='Calculation Summary'!$I$51 -> 13.04891768 | H180: =VLOOKUP(A180,'Calculation Summary'!$A$100:$C$127,3,FALSE) -> 56.29736468 | I180: =Loadrating(B180,C180,D180,E180,F180,G180,H180) -> 3.090730531 | J180: =0.9*VLOOKUP($A180,'Calculation Summary'!$A$141:$E$171,4,FALSE) -> 195.3177146 | K180: ='Calculation Summary'!$G$52 -> 23.36223958 | L180: ='Calculation Summary'!$I$52 -> 13.0953125 | M180: =VLOOKUP(A180,'Calculation Summary'!$A$100:$E$127,4,FALSE) -> 45.66364764 | N180: =Loadrating(B180,C180,D180,J180,K180,L180,M180) -> 2.376019956 | O180: =MIN(I180,N180) -> 2.376019956
A181: G.Custom Vehicle
A182: Custom_Vehicle_1 | B182: =VLOOKUP($A$176,$B$5:$D$11,MATCH(B$107,$B$7:$D$7,0),FALSE) -> 1.25 | C182: =VLOOKUP($A$176,$B$5:$D$11,MATCH(C$107,$B$7:$D$7,0),FALSE) -> 1.5 | D182: =$G$76 -> 1.1 | E182: =IF(add_custom_vehicle= "NO", "N/A",0.9*VLOOKUP($A182,'Calculation Summary'!$A$141:$E$171,2,FALSE)) -> 282.8925 | F182: ='Calculation Summary'!$G$51 -> 22.73531622 | G182: ='Calculation Summary'!$I$51 -> 13.04891768 | H182: =VLOOKUP(A182,'Calculation Summary'!$A$100:$C$127,3,FALSE) -> 57.46603733 | I182: =IF(add_custom_vehicle= "NO", "N/A",Loadrating(B182,C182,D182,E182,F182,G182,H182)) -> 3.716028539 | J182: =IF(add_custom_vehicle= "NO", "N/A",0.9*VLOOKUP($A182,'Calculation Summary'!$A$141:$E$171,4,FALSE)) -> 195.3177078 | K182: ='Calculation Summary'!$G$52 -> 23.36223958 | L182: ='Calculation Summary'!$I$52 -> 13.0953125 | M182: =VLOOKUP(A182,'Calculation Summary'!$A$100:$E$127,4,FALSE) -> 45.72361727 | N182: =IF(add_custom_vehicle= "NO", "N/A",Loadrating(B182,C182,D182,J182,K182,L182,M182)) -> 2.912199791 | O182: =IF(add_custom_vehicle= "NO", "N/A",MIN(I182,N182)) -> 2.912199791
A185: Summary
A186: Vehicle types | B186: Flexure | F186: Shear | H186: Adopted Rating Factor | I186: Criteria | J186: Limit State
B187: Strength I | C187: Strength II | D187: Service I | E187: Service III | F187: Strength I | G187: Strength II
A188: A. Design Vehicle
A189: HL93
A190: Inventory | B190: =IF(VLOOKUP($A$188,MAIN!$A$130:$D$135,3,FALSE) = "YES",N84,"-") -> 1.02227816 | C190: - | D190: - | E190: =IF(VLOOKUP($A$188,MAIN!$A$130:$D$135,4,FALSE) = "YES",N119,"-") -> 1.003840977 | F190: =O153 -> 1.574964399 | G190: - | H190: =MIN(B190:G190) -> 1.003840977 | I190: =INDEX($B$186:$G$187,1,IF(MATCH(H190,B190:G190,0)<=4,1,5)) -> Flexure | J190: =INDEX($B$186:$G$187,2,MATCH(H190,B190:G190,0)) -> Service III
A191: Operating | B191: =IF(VLOOKUP($A$188,MAIN!$A$130:$D$135,3,FALSE) = "YES",N85,"-") -> 1.325175393 | C191: - | D191: - | E191: - | F191: =O154 -> 2.04162033 | G191: - | H191: =MIN(B191:G191) -> 1.325175393 | I191: =INDEX($B$186:$G$187,1,IF(MATCH(H191,B191:G191,0)<=4,1,5)) -> Flexure | J191: =INDEX($B$186:$G$187,2,MATCH(H191,B191:G191,0)) -> Strength I
A192: HL93_Tandem
A193: Inventory_Tandem | B193: =IF(VLOOKUP($A$188,MAIN!$A$130:$D$135,3,FALSE) = "YES",N87,"-") -> 1.151953281 | C193: - | D193: - | E193: =IF(VLOOKUP($A$188,MAIN!$A$130:$D$135,4,FALSE) = "YES",N121,"-") -> 1.131177357 | F193: =O156 -> 1.999696561 | G193: - | H193: =MIN(B193:G193) -> 1.131177357 | I193: =INDEX($B$186:$G$187,1,IF(MATCH(H193,B193:G193,0)<=4,1,5)) -> Flexure | J193: =INDEX($B$186:$G$187,2,MATCH(H193,B193:G193,0)) -> Service III
A194: Operating_Tandem | B194: =IF(VLOOKUP($A$188,MAIN!$A$130:$D$135,3,FALSE) = "YES",N88,"-") -> 1.493272771 | C194: - | D194: - | E194: - | F194: =O157 -> 2.5921991 | G194: - | H194: =MIN(B194:G194) -> 1.493272771 | I194: =INDEX($B$186:$G$187,1,IF(MATCH(H194,B194:G194,0)<=4,1,5)) -> Flexure | J194: =INDEX($B$186:$G$187,2,MATCH(H194,B194:G194,0)) -> Strength I
A195: B. Ohio Legal Vehicles
A196: 2F1 | B196: =IF(VLOOKUP($A$195,MAIN!$A$130:$D$135,3,FALSE) = "YES",N90,"-") -> 3.233869346 | C196: - | D196: - | E196: =IF(VLOOKUP($A$195,MAIN!$A$130:$D$135,4,FALSE) = "YES",N123,"-") -> - | F196: =O159 -> 4.110781536 | G196: - | H196: =MIN(B196:G196) -> 3.233869346 | I196: =INDEX($B$186:$G$187,1,IF(MATCH(H196,B196:G196,0)<=4,1,5)) -> Flexure | J196: =INDEX($B$186:$G$187,2,MATCH(H196,B196:G196,0)) -> Strength I
A197: 3F1 | B197: =IF(VLOOKUP($A$195,MAIN!$A$130:$D$135,3,FALSE) = "YES",N91,"-") -> 2.165307017 | C197: - | D197: - | E197: =IF(VLOOKUP($A$195,MAIN!$A$130:$D$135,4,FALSE) = "YES",N124,"-") -> - | F197: =O160 -> 2.762785389 | G197: - | H197: =MIN(B197:G197) -> 2.165307017 | I197: =INDEX($B$186:$G$187,1,IF(MATCH(H197,B197:G197,0)<=4,1,5)) -> Flexure | J197: =INDEX($B$186:$G$187,2,MATCH(H197,B197:G197,0)) -> Strength I
A198: 5C1 | B198: =IF(VLOOKUP($A$195,MAIN!$A$130:$D$135,3,FALSE) = "YES",N92,"-") -> 2.205580973 | C198: - | D198: - | E198: =IF(VLOOKUP($A$195,MAIN!$A$130:$D$135,4,FALSE) = "YES",N125,"-") -> - | F198: =O161 -> 2.351232893 | G198: - | H198: =MIN(B198:G198) -> 2.205580973 | I198: =INDEX($B$186:$G$187,1,IF(MATCH(H198,B198:G198,0)<=4,1,5)) -> Flexure | J198: =INDEX($B$186:$G$187,2,MATCH(H198,B198:G198,0)) -> Strength I
A199: C. Specialized Hauling Vehicles
A200: SU4 | B200: =IF(VLOOKUP($A$199,MAIN!$A$130:$D$135,3,FALSE) = "YES",N94,"-") -> 1.902166243 | C200: - | D200: - | E200: =IF(VLOOKUP($A$199,MAIN!$A$130:$D$135,4,FALSE) = "YES",N127,"-") -> - | F200: =O163 -> 2.407214617 | G200: - | H200: =MIN(B200:G200) -> 1.902166243 | I200: =INDEX($B$186:$G$187,1,IF(MATCH(H200,B200:G200,0)<=4,1,5)) -> Flexure | J200: =INDEX($B$186:$G$187,2,MATCH(H200,B200:G200,0)) -> Strength I
A201: SU5 | B201: =IF(VLOOKUP($A$199,MAIN!$A$130:$D$135,3,FALSE) = "YES",N95,"-") -> 1.728086126 | C201: - | D201: - | E201: =IF(VLOOKUP($A$199,MAIN!$A$130:$D$135,4,FALSE) = "YES",N128,"-") -> - | F201: =O164 -> 2.15236571 | G201: - | H201: =MIN(B201:G201) -> 1.728086126 | I201: =INDEX($B$186:$G$187,1,IF(MATCH(H201,B201:G201,0)<=4,1,5)) -> Flexure | J201: =INDEX($B$186:$G$187,2,MATCH(H201,B201:G201,0)) -> Strength I
A202: SU6 | B202: =IF(VLOOKUP($A$199,MAIN!$A$130:$D$135,3,FALSE) = "YES",N96,"-") -> 1.550115565 | C202: - | D202: - | E202: =IF(VLOOKUP($A$199,MAIN!$A$130:$D$135,4,FALSE) = "YES",N129,"-") -> - | F202: =O165 -> 2.01064857 | G202: - | H202: =MIN(B202:G202) -> 1.550115565 | I202: =INDEX($B$186:$G$187,1,IF(MATCH(H202,B202:G202,0)<=4,1,5)) -> Flexure | J202: =INDEX($B$186:$G$187,2,MATCH(H202,B202:G202,0)) -> Strength I
A203: SU7 | B203: =IF(VLOOKUP($A$199,MAIN!$A$130:$D$135,3,FALSE) = "YES",N97,"-") -> 1.422395704 | C203: - | D203: - | E203: =IF(VLOOKUP($A$199,MAIN!$A$130:$D$135,4,FALSE) = "YES",N130,"-") -> - | F203: =O166 -> 1.891687343 | G203: - | H203: =MIN(B203:G203) -> 1.422395704 | I203: =INDEX($B$186:$G$187,1,IF(MATCH(H203,B203:G203,0)<=4,1,5)) -> Flexure | J203: =INDEX($B$186:$G$187,2,MATCH(H203,B203:G203,0)) -> Strength I
A204: D. Emergency Vehicles
A205: EV2 | B205: =IF(VLOOKUP($A$204,MAIN!$A$130:$D$135,3,FALSE) = "YES",N99,"-") -> 2.085320152 | C205: - | D205: - | E205: =IF(VLOOKUP($A$204,MAIN!$A$130:$D$135,4,FALSE) = "YES",N132,"-") -> - | F205: =O168 -> 2.513520227 | G205: - | H205: =MIN(B205:G205) -> 2.085320152 | I205: =INDEX($B$186:$G$187,1,IF(MATCH(H205,B205:G205,0)<=4,1,5)) -> Flexure | J205: =INDEX($B$186:$G$187,2,MATCH(H205,B205:G205,0)) -> Strength I
A206: EV3 | B206: =IF(VLOOKUP($A$204,MAIN!$A$130:$D$135,3,FALSE) = "YES",N100,"-") -> 1.612796709 | C206: - | D206: - | E206: =IF(VLOOKUP($A$204,MAIN!$A$130:$D$135,4,FALSE) = "YES",N133,"-") -> - | F206: =O169 -> 2.002871619 | G206: - | H206: =MIN(B206:G206) -> 1.612796709 | I206: =INDEX($B$186:$G$187,1,IF(MATCH(H206,B206:G206,0)<=4,1,5)) -> Flexure | J206: =INDEX($B$186:$G$187,2,MATCH(H206,B206:G206,0)) -> Strength I
A207: E. AASHTO Legal Vehicles
A208: Type3 | B208: =IF(VLOOKUP($A$207,MAIN!$A$130:$D$135,3,FALSE) = "YES",N102,"-") -> 2.145830157 | C208: - | D208: - | E208: =IF(VLOOKUP($A$207,MAIN!$A$130:$D$135,4,FALSE) = "YES",N135,"-") -> - | F208: =O171 -> 2.645552649 | G208: - | H208: =MIN(B208:G208) -> 2.145830157 | I208: =INDEX($B$186:$G$187,1,IF(MATCH(H208,B208:G208,0)<=4,1,5)) -> Flexure | J208: =INDEX($B$186:$G$187,2,MATCH(H208,B208:G208,0)) -> Strength I
A209: Type3S2 | B209: =IF(VLOOKUP($A$207,MAIN!$A$130:$D$135,3,FALSE) = "YES",N103,"-") -> 2.0177903 | C209: - | D209: - | E209: =IF(VLOOKUP($A$207,MAIN!$A$130:$D$135,4,FALSE) = "YES",N136,"-") -> - | F209: =O172 -> 2.289358356 | G209: - | H209: =MIN(B209:G209) -> 2.0177903 | I209: =INDEX($B$186:$G$187,1,IF(MATCH(H209,B209:G209,0)<=4,1,5)) -> Flexure | J209: =INDEX($B$186:$G$187,2,MATCH(H209,B209:G209,0)) -> Strength I
A210: Type3_3 | B210: =IF(VLOOKUP($A$207,MAIN!$A$130:$D$135,3,FALSE) = "YES",N104,"-") -> 2.170443809 | C210: - | D210: - | E210: =IF(VLOOKUP($A$207,MAIN!$A$130:$D$135,4,FALSE) = "YES",N137,"-") -> - | F210: =O173 -> 2.33217677 | G210: - | H210: =MIN(B210:G210) -> 2.170443809 | I210: =INDEX($B$186:$G$187,1,IF(MATCH(H210,B210:G210,0)<=4,1,5)) -> Flexure | J210: =INDEX($B$186:$G$187,2,MATCH(H210,B210:G210,0)) -> Strength I
A211: F. Permit Vehicles
A212: PL60T | B212: - | C212: =IF(VLOOKUP($A$211,MAIN!$A$130:$D$135,3,FALSE) = "YES",N109,"-") -> 2.27831072 | D212: =IF(VLOOKUP($A$211,MAIN!$A$130:$D$135,4,FALSE) = "YES",I142,"-") -> - | E212: =IF(VLOOKUP($A$207,MAIN!$A$130:$D$135,4,FALSE) = "YES",I139,"-") -> - | F212: =O179 -> 3.031231035 | G212: =I179 -> 3.943888641 | H212: =MIN(B212:G212) -> 2.27831072 | I212: =INDEX($B$186:$G$187,1,IF(MATCH(H212,B212:G212,0)<=4,1,5)) -> Flexure | J212: =INDEX($B$186:$G$187,2,MATCH(H212,B212:G212,0)) -> Strength II
A213: PL65T | B213: - | C213: =IF(VLOOKUP($A$211,MAIN!$A$130:$D$135,3,FALSE) = "YES",N110,"-") -> 1.762138726 | D213: =IF(VLOOKUP($A$211,MAIN!$A$130:$D$135,4,FALSE) = "YES",I143,"-") -> - | E213: - | F213: =O180 -> 2.376019956 | G213: =I180 -> 3.090730531 | H213: =MIN(B213:G213) -> 1.762138726 | I213: =INDEX($B$186:$G$187,1,IF(MATCH(H213,B213:G213,0)<=4,1,5)) -> Flexure | J213: =INDEX($B$186:$G$187,2,MATCH(H213,B213:G213,0)) -> Strength II
A214: G. Custom Vehicle
A215: Custom_Vehicle_1 | B215: - | C215: =IF(VLOOKUP($A$214,MAIN!$A$130:$D$136,3,FALSE) = "YES",N112,"-") -> 2.239103778 | D215: =IF(VLOOKUP($A$211,MAIN!$A$130:$D$136,4,FALSE) = "YES",I145,"-") -> - | E215: - | F215: =O182 -> 2.912199791 | G215: =I182 -> 3.716028539 | H215: =IF(add_custom_vehicle= "NO", "N/A",MIN(B215:G215)) -> 2.239103778 | I215: =IF(add_custom_vehicle= "NO", "N/A",INDEX($B$186:$G$187,1,IF(MATCH(H215,B215:G215,0)<=4,1,5))) -> Flexure | J215: =IF(add_custom_vehicle= "NO", "N/A",INDEX($B$186:$G$187,2,MATCH(H215,B215:G215,0))) -> Strength II

Sheet Service I (hidden)
A1: Service I limit state for interior beam due to
A2: Description | C2: Unit | D2: At center | G2: At moment critical point
D3: PL60T | E3: PL65T | F3: Custom vehicle 1 | G3: PL60T | H3: PL65T | I3: Custom vehicle 1
A4: Moment due to live load | B4: MLL+IM | C4: kip-ft | D4: ='Calculation Summary'!$B$89 -> 253.6495827 | E4: ='Calculation Summary'!$B$90 -> 334.6484719 | F4: ='Calculation Summary'!$B$92 -> 303.6761009 | G4: ='Calculation Summary'!$C$89 -> 253.6496806 | H4: ='Calculation Summary'!$C$90 -> 345.8615672 | I4: ='Calculation Summary'!$C$92 -> 305.0547147
A5: Moment due to dead load | B5: MDC | C5: kip-ft | D5: ='Calculation Summary'!$G$14 -> 395.7037435 | E5: ='Calculation Summary'!$G$14 -> 395.7037435 | F5: ='Calculation Summary'!$G$14 -> 395.7037435 | G5: ='Calculation Summary'!$G$41 -> 395.7036128 | H5: ='Calculation Summary'!$G$42 -> 389.02511 | I5: ='Calculation Summary'!$G$44 -> 394.6897047
A6: Moment due to barrier weight | B6: MDW | C6: kip-ft | D6: ='Calculation Summary'!$I$14 -> 224.7286578 | E6: ='Calculation Summary'!$I$14 -> 224.7286578 | F6: ='Calculation Summary'!$I$14 -> 224.7286578 | G6: ='Calculation Summary'!$I$41 -> 224.728579 | H6: ='Calculation Summary'!$I$42 -> 220.7005707 | I6: ='Calculation Summary'!$I$44 -> 224.1170602
A7: Cracking moment | B7: Mcr | C7: kip-ft | D7: =Capacity!$G$52 -> 1105.449022 | E7: =Capacity!$G$52 -> 1105.449022 | F7: =Capacity!$G$52 -> 1105.449022 | G7: =Capacity!$G$52 -> 1105.449022 | H7: =Capacity!$G$52 -> 1105.449022 | I7: =Capacity!$G$52 -> 1105.449022
A8: Moment above cracking momet | C8: kip-ft | D8: =SUM(D$4:D$6)-D$7 -> -231.367038 | E8: -150.3681488 | F8: -181.3405198 | G8: -231.3671496 | H8: -149.8617741 | I8: -181.5875425
A9: Simplified check using 0.75Mn
A10: Mdc+MDW + Mll +IM | C10: kip-ft | D10: =SUM(D$4:D$6) -> 874.081984 | E10: 955.0808732 | F10: 924.1085022 | G10: 874.0818724 | H10: 955.5872479 | I10: 923.8614795
A11: 0.75 Mn | C11: kip-ft | D11: =0.75*'Calculation Summary'!$B$132 -> 1260.412929 | E11: =0.75*'Calculation Summary'!$B$132 -> 1260.412929 | F11: =0.75*'Calculation Summary'!$B$132 -> 1260.412929 | G11: =0.75*'Calculation Summary'!$B$132 -> 1260.412929 | H11: =0.75*'Calculation Summary'!$B$132 -> 1260.412929 | I11: =0.75*'Calculation Summary'!$B$132 -> 1260.412929
A12: Check MDC+MDW+MLL+IM < 0.75 Mn | D12: =IF(D11>D10,"OK","Refined method used") -> OK | E12: OK | F12: OK | G12: OK | H12: OK | I12: OK
A13: Moment ratio | D13: =D11/D10 -> 1.441984794 | E13: 1.319692358 | F13: 1.363923096 | G13: 1.441984978 | H13: 1.31899304 | I13: 1.364287782
A14: Check moment ratio > 1 | D14: =IF(D13>1,"OK","Refined method used") -> OK | E14: OK | F14: OK | G14: OK | H14: OK | I14: OK
A15: Refined check using 0.90fy
B16: fR | C16: ksi | D16: =0.9*fpy -> 218.7 | E16: 218.7 | F16: 218.7 | G16: 218.7 | H16: 218.7 | I16: 218.7
B17: fpe | C17: ksi | D17: ='Prestress Losses'!$C$11-'Prestress Losses'!$C$3 -> 162.5689809 | E17: ='Prestress Losses'!$C$11-'Prestress Losses'!$C$3 -> 162.5689809 | F17: ='Prestress Losses'!$C$11-'Prestress Losses'!$C$3 -> 162.5689809 | G17: ='Prestress Losses'!$C$11-'Prestress Losses'!$C$3 -> 162.5689809 | H17: ='Prestress Losses'!$C$11-'Prestress Losses'!$C$3 -> 162.5689809 | I17: ='Prestress Losses'!$C$11-'Prestress Losses'!$C$3 -> 162.5689809
A18: stress beyond effective prestress | B18: f | C18: ksi | D18: ='Section Props'!$C$123*D8*12*(h+h_slab-ybs_center-'Section Props'!$C$136)/I_cr -> -16.91806072 | E18: ='Section Props'!$C$123*E8*12*(h+h_slab-ybs_center-'Section Props'!$C$136)/I_cr -> -10.99524589 | F18: ='Section Props'!$C$123*F8*12*(h+h_slab-ybs_center-'Section Props'!$C$136)/I_cr -> -13.26001297 | G18: ='Section Props'!$C$123*G8*12*(h+h_slab-ybs_center-'Section Props'!$C$136)/I_cr -> -16.91806888 | H18: ='Section Props'!$C$123*H8*12*(h+h_slab-ybs_center-'Section Props'!$C$136)/I_cr -> -10.95821867 | I18: ='Section Props'!$C$123*I8*12*(h+h_slab-ybs_center-'Section Props'!$C$136)/I_cr -> -13.27807581
